Workbook

Sheet Introduction
C4: Joint Monitoring Programme for Water Supply, Sanitation and Hygiene
C6: Estimates on household water, sanitation and hygiene by wealth quintile and sub-national region in
C7: =+Water!B5 -> Mozambique
C9: Updated April 2021
C11: Follow the links below to find the following information:
C13: JMP Estimates
C14: WASH status and trends by wealth quintile (customized quintiles made without water and sanitation assets)
C15: Water
C16: Sanitation
C17: Hygiene
C19: Data inputs
C20: customized wealth quintiles and subnational data:
C21: =IF(INDIRECT(CONCATENATE("Water","!B105"))=0,"",INDIRECT(CONCATENATE("Water","!B105"))) -> DHS03
C22: =IF(INDIRECT(CONCATENATE("Water","!B106"))=0,"",INDIRECT(CONCATENATE("Water","!B106"))) -> MICS08
C23: =IF(INDIRECT(CONCATENATE("Water","!B107"))=0,"",INDIRECT(CONCATENATE("Water","!B107"))) -> AIS09
C24: =IF(INDIRECT(CONCATENATE("Water","!B108"))=0,"",INDIRECT(CONCATENATE("Water","!B108"))) -> DHS11
C25: =IF(INDIRECT(CONCATENATE("Water","!B109"))=0,"",INDIRECT(CONCATENATE("Water","!B109"))) -> AIS15
C26: =IF(INDIRECT(CONCATENATE("Water","!B110"))=0,"",INDIRECT(CONCATENATE("Water","!B110"))) -> MIS18
C27: =IF(INDIRECT(CONCATENATE("Water","!B111"))=0,"",INDIRECT(CONCATENATE("Water","!B111"))) -> 
C28: =IF(INDIRECT(CONCATENATE("Water","!B112"))=0,"",INDIRECT(CONCATENATE("Water","!B112"))) -> 
C29: =IF(INDIRECT(CONCATENATE("Water","!B113"))=0,"",INDIRECT(CONCATENATE("Water","!B113"))) -> 
C30: =IF(INDIRECT(CONCATENATE("Water","!B114"))=0,"",INDIRECT(CONCATENATE("Water","!B114"))) -> 
C31: =IF(INDIRECT(CONCATENATE("Water","!B115"))=0,"",INDIRECT(CONCATENATE("Water","!B115"))) -> 
C32: =IF(INDIRECT(CONCATENATE("Water","!B116"))=0,"",INDIRECT(CONCATENATE("Water","!B116"))) -> 
L55: =+IF(ISNUMBER(M48), "", "Insufficient data to estimate safely managed sanitation services at national level") -> Insufficient data to estimate safely managed sanitation services at national level

Sheet Water
A1: BGD
B4: Summary of trends in use of drinking water by wealth quintile (%)
B5: =IF(ISERROR(INDIRECT(CONCATENATE($B105,"!A2"))),"",INDIRECT(CONCATENATE($B105,"!A2"))) -> Mozambique
B7: =B118 -> National use of drinking water sources, 2000–2020 | J7: =B218 -> Urban use of drinking water sources, 2000–2020 | R7: =B318 -> Rural use of drinking water sources, 2000–2020
B31: =IF(ISERROR(INDIRECT(CONCATENATE($B105,"!A2"))),"",INDIRECT(CONCATENATE($B105,"!A2"))) -> Mozambique | F31: Poorest | J31: Poor | N31: Middle | R31: Rich | V31: Richest
F32: Basic | G32: Limited | H32: Unimproved | I32: Surface water | J32: Basic | K32: Limited | L32: Unimproved | M32: Surface water | N32: Basic | O32: Limited | P32: Unimproved | Q32: Surface water | R32: Basic | S32: Limited | T32: Unimproved | U32: Surface water | V32: Basic | W32: Limited | X32: Unimproved | Y32: Surface water
B33: NATIONAL | D33: Estimate | E33: =C99 -> 2000 | F33: =E99 -> 15.2908388 | G33: =F99 -> 5.7771229 | H33: 59.01638966 | I33: 19.91564865 | J33: =J99 -> 14.16328153 | K33: =K99 -> 5.821039837 | L33: 57.07179278 | M33: 22.94388586 | N33: =O99 -> 13.89328506 | O33: =P99 -> 4.58833885 | P33: 58.70928168 | Q33: 22.80909441 | R33: =T99 -> 32.13986728 | S33: =U99 -> 7.011257578 | T33: 50.68200482 | U33: 10.16687031 | V33: =Y99 -> 81.20489727 | W33: =Z99 -> 3.690417508 | X33: 13.62936751 | Y33: 1.475317717
E34: =C100 -> 2020 | F34: =E100 -> 36.67948018 | G34: 13.85809292 | H34: 30.87070525 | I34: 18.59172165 | J34: =J100 -> 37.68234071 | K34: 15.48725879 | L34: 29.68287667 | M34: 17.14752383 | N34: =O100 -> 51.64861174 | O34: 17.05725685 | P34: 19.81974174 | Q34: 11.47438968 | R34: =T100 -> 70.37264614 | S34: 15.35167349 | T34: 9.604921628 | U34: 4.670758739 | V34: =Y100 -> 94.90157412 | W34: 4.312873269 | X34: 0.7855526071 | Y34: 0
B36: URBAN | D36: Estimate | E36: =C199 -> 2000 | F36: =E199 -> 23.65604706 | G36: =F199 -> 5.737031117 | H36: 58.94823804 | I36: 11.65868379 | J36: =J199 -> 44.2073459 | K36: =K199 -> 7.108011026 | L36: 42.45007016 | M36: 6.234572915 | N36: =O199 -> 71.78530923 | O36: =P199 -> 5.577331464 | P36: 21.39969986 | Q36: 1.237659451 | R36: =T199 -> 83.89627472 | S36: =U199 -> 3.033934858 | T36: 12.67933599 | U36: 0.3904544327 | V36: =Y199 -> 93.29417016 | W36: =Z199 -> 1.355089045 | X36: 5.350740792 | Y36: 0
E37: =C200 -> 2020 | F37: =E200 -> 59.28799633 | G37: 14.37844113 | H37: 18.84796978 | I37: 7.485592766 | J37: =J200 -> 82.85259926 | K37: 13.32170428 | L37: 3.07166972 | M37: 0.7540267372 | N37: =O200 -> 92.39642746 | O37: 7.178704217 | P37: 0.4248683214 | Q37: 0 | R37: =T200 -> 96.50991885 | S37: 3.490081149 | T37: 0 | U37: 0 | V37: =Y200 -> 98.51159998 | W37: 1.430871723 | X37: 0 | Y37: 0.05752830124
B39: RURAL | D39: Estimate | E39: =C299 -> 2000 | F39: =E299 -> 9.67366916 | G39: =F299 -> 3.882581637 | H39: 59.68429525 | I39: 26.75945395 | J39: =J299 -> 9.962149626 | K39: =K299 -> 4.846074659 | L39: 63.11137651 | M39: 22.08039921 | N39: =O299 -> 11.83568069 | O39: =P299 -> 4.53344422 | P39: 56.29644619 | Q39: 27.33442889 | R39: =T299 -> 9.744392711 | S39: =U299 -> 3.51927945 | T39: 60.50358543 | U39: 26.2327424 | V39: =Y299 -> 17.07111209 | W39: =Z299 -> 4.573259722 | X39: 59.98548312 | Y39: 18.37014506
E40: =C300 -> 2020 | F40: =E300 -> 33.27027482 | G40: 13.3532123 | H40: 34.33833535 | I40: 19.03817753 | J40: =J300 -> 31.64620733 | K40: 15.39425618 | L40: 32.22842312 | M40: 20.73111337 | N40: =O300 -> 33.57623605 | O40: 12.8607722 | P40: 35.09906001 | Q40: 18.46393174 | R40: =T300 -> 46.85042651 | S40: 16.92047398 | T40: 22.61208969 | U40: 13.61700982 | V40: =Y300 -> 62.46241817 | W40: 16.7333481 | X40: 15.60195696 | Y40: 5.202276765
A97: NATIONAL | D97: Poorest | I97: Poor | N97: Middle | S97: Rich | X97: Richest
D98: Improved | E98: Basic | F98: Limited | G98: Unimproved | H98: Surface water | I98: Improved | J98: Basic | K98: Limited | L98: Unimproved | M98: Surface water | N98: Improved | O98: Basic | P98: Limited | Q98: Unimproved | R98: Surface water | S98: Improved | T98: Basic | U98: Limited | V98: Unimproved | W98: Surface water | X98: Improved | Y98: Basic | Z98: Limited | AA98: Unimproved | AB98: Surface water
A99: Forecast period: | C99: 2000 | D99: =IF((D101+H101)>100,D101*100/(D101+H101),D101) -> 21.0679617 | E99: =D99*AVERAGEIF(E105:E116,">0")/100 -> 15.2908388 | F99: =D99*(100-AVERAGEIF(E105:E116,">0"))/100 -> 5.7771229 | G99: =100-(E99+F99+H99) -> 59.01638966 | H99: =IF((D101+H101)>100,H101*100/(D101+H101),H101) -> 19.91564865 | I99: =IF((I101+M101)>100,I101*100/(I101+M101),I101) -> 19.98432137 | J99: =I99*AVERAGEIF(J105:J116,">0")/100 -> 14.16328153 | K99: =I99*(100-AVERAGEIF(J105:J116,">0"))/100 -> 5.821039837 | L99: =100-(J99+K99+M99) -> 57.07179278 | M99: =IF((I101+M101)>100,M101*100/(I101+M101),M101) -> 22.94388586 | N99: =IF((N101+R101)>100,N101*100/(N101+R101),N101) -> 18.48162392 | O99: =N99*AVERAGEIF(O105:O116,">0")/100 -> 13.89328506 | P99: =N99*(100-AVERAGEIF(O105:O116,">0"))/100 -> 4.58833885 | Q99: =100-(O99+P99+R99) -> 58.70928168 | R99: =IF((N101+R101)>100,R101*100/(N101+R101),R101) -> 22.80909441 | S99: =IF((S101+W101)>100,S101*100/(S101+W101),S101) -> 39.15112486 | T99: =S99*AVERAGEIF(T105:T116,">0")/100 -> 32.13986728 | U99: =S99*(100-AVERAGEIF(T105:T116,">0"))/100 -> 7.011257578 | V99: =100-(T99+U99+W99) -> 50.68200482 | W99: =IF((S101+W101)>100,W101*100/(S101+W101),W101) -> 10.16687031 | X99: =IF((X101+AB101)>100,X101*100/(X101+AB101),X101) -> 84.89531478 | Y99: =X99*AVERAGEIF(Y105:Y116,">0")/100 -> 81.20489727 | Z99: =X99*(100-AVERAGEIF(Y105:Y116,">0"))/100 -> 3.690417508 | AA99: =100-(Y99+Z99+AB99) -> 13.62936751 | AB99: =IF((X101+AB101)>100,AB101*100/(X101+AB101),AB101) -> 1.475317717
C100: 2020 | D100: =IF((D102+H102)>100,D102*100/(D102+H102),D102) -> 50.5375731 | E100: =D100*AVERAGEIF(E105:E116,">0")/100 -> 36.67948018 | F100: =D100*(100-AVERAGEIF(E105:E116,">0"))/100 -> 13.85809292 | G100: =100-(E100+F100+H100) -> 30.87070525 | H100: =IF((D102+H102)>100,H102*100/(D102+H102),H102) -> 18.59172165 | I100: =IF((I102+M102)>100,I102*100/(I102+M102),I102) -> 53.1695995 | J100: =I100*AVERAGEIF(J105:J116,">0")/100 -> 37.68234071 | K100: =I100*(100-AVERAGEIF(J105:J116,">0"))/100 -> 15.48725879 | L100: =100-(J100+K100+M100) -> 29.68287667 | M100: =IF((I102+M102)>100,M102*100/(I102+M102),M102) -> 17.14752383 | N100: =IF((N102+R102)>100,N102*100/(N102+R102),N102) -> 68.70586858 | O100: =N100*AVERAGEIF(O105:O116,">0")/100 -> 51.64861174 | P100: =N100*(100-AVERAGEIF(O105:O116,">0"))/100 -> 17.05725685 | Q100: =100-(O100+P100+R100) -> 19.81974174 | R100: =IF((N102+R102)>100,R102*100/(N102+R102),R102) -> 11.47438968 | S100: =IF((S102+W102)>100,S102*100/(S102+W102),S102) -> 85.72431963 | T100: =S100*AVERAGEIF(T105:T116,">0")/100 -> 70.37264614 | U100: =S100*(100-AVERAGEIF(T105:T116,">0"))/100 -> 15.35167349 | V100: =100-(T100+U100+W100) -> 9.604921628 | W100: =IF((S102+W102)>100,W102*100/(S102+W102),W102) -> 4.670758739 | X100: =IF((X102+AB102)>100,X102*100/(X102+AB102),X102) -> 99.21444739 | Y100: =X100*AVERAGEIF(Y105:Y116,">0")/100 -> 94.90157412 | Z100: =X100*(100-AVERAGEIF(Y105:Y116,">0"))/100 -> 4.312873269 | AA100: =100-(Y100+Z100+AB100) -> 0.7855526071 | AB100: =IF((X102+AB102)>100,AB102*100/(X102+AB102),AB102) -> 0
A101: Regression period: | C101: =MinRegYear(C99,C105:C116) -> 2001 | D101: =IF(MAX(C105:C116)-MIN(C105:C116)<5,AVERAGEIF(C105:C116,">0",D105:D116), IF(FORECAST($C101,D$105:D$116,$C$105:$C$116)<0,0, IF(FORECAST($C101,D$105:D$116,$C$105:$C$116)>100,100, FORECAST($C101,D$105:D$116,$C$105:$C$116)))) -> 21.0679617 | H101: =IF(MAX(C105:C116)-MIN(C105:C116)<5,AVERAGEIF(C105:C116,">0",H105:H116), IF(FORECAST($C101,H$105:H$116,$C$105:$C$116)<0,0, IF(FORECAST($C101,H$105:H$116,$C$105:$C$116)>100,100, FORECAST($C101,H$105:H$116,$C$105:$C$116)))) -> 19.91564865 | I101: =IF(MAX(C105:C116)-MIN(C105:C116)<5,AVERAGEIF(C105:C116,">0",I105:I116), IF(FORECAST($C101,I$105:I$116,$C$105:$C$116)<0,0, IF(FORECAST($C101,I$105:I$116,$C$105:$C$116)>100,100, FORECAST($C101,I$105:I$116,$C$105:$C$116)))) -> 19.98432137 | M101: =IF(MAX(C105:C116)-MIN(C105:C116)<5,AVERAGEIF(C105:C116,">0",M105:M116), IF(FORECAST($C101,M$105:M$116,$C$105:$C$116)<0,0, IF(FORECAST($C101,M$105:M$116,$C$105:$C$116)>100,100, FORECAST($C101,M$105:M$116,$C$105:$C$116)))) -> 22.94388586 | N101: =IF(MAX(C105:C116)-MIN(C105:C116)<5,AVERAGEIF(C105:C116,">0",N105:N116), IF(FORECAST($C101,N$105:N$116,$C$105:$C$116)<0,0, IF(FORECAST($C101,N$105:N$116,$C$105:$C$116)>100,100, FORECAST($C101,N$105:N$116,$C$105:$C$116)))) -> 18.48162392 | R101: =IF(MAX(C105:C116)-MIN(C105:C116)<5,AVERAGEIF(C105:C116,">0",R105:R116), IF(FORECAST($C101,R$105:R$116,$C$105:$C$116)<0,0, IF(FORECAST($C101,R$105:R$116,$C$105:$C$116)>100,100, FORECAST($C101,R$105:R$116,$C$105:$C$116)))) -> 22.80909441 | S101: =IF(MAX(C105:C116)-MIN(C105:C116)<5,AVERAGEIF(C105:C116,">0",S105:S116), IF(FORECAST($C101,S$105:S$116,$C$105:$C$116)<0,0, IF(FORECAST($C101,S$105:S$116,$C$105:$C$116)>100,100, FORECAST($C101,S$105:S$116,$C$105:$C$116)))) -> 39.15112486 | W101: =IF(MAX(C105:C116)-MIN(C105:C116)<5,AVERAGEIF(C105:C116,">0",W105:W116), IF(FORECAST($C101,W$105:W$116,$C$105:$C$116)<0,0, IF(FORECAST($C101,W$105:W$116,$C$105:$C$116)>100,100, FORECAST($C101,W$105:W$116,$C$105:$C$116)))) -> 10.16687031 | X101: =IF(MAX(C105:C116)-MIN(C105:C116)<5,AVERAGEIF(C105:C116,">0",X105:X116), IF(FORECAST($C101,X$105:X$116,$C$105:$C$116)<0,0, IF(FORECAST($C101,X$105:X$116,$C$105:$C$116)>100,100, FORECAST($C101,X$105:X$116,$C$105:$C$116)))) -> 84.89531478 | AB101: =IF(MAX(C105:C116)-MIN(C105:C116)<5,AVERAGEIF(C105:C116,">0",AB105:AB116), IF(FORECAST($C101,AB$105:AB$116,$C$105:$C$116)<0,0, IF(FORECAST($C101,AB$105:AB$116,$C$105:$C$116)>100,100, FORECAST($C101,AB$105:AB$116,$C$105:$C$116)))) -> 1.475317717
C102: =MaxRegYear(C100,C105:C116) -> 2020 | D102: =IF(MAX(C105:C116)-MIN(C105:C116)<5,AVERAGEIF(C105:C116,">0",D105:D116), IF(FORECAST($C102,D$105:D$116,$C$105:$C$116)<0,0, IF(FORECAST($C102,D$105:D$116,$C$105:$C$116)>100,100, FORECAST($C102,D$105:D$116,$C$105:$C$116)))) -> 50.5375731 | H102: =IF(MAX(C105:C116)-MIN(C105:C116)<5,AVERAGEIF(C105:C116,">0",H105:H116), IF(FORECAST($C102,H$105:H$116,$C$105:$C$116)<0,0, IF(FORECAST($C102,H$105:H$116,$C$105:$C$116)>100,100, FORECAST($C102,H$105:H$116,$C$105:$C$116)))) -> 18.59172165 | I102: =IF(MAX(C105:C116)-MIN(C105:C116)<5,AVERAGEIF(C105:C116,">0",I105:I116), IF(FORECAST($C102,I$105:I$116,$C$105:$C$116)<0,0, IF(FORECAST($C102,I$105:I$116,$C$105:$C$116)>100,100, FORECAST($C102,I$105:I$116,$C$105:$C$116)))) -> 53.1695995 | M102: =IF(MAX(C105:C116)-MIN(C105:C116)<5,AVERAGEIF(C105:C116,">0",M105:M116), IF(FORECAST($C102,M$105:M$116,$C$105:$C$116)<0,0, IF(FORECAST($C102,M$105:M$116,$C$105:$C$116)>100,100, FORECAST($C102,M$105:M$116,$C$105:$C$116)))) -> 17.14752383 | N102: =IF(MAX(C105:C116)-MIN(C105:C116)<5,AVERAGEIF(C105:C116,">0",N105:N116), IF(FORECAST($C102,N$105:N$116,$C$105:$C$116)<0,0, IF(FORECAST($C102,N$105:N$116,$C$105:$C$116)>100,100, FORECAST($C102,N$105:N$116,$C$105:$C$116)))) -> 68.70586858 | R102: =IF(MAX(C105:C116)-MIN(C105:C116)<5,AVERAGEIF(C105:C116,">0",R105:R116), IF(FORECAST($C102,R$105:R$116,$C$105:$C$116)<0,0, IF(FORECAST($C102,R$105:R$116,$C$105:$C$116)>100,100, FORECAST($C102,R$105:R$116,$C$105:$C$116)))) -> 11.47438968 | S102: =IF(MAX(C105:C116)-MIN(C105:C116)<5,AVERAGEIF(C105:C116,">0",S105:S116), IF(FORECAST($C102,S$105:S$116,$C$105:$C$116)<0,0, IF(FORECAST($C102,S$105:S$116,$C$105:$C$116)>100,100, FORECAST($C102,S$105:S$116,$C$105:$C$116)))) -> 85.72431963 | W102: =IF(MAX(C105:C116)-MIN(C105:C116)<5,AVERAGEIF(C105:C116,">0",W105:W116), IF(FORECAST($C102,W$105:W$116,$C$105:$C$116)<0,0, IF(FORECAST($C102,W$105:W$116,$C$105:$C$116)>100,100, FORECAST($C102,W$105:W$116,$C$105:$C$116)))) -> 4.670758739 | X102: =IF(MAX(C105:C116)-MIN(C105:C116)<5,AVERAGEIF(C105:C116,">0",X105:X116), IF(FORECAST($C102,X$105:X$116,$C$105:$C$116)<0,0, IF(FORECAST($C102,X$105:X$116,$C$105:$C$116)>100,100, FORECAST($C102,X$105:X$116,$C$105:$C$116)))) -> 99.21444739 | AB102: =IF(MAX(C105:C116)-MIN(C105:C116)<5,AVERAGEIF(C105:C116,">0",AB105:AB116), IF(FORECAST($C102,AB$105:AB$116,$C$105:$C$116)<0,0, IF(FORECAST($C102,AB$105:AB$116,$C$105:$C$116)>100,100, FORECAST($C102,AB$105:AB$116,$C$105:$C$116)))) -> 0
B104: Survey | C104: Year | D104: Improved | E104: % Improved < = 30min | H104: Surface water | I104: Improved | J104: % Improved < = 30min | M104: Surface water | N104: Improved | O104: % Improved < = 30min | R104: Surface water | S104: Improved | T104: % Improved < = 30min | W104: Surface water | X104: Improved | Y104: % Improved < = 30min | AB104: Surface water
B105: DHS03 | C105: 2003 | D105: =IF(ISERROR(INDIRECT(CONCATENATE($B105,"!C16"))),"",INDIRECT(CONCATENATE($B105,"!C16"))) -> 24.94257639 | E105: =IF(ISERROR(INDIRECT(CONCATENATE($B105,"!C23"))),"",INDIRECT(CONCATENATE($B105,"!C23"))) -> 74.21075177 | H105: =IF(ISERROR(INDIRECT(CONCATENATE($B105,"!C21"))),"",INDIRECT(CONCATENATE($B105,"!C21"))) -> 20.23962898 | I105: =IF(ISERROR(INDIRECT(CONCATENATE($B105,"!D16"))),"",INDIRECT(CONCATENATE($B105,"!D16"))) -> 22.7846897 | J105: =IF(ISERROR(INDIRECT(CONCATENATE($B105,"!D23"))),"",INDIRECT(CONCATENATE($B105,"!D23"))) -> 67.78416867 | M105: =IF(ISERROR(INDIRECT(CONCATENATE($B105,"!D21"))),"",INDIRECT(CONCATENATE($B105,"!D21"))) -> 21.42126742 | N105: =IF(ISERROR(INDIRECT(CONCATENATE($B105,"!E16"))),"",INDIRECT(CONCATENATE($B105,"!E16"))) -> 22.61569098 | O105: =IF(ISERROR(INDIRECT(CONCATENATE($B105,"!E23"))),"",INDIRECT(CONCATENATE($B105,"!E23"))) -> 75.80374217 | R105: =IF(ISERROR(INDIRECT(CONCATENATE($B105,"!E21"))),"",INDIRECT(CONCATENATE($B105,"!E21"))) -> 22.51120537 | S105: =IF(ISERROR(INDIRECT(CONCATENATE($B105,"!F16"))),"",INDIRECT(CONCATENATE($B105,"!F16"))) -> 45.68481697 | T105: =IF(ISERROR(INDIRECT(CONCATENATE($B105,"!F23"))),"",INDIRECT(CONCATENATE($B105,"!F23"))) -> 82.57101359 | W105: =IF(ISERROR(INDIRECT(CONCATENATE($B105,"!F21"))),"",INDIRECT(CONCATENATE($B105,"!F21"))) -> 7.748916929 | X105: =IF(ISERROR(INDIRECT(CONCATENATE($B105,"!G16"))),"",INDIRECT(CONCATENATE($B105,"!G16"))) -> 85.50469535 | Y105: =IF(ISERROR(INDIRECT(CONCATENATE($B105,"!G23"))),"",INDIRECT(CONCATENATE($B105,"!G23"))) -> 95.44555984 | AB105: =IF(ISERROR(INDIRECT(CONCATENATE($B105,"!G221"))),"",INDIRECT(CONCATENATE($B105,"!G21"))) -> 1.383564883
B106: MICS08 | C106: 2008 | D106: 32.73032959 | E106: 55.64646691 | H106: 21.50185779 | I106: 30.72672761 | J106: 61.34201661 | M106: 25.18610344 | N106: 34.31747057 | O106: 64.03862989 | R106: 20.81380641 | S106: 48.0170275 | T106: 69.92946498 | W106: 12.04278223 | X106: 92.51008855 | Y106: 89.89629517 | AB106: 0.4561005098
B107: AIS09 | C107: 2009 | D107: 29.80517235 | E107: N/A | H107: 15.33369108 | I107: 35.98812688 | J107: N/A | M107: 15.0437934 | N107: 44.08860189 | O107: N/A | R107: 12.3435443 | S107: 64.2440192 | T107: N/A | W107: 6.512434671 | X107: 89.29595453 | Y107: N/A | AB107: 1.113583759
B108: DHS11 | D108: 17.29170225 | E108: 69.40631418 | H108: 22.29266265 | I108: 15.45130783 | J108: 69.25816866 | M108: 23.51385207 | N108: 25.70319344 | O108: 75.74122299 | R108: 20.40636129 | S108: 54.21237078 | T108: 82.3807233 | W108: 10.214378 | X108: 90.54362933 | Y108: 97.15869677 | AB108: 1.227793406
B109: AIS15 | C109: 2015 | D109: 47.24899205 | E109: 80.85006947 | H109: 21.78372295 | I109: 46.75338477 | J109: 75.76941553 | M109: 25.02141654 | N109: 56.76539842 | O109: 76.28688228 | R109: 19.79129356 | S109: 76.50472131 | T109: 85.34278495 | W109: 6.332380273 | X109: 97.02346394 | Y109: 96.93821023 | AB109: 0.1204496746
B110: MIS18 | C110: 2018 | D110: 45.0622827 | E110: 82.77956732 | H110: 17.37468476 | I110: 47.50516999 | J110: 80.20606266 | M110: 13.40340756 | N110: 61.50326003 | O110: 83.99706355 | R110: 9.950578874 | S110: 78.96363664 | T110: 90.23506637 | W110: 4.31292401 | X110: 96.31702234 | Y110: 98.82613095 | AB110: 0.06617775875
D111: =IF(ISERROR(INDIRECT(CONCATENATE($B111,"!C16"))),"",INDIRECT(CONCATENATE($B111,"!C16"))) ->  | E111: =IF(ISERROR(INDIRECT(CONCATENATE($B111,"!C23"))),"",INDIRECT(CONCATENATE($B111,"!C23"))) ->  | H111: =IF(ISERROR(INDIRECT(CONCATENATE($B111,"!C21"))),"",INDIRECT(CONCATENATE($B111,"!C21"))) ->  | I111: =IF(ISERROR(INDIRECT(CONCATENATE($B111,"!D16"))),"",INDIRECT(CONCATENATE($B111,"!D16"))) ->  | J111: =IF(ISERROR(INDIRECT(CONCATENATE($B111,"!D23"))),"",INDIRECT(CONCATENATE($B111,"!D23"))) ->  | M111: =IF(ISERROR(INDIRECT(CONCATENATE($B111,"!D21"))),"",INDIRECT(CONCATENATE($B111,"!D21"))) ->  | N111: =IF(ISERROR(INDIRECT(CONCATENATE($B111,"!E16"))),"",INDIRECT(CONCATENATE($B111,"!E16"))) ->  | O111: =IF(ISERROR(INDIRECT(CONCATENATE($B111,"!E23"))),"",INDIRECT(CONCATENATE($B111,"!E23"))) ->  | R111: =IF(ISERROR(INDIRECT(CONCATENATE($B111,"!E21"))),"",INDIRECT(CONCATENATE($B111,"!E21"))) ->  | S111: =IF(ISERROR(INDIRECT(CONCATENATE($B111,"!F16"))),"",INDIRECT(CONCATENATE($B111,"!F16"))) ->  | T111: =IF(ISERROR(INDIRECT(CONCATENATE($B111,"!F23"))),"",INDIRECT(CONCATENATE($B111,"!F23"))) ->  | W111: =IF(ISERROR(INDIRECT(CONCATENATE($B111,"!F21"))),"",INDIRECT(CONCATENATE($B111,"!F21"))) ->  | X111: =IF(ISERROR(INDIRECT(CONCATENATE($B111,"!G16"))),"",INDIRECT(CONCATENATE($B111,"!G16"))) ->  | Y111: =IF(ISERROR(INDIRECT(CONCATENATE($B111,"!G23"))),"",INDIRECT(CONCATENATE($B111,"!G23"))) ->  | AB111: =IF(ISERROR(INDIRECT(CONCATENATE($B111,"!G221"))),"",INDIRECT(CONCATENATE($B111,"!G21"))) -> 
D112: =IF(ISERROR(INDIRECT(CONCATENATE($B112,"!C16"))),"",INDIRECT(CONCATENATE($B112,"!C16"))) ->  | E112: =IF(ISERROR(INDIRECT(CONCATENATE($B112,"!C23"))),"",INDIRECT(CONCATENATE($B112,"!C23"))) ->  | H112: =IF(ISERROR(INDIRECT(CONCATENATE($B112,"!C21"))),"",INDIRECT(CONCATENATE($B112,"!C21"))) ->  | I112: =IF(ISERROR(INDIRECT(CONCATENATE($B112,"!D16"))),"",INDIRECT(CONCATENATE($B112,"!D16"))) ->  | J112: =IF(ISERROR(INDIRECT(CONCATENATE($B112,"!D23"))),"",INDIRECT(CONCATENATE($B112,"!D23"))) ->  | M112: =IF(ISERROR(INDIRECT(CONCATENATE($B112,"!D21"))),"",INDIRECT(CONCATENATE($B112,"!D21"))) ->  | N112: =IF(ISERROR(INDIRECT(CONCATENATE($B112,"!E16"))),"",INDIRECT(CONCATENATE($B112,"!E16"))) ->  | O112: =IF(ISERROR(INDIRECT(CONCATENATE($B112,"!E23"))),"",INDIRECT(CONCATENATE($B112,"!E23"))) ->  | R112: =IF(ISERROR(INDIRECT(CONCATENATE($B112,"!E21"))),"",INDIRECT(CONCATENATE($B112,"!E21"))) ->  | S112: =IF(ISERROR(INDIRECT(CONCATENATE($B112,"!F16"))),"",INDIRECT(CONCATENATE($B112,"!F16"))) ->  | T112: =IF(ISERROR(INDIRECT(CONCATENATE($B112,"!F23"))),"",INDIRECT(CONCATENATE($B112,"!F23"))) ->  | W112: =IF(ISERROR(INDIRECT(CONCATENATE($B112,"!F21"))),"",INDIRECT(CONCATENATE($B112,"!F21"))) ->  | X112: =IF(ISERROR(INDIRECT(CONCATENATE($B112,"!G16"))),"",INDIRECT(CONCATENATE($B112,"!G16"))) ->  | Y112: =IF(ISERROR(INDIRECT(CONCATENATE($B112,"!G23"))),"",INDIRECT(CONCATENATE($B112,"!G23"))) ->  | AB112: =IF(ISERROR(INDIRECT(CONCATENATE($B112,"!G221"))),"",INDIRECT(CONCATENATE($B112,"!G21"))) -> 
B118: =CONCATENATE("National use of drinking water sources, ",C99,"–",C100) -> National use of drinking water sources, 2000–2020 | S118: Data points used for regression
E153: =IF(ISERROR(INDIRECT(CONCATENATE($B153,"!M18"))),"",INDIRECT(CONCATENATE($B153,"!M18"))) ->  | F153: =IF(ISERROR(INDIRECT(CONCATENATE($B153,"!M19"))),"",INDIRECT(CONCATENATE($B153,"!M19"))) ->  | G153: =IF(ISERROR(INDIRECT(CONCATENATE($B153,"!M20"))),"",INDIRECT(CONCATENATE($B153,"!M20"))) ->  | H153: =IF(ISERROR(INDIRECT(CONCATENATE($B153,"!M21"))),"",INDIRECT(CONCATENATE($B153,"!M21"))) ->  | J153: =IF(ISERROR(INDIRECT(CONCATENATE($B153,"!N18"))),"",INDIRECT(CONCATENATE($B153,"!N18"))) ->  | K153: =IF(ISERROR(INDIRECT(CONCATENATE($B153,"!N19"))),"",INDIRECT(CONCATENATE($B153,"!N19"))) ->  | L153: =IF(ISERROR(INDIRECT(CONCATENATE($B153,"!N20"))),"",INDIRECT(CONCATENATE($B153,"!N20"))) ->  | M153: =IF(ISERROR(INDIRECT(CONCATENATE($B153,"!N21"))),"",INDIRECT(CONCATENATE($B153,"!N21"))) ->  | O153: =IF(ISERROR(INDIRECT(CONCATENATE($B153,"!O18"))),"",INDIRECT(CONCATENATE($B153,"!O18"))) ->  | P153: =IF(ISERROR(INDIRECT(CONCATENATE($B153,"!O19"))),"",INDIRECT(CONCATENATE($B153,"!O19"))) ->  | Q153: =IF(ISERROR(INDIRECT(CONCATENATE($B153,"!O20"))),"",INDIRECT(CONCATENATE($B153,"!O20"))) ->  | R153: =IF(ISERROR(INDIRECT(CONCATENATE($B153,"!O21"))),"",INDIRECT(CONCATENATE($B153,"!O21"))) ->  | T153: =IF(ISERROR(INDIRECT(CONCATENATE($B153,"!P18"))),"",INDIRECT(CONCATENATE($B153,"!P18"))) ->  | U153: =IF(ISERROR(INDIRECT(CONCATENATE($B153,"!P19"))),"",INDIRECT(CONCATENATE($B153,"!P19"))) ->  | V153: =IF(ISERROR(INDIRECT(CONCATENATE($B153,"!P20"))),"",INDIRECT(CONCATENATE($B153,"!P20"))) ->  | W153: =IF(ISERROR(INDIRECT(CONCATENATE($B153,"!P21"))),"",INDIRECT(CONCATENATE($B153,"!P21"))) ->  | Y153: =IF(ISERROR(INDIRECT(CONCATENATE($B153,"!Q18"))),"",INDIRECT(CONCATENATE($B153,"!Q18"))) ->  | Z153: =IF(ISERROR(INDIRECT(CONCATENATE($B153,"!Q19"))),"",INDIRECT(CONCATENATE($B153,"!Q19"))) ->  | AA153: =IF(ISERROR(INDIRECT(CONCATENATE($B153,"!Q20"))),"",INDIRECT(CONCATENATE($B153,"!Q20"))) ->  | AB153: =IF(ISERROR(INDIRECT(CONCATENATE($B153,"!Q21"))),"",INDIRECT(CONCATENATE($B153,"!Q1"))) -> 
A197: URBAN | D197: Poorest | I197: Poor | N197: Middle | S197: Rich | X197: Richest
D198: Improved | E198: Basic | F198: Limited | G198: Unimproved | H198: Surface water | I198: Improved | J198: Basic | K198: Limited | L198: Unimproved | M198: Surface water | N198: Improved | O198: Basic | P198: Limited | Q198: Unimproved | R198: Surface water | S198: Improved | T198: Basic | U198: Limited | V198: Unimproved | W198: Surface water | X198: Improved | Y198: Basic | Z198: Limited | AA198: Unimproved | AB198: Surface water
A199: Forecast period: | C199: 2000 | D199: =IF((D201+H201)>100,D201*100/(D201+H201),D201) -> 29.39307817 | E199: =D199*AVERAGEIF(E205:E216,">0")/100 -> 23.65604706 | F199: =D199*(100-AVERAGEIF(E205:E216,">0"))/100 -> 5.737031117 | G199: =100-(E199+F199+H199) -> 58.94823804 | H199: =IF((D201+H201)>100,H201*100/(D201+H201),H201) -> 11.65868379 | I199: =IF((I201+M201)>100,I201*100/(I201+M201),I201) -> 51.31535693 | J199: =I199*AVERAGEIF(J205:J216,">0")/100 -> 44.2073459 | K199: =I199*(100-AVERAGEIF(J205:J216,">0"))/100 -> 7.108011026 | L199: =100-(J199+K199+M199) -> 42.45007016 | M199: =IF((I201+M201)>100,M201*100/(I201+M201),M201) -> 6.234572915 | N199: =IF((N201+R201)>100,N201*100/(N201+R201),N201) -> 77.36264069 | O199: =N199*AVERAGEIF(O205:O216,">0")/100 -> 71.78530923 | P199: =N199*(100-AVERAGEIF(O205:O216,">0"))/100 -> 5.577331464 | Q199: =100-(O199+P199+R199) -> 21.39969986 | R199: =IF((N201+R201)>100,R201*100/(N201+R201),R201) -> 1.237659451 | S199: =IF((S201+W201)>100,S201*100/(S201+W201),S201) -> 86.93020958 | T199: =S199*AVERAGEIF(T205:T216,">0")/100 -> 83.89627472 | U199: =S199*(100-AVERAGEIF(T205:T216,">0"))/100 -> 3.033934858 | V199: =100-(T199+U199+W199) -> 12.67933599 | W199: =IF((S201+W201)>100,W201*100/(S201+W201),W201) -> 0.3904544327 | X199: =IF((X201+AB201)>100,X201*100/(X201+AB201),X201) -> 94.64925921 | Y199: =X199*AVERAGEIF(Y205:Y216,">0")/100 -> 93.29417016 | Z199: =X199*(100-AVERAGEIF(Y205:Y216,">0"))/100 -> 1.355089045 | AA199: =100-(Y199+Z199+AB199) -> 5.350740792 | AB199: =IF((X201+AB201)>100,AB201*100/(X201+AB201),AB201) -> 0
C200: 2020 | D200: =IF((D202+H202)>100,D202*100/(D202+H202),D202) -> 73.66643746 | E200: =D200*AVERAGEIF(E205:E216,">0")/100 -> 59.28799633 | F200: =D200*(100-AVERAGEIF(E205:E216,">0"))/100 -> 14.37844113 | G200: =100-(E200+F200+H200) -> 18.84796978 | H200: =IF((D202+H202)>100,H202*100/(D202+H202),H202) -> 7.485592766 | I200: =IF((I202+M202)>100,I202*100/(I202+M202),I202) -> 96.17430354 | J200: =I200*AVERAGEIF(J205:J216,">0")/100 -> 82.85259926 | K200: =I200*(100-AVERAGEIF(J205:J216,">0"))/100 -> 13.32170428 | L200: =100-(J200+K200+M200) -> 3.07166972 | M200: =IF((I202+M202)>100,M202*100/(I202+M202),M202) -> 0.7540267372 | N200: =IF((N202+R202)>100,N202*100/(N202+R202),N202) -> 99.57513168 | O200: =N200*AVERAGEIF(O205:O216,">0")/100 -> 92.39642746 | P200: =N200*(100-AVERAGEIF(O205:O216,">0"))/100 -> 7.178704217 | Q200: =100-(O200+P200+R200) -> 0.4248683214 | R200: =IF((N202+R202)>100,R202*100/(N202+R202),R202) -> 0 | S200: =IF((S202+W202)>100,S202*100/(S202+W202),S202) -> 100 | T200: =S200*AVERAGEIF(T205:T216,">0")/100 -> 96.50991885 | U200: =S200*(100-AVERAGEIF(T205:T216,">0"))/100 -> 3.490081149 | V200: =100-(T200+U200+W200) -> 0 | W200: =IF((S202+W202)>100,W202*100/(S202+W202),W202) -> 0 | X200: =IF((X202+AB202)>100,X202*100/(X202+AB202),X202) -> 99.9424717 | Y200: =X200*AVERAGEIF(Y205:Y216,">0")/100 -> 98.51159998 | Z200: =X200*(100-AVERAGEIF(Y205:Y216,">0"))/100 -> 1.430871723 | AA200: =100-(Y200+Z200+AB200) -> 0 | AB200: =IF((X202+AB202)>100,AB202*100/(X202+AB202),AB202) -> 0.05752830124
A201: Regression period: | C201: =MinRegYear(C199,C205:C216) -> 2001 | D201: =IF(MAX(C205:C216)-MIN(C205:C216)<5,AVERAGEIF(C205:C216,">0",D205:D216), IF(FORECAST($C201,D$205:D$216,$C$205:$C$216)<0,0, IF(FORECAST($C201,D$205:D$216,$C$205:$C$216)>100,100, FORECAST($C201,D$205:D$216,$C$205:$C$216)))) -> 29.39307817 | H201: =IF(MAX(C205:C216)-MIN(C205:C216)<5,AVERAGEIF(C205:C216,">0",H205:H216), IF(FORECAST($C201,H$205:H$216,$C$205:$C$216)<0,0, IF(FORECAST($C201,H$205:H$216,$C$205:$C$216)>100,100, FORECAST($C201,H$205:H$216,$C$205:$C$216)))) -> 11.65868379 | I201: =IF(MAX(C205:C216)-MIN(C205:C216)<5,AVERAGEIF(C205:C216,">0",I205:I216), IF(FORECAST($C201,I$205:I$216,$C$205:$C$216)<0,0, IF(FORECAST($C201,I$205:I$216,$C$205:$C$216)>100,100, FORECAST($C201,I$205:I$216,$C$205:$C$216)))) -> 51.31535693 | M201: =IF(MAX(C205:C216)-MIN(C205:C216)<5,AVERAGEIF(C205:C216,">0",M205:M216), IF(FORECAST($C201,M$205:M$216,$C$205:$C$216)<0,0, IF(FORECAST($C201,M$205:M$216,$C$205:$C$216)>100,100, FORECAST($C201,M$205:M$216,$C$205:$C$216)))) -> 6.234572915 | N201: =IF(MAX(C205:C216)-MIN(C205:C216)<5,AVERAGEIF(C205:C216,">0",N205:N216), IF(FORECAST($C201,N$205:N$216,$C$205:$C$216)<0,0, IF(FORECAST($C201,N$205:N$216,$C$205:$C$216)>100,100, FORECAST($C201,N$205:N$216,$C$205:$C$216)))) -> 77.36264069 | R201: =IF(MAX(C205:C216)-MIN(C205:C216)<5,AVERAGEIF(C205:C216,">0",R205:R216), IF(FORECAST($C201,R$205:R$216,$C$205:$C$216)<0,0, IF(FORECAST($C201,R$205:R$216,$C$205:$C$216)>100,100, FORECAST($C201,R$205:R$216,$C$205:$C$216)))) -> 1.237659451 | S201: =IF(MAX(C205:C216)-MIN(C205:C216)<5,AVERAGEIF(C205:C216,">0",S205:S216), IF(FORECAST($C201,S$205:S$216,$C$205:$C$216)<0,0, IF(FORECAST($C201,S$205:S$216,$C$205:$C$216)>100,100, FORECAST($C201,S$205:S$216,$C$205:$C$216)))) -> 86.93020958 | W201: =IF(MAX(C205:C216)-MIN(C205:C216)<5,AVERAGEIF(C205:C216,">0",W205:W216), IF(FORECAST($C201,W$205:W$216,$C$205:$C$216)<0,0, IF(FORECAST($C201,W$205:W$216,$C$205:$C$216)>100,100, FORECAST($C201,W$205:W$216,$C$205:$C$216)))) -> 0.3904544327 | X201: =IF(MAX(C205:C216)-MIN(C205:C216)<5,AVERAGEIF(C205:C216,">0",X205:X216), IF(FORECAST($C201,X$205:X$216,$C$205:$C$216)<0,0, IF(FORECAST($C201,X$205:X$216,$C$205:$C$216)>100,100, FORECAST($C201,X$205:X$216,$C$205:$C$216)))) -> 94.64925921 | AB201: =IF(MAX(C205:C216)-MIN(C205:C216)<5,AVERAGEIF(C205:C216,">0",AB205:AB216), IF(FORECAST($C201,AB$205:AB$216,$C$205:$C$216)<0,0, IF(FORECAST($C201,AB$205:AB$216,$C$205:$C$216)>100,100, FORECAST($C201,AB$205:AB$216,$C$205:$C$216)))) -> 0
C202: =MaxRegYear(C200,C205:C216) -> 2020 | D202: =IF(MAX(C205:C216)-MIN(C205:C216)<5,AVERAGEIF(C205:C216,">0",D205:D216), IF(FORECAST($C202,D$205:D$216,$C$205:$C$216)<0,0, IF(FORECAST($C202,D$205:D$216,$C$205:$C$216)>100,100, FORECAST($C202,D$205:D$216,$C$205:$C$216)))) -> 73.66643746 | H202: =IF(MAX(C205:C216)-MIN(C205:C216)<5,AVERAGEIF(C205:C216,">0",H205:H216), IF(FORECAST($C202,H$205:H$216,$C$205:$C$216)<0,0, IF(FORECAST($C202,H$205:H$216,$C$205:$C$216)>100,100, FORECAST($C202,H$205:H$216,$C$205:$C$216)))) -> 7.485592766 | I202: =IF(MAX(C205:C216)-MIN(C205:C216)<5,AVERAGEIF(C205:C216,">0",I205:I216), IF(FORECAST($C202,I$205:I$216,$C$205:$C$216)<0,0, IF(FORECAST($C202,I$205:I$216,$C$205:$C$216)>100,100, FORECAST($C202,I$205:I$216,$C$205:$C$216)))) -> 96.17430354 | M202: =IF(MAX(C205:C216)-MIN(C205:C216)<5,AVERAGEIF(C205:C216,">0",M205:M216), IF(FORECAST($C202,M$205:M$216,$C$205:$C$216)<0,0, IF(FORECAST($C202,M$205:M$216,$C$205:$C$216)>100,100, FORECAST($C202,M$205:M$216,$C$205:$C$216)))) -> 0.7540267372 | N202: =IF(MAX(C205:C216)-MIN(C205:C216)<5,AVERAGEIF(C205:C216,">0",N205:N216), IF(FORECAST($C202,N$205:N$216,$C$205:$C$216)<0,0, IF(FORECAST($C202,N$205:N$216,$C$205:$C$216)>100,100, FORECAST($C202,N$205:N$216,$C$205:$C$216)))) -> 99.57513168 | R202: =IF(MAX(C205:C216)-MIN(C205:C216)<5,AVERAGEIF(C205:C216,">0",R205:R216), IF(FORECAST($C202,R$205:R$216,$C$205:$C$216)<0,0, IF(FORECAST($C202,R$205:R$216,$C$205:$C$216)>100,100, FORECAST($C202,R$205:R$216,$C$205:$C$216)))) -> 0 | S202: =IF(MAX(C205:C216)-MIN(C205:C216)<5,AVERAGEIF(C205:C216,">0",S205:S216), IF(FORECAST($C202,S$205:S$216,$C$205:$C$216)<0,0, IF(FORECAST($C202,S$205:S$216,$C$205:$C$216)>100,100, FORECAST($C202,S$205:S$216,$C$205:$C$216)))) -> 100 | W202: =IF(MAX(C205:C216)-MIN(C205:C216)<5,AVERAGEIF(C205:C216,">0",W205:W216), IF(FORECAST($C202,W$205:W$216,$C$205:$C$216)<0,0, IF(FORECAST($C202,W$205:W$216,$C$205:$C$216)>100,100, FORECAST($C202,W$205:W$216,$C$205:$C$216)))) -> 0 | X202: =IF(MAX(C205:C216)-MIN(C205:C216)<5,AVERAGEIF(C205:C216,">0",X205:X216), IF(FORECAST($C202,X$205:X$216,$C$205:$C$216)<0,0, IF(FORECAST($C202,X$205:X$216,$C$205:$C$216)>100,100, FORECAST($C202,X$205:X$216,$C$205:$C$216)))) -> 100 | AB202: =IF(MAX(C205:C216)-MIN(C205:C216)<5,AVERAGEIF(C205:C216,">0",AB205:AB216), IF(FORECAST($C202,AB$205:AB$216,$C$205:$C$216)<0,0, IF(FORECAST($C202,AB$205:AB$216,$C$205:$C$216)>100,100, FORECAST($C202,AB$205:AB$216,$C$205:$C$216)))) -> 0.05756141534
B204: Survey | C204: Year | D204: Improved | E204: % Improved < = 30min | H204: Surface water | I204: Improved | J204: % Improved < = 30min | M204: Surface water | N204: Improved | O204: % Improved < = 30min | R204: Surface water | S204: Improved | T204: % Improved < = 30min | W204: Surface water | X204: Improved | Y204: % Improved < = 30min | AB204: Surface water
B205: DHS03 | C205: 2003 | D205: =IF(ISERROR(INDIRECT(CONCATENATE($B205,"!H16"))),"",INDIRECT(CONCATENATE($B205,"!H16"))) -> 41.74017493 | E205: =IF(ISERROR(INDIRECT(CONCATENATE($B205,"!H23"))),"",INDIRECT(CONCATENATE($B205,"!H23"))) -> 78.46819356 | H205: =IF(ISERROR(INDIRECT(CONCATENATE($B205,"!H21"))),"",INDIRECT(CONCATENATE($B205,"!H21"))) -> 10.30355891 | I205: =IF(ISERROR(INDIRECT(CONCATENATE($B205,"!I16"))),"",INDIRECT(CONCATENATE($B205,"!I16"))) -> 57.95369182 | J205: =IF(ISERROR(INDIRECT(CONCATENATE($B205,"!I23"))),"",INDIRECT(CONCATENATE($B205,"!I23"))) -> 83.47656927 | M205: =IF(ISERROR(INDIRECT(CONCATENATE($B205,"!I21"))),"",INDIRECT(CONCATENATE($B205,"!I21"))) -> 4.394035234 | N205: =IF(ISERROR(INDIRECT(CONCATENATE($B205,"!J16"))),"",INDIRECT(CONCATENATE($B205,"!J16"))) -> 77.94316064 | O205: =IF(ISERROR(INDIRECT(CONCATENATE($B205,"!J23"))),"",INDIRECT(CONCATENATE($B205,"!J23"))) -> 92.76596168 | R205: =IF(ISERROR(INDIRECT(CONCATENATE($B205,"!J21"))),"",INDIRECT(CONCATENATE($B205,"!J21"))) -> 0.8752089024 | S205: =IF(ISERROR(INDIRECT(CONCATENATE($B205,"!K16"))),"",INDIRECT(CONCATENATE($B205,"!K16"))) -> 86.01608033 | T205: =IF(ISERROR(INDIRECT(CONCATENATE($B205,"!K23"))),"",INDIRECT(CONCATENATE($B205,"!K23"))) -> 96.16462449 | W205: =IF(ISERROR(INDIRECT(CONCATENATE($B205,"!K21"))),"",INDIRECT(CONCATENATE($B205,"!K21"))) -> 0.4658362868 | X205: =IF(ISERROR(INDIRECT(CONCATENATE($B205,"!L16"))),"",INDIRECT(CONCATENATE($B205,"!L16"))) -> 94.58482046 | Y205: =IF(ISERROR(INDIRECT(CONCATENATE($B205,"!L23"))),"",INDIRECT(CONCATENATE($B205,"!L23"))) -> 97.82339367 | AB205: =IF(ISERROR(INDIRECT(CONCATENATE($B205,"!L221"))),"",INDIRECT(CONCATENATE($B205,"!L21"))) -> 0
B206: MICS08 | C206: 2008 | D206: 42.8005117 | E206: 69.10891856 | H206: 7.264800825 | I206: 62.50035707 | J206: 71.88031274 | M206: 5.527833393 | N206: 84.3482016 | O206: 81.90331901 | R206: 1.242550365 | S206: 96.0287094 | T206: 89.41666223 | W206: 0.1339297553 | X206: 98.23643742 | Y206: 98.18359376 | AB206: 0
B207: AIS09 | C207: 2009 | D207: 42.82603279 | E207: N/A | H207: 14.18565484 | I207: 74.31562053 | J207: N/A | M207: 4.959038002 | N207: 90.95411786 | O207: N/A | R207: 0.0525708281 | S207: 93.47870925 | T207: N/A | W207: 0.1051449771 | X207: 97.1767611 | Y207: N/A | AB207: 0
B208: DHS11 | C208: 2011 | D208: 40.49597363 | E208: 84.55446261 | H208: 11.32390611 | I208: 70.76715314 | J208: 89.51817213 | M208: 2.994917662 | N208: 87.81919739 | O208: 93.68308254 | R208: 1.293351808 | S208: 95.6562871 | T208: 99.08938312 | W208: 0 | X208: 98.00578362 | Y208: 99.42649618 | AB208: 0
B209: AIS15 | C209: 2015 | D209: 77.35060021 | E209: 85.79664315 | H209: 5.488576496 | I209: 89.95976741 | J209: 92.43642776 | M209: 1.872279102 | N209: 96.67453618 | O209: 96.97193196 | R209: 0.01302625393 | S209: 97.43303763 | T209: 98.43915717 | W209: 0.05947652088 | X209: 99.33539275 | Y209: 98.48143497 | AB209: 0.1271147922
B210: MIS18 | C210: 2018 | D210: 66.29543044 | E210: 84.48024911 | H210: 8.64669611 | I210: 89.33338865 | J210: 93.43039098 | M210: 0.9292457654 | N210: 94.2431819 | O210: 98.62903284 | R210: 0 | S210: 99.69531347 | T210: 99.43976725 | W210: 0 | X210: 100 | Y210: 98.92660466 | AB210: 0
B218: =CONCATENATE("Urban use of drinking water sources, ",C199,"–",C200) -> Urban use of drinking water sources, 2000–2020 | S218: Data points used for regression
E253: =IF(ISERROR(INDIRECT(CONCATENATE($B253,"!M18"))),"",INDIRECT(CONCATENATE($B253,"!M18"))) ->  | F253: =IF(ISERROR(INDIRECT(CONCATENATE($B253,"!M19"))),"",INDIRECT(CONCATENATE($B253,"!M19"))) ->  | G253: =IF(ISERROR(INDIRECT(CONCATENATE($B253,"!M20"))),"",INDIRECT(CONCATENATE($B253,"!M20"))) ->  | H253: =IF(ISERROR(INDIRECT(CONCATENATE($B253,"!M21"))),"",INDIRECT(CONCATENATE($B253,"!M21"))) ->  | J253: =IF(ISERROR(INDIRECT(CONCATENATE($B253,"!N18"))),"",INDIRECT(CONCATENATE($B253,"!N18"))) ->  | K253: =IF(ISERROR(INDIRECT(CONCATENATE($B253,"!N19"))),"",INDIRECT(CONCATENATE($B253,"!N19"))) ->  | L253: =IF(ISERROR(INDIRECT(CONCATENATE($B253,"!N20"))),"",INDIRECT(CONCATENATE($B253,"!N20"))) ->  | M253: =IF(ISERROR(INDIRECT(CONCATENATE($B253,"!N21"))),"",INDIRECT(CONCATENATE($B253,"!N21"))) ->  | O253: =IF(ISERROR(INDIRECT(CONCATENATE($B253,"!O18"))),"",INDIRECT(CONCATENATE($B253,"!O18"))) ->  | P253: =IF(ISERROR(INDIRECT(CONCATENATE($B253,"!O19"))),"",INDIRECT(CONCATENATE($B253,"!O19"))) ->  | Q253: =IF(ISERROR(INDIRECT(CONCATENATE($B253,"!O20"))),"",INDIRECT(CONCATENATE($B253,"!O20"))) ->  | R253: =IF(ISERROR(INDIRECT(CONCATENATE($B253,"!O21"))),"",INDIRECT(CONCATENATE($B253,"!O21"))) ->  | T253: =IF(ISERROR(INDIRECT(CONCATENATE($B253,"!P18"))),"",INDIRECT(CONCATENATE($B253,"!P18"))) ->  | U253: =IF(ISERROR(INDIRECT(CONCATENATE($B253,"!P19"))),"",INDIRECT(CONCATENATE($B253,"!P19"))) ->  | V253: =IF(ISERROR(INDIRECT(CONCATENATE($B253,"!P20"))),"",INDIRECT(CONCATENATE($B253,"!P20"))) ->  | W253: =IF(ISERROR(INDIRECT(CONCATENATE($B253,"!P21"))),"",INDIRECT(CONCATENATE($B253,"!P21"))) ->  | Y253: =IF(ISERROR(INDIRECT(CONCATENATE($B253,"!Q18"))),"",INDIRECT(CONCATENATE($B253,"!Q18"))) ->  | Z253: =IF(ISERROR(INDIRECT(CONCATENATE($B253,"!Q19"))),"",INDIRECT(CONCATENATE($B253,"!Q19"))) ->  | AA253: =IF(ISERROR(INDIRECT(CONCATENATE($B253,"!Q20"))),"",INDIRECT(CONCATENATE($B253,"!Q20"))) ->  | AB253: =IF(ISERROR(INDIRECT(CONCATENATE($B253,"!Q21"))),"",INDIRECT(CONCATENATE($B253,"!Q1"))) -> 
E254: =IF(ISERROR(INDIRECT(CONCATENATE($B254,"!M18"))),"",INDIRECT(CONCATENATE($B254,"!M18"))) ->  | F254: =IF(ISERROR(INDIRECT(CONCATENATE($B254,"!M19"))),"",INDIRECT(CONCATENATE($B254,"!M19"))) ->  | G254: =IF(ISERROR(INDIRECT(CONCATENATE($B254,"!M20"))),"",INDIRECT(CONCATENATE($B254,"!M20"))) ->  | H254: =IF(ISERROR(INDIRECT(CONCATENATE($B254,"!M21"))),"",INDIRECT(CONCATENATE($B254,"!M21"))) ->  | J254: =IF(ISERROR(INDIRECT(CONCATENATE($B254,"!N18"))),"",INDIRECT(CONCATENATE($B254,"!N18"))) ->  | K254: =IF(ISERROR(INDIRECT(CONCATENATE($B254,"!N19"))),"",INDIRECT(CONCATENATE($B254,"!N19"))) ->  | L254: =IF(ISERROR(INDIRECT(CONCATENATE($B254,"!N20"))),"",INDIRECT(CONCATENATE($B254,"!N20"))) ->  | M254: =IF(ISERROR(INDIRECT(CONCATENATE($B254,"!N21"))),"",INDIRECT(CONCATENATE($B254,"!N21"))) ->  | O254: =IF(ISERROR(INDIRECT(CONCATENATE($B254,"!O18"))),"",INDIRECT(CONCATENATE($B254,"!O18"))) ->  | P254: =IF(ISERROR(INDIRECT(CONCATENATE($B254,"!O19"))),"",INDIRECT(CONCATENATE($B254,"!O19"))) ->  | Q254: =IF(ISERROR(INDIRECT(CONCATENATE($B254,"!O20"))),"",INDIRECT(CONCATENATE($B254,"!O20"))) ->  | R254: =IF(ISERROR(INDIRECT(CONCATENATE($B254,"!O21"))),"",INDIRECT(CONCATENATE($B254,"!O21"))) ->  | T254: =IF(ISERROR(INDIRECT(CONCATENATE($B254,"!P18"))),"",INDIRECT(CONCATENATE($B254,"!P18"))) ->  | U254: =IF(ISERROR(INDIRECT(CONCATENATE($B254,"!P19"))),"",INDIRECT(CONCATENATE($B254,"!P19"))) ->  | V254: =IF(ISERROR(INDIRECT(CONCATENATE($B254,"!P20"))),"",INDIRECT(CONCATENATE($B254,"!P20"))) ->  | W254: =IF(ISERROR(INDIRECT(CONCATENATE($B254,"!P21"))),"",INDIRECT(CONCATENATE($B254,"!P21"))) ->  | Y254: =IF(ISERROR(INDIRECT(CONCATENATE($B254,"!Q18"))),"",INDIRECT(CONCATENATE($B254,"!Q18"))) ->  | Z254: =IF(ISERROR(INDIRECT(CONCATENATE($B254,"!Q19"))),"",INDIRECT(CONCATENATE($B254,"!Q19"))) ->  | AA254: =IF(ISERROR(INDIRECT(CONCATENATE($B254,"!Q20"))),"",INDIRECT(CONCATENATE($B254,"!Q20"))) ->  | AB254: =IF(ISERROR(INDIRECT(CONCATENATE($B254,"!Q21"))),"",INDIRECT(CONCATENATE($B254,"!Q1"))) -> 
E255: =IF(ISERROR(INDIRECT(CONCATENATE($B255,"!M18"))),"",INDIRECT(CONCATENATE($B255,"!M18"))) ->  | F255: =IF(ISERROR(INDIRECT(CONCATENATE($B255,"!M19"))),"",INDIRECT(CONCATENATE($B255,"!M19"))) ->  | G255: =IF(ISERROR(INDIRECT(CONCATENATE($B255,"!M20"))),"",INDIRECT(CONCATENATE($B255,"!M20"))) ->  | H255: =IF(ISERROR(INDIRECT(CONCATENATE($B255,"!M21"))),"",INDIRECT(CONCATENATE($B255,"!M21"))) ->  | J255: =IF(ISERROR(INDIRECT(CONCATENATE($B255,"!N18"))),"",INDIRECT(CONCATENATE($B255,"!N18"))) ->  | K255: =IF(ISERROR(INDIRECT(CONCATENATE($B255,"!N19"))),"",INDIRECT(CONCATENATE($B255,"!N19"))) ->  | L255: =IF(ISERROR(INDIRECT(CONCATENATE($B255,"!N20"))),"",INDIRECT(CONCATENATE($B255,"!N20"))) ->  | M255: =IF(ISERROR(INDIRECT(CONCATENATE($B255,"!N21"))),"",INDIRECT(CONCATENATE($B255,"!N21"))) ->  | O255: =IF(ISERROR(INDIRECT(CONCATENATE($B255,"!O18"))),"",INDIRECT(CONCATENATE($B255,"!O18"))) ->  | P255: =IF(ISERROR(INDIRECT(CONCATENATE($B255,"!O19"))),"",INDIRECT(CONCATENATE($B255,"!O19"))) ->  | Q255: =IF(ISERROR(INDIRECT(CONCATENATE($B255,"!O20"))),"",INDIRECT(CONCATENATE($B255,"!O20"))) ->  | R255: =IF(ISERROR(INDIRECT(CONCATENATE($B255,"!O21"))),"",INDIRECT(CONCATENATE($B255,"!O21"))) ->  | T255: =IF(ISERROR(INDIRECT(CONCATENATE($B255,"!P18"))),"",INDIRECT(CONCATENATE($B255,"!P18"))) ->  | U255: =IF(ISERROR(INDIRECT(CONCATENATE($B255,"!P19"))),"",INDIRECT(CONCATENATE($B255,"!P19"))) ->  | V255: =IF(ISERROR(INDIRECT(CONCATENATE($B255,"!P20"))),"",INDIRECT(CONCATENATE($B255,"!P20"))) ->  | W255: =IF(ISERROR(INDIRECT(CONCATENATE($B255,"!P21"))),"",INDIRECT(CONCATENATE($B255,"!P21"))) ->  | Y255: =IF(ISERROR(INDIRECT(CONCATENATE($B255,"!Q18"))),"",INDIRECT(CONCATENATE($B255,"!Q18"))) ->  | Z255: =IF(ISERROR(INDIRECT(CONCATENATE($B255,"!Q19"))),"",INDIRECT(CONCATENATE($B255,"!Q19"))) ->  | AA255: =IF(ISERROR(INDIRECT(CONCATENATE($B255,"!Q20"))),"",INDIRECT(CONCATENATE($B255,"!Q20"))) ->  | AB255: =IF(ISERROR(INDIRECT(CONCATENATE($B255,"!Q21"))),"",INDIRECT(CONCATENATE($B255,"!Q1"))) -> 
E256: =IF(ISERROR(INDIRECT(CONCATENATE($B256,"!M18"))),"",INDIRECT(CONCATENATE($B256,"!M18"))) ->  | F256: =IF(ISERROR(INDIRECT(CONCATENATE($B256,"!M19"))),"",INDIRECT(CONCATENATE($B256,"!M19"))) ->  | G256: =IF(ISERROR(INDIRECT(CONCATENATE($B256,"!M20"))),"",INDIRECT(CONCATENATE($B256,"!M20"))) ->  | H256: =IF(ISERROR(INDIRECT(CONCATENATE($B256,"!M21"))),"",INDIRECT(CONCATENATE($B256,"!M21"))) ->  | J256: =IF(ISERROR(INDIRECT(CONCATENATE($B256,"!N18"))),"",INDIRECT(CONCATENATE($B256,"!N18"))) ->  | K256: =IF(ISERROR(INDIRECT(CONCATENATE($B256,"!N19"))),"",INDIRECT(CONCATENATE($B256,"!N19"))) ->  | L256: =IF(ISERROR(INDIRECT(CONCATENATE($B256,"!N20"))),"",INDIRECT(CONCATENATE($B256,"!N20"))) ->  | M256: =IF(ISERROR(INDIRECT(CONCATENATE($B256,"!N21"))),"",INDIRECT(CONCATENATE($B256,"!N21"))) ->  | O256: =IF(ISERROR(INDIRECT(CONCATENATE($B256,"!O18"))),"",INDIRECT(CONCATENATE($B256,"!O18"))) ->  | P256: =IF(ISERROR(INDIRECT(CONCATENATE($B256,"!O19"))),"",INDIRECT(CONCATENATE($B256,"!O19"))) ->  | Q256: =IF(ISERROR(INDIRECT(CONCATENATE($B256,"!O20"))),"",INDIRECT(CONCATENATE($B256,"!O20"))) ->  | R256: =IF(ISERROR(INDIRECT(CONCATENATE($B256,"!O21"))),"",INDIRECT(CONCATENATE($B256,"!O21"))) ->  | T256: =IF(ISERROR(INDIRECT(CONCATENATE($B256,"!P18"))),"",INDIRECT(CONCATENATE($B256,"!P18"))) ->  | U256: =IF(ISERROR(INDIRECT(CONCATENATE($B256,"!P19"))),"",INDIRECT(CONCATENATE($B256,"!P19"))) ->  | V256: =IF(ISERROR(INDIRECT(CONCATENATE($B256,"!P20"))),"",INDIRECT(CONCATENATE($B256,"!P20"))) ->  | W256: =IF(ISERROR(INDIRECT(CONCATENATE($B256,"!P21"))),"",INDIRECT(CONCATENATE($B256,"!P21"))) ->  | Y256: =IF(ISERROR(INDIRECT(CONCATENATE($B256,"!Q18"))),"",INDIRECT(CONCATENATE($B256,"!Q18"))) ->  | Z256: =IF(ISERROR(INDIRECT(CONCATENATE($B256,"!Q19"))),"",INDIRECT(CONCATENATE($B256,"!Q19"))) ->  | AA256: =IF(ISERROR(INDIRECT(CONCATENATE($B256,"!Q20"))),"",INDIRECT(CONCATENATE($B256,"!Q20"))) ->  | AB256: =IF(ISERROR(INDIRECT(CONCATENATE($B256,"!Q21"))),"",INDIRECT(CONCATENATE($B256,"!Q1"))) -> 
E257: =IF(ISERROR(INDIRECT(CONCATENATE($B257,"!M18"))),"",INDIRECT(CONCATENATE($B257,"!M18"))) ->  | F257: =IF(ISERROR(INDIRECT(CONCATENATE($B257,"!M19"))),"",INDIRECT(CONCATENATE($B257,"!M19"))) ->  | G257: =IF(ISERROR(INDIRECT(CONCATENATE($B257,"!M20"))),"",INDIRECT(CONCATENATE($B257,"!M20"))) ->  | H257: =IF(ISERROR(INDIRECT(CONCATENATE($B257,"!M21"))),"",INDIRECT(CONCATENATE($B257,"!M21"))) ->  | J257: =IF(ISERROR(INDIRECT(CONCATENATE($B257,"!N18"))),"",INDIRECT(CONCATENATE($B257,"!N18"))) ->  | K257: =IF(ISERROR(INDIRECT(CONCATENATE($B257,"!N19"))),"",INDIRECT(CONCATENATE($B257,"!N19"))) ->  | L257: =IF(ISERROR(INDIRECT(CONCATENATE($B257,"!N20"))),"",INDIRECT(CONCATENATE($B257,"!N20"))) ->  | M257: =IF(ISERROR(INDIRECT(CONCATENATE($B257,"!N21"))),"",INDIRECT(CONCATENATE($B257,"!N21"))) ->  | O257: =IF(ISERROR(INDIRECT(CONCATENATE($B257,"!O18"))),"",INDIRECT(CONCATENATE($B257,"!O18"))) ->  | P257: =IF(ISERROR(INDIRECT(CONCATENATE($B257,"!O19"))),"",INDIRECT(CONCATENATE($B257,"!O19"))) ->  | Q257: =IF(ISERROR(INDIRECT(CONCATENATE($B257,"!O20"))),"",INDIRECT(CONCATENATE($B257,"!O20"))) ->  | R257: =IF(ISERROR(INDIRECT(CONCATENATE($B257,"!O21"))),"",INDIRECT(CONCATENATE($B257,"!O21"))) ->  | T257: =IF(ISERROR(INDIRECT(CONCATENATE($B257,"!P18"))),"",INDIRECT(CONCATENATE($B257,"!P18"))) ->  | U257: =IF(ISERROR(INDIRECT(CONCATENATE($B257,"!P19"))),"",INDIRECT(CONCATENATE($B257,"!P19"))) ->  | V257: =IF(ISERROR(INDIRECT(CONCATENATE($B257,"!P20"))),"",INDIRECT(CONCATENATE($B257,"!P20"))) ->  | W257: =IF(ISERROR(INDIRECT(CONCATENATE($B257,"!P21"))),"",INDIRECT(CONCATENATE($B257,"!P21"))) ->  | Y257: =IF(ISERROR(INDIRECT(CONCATENATE($B257,"!Q18"))),"",INDIRECT(CONCATENATE($B257,"!Q18"))) ->  | Z257: =IF(ISERROR(INDIRECT(CONCATENATE($B257,"!Q19"))),"",INDIRECT(CONCATENATE($B257,"!Q19"))) ->  | AA257: =IF(ISERROR(INDIRECT(CONCATENATE($B257,"!Q20"))),"",INDIRECT(CONCATENATE($B257,"!Q20"))) ->  | AB257: =IF(ISERROR(INDIRECT(CONCATENATE($B257,"!Q21"))),"",INDIRECT(CONCATENATE($B257,"!Q1"))) -> 
A297: RURAL | D297: Poorest | I297: Poor | N297: Middle | S297: Rich | X297: Richest
D298: Improved | E298: Basic | F298: Limited | G298: Unimproved | H298: Surface water | I298: Improved | J298: Basic | K298: Limited | L298: Unimproved | M298: Surface water | N298: Improved | O298: Basic | P298: Limited | Q298: Unimproved | R298: Surface water | S298: Improved | T298: Basic | U298: Limited | V298: Unimproved | W298: Surface water | X298: Improved | Y298: Basic | Z298: Limited | AA298: Unimproved | AB298: Surface water
A299: Forecast period: | C299: 2000 | D299: =IF((D301+H301)>100,D301*100/(D301+H301),D301) -> 13.5562508 | E299: =D299*AVERAGEIF(E305:E316,">0")/100 -> 9.67366916 | F299: =D299*(100-AVERAGEIF(E305:E316,">0"))/100 -> 3.882581637 | G299: =100-(E299+F299+H299) -> 59.68429525 | H299: =IF((D301+H301)>100,H301*100/(D301+H301),H301) -> 26.75945395 | I299: =IF((I301+M301)>100,I301*100/(I301+M301),I301) -> 14.80822429 | J299: =I299*AVERAGEIF(J305:J316,">0")/100 -> 9.962149626 | K299: =I299*(100-AVERAGEIF(J305:J316,">0"))/100 -> 4.846074659 | L299: =100-(J299+K299+M299) -> 63.11137651 | M299: =IF((I301+M301)>100,M301*100/(I301+M301),M301) -> 22.08039921 | N299: =IF((N301+R301)>100,N301*100/(N301+R301),N301) -> 16.36912491 | O299: =N299*AVERAGEIF(O305:O316,">0")/100 -> 11.83568069 | P299: =N299*(100-AVERAGEIF(O305:O316,">0"))/100 -> 4.53344422 | Q299: =100-(O299+P299+R299) -> 56.29644619 | R299: =IF((N301+R301)>100,R301*100/(N301+R301),R301) -> 27.33442889 | S299: =IF((S301+W301)>100,S301*100/(S301+W301),S301) -> 13.26367216 | T299: =S299*AVERAGEIF(T305:T316,">0")/100 -> 9.744392711 | U299: =S299*(100-AVERAGEIF(T305:T316,">0"))/100 -> 3.51927945 | V299: =100-(T299+U299+W299) -> 60.50358543 | W299: =IF((S301+W301)>100,W301*100/(S301+W301),W301) -> 26.2327424 | X299: =IF((X301+AB301)>100,X301*100/(X301+AB301),X301) -> 21.64437182 | Y299: =X299*AVERAGEIF(Y305:Y316,">0")/100 -> 17.07111209 | Z299: =X299*(100-AVERAGEIF(Y305:Y316,">0"))/100 -> 4.573259722 | AA299: =100-(Y299+Z299+AB299) -> 59.98548312 | AB299: =IF((X301+AB301)>100,AB301*100/(X301+AB301),AB301) -> 18.37014506
C300: 2020 | D300: =IF((D302+H302)>100,D302*100/(D302+H302),D302) -> 46.62348712 | E300: =D300*AVERAGEIF(E305:E316,">0")/100 -> 33.27027482 | F300: =D300*(100-AVERAGEIF(E305:E316,">0"))/100 -> 13.3532123 | G300: =100-(E300+F300+H300) -> 34.33833535 | H300: =IF((D302+H302)>100,H302*100/(D302+H302),H302) -> 19.03817753 | I300: =IF((I302+M302)>100,I302*100/(I302+M302),I302) -> 47.04046351 | J300: =I300*AVERAGEIF(J305:J316,">0")/100 -> 31.64620733 | K300: =I300*(100-AVERAGEIF(J305:J316,">0"))/100 -> 15.39425618 | L300: =100-(J300+K300+M300) -> 32.22842312 | M300: =IF((I302+M302)>100,M302*100/(I302+M302),M302) -> 20.73111337 | N300: =IF((N302+R302)>100,N302*100/(N302+R302),N302) -> 46.43700825 | O300: =N300*AVERAGEIF(O305:O316,">0")/100 -> 33.57623605 | P300: =N300*(100-AVERAGEIF(O305:O316,">0"))/100 -> 12.8607722 | Q300: =100-(O300+P300+R300) -> 35.09906001 | R300: =IF((N302+R302)>100,R302*100/(N302+R302),R302) -> 18.46393174 | S300: =IF((S302+W302)>100,S302*100/(S302+W302),S302) -> 63.77090049 | T300: =S300*AVERAGEIF(T305:T316,">0")/100 -> 46.85042651 | U300: =S300*(100-AVERAGEIF(T305:T316,">0"))/100 -> 16.92047398 | V300: =100-(T300+U300+W300) -> 22.61208969 | W300: =IF((S302+W302)>100,W302*100/(S302+W302),W302) -> 13.61700982 | X300: =IF((X302+AB302)>100,X302*100/(X302+AB302),X302) -> 79.19576627 | Y300: =X300*AVERAGEIF(Y305:Y316,">0")/100 -> 62.46241817 | Z300: =X300*(100-AVERAGEIF(Y305:Y316,">0"))/100 -> 16.7333481 | AA300: =100-(Y300+Z300+AB300) -> 15.60195696 | AB300: =IF((X302+AB302)>100,AB302*100/(X302+AB302),AB302) -> 5.202276765
A301: Regression period: | C301: =MinRegYear(C299,C305:C316) -> 2001 | D301: =IF(MAX(C305:C316)-MIN(C305:C316)<5,AVERAGEIF(C305:C316,">0",D305:D316), IF(FORECAST($C301,D$305:D$316,$C$305:$C$316)<0,0, IF(FORECAST($C301,D$305:D$316,$C$305:$C$316)>100,100, FORECAST($C301,D$305:D$316,$C$305:$C$316)))) -> 13.5562508 | H301: =IF(MAX(C305:C316)-MIN(C305:C316)<5,AVERAGEIF(C305:C316,">0",H305:H316), IF(FORECAST($C301,H$305:H$316,$C$305:$C$316)<0,0, IF(FORECAST($C301,H$305:H$316,$C$305:$C$316)>100,100, FORECAST($C301,H$305:H$316,$C$305:$C$316)))) -> 26.75945395 | I301: =IF(MAX(C305:C316)-MIN(C305:C316)<5,AVERAGEIF(C305:C316,">0",I305:I316), IF(FORECAST($C301,I$305:I$316,$C$305:$C$316)<0,0, IF(FORECAST($C301,I$305:I$316,$C$305:$C$316)>100,100, FORECAST($C301,I$305:I$316,$C$305:$C$316)))) -> 14.80822429 | M301: =IF(MAX(C305:C316)-MIN(C305:C316)<5,AVERAGEIF(C305:C316,">0",M305:M316), IF(FORECAST($C301,M$305:M$316,$C$305:$C$316)<0,0, IF(FORECAST($C301,M$305:M$316,$C$305:$C$316)>100,100, FORECAST($C301,M$305:M$316,$C$305:$C$316)))) -> 22.08039921 | N301: =IF(MAX(C305:C316)-MIN(C305:C316)<5,AVERAGEIF(C305:C316,">0",N305:N316), IF(FORECAST($C301,N$305:N$316,$C$305:$C$316)<0,0, IF(FORECAST($C301,N$305:N$316,$C$305:$C$316)>100,100, FORECAST($C301,N$305:N$316,$C$305:$C$316)))) -> 16.36912491 | R301: =IF(MAX(C305:C316)-MIN(C305:C316)<5,AVERAGEIF(C305:C316,">0",R305:R316), IF(FORECAST($C301,R$305:R$316,$C$305:$C$316)<0,0, IF(FORECAST($C301,R$305:R$316,$C$305:$C$316)>100,100, FORECAST($C301,R$305:R$316,$C$305:$C$316)))) -> 27.33442889 | S301: =IF(MAX(C305:C316)-MIN(C305:C316)<5,AVERAGEIF(C305:C316,">0",S305:S316), IF(FORECAST($C301,S$305:S$316,$C$305:$C$316)<0,0, IF(FORECAST($C301,S$305:S$316,$C$305:$C$316)>100,100, FORECAST($C301,S$305:S$316,$C$305:$C$316)))) -> 13.26367216 | W301: =IF(MAX(C305:C316)-MIN(C305:C316)<5,AVERAGEIF(C305:C316,">0",W305:W316), IF(FORECAST($C301,W$305:W$316,$C$305:$C$316)<0,0, IF(FORECAST($C301,W$305:W$316,$C$305:$C$316)>100,100, FORECAST($C301,W$305:W$316,$C$305:$C$316)))) -> 26.2327424 | X301: =IF(MAX(C305:C316)-MIN(C305:C316)<5,AVERAGEIF(C305:C316,">0",X305:X316), IF(FORECAST($C301,X$305:X$316,$C$305:$C$316)<0,0, IF(FORECAST($C301,X$305:X$316,$C$305:$C$316)>100,100, FORECAST($C301,X$305:X$316,$C$305:$C$316)))) -> 21.64437182 | AB301: =IF(MAX(C305:C316)-MIN(C305:C316)<5,AVERAGEIF(C305:C316,">0",AB305:AB316), IF(FORECAST($C301,AB$305:AB$316,$C$305:$C$316)<0,0, IF(FORECAST($C301,AB$305:AB$316,$C$305:$C$316)>100,100, FORECAST($C301,AB$305:AB$316,$C$305:$C$316)))) -> 18.37014506
C302: =MaxRegYear(C300,C305:C316) -> 2020 | D302: =IF(MAX(C305:C316)-MIN(C305:C316)<5,AVERAGEIF(C305:C316,">0",D305:D316), IF(FORECAST($C302,D$305:D$316,$C$305:$C$316)<0,0, IF(FORECAST($C302,D$305:D$316,$C$305:$C$316)>100,100, FORECAST($C302,D$305:D$316,$C$305:$C$316)))) -> 46.62348712 | H302: =IF(MAX(C305:C316)-MIN(C305:C316)<5,AVERAGEIF(C305:C316,">0",H305:H316), IF(FORECAST($C302,H$305:H$316,$C$305:$C$316)<0,0, IF(FORECAST($C302,H$305:H$316,$C$305:$C$316)>100,100, FORECAST($C302,H$305:H$316,$C$305:$C$316)))) -> 19.03817753 | I302: =IF(MAX(C305:C316)-MIN(C305:C316)<5,AVERAGEIF(C305:C316,">0",I305:I316), IF(FORECAST($C302,I$305:I$316,$C$305:$C$316)<0,0, IF(FORECAST($C302,I$305:I$316,$C$305:$C$316)>100,100, FORECAST($C302,I$305:I$316,$C$305:$C$316)))) -> 47.04046351 | M302: =IF(MAX(C305:C316)-MIN(C305:C316)<5,AVERAGEIF(C305:C316,">0",M305:M316), IF(FORECAST($C302,M$305:M$316,$C$305:$C$316)<0,0, IF(FORECAST($C302,M$305:M$316,$C$305:$C$316)>100,100, FORECAST($C302,M$305:M$316,$C$305:$C$316)))) -> 20.73111337 | N302: =IF(MAX(C305:C316)-MIN(C305:C316)<5,AVERAGEIF(C305:C316,">0",N305:N316), IF(FORECAST($C302,N$305:N$316,$C$305:$C$316)<0,0, IF(FORECAST($C302,N$305:N$316,$C$305:$C$316)>100,100, FORECAST($C302,N$305:N$316,$C$305:$C$316)))) -> 46.43700825 | R302: =IF(MAX(C305:C316)-MIN(C305:C316)<5,AVERAGEIF(C305:C316,">0",R305:R316), IF(FORECAST($C302,R$305:R$316,$C$305:$C$316)<0,0, IF(FORECAST($C302,R$305:R$316,$C$305:$C$316)>100,100, FORECAST($C302,R$305:R$316,$C$305:$C$316)))) -> 18.46393174 | S302: =IF(MAX(C305:C316)-MIN(C305:C316)<5,AVERAGEIF(C305:C316,">0",S305:S316), IF(FORECAST($C302,S$305:S$316,$C$305:$C$316)<0,0, IF(FORECAST($C302,S$305:S$316,$C$305:$C$316)>100,100, FORECAST($C302,S$305:S$316,$C$305:$C$316)))) -> 63.77090049 | W302: =IF(MAX(C305:C316)-MIN(C305:C316)<5,AVERAGEIF(C305:C316,">0",W305:W316), IF(FORECAST($C302,W$305:W$316,$C$305:$C$316)<0,0, IF(FORECAST($C302,W$305:W$316,$C$305:$C$316)>100,100, FORECAST($C302,W$305:W$316,$C$305:$C$316)))) -> 13.61700982 | X302: =IF(MAX(C305:C316)-MIN(C305:C316)<5,AVERAGEIF(C305:C316,">0",X305:X316), IF(FORECAST($C302,X$305:X$316,$C$305:$C$316)<0,0, IF(FORECAST($C302,X$305:X$316,$C$305:$C$316)>100,100, FORECAST($C302,X$305:X$316,$C$305:$C$316)))) -> 79.19576627 | AB302: =IF(MAX(C305:C316)-MIN(C305:C316)<5,AVERAGEIF(C305:C316,">0",AB305:AB316), IF(FORECAST($C302,AB$305:AB$316,$C$305:$C$316)<0,0, IF(FORECAST($C302,AB$305:AB$316,$C$305:$C$316)>100,100, FORECAST($C302,AB$305:AB$316,$C$305:$C$316)))) -> 5.202276765
B304: Survey | C304: Year | D304: Improved | E304: % Improved < = 30min | H304: Surface water | I304: Improved | J304: % Improved < = 30min | M304: Surface water | N304: Improved | O304: % Improved < = 30min | R304: Surface water | S304: Improved | T304: % Improved < = 30min | W304: Surface water | X304: Improved | Y304: % Improved < = 30min | AB304: Surface water
B305: DHS03 | C305: 2003 | D305: =IF(ISERROR(INDIRECT(CONCATENATE($B305,"!M16"))),"",INDIRECT(CONCATENATE($B305,"!M16"))) -> 19.66708887 | E305: =IF(ISERROR(INDIRECT(CONCATENATE($B305,"!M23"))),"",INDIRECT(CONCATENATE($B305,"!M23"))) -> 72.7766827 | H305: =IF(ISERROR(INDIRECT(CONCATENATE($B305,"!M21"))),"",INDIRECT(CONCATENATE($B305,"!M21"))) -> 23.75200547 | I305: =IF(ISERROR(INDIRECT(CONCATENATE($B305,"!N16"))),"",INDIRECT(CONCATENATE($B305,"!N16"))) -> 22.4158408 | J305: =IF(ISERROR(INDIRECT(CONCATENATE($B305,"!N23"))),"",INDIRECT(CONCATENATE($B305,"!N23"))) -> 65.38663705 | M305: =IF(ISERROR(INDIRECT(CONCATENATE($B305,"!N21"))),"",INDIRECT(CONCATENATE($B305,"!N21"))) -> 17.80594167 | N305: =IF(ISERROR(INDIRECT(CONCATENATE($B305,"!O16"))),"",INDIRECT(CONCATENATE($B305,"!O16"))) -> 24.34030542 | O305: =IF(ISERROR(INDIRECT(CONCATENATE($B305,"!O23"))),"",INDIRECT(CONCATENATE($B305,"!O23"))) -> 71.60642237 | R305: =IF(ISERROR(INDIRECT(CONCATENATE($B305,"!O21"))),"",INDIRECT(CONCATENATE($B305,"!O21"))) -> 24.66662366 | S305: =IF(ISERROR(INDIRECT(CONCATENATE($B305,"!P16"))),"",INDIRECT(CONCATENATE($B305,"!P16"))) -> 22.25921068 | T305: =IF(ISERROR(INDIRECT(CONCATENATE($B305,"!P23"))),"",INDIRECT(CONCATENATE($B305,"!P23"))) -> 73.98549288 | W305: =IF(ISERROR(INDIRECT(CONCATENATE($B305,"!P21"))),"",INDIRECT(CONCATENATE($B305,"!P21"))) -> 23.17971202 | X305: =IF(ISERROR(INDIRECT(CONCATENATE($B305,"!Q16"))),"",INDIRECT(CONCATENATE($B305,"!Q16"))) -> 30.65665842 | Y305: =IF(ISERROR(INDIRECT(CONCATENATE($B305,"!Q23"))),"",INDIRECT(CONCATENATE($B305,"!Q23"))) -> 80.09763919 | AB305: =IF(ISERROR(INDIRECT(CONCATENATE($B305,"!Q221"))),"",INDIRECT(CONCATENATE($B305,"!Q21"))) -> 14.90336711
B306: MICS08 | C306: 2008 | D306: 31.22946628 | E306: 53.53571803 | H306: 26.05037736 | I306: 29.85341818 | J306: 58.76000424 | M306: 25.36494719 | N306: 31.29520913 | O306: 61.13177952 | R306: 23.14035515 | S306: 35.15943661 | T306: 64.12850991 | W306: 20.98132494 | X306: 40.24782921 | Y306: 67.36930678 | AB306: 16.34276907
B307: AIS09 | D307: 29.58086729 | E307: N/A | H307: 13.32023022 | I307: 31.17842757 | J307: N/A | M307: 17.19564366 | N307: 38.11316565 | O307: N/A | R307: 14.26151988 | S307: 46.74000712 | T307: N/A | W307: 10.95455945 | X307: 60.14729024 | Y307: N/A | AB307: 7.87799673
B308: DHS11 | C308: 2011 | D308: 14.31644954 | E308: 64.74075679 | H308: 23.54578011 | I308: 14.86936243 | J308: 62.77255104 | M308: 23.84543246 | N308: 14.00874313 | O308: 68.82142461 | R308: 24.81492519 | S308: 25.96989915 | T308: 70.89317022 | W308: 21.82589242 | X308: 46.56430789 | Y308: 79.58289017 | AB308: 12.23224568
B309: AIS15 | C309: 2015 | D309: 45.30445913 | E309: 82.73119251 | H309: 22.94112745 | I309: 46.35815054 | J309: 72.70725977 | M309: 23.36738628 | N309: 44.09859155 | O309: 77.58269574 | R309: 27.54051834 | S309: 53.50368078 | T309: 72.600325 | W309: 22.36359712 | X309: 70.47569707 | Y309: 79.48882539 | AB309: 7.808490552
B310: MIS18 | C310: 2018 | D310: 44.28283312 | E310: 83.01301617 | H310: 17.18883089 | I310: 45.36603165 | J310: 76.74573658 | M310: 16.46753624 | N310: 47.22878411 | O310: 82.38221727 | R310: 13.16630856 | S310: 62.33989233 | T310: 85.72639687 | W310: 9.613889255 | X310: 71.72840453 | Y310: 87.81586717 | AB310: 5.911567904
B318: =CONCATENATE("Rural use of drinking water sources, ",C299,"–",C300) -> Rural use of drinking water sources, 2000–2020 | S318: Data points used for regression

Sheet Sanitation
B4: Summary of trends in use of sanitation facilities by wealth quintile (%)
B5: =IF(ISERROR(INDIRECT(CONCATENATE($B105,"!A2"))),"",INDIRECT(CONCATENATE($B105,"!A2"))) -> Mozambique
B7: =B118 -> National use of sanitation facilities, 2000–2020 | J7: =B218 -> Urban use of sanitation facilities, 2000–2020 | R7: =B318 -> Rural use of sanitation facilities, 2000–2020
B31: =IF(ISERROR(INDIRECT(CONCATENATE($B105,"!A2"))),"",INDIRECT(CONCATENATE($B105,"!A2"))) -> Mozambique | F31: Poorest | J31: Poor | N31: Middle | R31: Rich | V31: Richest
F32: Basic | G32: Limited | H32: Unimproved | I32: Open defecation | J32: Basic | K32: Limited | L32: Unimproved | M32: Open defecation | N32: Basic | O32: Limited | P32: Unimproved | Q32: Open defecation | R32: Basic | S32: Limited | T32: Unimproved | U32: Open defecation | V32: Basic | W32: Limited | X32: Unimproved | Y32: Open defecation
B33: NATIONAL | D33: Estimate | E33: =C99 -> 2000 | F33: =E99 -> 8.945955429 | G33: =F99 -> 1.535536286 | H33: 24.01497435 | I33: 65.50353394 | J33: =J99 -> 5.275897111 | K33: =K99 -> 0.8386645558 | L33: 21.14559894 | M33: 72.7398394 | N33: =O99 -> 9.506339134 | O33: =P99 -> 1.868200392 | P33: 26.10145381 | Q33: 62.52400666 | R33: =T99 -> 10.85682392 | S33: =U99 -> 3.228912568 | T33: 40.9414232 | U33: 44.97284031 | V33: =Y99 -> 44.38080663 | W33: =Z99 -> 7.31594995 | X33: 43.38569223 | Y33: 4.917551191
E34: =C100 -> 2020 | F34: =E100 -> 11.9981744 | G34: 2.059437061 | H34: 38.71301148 | I34: 47.22937707 | J34: =J100 -> 16.97380313 | K34: 2.698181325 | L34: 42.4328736 | M34: 37.89514195 | N34: =O100 -> 19.09024267 | O34: 3.75164386 | P34: 46.91420444 | Q34: 30.24390903 | R34: =T100 -> 36.44331676 | S34: 10.83855503 | T34: 49.23075471 | U34: 3.487373496 | V34: =Y100 -> 80.41418233 | W34: 13.25586842 | X34: 6.083695879 | Y34: 0.2462533749
B36: URBAN | D36: Estimate | E36: =C199 -> 2000 | F36: =E199 -> 11.40577057 | G36: =F199 -> 3.304188408 | H36: 38.80239635 | I36: 46.48764467 | J36: =J199 -> 8.151425239 | K36: =K199 -> 2.890517794 | L36: 52.8250888 | M36: 36.13296817 | N36: =O199 -> 23.36834234 | O36: =P199 -> 6.305255481 | P36: 59.82332852 | Q36: 10.50307365 | R36: =T199 -> 46.46573203 | S36: =U199 -> 10.89009794 | T36: 38.7050946 | U36: 3.939075428 | V36: =Y199 -> 64.93408015 | W36: =Z199 -> 5.952700681 | X36: 28.48443844 | Y36: 0.6287807229
E37: =C200 -> 2020 | F37: =E200 -> 22.5151387 | G37: 6.522510676 | H37: 46.49526622 | I37: 24.4670844 | J37: =J200 -> 42.98760409 | K37: 15.24352256 | L37: 41.76887335 | M37: 0 | N37: =O200 -> 64.58722854 | O37: 17.42695185 | P37: 16.40650127 | Q37: 1.579318339 | R37: =T200 -> 76.28522891 | S37: 17.87884487 | T37: 5.835926224 | U37: 0 | V37: =Y200 -> 91.60252362 | W37: 8.397476385 | X37: 0 | Y37: 0
B39: RURAL | D39: Estimate | E39: =C299 -> 2000 | F39: =E299 -> 7.996917207 | G39: =F299 -> 1.170200992 | H39: 21.19182522 | I39: 69.64105658 | J39: =J299 -> 4.272215351 | K39: =K299 -> 0.7724421122 | L39: 19.20670988 | M39: 75.74863266 | N39: =O299 -> 7.119216656 | O39: =P299 -> 1.109854909 | P39: 25.27900706 | Q39: 66.49192138 | R39: =T299 -> 13.41620999 | S39: =U299 -> 2.157119276 | T39: 21.71048414 | U39: 62.7161866 | V39: =Y299 -> 11.20741676 | W39: =Z299 -> 2.263735069 | X39: 34.81629087 | Y39: 51.71255729
E40: =C300 -> 2020 | F40: =E300 -> 11.08900326 | G40: 1.622670621 | H40: 37.75474092 | I40: 49.53358519 | J40: =J300 -> 14.70096705 | K40: 2.658022854 | L40: 42.99844798 | M40: 39.64256211 | N40: =O300 -> 17.09681515 | O40: 2.665319113 | P40: 38.35409124 | Q40: 41.8837745 | R40: =T300 -> 17.59863905 | S40: 2.829589249 | T40: 51.24673219 | U40: 28.32503951 | V40: =Y300 -> 38.61155275 | W40: 7.798971688 | X40: 51.54297351 | Y40: 2.046502054
A97: NATIONAL | D97: Poorest | I97: Poor | N97: Middle | S97: Rich | X97: Richest
D98: Improved | E98: Basic | F98: Limited | G98: Unimproved | H98: Open defecation | I98: Improved | J98: Basic | K98: Limited | L98: Unimproved | M98: Open defecation | N98: Improved | O98: Basic | P98: Limited | Q98: Unimproved | R98: Open defecation | S98: Improved | T98: Basic | U98: Limited | V98: Unimproved | W98: Open defecation | X98: Improved | Y98: Basic | Z98: Limited | AA98: Unimproved | AB98: Open defecation
A99: Forecast period: | C99: 2000 | D99: =IF((D101+H101)>100,D101*100/(D101+H101),D101) -> 10.48149171 | E99: =D99*AVERAGEIF(E105:E116,">0")/100 -> 8.945955429 | F99: =D99*(100-AVERAGEIF(E105:E116,">0"))/100 -> 1.535536286 | G99: =100-(E99+F99+H99) -> 24.01497435 | H99: =IF((D101+H101)>100,H101*100/(D101+H101),H101) -> 65.50353394 | I99: =IF((I101+M101)>100,I101*100/(I101+M101),I101) -> 6.114561667 | J99: =I99*AVERAGEIF(J105:J116,">0")/100 -> 5.275897111 | K99: =I99*(100-AVERAGEIF(J105:J116,">0"))/100 -> 0.8386645558 | L99: =100-(J99+K99+M99) -> 21.14559894 | M99: =IF((I101+M101)>100,M101*100/(I101+M101),M101) -> 72.7398394 | N99: =IF((N101+R101)>100,N101*100/(N101+R101),N101) -> 11.37453953 | O99: =N99*AVERAGEIF(O105:O116,">0")/100 -> 9.506339134 | P99: =N99*(100-AVERAGEIF(O105:O116,">0"))/100 -> 1.868200392 | Q99: =100-(O99+P99+R99) -> 26.10145381 | R99: =IF((N101+R101)>100,R101*100/(N101+R101),R101) -> 62.52400666 | S99: =IF((S101+W101)>100,S101*100/(S101+W101),S101) -> 14.08573649 | T99: =S99*AVERAGEIF(T105:T116,">0")/100 -> 10.85682392 | U99: =S99*(100-AVERAGEIF(T105:T116,">0"))/100 -> 3.228912568 | V99: =100-(T99+U99+W99) -> 40.9414232 | W99: =IF((S101+W101)>100,W101*100/(S101+W101),W101) -> 44.97284031 | X99: =IF((X101+AB101)>100,X101*100/(X101+AB101),X101) -> 51.69675658 | Y99: =X99*AVERAGEIF(Y105:Y116,">0")/100 -> 44.38080663 | Z99: =X99*(100-AVERAGEIF(Y105:Y116,">0"))/100 -> 7.31594995 | AA99: =100-(Y99+Z99+AB99) -> 43.38569223 | AB99: =IF((X101+AB101)>100,AB101*100/(X101+AB101),AB101) -> 4.917551191
C100: 2020 | D100: =IF((D102+H102)>100,D102*100/(D102+H102),D102) -> 14.05761146 | E100: =D100*AVERAGEIF(E105:E116,">0")/100 -> 11.9981744 | F100: =D100*(100-AVERAGEIF(E105:E116,">0"))/100 -> 2.059437061 | G100: =100-(E100+F100+H100) -> 38.71301148 | H100: =IF((D102+H102)>100,H102*100/(D102+H102),H102) -> 47.22937707 | I100: =IF((I102+M102)>100,I102*100/(I102+M102),I102) -> 19.67198445 | J100: =I100*AVERAGEIF(J105:J116,">0")/100 -> 16.97380313 | K100: =I100*(100-AVERAGEIF(J105:J116,">0"))/100 -> 2.698181325 | L100: =100-(J100+K100+M100) -> 42.4328736 | M100: =IF((I102+M102)>100,M102*100/(I102+M102),M102) -> 37.89514195 | N100: =IF((N102+R102)>100,N102*100/(N102+R102),N102) -> 22.84188653 | O100: =N100*AVERAGEIF(O105:O116,">0")/100 -> 19.09024267 | P100: =N100*(100-AVERAGEIF(O105:O116,">0"))/100 -> 3.75164386 | Q100: =100-(O100+P100+R100) -> 46.91420444 | R100: =IF((N102+R102)>100,R102*100/(N102+R102),R102) -> 30.24390903 | S100: =IF((S102+W102)>100,S102*100/(S102+W102),S102) -> 47.28187179 | T100: =S100*AVERAGEIF(T105:T116,">0")/100 -> 36.44331676 | U100: =S100*(100-AVERAGEIF(T105:T116,">0"))/100 -> 10.83855503 | V100: =100-(T100+U100+W100) -> 49.23075471 | W100: =IF((S102+W102)>100,W102*100/(S102+W102),W102) -> 3.487373496 | X100: =IF((X102+AB102)>100,X102*100/(X102+AB102),X102) -> 93.67005075 | Y100: =X100*AVERAGEIF(Y105:Y116,">0")/100 -> 80.41418233 | Z100: =X100*(100-AVERAGEIF(Y105:Y116,">0"))/100 -> 13.25586842 | AA100: =100-(Y100+Z100+AB100) -> 6.083695879 | AB100: =IF((X102+AB102)>100,AB102*100/(X102+AB102),AB102) -> 0.2462533749
A101: Regression period: | C101: =MinRegYear(C99,C105:C116) -> 2001 | D101: =IF(MAX(C105:C116)-MIN(C105:C116)<5,AVERAGEIF(C105:C116,">0",D105:D116), IF(FORECAST($C101,D$105:D$116,$C$105:$C$116)<0,0, IF(FORECAST($C101,D$105:D$116,$C$105:$C$116)>100,100, FORECAST($C101,D$105:D$116,$C$105:$C$116)))) -> 10.48149171 | H101: =IF(MAX(C105:C116)-MIN(C105:C116)<5,AVERAGEIF(C105:C116,">0",H105:H116), IF(FORECAST($C101,H$105:H$116,$C$105:$C$116)<0,0, IF(FORECAST($C101,H$105:H$116,$C$105:$C$116)>100,100, FORECAST($C101,H$105:H$116,$C$105:$C$116)))) -> 65.50353394 | I101: =IF(MAX(C105:C116)-MIN(C105:C116)<5,AVERAGEIF(C105:C116,">0",I105:I116), IF(FORECAST($C101,I$105:I$116,$C$105:$C$116)<0,0, IF(FORECAST($C101,I$105:I$116,$C$105:$C$116)>100,100, FORECAST($C101,I$105:I$116,$C$105:$C$116)))) -> 6.114561667 | M101: =IF(MAX(C105:C116)-MIN(C105:C116)<5,AVERAGEIF(C105:C116,">0",M105:M116), IF(FORECAST($C101,M$105:M$116,$C$105:$C$116)<0,0, IF(FORECAST($C101,M$105:M$116,$C$105:$C$116)>100,100, FORECAST($C101,M$105:M$116,$C$105:$C$116)))) -> 72.7398394 | N101: =IF(MAX(C105:C116)-MIN(C105:C116)<5,AVERAGEIF(C105:C116,">0",N105:N116), IF(FORECAST($C101,N$105:N$116,$C$105:$C$116)<0,0, IF(FORECAST($C101,N$105:N$116,$C$105:$C$116)>100,100, FORECAST($C101,N$105:N$116,$C$105:$C$116)))) -> 11.37453953 | R101: =IF(MAX(C105:C116)-MIN(C105:C116)<5,AVERAGEIF(C105:C116,">0",R105:R116), IF(FORECAST($C101,R$105:R$116,$C$105:$C$116)<0,0, IF(FORECAST($C101,R$105:R$116,$C$105:$C$116)>100,100, FORECAST($C101,R$105:R$116,$C$105:$C$116)))) -> 62.52400666 | S101: =IF(MAX(C105:C116)-MIN(C105:C116)<5,AVERAGEIF(C105:C116,">0",S105:S116), IF(FORECAST($C101,S$105:S$116,$C$105:$C$116)<0,0, IF(FORECAST($C101,S$105:S$116,$C$105:$C$116)>100,100, FORECAST($C101,S$105:S$116,$C$105:$C$116)))) -> 14.08573649 | W101: =IF(MAX(C105:C116)-MIN(C105:C116)<5,AVERAGEIF(C105:C116,">0",W105:W116), IF(FORECAST($C101,W$105:W$116,$C$105:$C$116)<0,0, IF(FORECAST($C101,W$105:W$116,$C$105:$C$116)>100,100, FORECAST($C101,W$105:W$116,$C$105:$C$116)))) -> 44.97284031 | X101: =IF(MAX(C105:C116)-MIN(C105:C116)<5,AVERAGEIF(C105:C116,">0",X105:X116), IF(FORECAST($C101,X$105:X$116,$C$105:$C$116)<0,0, IF(FORECAST($C101,X$105:X$116,$C$105:$C$116)>100,100, FORECAST($C101,X$105:X$116,$C$105:$C$116)))) -> 51.69675658 | AB101: =IF(MAX(C105:C116)-MIN(C105:C116)<5,AVERAGEIF(C105:C116,">0",AB105:AB116), IF(FORECAST($C101,AB$105:AB$116,$C$105:$C$116)<0,0, IF(FORECAST($C101,AB$105:AB$116,$C$105:$C$116)>100,100, FORECAST($C101,AB$105:AB$116,$C$105:$C$116)))) -> 4.917551191
C102: =MaxRegYear(C100,C105:C116) -> 2020 | D102: =IF(MAX(C105:C116)-MIN(C105:C116)<5,AVERAGEIF(C105:C116,">0",D105:D116), IF(FORECAST($C102,D$105:D$116,$C$105:$C$116)<0,0, IF(FORECAST($C102,D$105:D$116,$C$105:$C$116)>100,100, FORECAST($C102,D$105:D$116,$C$105:$C$116)))) -> 14.05761146 | H102: =IF(MAX(C105:C116)-MIN(C105:C116)<5,AVERAGEIF(C105:C116,">0",H105:H116), IF(FORECAST($C102,H$105:H$116,$C$105:$C$116)<0,0, IF(FORECAST($C102,H$105:H$116,$C$105:$C$116)>100,100, FORECAST($C102,H$105:H$116,$C$105:$C$116)))) -> 47.22937707 | I102: =IF(MAX(C105:C116)-MIN(C105:C116)<5,AVERAGEIF(C105:C116,">0",I105:I116), IF(FORECAST($C102,I$105:I$116,$C$105:$C$116)<0,0, IF(FORECAST($C102,I$105:I$116,$C$105:$C$116)>100,100, FORECAST($C102,I$105:I$116,$C$105:$C$116)))) -> 19.67198445 | M102: =IF(MAX(C105:C116)-MIN(C105:C116)<5,AVERAGEIF(C105:C116,">0",M105:M116), IF(FORECAST($C102,M$105:M$116,$C$105:$C$116)<0,0, IF(FORECAST($C102,M$105:M$116,$C$105:$C$116)>100,100, FORECAST($C102,M$105:M$116,$C$105:$C$116)))) -> 37.89514195 | N102: =IF(MAX(C105:C116)-MIN(C105:C116)<5,AVERAGEIF(C105:C116,">0",N105:N116), IF(FORECAST($C102,N$105:N$116,$C$105:$C$116)<0,0, IF(FORECAST($C102,N$105:N$116,$C$105:$C$116)>100,100, FORECAST($C102,N$105:N$116,$C$105:$C$116)))) -> 22.84188653 | R102: =IF(MAX(C105:C116)-MIN(C105:C116)<5,AVERAGEIF(C105:C116,">0",R105:R116), IF(FORECAST($C102,R$105:R$116,$C$105:$C$116)<0,0, IF(FORECAST($C102,R$105:R$116,$C$105:$C$116)>100,100, FORECAST($C102,R$105:R$116,$C$105:$C$116)))) -> 30.24390903 | S102: =IF(MAX(C105:C116)-MIN(C105:C116)<5,AVERAGEIF(C105:C116,">0",S105:S116), IF(FORECAST($C102,S$105:S$116,$C$105:$C$116)<0,0, IF(FORECAST($C102,S$105:S$116,$C$105:$C$116)>100,100, FORECAST($C102,S$105:S$116,$C$105:$C$116)))) -> 47.28187179 | W102: =IF(MAX(C105:C116)-MIN(C105:C116)<5,AVERAGEIF(C105:C116,">0",W105:W116), IF(FORECAST($C102,W$105:W$116,$C$105:$C$116)<0,0, IF(FORECAST($C102,W$105:W$116,$C$105:$C$116)>100,100, FORECAST($C102,W$105:W$116,$C$105:$C$116)))) -> 3.487373496 | X102: =IF(MAX(C105:C116)-MIN(C105:C116)<5,AVERAGEIF(C105:C116,">0",X105:X116), IF(FORECAST($C102,X$105:X$116,$C$105:$C$116)<0,0, IF(FORECAST($C102,X$105:X$116,$C$105:$C$116)>100,100, FORECAST($C102,X$105:X$116,$C$105:$C$116)))) -> 93.67005075 | AB102: =IF(MAX(C105:C116)-MIN(C105:C116)<5,AVERAGEIF(C105:C116,">0",AB105:AB116), IF(FORECAST($C102,AB$105:AB$116,$C$105:$C$116)<0,0, IF(FORECAST($C102,AB$105:AB$116,$C$105:$C$116)>100,100, FORECAST($C102,AB$105:AB$116,$C$105:$C$116)))) -> 0.2462533749
B104: Survey | C104: Year | D104: Improved | E104: Not shared | H104: Open defecation | I104: Improved | J104: Not shared | M104: Open defecation | N104: Improved | O104: Not shared | R104: Open defecation | S104: Improved | T104: Not shared | W104: Open defecation | X104: Improved | Y104: Not shared | AB104: Open defecation
B105: DHS03 | C105: 2003 | D105: =IF(ISERROR(INDIRECT(CONCATENATE($B105,"!C122"))),"",INDIRECT(CONCATENATE($B105,"!C122"))) -> 13.24058702 | E105: =IF(ISERROR(INDIRECT(CONCATENATE($B105,"!C129"))),"",INDIRECT(CONCATENATE($B105,"!C129"))) -> N/A | H105: =IF(ISERROR(INDIRECT(CONCATENATE($B105,"!C127"))),"",INDIRECT(CONCATENATE($B105,"!C127"))) -> 64.24486076 | I105: =IF(ISERROR(INDIRECT(CONCATENATE($B105,"!D122"))),"",INDIRECT(CONCATENATE($B105,"!D122"))) -> 10.13269978 | J105: =IF(ISERROR(INDIRECT(CONCATENATE($B105,"!D129"))),"",INDIRECT(CONCATENATE($B105,"!D129"))) -> N/A | M105: =IF(ISERROR(INDIRECT(CONCATENATE($B105,"!D127"))),"",INDIRECT(CONCATENATE($B105,"!D127"))) -> 69.02215942 | N105: =IF(ISERROR(INDIRECT(CONCATENATE($B105,"!E122"))),"",INDIRECT(CONCATENATE($B105,"!E122"))) -> 15.59570276 | O105: =IF(ISERROR(INDIRECT(CONCATENATE($B105,"!E129"))),"",INDIRECT(CONCATENATE($B105,"!E129"))) -> N/A | R105: =IF(ISERROR(INDIRECT(CONCATENATE($B105,"!E127"))),"",INDIRECT(CONCATENATE($B105,"!E127"))) -> 57.0918752 | S105: =IF(ISERROR(INDIRECT(CONCATENATE($B105,"!F122"))),"",INDIRECT(CONCATENATE($B105,"!F122"))) -> 24.54921676 | T105: =IF(ISERROR(INDIRECT(CONCATENATE($B105,"!F129"))),"",INDIRECT(CONCATENATE($B105,"!F129"))) -> N/A | W105: =IF(ISERROR(INDIRECT(CONCATENATE($B105,"!F127"))),"",INDIRECT(CONCATENATE($B105,"!F127"))) -> 36.22634639 | X105: =IF(ISERROR(INDIRECT(CONCATENATE($B105,"!G122"))),"",INDIRECT(CONCATENATE($B105,"!G122"))) -> 55.69129068 | Y105: =IF(ISERROR(INDIRECT(CONCATENATE($B105,"!G129"))),"",INDIRECT(CONCATENATE($B105,"!G129"))) -> N/A | AB105: =IF(ISERROR(INDIRECT(CONCATENATE($B105,"!G2127"))),"",INDIRECT(CONCATENATE($B105,"!G127"))) -> 4.463880991
B106: MICS08 | C106: 2008 | D106: 8.172832149 | E106: 85.66767499 | H106: 47.66810999 | I106: 4.82924416 | J106: 86.42930179 | M106: 55.84966552 | N106: 4.055785094 | O106: 74.9213082 | R106: 54.54372994 | S106: 11.82548005 | T106: 70.49468421 | W106: 40.92197531 | X106: 67.45572526 | Y106: 82.64076741 | AB106: 2.175493759
B107: AIS09 | C107: 2009 | D107: 15.20550271 | E107: 83.46285306 | H107: 65.15560076 | I107: 17.90577915 | J107: 78.67250009 | M107: 59.6979593 | N107: 25.07413858 | O107: 78.5395267 | R107: 49.53378805 | S107: 33.93190905 | T107: 72.59276549 | W107: 23.26411638 | X107: 66.94942336 | Y107: 82.88353167 | AB107: 3.956557073
B108: DHS11 | C108: 2011 | D108: 9.345630147 | E108: 84.79384189 | H108: 62.30221156 | I108: 8.930614951 | J108: 92.97109513 | M108: 59.54253918 | N108: 15.33069148 | O108: 87.26536665 | R108: 47.34466746 | S108: 29.26742982 | T108: 77.57392982 | W108: 24.4741345 | X108: 76.60770537 | Y108: 87.55706249 | AB108: 2.781820102
B109: AIS15 | C109: 2015 | D109: 10.67771752 | E109: N/A | H109: 48.71167963 | I109: 15.91308377 | J109: N/A | M109: 43.93598291 | N109: 21.47030659 | O109: N/A | R109: 29.8405297 | S109: 39.73834266 | T109: N/A | W109: 8.465159706 | X109: 84.44074025 | Y109: N/A | AB109: 0.9179120383
B110: MIS18 | C110: 2018 | D110: 17.1632568 | E110: 87.47571593 | H110: 49.15447259 | I110: 20.36176512 | J110: 87.06367359 | M110: 42.02270626 | N110: 21.72619825 | O110: 93.57618008 | R110: 38.25020422 | S110: 46.53761152 | T110: 87.64550753 | W110: 9.845463506 | X110: 87.16465781 | Y110: 90.31199281 | AB110: 0.9498919544
B118: =CONCATENATE("National use of sanitation facilities, ",C99,"–",C100) -> National use of sanitation facilities, 2000–2020 | S118: Data points used for regression
A197: URBAN | D197: Poorest | I197: Poor | N197: Middle | S197: Rich | X197: Richest
D198: Improved | E198: Basic | F198: Limited | G198: Unimproved | H198: Open defecation | I198: Improved | J198: Basic | K198: Limited | L198: Unimproved | M198: Open defecation | N198: Improved | O198: Basic | P198: Limited | Q198: Unimproved | R198: Open defecation | S198: Improved | T198: Basic | U198: Limited | V198: Unimproved | W198: Open defecation | X198: Improved | Y198: Basic | Z198: Limited | AA198: Unimproved | AB198: Open defecation
A199: Forecast period: | C199: 2000 | D199: =IF((D201+H201)>100,D201*100/(D201+H201),D201) -> 14.70995898 | E199: =D199*AVERAGEIF(E205:E216,">0")/100 -> 11.40577057 | F199: =D199*(100-AVERAGEIF(E205:E216,">0"))/100 -> 3.304188408 | G199: =100-(E199+F199+H199) -> 38.80239635 | H199: =IF((D201+H201)>100,H201*100/(D201+H201),H201) -> 46.48764467 | I199: =IF((I201+M201)>100,I201*100/(I201+M201),I201) -> 11.04194303 | J199: =I199*AVERAGEIF(J205:J216,">0")/100 -> 8.151425239 | K199: =I199*(100-AVERAGEIF(J205:J216,">0"))/100 -> 2.890517794 | L199: =100-(J199+K199+M199) -> 52.8250888 | M199: =IF((I201+M201)>100,M201*100/(I201+M201),M201) -> 36.13296817 | N199: =IF((N201+R201)>100,N201*100/(N201+R201),N201) -> 29.67359782 | O199: =N199*AVERAGEIF(O205:O216,">0")/100 -> 23.36834234 | P199: =N199*(100-AVERAGEIF(O205:O216,">0"))/100 -> 6.305255481 | Q199: =100-(O199+P199+R199) -> 59.82332852 | R199: =IF((N201+R201)>100,R201*100/(N201+R201),R201) -> 10.50307365 | S199: =IF((S201+W201)>100,S201*100/(S201+W201),S201) -> 57.35582997 | T199: =S199*AVERAGEIF(T205:T216,">0")/100 -> 46.46573203 | U199: =S199*(100-AVERAGEIF(T205:T216,">0"))/100 -> 10.89009794 | V199: =100-(T199+U199+W199) -> 38.7050946 | W199: =IF((S201+W201)>100,W201*100/(S201+W201),W201) -> 3.939075428 | X199: =IF((X201+AB201)>100,X201*100/(X201+AB201),X201) -> 70.88678084 | Y199: =X199*AVERAGEIF(Y205:Y216,">0")/100 -> 64.93408015 | Z199: =X199*(100-AVERAGEIF(Y205:Y216,">0"))/100 -> 5.952700681 | AA199: =100-(Y199+Z199+AB199) -> 28.48443844 | AB199: =IF((X201+AB201)>100,AB201*100/(X201+AB201),AB201) -> 0.6287807229
C200: 2020 | D200: =IF((D202+H202)>100,D202*100/(D202+H202),D202) -> 29.03764938 | E200: =D200*AVERAGEIF(E205:E216,">0")/100 -> 22.5151387 | F200: =D200*(100-AVERAGEIF(E205:E216,">0"))/100 -> 6.522510676 | G200: =100-(E200+F200+H200) -> 46.49526622 | H200: =IF((D202+H202)>100,H202*100/(D202+H202),H202) -> 24.4670844 | I200: =IF((I202+M202)>100,I202*100/(I202+M202),I202) -> 58.23112665 | J200: =I200*AVERAGEIF(J205:J216,">0")/100 -> 42.98760409 | K200: =I200*(100-AVERAGEIF(J205:J216,">0"))/100 -> 15.24352256 | L200: =100-(J200+K200+M200) -> 41.76887335 | M200: =IF((I202+M202)>100,M202*100/(I202+M202),M202) -> 0 | N200: =IF((N202+R202)>100,N202*100/(N202+R202),N202) -> 82.01418039 | O200: =N200*AVERAGEIF(O205:O216,">0")/100 -> 64.58722854 | P200: =N200*(100-AVERAGEIF(O205:O216,">0"))/100 -> 17.42695185 | Q200: =100-(O200+P200+R200) -> 16.40650127 | R200: =IF((N202+R202)>100,R202*100/(N202+R202),R202) -> 1.579318339 | S200: =IF((S202+W202)>100,S202*100/(S202+W202),S202) -> 94.16407378 | T200: =S200*AVERAGEIF(T205:T216,">0")/100 -> 76.28522891 | U200: =S200*(100-AVERAGEIF(T205:T216,">0"))/100 -> 17.87884487 | V200: =100-(T200+U200+W200) -> 5.835926224 | W200: =IF((S202+W202)>100,W202*100/(S202+W202),W202) -> 0 | X200: =IF((X202+AB202)>100,X202*100/(X202+AB202),X202) -> 100 | Y200: =X200*AVERAGEIF(Y205:Y216,">0")/100 -> 91.60252362 | Z200: =X200*(100-AVERAGEIF(Y205:Y216,">0"))/100 -> 8.397476385 | AA200: =100-(Y200+Z200+AB200) -> 0 | AB200: =IF((X202+AB202)>100,AB202*100/(X202+AB202),AB202) -> 0
A201: Regression period: | C201: =MinRegYear(C199,C205:C216) -> 2001 | D201: =IF(MAX(C205:C216)-MIN(C205:C216)<5,AVERAGEIF(C205:C216,">0",D205:D216), IF(FORECAST($C201,D$205:D$216,$C$205:$C$216)<0,0, IF(FORECAST($C201,D$205:D$216,$C$205:$C$216)>100,100, FORECAST($C201,D$205:D$216,$C$205:$C$216)))) -> 14.70995898 | H201: =IF(MAX(C205:C216)-MIN(C205:C216)<5,AVERAGEIF(C205:C216,">0",H205:H216), IF(FORECAST($C201,H$205:H$216,$C$205:$C$216)<0,0, IF(FORECAST($C201,H$205:H$216,$C$205:$C$216)>100,100, FORECAST($C201,H$205:H$216,$C$205:$C$216)))) -> 46.48764467 | I201: =IF(MAX(C205:C216)-MIN(C205:C216)<5,AVERAGEIF(C205:C216,">0",I205:I216), IF(FORECAST($C201,I$205:I$216,$C$205:$C$216)<0,0, IF(FORECAST($C201,I$205:I$216,$C$205:$C$216)>100,100, FORECAST($C201,I$205:I$216,$C$205:$C$216)))) -> 11.04194303 | M201: =IF(MAX(C205:C216)-MIN(C205:C216)<5,AVERAGEIF(C205:C216,">0",M205:M216), IF(FORECAST($C201,M$205:M$216,$C$205:$C$216)<0,0, IF(FORECAST($C201,M$205:M$216,$C$205:$C$216)>100,100, FORECAST($C201,M$205:M$216,$C$205:$C$216)))) -> 36.13296817 | N201: =IF(MAX(C205:C216)-MIN(C205:C216)<5,AVERAGEIF(C205:C216,">0",N205:N216), IF(FORECAST($C201,N$205:N$216,$C$205:$C$216)<0,0, IF(FORECAST($C201,N$205:N$216,$C$205:$C$216)>100,100, FORECAST($C201,N$205:N$216,$C$205:$C$216)))) -> 29.67359782 | R201: =IF(MAX(C205:C216)-MIN(C205:C216)<5,AVERAGEIF(C205:C216,">0",R205:R216), IF(FORECAST($C201,R$205:R$216,$C$205:$C$216)<0,0, IF(FORECAST($C201,R$205:R$216,$C$205:$C$216)>100,100, FORECAST($C201,R$205:R$216,$C$205:$C$216)))) -> 10.50307365 | S201: =IF(MAX(C205:C216)-MIN(C205:C216)<5,AVERAGEIF(C205:C216,">0",S205:S216), IF(FORECAST($C201,S$205:S$216,$C$205:$C$216)<0,0, IF(FORECAST($C201,S$205:S$216,$C$205:$C$216)>100,100, FORECAST($C201,S$205:S$216,$C$205:$C$216)))) -> 57.35582997 | W201: =IF(MAX(C205:C216)-MIN(C205:C216)<5,AVERAGEIF(C205:C216,">0",W205:W216), IF(FORECAST($C201,W$205:W$216,$C$205:$C$216)<0,0, IF(FORECAST($C201,W$205:W$216,$C$205:$C$216)>100,100, FORECAST($C201,W$205:W$216,$C$205:$C$216)))) -> 3.939075428 | X201: =IF(MAX(C205:C216)-MIN(C205:C216)<5,AVERAGEIF(C205:C216,">0",X205:X216), IF(FORECAST($C201,X$205:X$216,$C$205:$C$216)<0,0, IF(FORECAST($C201,X$205:X$216,$C$205:$C$216)>100,100, FORECAST($C201,X$205:X$216,$C$205:$C$216)))) -> 70.88678084 | AB201: =IF(MAX(C205:C216)-MIN(C205:C216)<5,AVERAGEIF(C205:C216,">0",AB205:AB216), IF(FORECAST($C201,AB$205:AB$216,$C$205:$C$216)<0,0, IF(FORECAST($C201,AB$205:AB$216,$C$205:$C$216)>100,100, FORECAST($C201,AB$205:AB$216,$C$205:$C$216)))) -> 0.6287807229
C202: =MaxRegYear(C200,C205:C216) -> 2020 | D202: =IF(MAX(C205:C216)-MIN(C205:C216)<5,AVERAGEIF(C205:C216,">0",D205:D216), IF(FORECAST($C202,D$205:D$216,$C$205:$C$216)<0,0, IF(FORECAST($C202,D$205:D$216,$C$205:$C$216)>100,100, FORECAST($C202,D$205:D$216,$C$205:$C$216)))) -> 29.03764938 | H202: =IF(MAX(C205:C216)-MIN(C205:C216)<5,AVERAGEIF(C205:C216,">0",H205:H216), IF(FORECAST($C202,H$205:H$216,$C$205:$C$216)<0,0, IF(FORECAST($C202,H$205:H$216,$C$205:$C$216)>100,100, FORECAST($C202,H$205:H$216,$C$205:$C$216)))) -> 24.4670844 | I202: =IF(MAX(C205:C216)-MIN(C205:C216)<5,AVERAGEIF(C205:C216,">0",I205:I216), IF(FORECAST($C202,I$205:I$216,$C$205:$C$216)<0,0, IF(FORECAST($C202,I$205:I$216,$C$205:$C$216)>100,100, FORECAST($C202,I$205:I$216,$C$205:$C$216)))) -> 58.23112665 | M202: =IF(MAX(C205:C216)-MIN(C205:C216)<5,AVERAGEIF(C205:C216,">0",M205:M216), IF(FORECAST($C202,M$205:M$216,$C$205:$C$216)<0,0, IF(FORECAST($C202,M$205:M$216,$C$205:$C$216)>100,100, FORECAST($C202,M$205:M$216,$C$205:$C$216)))) -> 0 | N202: =IF(MAX(C205:C216)-MIN(C205:C216)<5,AVERAGEIF(C205:C216,">0",N205:N216), IF(FORECAST($C202,N$205:N$216,$C$205:$C$216)<0,0, IF(FORECAST($C202,N$205:N$216,$C$205:$C$216)>100,100, FORECAST($C202,N$205:N$216,$C$205:$C$216)))) -> 82.01418039 | R202: =IF(MAX(C205:C216)-MIN(C205:C216)<5,AVERAGEIF(C205:C216,">0",R205:R216), IF(FORECAST($C202,R$205:R$216,$C$205:$C$216)<0,0, IF(FORECAST($C202,R$205:R$216,$C$205:$C$216)>100,100, FORECAST($C202,R$205:R$216,$C$205:$C$216)))) -> 1.579318339 | S202: =IF(MAX(C205:C216)-MIN(C205:C216)<5,AVERAGEIF(C205:C216,">0",S205:S216), IF(FORECAST($C202,S$205:S$216,$C$205:$C$216)<0,0, IF(FORECAST($C202,S$205:S$216,$C$205:$C$216)>100,100, FORECAST($C202,S$205:S$216,$C$205:$C$216)))) -> 94.16407378 | W202: =IF(MAX(C205:C216)-MIN(C205:C216)<5,AVERAGEIF(C205:C216,">0",W205:W216), IF(FORECAST($C202,W$205:W$216,$C$205:$C$216)<0,0, IF(FORECAST($C202,W$205:W$216,$C$205:$C$216)>100,100, FORECAST($C202,W$205:W$216,$C$205:$C$216)))) -> 0 | X202: =IF(MAX(C205:C216)-MIN(C205:C216)<5,AVERAGEIF(C205:C216,">0",X205:X216), IF(FORECAST($C202,X$205:X$216,$C$205:$C$216)<0,0, IF(FORECAST($C202,X$205:X$216,$C$205:$C$216)>100,100, FORECAST($C202,X$205:X$216,$C$205:$C$216)))) -> 100 | AB202: =IF(MAX(C205:C216)-MIN(C205:C216)<5,AVERAGEIF(C205:C216,">0",AB205:AB216), IF(FORECAST($C202,AB$205:AB$216,$C$205:$C$216)<0,0, IF(FORECAST($C202,AB$205:AB$216,$C$205:$C$216)>100,100, FORECAST($C202,AB$205:AB$216,$C$205:$C$216)))) -> 0
B204: Survey | C204: Year | D204: Improved | E204: Not shared | H204: Open defecation | I204: Improved | J204: Not shared | M204: Open defecation | N204: Improved | O204: Not shared | R204: Open defecation | S204: Improved | T204: Not shared | W204: Open defecation | X204: Improved | Y204: Not shared | AB204: Open defecation
B205: DHS03 | C205: 2003 | D205: =IF(ISERROR(INDIRECT(CONCATENATE($B205,"!H122"))),"",INDIRECT(CONCATENATE($B205,"!H122"))) -> 20.75816202 | E205: =IF(ISERROR(INDIRECT(CONCATENATE($B205,"!H129"))),"",INDIRECT(CONCATENATE($B205,"!H129"))) -> N/A | H205: =IF(ISERROR(INDIRECT(CONCATENATE($B205,"!H127"))),"",INDIRECT(CONCATENATE($B205,"!H127"))) -> 42.09737676 | I205: =IF(ISERROR(INDIRECT(CONCATENATE($B205,"!I122"))),"",INDIRECT(CONCATENATE($B205,"!I122"))) -> 21.76330429 | J205: =IF(ISERROR(INDIRECT(CONCATENATE($B205,"!I129"))),"",INDIRECT(CONCATENATE($B205,"!I129"))) -> N/A | M205: =IF(ISERROR(INDIRECT(CONCATENATE($B205,"!I127"))),"",INDIRECT(CONCATENATE($B205,"!I127"))) -> 33.51104324 | N205: =IF(ISERROR(INDIRECT(CONCATENATE($B205,"!J122"))),"",INDIRECT(CONCATENATE($B205,"!J122"))) -> 37.72057812 | O205: =IF(ISERROR(INDIRECT(CONCATENATE($B205,"!J129"))),"",INDIRECT(CONCATENATE($B205,"!J129"))) -> N/A | R205: =IF(ISERROR(INDIRECT(CONCATENATE($B205,"!J127"))),"",INDIRECT(CONCATENATE($B205,"!J127"))) -> 10.12947668 | S205: =IF(ISERROR(INDIRECT(CONCATENATE($B205,"!K122"))),"",INDIRECT(CONCATENATE($B205,"!K122"))) -> 61.08842725 | T205: =IF(ISERROR(INDIRECT(CONCATENATE($B205,"!K129"))),"",INDIRECT(CONCATENATE($B205,"!K129"))) -> N/A | W205: =IF(ISERROR(INDIRECT(CONCATENATE($B205,"!K127"))),"",INDIRECT(CONCATENATE($B205,"!K127"))) -> 4.03374682 | X205: =IF(ISERROR(INDIRECT(CONCATENATE($B205,"!L122"))),"",INDIRECT(CONCATENATE($B205,"!L122"))) -> 66.17217729 | Y205: =IF(ISERROR(INDIRECT(CONCATENATE($B205,"!L129"))),"",INDIRECT(CONCATENATE($B205,"!L129"))) -> N/A | AB205: =IF(ISERROR(INDIRECT(CONCATENATE($B205,"!L2127"))),"",INDIRECT(CONCATENATE($B205,"!L127"))) -> 0.4649764092
B206: MICS08 | C206: 2008 | D206: 10.0259456 | E206: 72.27885213 | H206: 34.27355135 | I206: 21.24130314 | J206: 74.54826056 | M206: 18.96534732 | N206: 44.48178418 | O206: 78.26855786 | R206: 5.341755611 | S206: 68.61404126 | T206: 75.45328516 | W206: 0.7690225275 | X206: 90.9554437 | Y206: 90.39060357 | AB206: 0
B207: AIS09 | C207: 2009 | D207: 29.65499242 | E207: 78.15137318 | H207: 42.94677745 | I207: 32.64311016 | J207: 67.72765198 | M207: 22.75732186 | N207: 50.30480325 | O207: 75.87261485 | R207: 6.928717853 | S207: 71.93451511 | T207: 76.82759392 | W207: 3.055197588 | X207: 85.99055367 | Y207: 89.3225383 | AB207: 1.155516386
B208: DHS11 | C208: 2011 | D208: 17.20725382 | E208: 75.55504282 | H208: 41.83784502 | I208: 32.59597102 | J208: 70.56931232 | M208: 19.13035521 | N208: 59.31176175 | O208: 77.15060684 | R208: 7.710189013 | S208: 81.42856789 | T208: 85.09170876 | W208: 0.9532570592 | X208: 94.69888279 | Y208: 92.85152766 | AB208: 0.04765033792
B209: AIS15 | C209: 2015 | D209: 20.80728903 | E209: N/A | H209: 20.9082871 | I209: 43.45907403 | J209: N/A | M209: 3.51132081 | N209: 69.81340006 | O209: N/A | R209: 2.353030777 | S209: 84.65515579 | T209: N/A | W209: 0.8591338999 | X209: 96.94441491 | Y209: N/A | AB209: 0.1826942173
B210: MIS18 | C210: 2018 | D210: 33.54327113 | E210: 84.16571425 | H210: 29.64137269 | I210: 58.60008766 | J210: 82.44429855 | M210: 6.951964032 | N210: 76.1857748 | O210: 83.71339753 | R210: 3.314334713 | S210: 88.77627994 | T210: 86.67978523 | W210: 0 | X210: 94.86917927 | Y210: 93.84542492 | AB210: 0
B218: =CONCATENATE("Urban use of sanitation facilities, ",C199,"–",C200) -> Urban use of sanitation facilities, 2000–2020 | S218: Data points used for regression
A297: RURAL | D297: Poorest | I297: Poor | N297: Middle | S297: Rich | X297: Richest
D298: Improved | E298: Basic | F298: Limited | G298: Unimproved | H298: Open defecation | I298: Improved | J298: Basic | K298: Limited | L298: Unimproved | M298: Open defecation | N298: Improved | O298: Basic | P298: Limited | Q298: Unimproved | R298: Open defecation | S298: Improved | T298: Basic | U298: Limited | V298: Unimproved | W298: Open defecation | X298: Improved | Y298: Basic | Z298: Limited | AA298: Unimproved | AB298: Open defecation
A299: Forecast period: | C299: 2000 | D299: =IF((D301+H301)>100,D301*100/(D301+H301),D301) -> 9.167118199 | E299: =D299*AVERAGEIF(E305:E316,">0")/100 -> 7.996917207 | F299: =D299*(100-AVERAGEIF(E305:E316,">0"))/100 -> 1.170200992 | G299: =100-(E299+F299+H299) -> 21.19182522 | H299: =IF((D301+H301)>100,H301*100/(D301+H301),H301) -> 69.64105658 | I299: =IF((I301+M301)>100,I301*100/(I301+M301),I301) -> 5.044657463 | J299: =I299*AVERAGEIF(J305:J316,">0")/100 -> 4.272215351 | K299: =I299*(100-AVERAGEIF(J305:J316,">0"))/100 -> 0.7724421122 | L299: =100-(J299+K299+M299) -> 19.20670988 | M299: =IF((I301+M301)>100,M301*100/(I301+M301),M301) -> 75.74863266 | N299: =IF((N301+R301)>100,N301*100/(N301+R301),N301) -> 8.229071565 | O299: =N299*AVERAGEIF(O305:O316,">0")/100 -> 7.119216656 | P299: =N299*(100-AVERAGEIF(O305:O316,">0"))/100 -> 1.109854909 | Q299: =100-(O299+P299+R299) -> 25.27900706 | R299: =IF((N301+R301)>100,R301*100/(N301+R301),R301) -> 66.49192138 | S299: =IF((S301+W301)>100,S301*100/(S301+W301),S301) -> 15.57332926 | T299: =S299*AVERAGEIF(T305:T316,">0")/100 -> 13.41620999 | U299: =S299*(100-AVERAGEIF(T305:T316,">0"))/100 -> 2.157119276 | V299: =100-(T299+U299+W299) -> 21.71048414 | W299: =IF((S301+W301)>100,W301*100/(S301+W301),W301) -> 62.7161866 | X299: =IF((X301+AB301)>100,X301*100/(X301+AB301),X301) -> 13.47115183 | Y299: =X299*AVERAGEIF(Y305:Y316,">0")/100 -> 11.20741676 | Z299: =X299*(100-AVERAGEIF(Y305:Y316,">0"))/100 -> 2.263735069 | AA299: =100-(Y299+Z299+AB299) -> 34.81629087 | AB299: =IF((X301+AB301)>100,AB301*100/(X301+AB301),AB301) -> 51.71255729
C300: 2020 | D300: =IF((D302+H302)>100,D302*100/(D302+H302),D302) -> 12.71167388 | E300: =D300*AVERAGEIF(E305:E316,">0")/100 -> 11.08900326 | F300: =D300*(100-AVERAGEIF(E305:E316,">0"))/100 -> 1.622670621 | G300: =100-(E300+F300+H300) -> 37.75474092 | H300: =IF((D302+H302)>100,H302*100/(D302+H302),H302) -> 49.53358519 | I300: =IF((I302+M302)>100,I302*100/(I302+M302),I302) -> 17.3589899 | J300: =I300*AVERAGEIF(J305:J316,">0")/100 -> 14.70096705 | K300: =I300*(100-AVERAGEIF(J305:J316,">0"))/100 -> 2.658022854 | L300: =100-(J300+K300+M300) -> 42.99844798 | M300: =IF((I302+M302)>100,M302*100/(I302+M302),M302) -> 39.64256211 | N300: =IF((N302+R302)>100,N302*100/(N302+R302),N302) -> 19.76213427 | O300: =N300*AVERAGEIF(O305:O316,">0")/100 -> 17.09681515 | P300: =N300*(100-AVERAGEIF(O305:O316,">0"))/100 -> 2.665319113 | Q300: =100-(O300+P300+R300) -> 38.35409124 | R300: =IF((N302+R302)>100,R302*100/(N302+R302),R302) -> 41.8837745 | S300: =IF((S302+W302)>100,S302*100/(S302+W302),S302) -> 20.4282283 | T300: =S300*AVERAGEIF(T305:T316,">0")/100 -> 17.59863905 | U300: =S300*(100-AVERAGEIF(T305:T316,">0"))/100 -> 2.829589249 | V300: =100-(T300+U300+W300) -> 51.24673219 | W300: =IF((S302+W302)>100,W302*100/(S302+W302),W302) -> 28.32503951 | X300: =IF((X302+AB302)>100,X302*100/(X302+AB302),X302) -> 46.41052444 | Y300: =X300*AVERAGEIF(Y305:Y316,">0")/100 -> 38.61155275 | Z300: =X300*(100-AVERAGEIF(Y305:Y316,">0"))/100 -> 7.798971688 | AA300: =100-(Y300+Z300+AB300) -> 51.54297351 | AB300: =IF((X302+AB302)>100,AB302*100/(X302+AB302),AB302) -> 2.046502054
A301: Regression period: | C301: =MinRegYear(C299,C305:C316) -> 2001 | D301: =IF(MAX(C305:C316)-MIN(C305:C316)<5,AVERAGEIF(C305:C316,">0",D305:D316), IF(FORECAST($C301,D$305:D$316,$C$305:$C$316)<0,0, IF(FORECAST($C301,D$305:D$316,$C$305:$C$316)>100,100, FORECAST($C301,D$305:D$316,$C$305:$C$316)))) -> 9.167118199 | H301: =IF(MAX(C305:C316)-MIN(C305:C316)<5,AVERAGEIF(C305:C316,">0",H305:H316), IF(FORECAST($C301,H$305:H$316,$C$305:$C$316)<0,0, IF(FORECAST($C301,H$305:H$316,$C$305:$C$316)>100,100, FORECAST($C301,H$305:H$316,$C$305:$C$316)))) -> 69.64105658 | I301: =IF(MAX(C305:C316)-MIN(C305:C316)<5,AVERAGEIF(C305:C316,">0",I305:I316), IF(FORECAST($C301,I$305:I$316,$C$305:$C$316)<0,0, IF(FORECAST($C301,I$305:I$316,$C$305:$C$316)>100,100, FORECAST($C301,I$305:I$316,$C$305:$C$316)))) -> 5.044657463 | M301: =IF(MAX(C305:C316)-MIN(C305:C316)<5,AVERAGEIF(C305:C316,">0",M305:M316), IF(FORECAST($C301,M$305:M$316,$C$305:$C$316)<0,0, IF(FORECAST($C301,M$305:M$316,$C$305:$C$316)>100,100, FORECAST($C301,M$305:M$316,$C$305:$C$316)))) -> 75.74863266 | N301: =IF(MAX(C305:C316)-MIN(C305:C316)<5,AVERAGEIF(C305:C316,">0",N305:N316), IF(FORECAST($C301,N$305:N$316,$C$305:$C$316)<0,0, IF(FORECAST($C301,N$305:N$316,$C$305:$C$316)>100,100, FORECAST($C301,N$305:N$316,$C$305:$C$316)))) -> 8.229071565 | R301: =IF(MAX(C305:C316)-MIN(C305:C316)<5,AVERAGEIF(C305:C316,">0",R305:R316), IF(FORECAST($C301,R$305:R$316,$C$305:$C$316)<0,0, IF(FORECAST($C301,R$305:R$316,$C$305:$C$316)>100,100, FORECAST($C301,R$305:R$316,$C$305:$C$316)))) -> 66.49192138 | S301: =IF(MAX(C305:C316)-MIN(C305:C316)<5,AVERAGEIF(C305:C316,">0",S305:S316), IF(FORECAST($C301,S$305:S$316,$C$305:$C$316)<0,0, IF(FORECAST($C301,S$305:S$316,$C$305:$C$316)>100,100, FORECAST($C301,S$305:S$316,$C$305:$C$316)))) -> 15.57332926 | W301: =IF(MAX(C305:C316)-MIN(C305:C316)<5,AVERAGEIF(C305:C316,">0",W305:W316), IF(FORECAST($C301,W$305:W$316,$C$305:$C$316)<0,0, IF(FORECAST($C301,W$305:W$316,$C$305:$C$316)>100,100, FORECAST($C301,W$305:W$316,$C$305:$C$316)))) -> 62.7161866 | X301: =IF(MAX(C305:C316)-MIN(C305:C316)<5,AVERAGEIF(C305:C316,">0",X305:X316), IF(FORECAST($C301,X$305:X$316,$C$305:$C$316)<0,0, IF(FORECAST($C301,X$305:X$316,$C$305:$C$316)>100,100, FORECAST($C301,X$305:X$316,$C$305:$C$316)))) -> 13.47115183 | AB301: =IF(MAX(C305:C316)-MIN(C305:C316)<5,AVERAGEIF(C305:C316,">0",AB305:AB316), IF(FORECAST($C301,AB$305:AB$316,$C$305:$C$316)<0,0, IF(FORECAST($C301,AB$305:AB$316,$C$305:$C$316)>100,100, FORECAST($C301,AB$305:AB$316,$C$305:$C$316)))) -> 51.71255729
C302: =MaxRegYear(C300,C305:C316) -> 2020 | D302: =IF(MAX(C305:C316)-MIN(C305:C316)<5,AVERAGEIF(C305:C316,">0",D305:D316), IF(FORECAST($C302,D$305:D$316,$C$305:$C$316)<0,0, IF(FORECAST($C302,D$305:D$316,$C$305:$C$316)>100,100, FORECAST($C302,D$305:D$316,$C$305:$C$316)))) -> 12.71167388 | H302: =IF(MAX(C305:C316)-MIN(C305:C316)<5,AVERAGEIF(C305:C316,">0",H305:H316), IF(FORECAST($C302,H$305:H$316,$C$305:$C$316)<0,0, IF(FORECAST($C302,H$305:H$316,$C$305:$C$316)>100,100, FORECAST($C302,H$305:H$316,$C$305:$C$316)))) -> 49.53358519 | I302: =IF(MAX(C305:C316)-MIN(C305:C316)<5,AVERAGEIF(C305:C316,">0",I305:I316), IF(FORECAST($C302,I$305:I$316,$C$305:$C$316)<0,0, IF(FORECAST($C302,I$305:I$316,$C$305:$C$316)>100,100, FORECAST($C302,I$305:I$316,$C$305:$C$316)))) -> 17.3589899 | M302: =IF(MAX(C305:C316)-MIN(C305:C316)<5,AVERAGEIF(C305:C316,">0",M305:M316), IF(FORECAST($C302,M$305:M$316,$C$305:$C$316)<0,0, IF(FORECAST($C302,M$305:M$316,$C$305:$C$316)>100,100, FORECAST($C302,M$305:M$316,$C$305:$C$316)))) -> 39.64256211 | N302: =IF(MAX(C305:C316)-MIN(C305:C316)<5,AVERAGEIF(C305:C316,">0",N305:N316), IF(FORECAST($C302,N$305:N$316,$C$305:$C$316)<0,0, IF(FORECAST($C302,N$305:N$316,$C$305:$C$316)>100,100, FORECAST($C302,N$305:N$316,$C$305:$C$316)))) -> 19.76213427 | R302: =IF(MAX(C305:C316)-MIN(C305:C316)<5,AVERAGEIF(C305:C316,">0",R305:R316), IF(FORECAST($C302,R$305:R$316,$C$305:$C$316)<0,0, IF(FORECAST($C302,R$305:R$316,$C$305:$C$316)>100,100, FORECAST($C302,R$305:R$316,$C$305:$C$316)))) -> 41.8837745 | S302: =IF(MAX(C305:C316)-MIN(C305:C316)<5,AVERAGEIF(C305:C316,">0",S305:S316), IF(FORECAST($C302,S$305:S$316,$C$305:$C$316)<0,0, IF(FORECAST($C302,S$305:S$316,$C$305:$C$316)>100,100, FORECAST($C302,S$305:S$316,$C$305:$C$316)))) -> 20.4282283 | W302: =IF(MAX(C305:C316)-MIN(C305:C316)<5,AVERAGEIF(C305:C316,">0",W305:W316), IF(FORECAST($C302,W$305:W$316,$C$305:$C$316)<0,0, IF(FORECAST($C302,W$305:W$316,$C$305:$C$316)>100,100, FORECAST($C302,W$305:W$316,$C$305:$C$316)))) -> 28.32503951 | X302: =IF(MAX(C305:C316)-MIN(C305:C316)<5,AVERAGEIF(C305:C316,">0",X305:X316), IF(FORECAST($C302,X$305:X$316,$C$305:$C$316)<0,0, IF(FORECAST($C302,X$305:X$316,$C$305:$C$316)>100,100, FORECAST($C302,X$305:X$316,$C$305:$C$316)))) -> 46.41052444 | AB302: =IF(MAX(C305:C316)-MIN(C305:C316)<5,AVERAGEIF(C305:C316,">0",AB305:AB316), IF(FORECAST($C302,AB$305:AB$316,$C$305:$C$316)<0,0, IF(FORECAST($C302,AB$305:AB$316,$C$305:$C$316)>100,100, FORECAST($C302,AB$305:AB$316,$C$305:$C$316)))) -> 2.046502054
B304: Survey | C304: Year | D304: Improved | E304: Not shared | H304: Open defecation | I304: Improved | J304: Not shared | M304: Open defecation | N304: Improved | O304: Not shared | R304: Open defecation | S304: Improved | T304: Not shared | W304: Open defecation | X304: Improved | Y304: Not shared | AB304: Open defecation
B305: DHS03 | C305: 2003 | D305: =IF(ISERROR(INDIRECT(CONCATENATE($B305,"!M122"))),"",INDIRECT(CONCATENATE($B305,"!M122"))) -> 11.25679833 | E305: =IF(ISERROR(INDIRECT(CONCATENATE($B305,"!M129"))),"",INDIRECT(CONCATENATE($B305,"!M129"))) -> N/A | H305: =IF(ISERROR(INDIRECT(CONCATENATE($B305,"!M127"))),"",INDIRECT(CONCATENATE($B305,"!M127"))) -> 69.61789905 | I305: =IF(ISERROR(INDIRECT(CONCATENATE($B305,"!N122"))),"",INDIRECT(CONCATENATE($B305,"!N122"))) -> 9.244542286 | J305: =IF(ISERROR(INDIRECT(CONCATENATE($B305,"!N129"))),"",INDIRECT(CONCATENATE($B305,"!N129"))) -> N/A | M305: =IF(ISERROR(INDIRECT(CONCATENATE($B305,"!N127"))),"",INDIRECT(CONCATENATE($B305,"!N127"))) -> 70.99682928 | N305: =IF(ISERROR(INDIRECT(CONCATENATE($B305,"!O122"))),"",INDIRECT(CONCATENATE($B305,"!O122"))) -> 11.94701128 | O305: =IF(ISERROR(INDIRECT(CONCATENATE($B305,"!O129"))),"",INDIRECT(CONCATENATE($B305,"!O129"))) -> N/A | R305: =IF(ISERROR(INDIRECT(CONCATENATE($B305,"!O127"))),"",INDIRECT(CONCATENATE($B305,"!O127"))) -> 63.05654561 | S305: =IF(ISERROR(INDIRECT(CONCATENATE($B305,"!P122"))),"",INDIRECT(CONCATENATE($B305,"!P122"))) -> 18.71574073 | T305: =IF(ISERROR(INDIRECT(CONCATENATE($B305,"!P129"))),"",INDIRECT(CONCATENATE($B305,"!P129"))) -> N/A | W305: =IF(ISERROR(INDIRECT(CONCATENATE($B305,"!P127"))),"",INDIRECT(CONCATENATE($B305,"!P127"))) -> 58.80797121 | X305: =IF(ISERROR(INDIRECT(CONCATENATE($B305,"!Q122"))),"",INDIRECT(CONCATENATE($B305,"!Q122"))) -> 23.95523757 | Y305: =IF(ISERROR(INDIRECT(CONCATENATE($B305,"!Q129"))),"",INDIRECT(CONCATENATE($B305,"!Q129"))) -> N/A | AB305: =IF(ISERROR(INDIRECT(CONCATENATE($B305,"!Q2127"))),"",INDIRECT(CONCATENATE($B305,"!Q127"))) -> 42.45787442
B306: MICS08 | C306: 2008 | D306: 7.21470119 | E306: 88.7105999 | H306: 50.23926661 | I306: 5.627501352 | J306: 81.32818225 | M306: 54.70899617 | N306: 4.328291562 | O306: 83.51874805 | R306: 57.16369937 | S306: 4.054651542 | T306: 80.50351005 | W306: 54.4499292 | X306: 7.813707742 | Y306: 69.59842935 | AB306: 53.26340558
B307: AIS09 | C307: 2009 | D307: 13.9718878 | E307: 85.67274109 | H307: 67.16138626 | I307: 12.52689747 | J307: 77.8416852 | M307: 68.17289437 | N307: 21.13223795 | O307: 78.68877567 | R307: 55.50578608 | S307: 29.34995546 | T307: 77.08395427 | W307: 44.94476495 | X307: 34.55236021 | Y307: 80.05556676 | AB307: 18.97815658
B308: DHS11 | C308: 2011 | D308: 8.413026964 | E308: 88.46365841 | H308: 65.38558381 | I308: 8.667109984 | J308: 93.78301219 | M308: 61.45659032 | N308: 9.579055073 | O308: 90.3418133 | R308: 59.22136568 | S308: 15.39418917 | T308: 90.1285814 | W308: 45.70269566 | X308: 30.17351283 | Y308: 86.52547185 | AB308: 23.18152525
B309: AIS15 | C309: 2015 | D309: 10.23260487 | E309: N/A | H309: 51.61333058 | I309: 12.55893243 | J309: N/A | M309: 45.81817193 | N309: 18.24549137 | O309: N/A | R309: 42.07689688 | S309: 21.53430081 | T309: N/A | W309: 31.47148336 | X309: 41.81204864 | Y309: N/A | AB309: 10.13314574
B310: MIS18 | C310: 2018 | D310: 14.73391265 | E310: 86.09219975 | H310: 52.44817104 | I310: 19.23408134 | J310: 85.79879039 | M310: 43.11978274 | N310: 19.34853355 | O310: 93.50266168 | R310: 46.80762837 | S310: 19.21135597 | T310: 96.87847894 | W310: 35.93677357 | X310: 43.07181302 | Y310: 96.60326369 | AB310: 10.64906757
B318: =CONCATENATE("Rural use of sanitation facilities, ",C299,"–",C300) -> Rural use of sanitation facilities, 2000–2020 | S318: Data points used for regression

Sheet Hygiene
B4: Access to hygiene facilities by wealth quintile (%)
B5: =IF(ISERROR(INDIRECT(CONCATENATE($E$32,"!A2"))),"",INDIRECT(CONCATENATE($E$32,"!A2"))) -> Mozambique
B7: =CONCATENATE("National ",IF(ISERROR(INDIRECT(CONCATENATE($E$32,"!A2"))),"",INDIRECT(CONCATENATE($E$32,"!A210")))) -> National Access to hygiene facilities | K7: =CONCATENATE("Urban ",IF(ISERROR(INDIRECT(CONCATENATE($E$32,"!A2"))),"",INDIRECT(CONCATENATE($E$32,"!A210")))) -> Urban Access to hygiene facilities | S7: =CONCATENATE("Rural ",IF(ISERROR(INDIRECT(CONCATENATE($E$32,"!A2"))),"",INDIRECT(CONCATENATE($E$32,"!A210")))) -> Rural Access to hygiene facilities
E32: =INDEX(B88:B100,A88) -> DHS11 | G32: =IF(ISERROR(INDIRECT(CONCATENATE($E$32,"!A2"))),"",INDIRECT(CONCATENATE($E$32,"!A2"))) -> Mozambique | K32: Poorest | N32: Poor | Q32: Middle | T32: Rich | W32: Richest
K33: Basic | L33: Limited | M33: No facility | N33: Basic | O33: Limited | P33: No facility | Q33: Basic | R33: Limited | S33: No facility | T33: Basic | U33: Limited | V33: No facility | W33: Basic | X33: Limited | Y33: No facility
B34: >>> Select Survey : | G34: NATIONAL | J34: =IF(ISERROR(INDIRECT(CONCATENATE(#REF!,"!A2"))),"",INDIRECT(CONCATENATE(#REF!,"!A210"))) ->  | K34: =IF(ISERROR(INDIRECT(CONCATENATE($E$32,"!C222"))),"",INDIRECT(CONCATENATE($E$32,"!C222"))) -> 3.335920359 | L34: =IF(ISERROR(INDIRECT(CONCATENATE($E$32,"!C223"))),"",INDIRECT(CONCATENATE($E$32,"!C223"))) -> 43.71560127 | M34: =IF(ISERROR(INDIRECT(CONCATENATE($E$32,"!C224"))),"",INDIRECT(CONCATENATE($E$32,"!C224"))) -> 52.94847837 | N34: =IF(ISERROR(INDIRECT(CONCATENATE($E$32,"!D222"))),"",INDIRECT(CONCATENATE($E$32,"!D222"))) -> 5.997549586 | O34: =IF(ISERROR(INDIRECT(CONCATENATE($E$32,"!D223"))),"",INDIRECT(CONCATENATE($E$32,"!D223"))) -> 42.33581041 | P34: =IF(ISERROR(INDIRECT(CONCATENATE($E$32,"!D224"))),"",INDIRECT(CONCATENATE($E$32,"!D224"))) -> 51.66664 | Q34: =IF(ISERROR(INDIRECT(CONCATENATE($E$32,"!E222"))),"",INDIRECT(CONCATENATE($E$32,"!E222"))) -> 9.721289816 | R34: =IF(ISERROR(INDIRECT(CONCATENATE($E$32,"!E223"))),"",INDIRECT(CONCATENATE($E$32,"!E223"))) -> 33.42078478 | S34: =IF(ISERROR(INDIRECT(CONCATENATE($E$32,"!E224"))),"",INDIRECT(CONCATENATE($E$32,"!E224"))) -> 56.8579254 | T34: =IF(ISERROR(INDIRECT(CONCATENATE($E$32,"!F222"))),"",INDIRECT(CONCATENATE($E$32,"!F222"))) -> 9.936027341 | U34: =IF(ISERROR(INDIRECT(CONCATENATE($E$32,"!F223"))),"",INDIRECT(CONCATENATE($E$32,"!F223"))) -> 23.48876795 | V34: =IF(ISERROR(INDIRECT(CONCATENATE($E$32,"!F224"))),"",INDIRECT(CONCATENATE($E$32,"!F224"))) -> 66.57520471 | W34: =IF(ISERROR(INDIRECT(CONCATENATE($E$32,"!G222"))),"",INDIRECT(CONCATENATE($E$32,"!G222"))) -> 30.15422344 | X34: =IF(ISERROR(INDIRECT(CONCATENATE($E$32,"!G223"))),"",INDIRECT(CONCATENATE($E$32,"!G223"))) -> 21.35746039 | Y34: =IF(ISERROR(INDIRECT(CONCATENATE($E$32,"!G224"))),"",INDIRECT(CONCATENATE($E$32,"!G224"))) -> 48.48831616
G37: URBAN | J37: =IF(ISERROR(INDIRECT(CONCATENATE(#REF!,"!A2"))),"",INDIRECT(CONCATENATE(#REF!,"!A210"))) ->  | K37: =IF(ISERROR(INDIRECT(CONCATENATE($E$32,"!H222"))),"",INDIRECT(CONCATENATE($E$32,"!H222"))) -> 5.842460434 | L37: =IF(ISERROR(INDIRECT(CONCATENATE($E$32,"!H223"))),"",INDIRECT(CONCATENATE($E$32,"!H223"))) -> 29.69499229 | M37: =IF(ISERROR(INDIRECT(CONCATENATE($E$32,"!H224"))),"",INDIRECT(CONCATENATE($E$32,"!H224"))) -> 64.46254727 | N37: =IF(ISERROR(INDIRECT(CONCATENATE($E$32,"!I222"))),"",INDIRECT(CONCATENATE($E$32,"!I222"))) -> 9.815436379 | O37: =IF(ISERROR(INDIRECT(CONCATENATE($E$32,"!I223"))),"",INDIRECT(CONCATENATE($E$32,"!I223"))) -> 23.96187551 | P37: =IF(ISERROR(INDIRECT(CONCATENATE($E$32,"!I224"))),"",INDIRECT(CONCATENATE($E$32,"!I224"))) -> 66.22268811 | Q37: =IF(ISERROR(INDIRECT(CONCATENATE($E$32,"!J222"))),"",INDIRECT(CONCATENATE($E$32,"!J222"))) -> 13.9890934 | R37: =IF(ISERROR(INDIRECT(CONCATENATE($E$32,"!J223"))),"",INDIRECT(CONCATENATE($E$32,"!J223"))) -> 24.25125263 | S37: =IF(ISERROR(INDIRECT(CONCATENATE($E$32,"!J224"))),"",INDIRECT(CONCATENATE($E$32,"!J224"))) -> 61.75965397 | T37: =IF(ISERROR(INDIRECT(CONCATENATE($E$32,"!K222"))),"",INDIRECT(CONCATENATE($E$32,"!K222"))) -> 24.41326851 | U37: =IF(ISERROR(INDIRECT(CONCATENATE($E$32,"!K223"))),"",INDIRECT(CONCATENATE($E$32,"!K223"))) -> 25.04212277 | V37: =IF(ISERROR(INDIRECT(CONCATENATE($E$32,"!K224"))),"",INDIRECT(CONCATENATE($E$32,"!K224"))) -> 50.54460872 | W37: =IF(ISERROR(INDIRECT(CONCATENATE($E$32,"!L222"))),"",INDIRECT(CONCATENATE($E$32,"!L222"))) -> 51.56372443 | X37: =IF(ISERROR(INDIRECT(CONCATENATE($E$32,"!L223"))),"",INDIRECT(CONCATENATE($E$32,"!L223"))) -> 16.47003035 | Y37: =IF(ISERROR(INDIRECT(CONCATENATE($E$32,"!L224"))),"",INDIRECT(CONCATENATE($E$32,"!L224"))) -> 31.96624522
G40: RURAL | J40: =IF(ISERROR(INDIRECT(CONCATENATE(#REF!,"!A2"))),"",INDIRECT(CONCATENATE(#REF!,"!A210"))) ->  | K40: =IF(ISERROR(INDIRECT(CONCATENATE($E$32,"!M222"))),"",INDIRECT(CONCATENATE($E$32,"!M222"))) -> 3.21409159 | L40: =IF(ISERROR(INDIRECT(CONCATENATE($E$32,"!M223"))),"",INDIRECT(CONCATENATE($E$32,"!M223"))) -> 46.42078854 | M40: =IF(ISERROR(INDIRECT(CONCATENATE($E$32,"!M224"))),"",INDIRECT(CONCATENATE($E$32,"!M224"))) -> 50.36511987 | N40: =IF(ISERROR(INDIRECT(CONCATENATE($E$32,"!N222"))),"",INDIRECT(CONCATENATE($E$32,"!N222"))) -> 4.751101012 | O40: =IF(ISERROR(INDIRECT(CONCATENATE($E$32,"!N223"))),"",INDIRECT(CONCATENATE($E$32,"!N223"))) -> 43.32524812 | P40: =IF(ISERROR(INDIRECT(CONCATENATE($E$32,"!N224"))),"",INDIRECT(CONCATENATE($E$32,"!N224"))) -> 51.92365087 | Q40: =IF(ISERROR(INDIRECT(CONCATENATE($E$32,"!O222"))),"",INDIRECT(CONCATENATE($E$32,"!O222"))) -> 7.567013274 | R40: =IF(ISERROR(INDIRECT(CONCATENATE($E$32,"!O223"))),"",INDIRECT(CONCATENATE($E$32,"!O223"))) -> 40.8921518 | S40: =IF(ISERROR(INDIRECT(CONCATENATE($E$32,"!O224"))),"",INDIRECT(CONCATENATE($E$32,"!O224"))) -> 51.54083493 | T40: =IF(ISERROR(INDIRECT(CONCATENATE($E$32,"!P222"))),"",INDIRECT(CONCATENATE($E$32,"!P222"))) -> 9.885002638 | U40: =IF(ISERROR(INDIRECT(CONCATENATE($E$32,"!P223"))),"",INDIRECT(CONCATENATE($E$32,"!P223"))) -> 31.94582023 | V40: =IF(ISERROR(INDIRECT(CONCATENATE($E$32,"!P224"))),"",INDIRECT(CONCATENATE($E$32,"!P224"))) -> 58.16917713 | W40: =IF(ISERROR(INDIRECT(CONCATENATE($E$32,"!Q222"))),"",INDIRECT(CONCATENATE($E$32,"!Q222"))) -> 12.39297411 | X40: =IF(ISERROR(INDIRECT(CONCATENATE($E$32,"!Q223"))),"",INDIRECT(CONCATENATE($E$32,"!Q223"))) -> 22.41776497 | Y40: =IF(ISERROR(INDIRECT(CONCATENATE($E$32,"!Q224"))),"",INDIRECT(CONCATENATE($E$32,"!Q224"))) -> 65.18926092
A88: 4 | B88: DHS03
B89: MICS08
B90: AIS09
B91: DHS11
B92: AIS15
B93: MIS18
B94: Input
B95: Template

Sheet DHS03
A2: =A1026 -> Mozambique
A3: =A1034 -> 2003
A4: Use of drinking water sources
A5: by wealth quintile and sub-national region
A6: Notes:
A7: WHO/UNICEF JMP customised wealth index excludes water,
A8: sanitation and hygiene assets.
A9: Survey used for analysis: | B9: =A1025 -> DHS03
A10: =B1028 -> 
A11: =B1027 -> 
A14: Use of drinking water sources | C14: NATIONAL wealth index quintile | H14: URBAN wealth index quintile | M14: RURAL wealth index quintile | R14: SUB-REGIONS: | BA14: Raw numbers of respondents: | BB14: Use of drinking water sources | BC14: NATIONAL wealth index quintile | BH14: URBAN wealth index quintile | BM14: RURAL wealth index quintile | BR14: SUB-REGIONS:
A15: Weighted percentage (used in graphs) | C15: Poorest | D15: Poor | E15: Middle | F15: Rich | G15: Richest | H15: Poorest | I15: Poor | J15: Middle | K15: Rich | L15: Richest | M15: Poorest | N15: Poor | O15: Middle | P15: Rich | Q15: Richest | R15: Cabo delgado | S15: Gaza | T15: Inhambane | U15: Manica | V15: Maputo Cidade | W15: Maputo Provincia | X15: Nampula | Y15: Niassa | Z15: Sofala | AA15: Tete | AB15: Zambezia | BA15: Water data, raw numbers (weighted) | BC15: Poorest | BD15: Poor | BE15: Middle | BF15: Rich | BG15: Richest | BH15: Poorest | BI15: Poor | BJ15: Middle | BK15: Rich | BL15: Richest | BM15: Poorest | BN15: Poor | BO15: Middle | BP15: Rich | BQ15: Richest | BR15: Cabo delgado | BS15: Gaza | BT15: Inhambane | BU15: Manica | BV15: Maputo Cidade | BW15: Maputo Provincia | BX15: Nampula | BY15: Niassa | BZ15: Sofala | CA15: Tete | CB15: Zambezia
A16: Water | B16: Improved | C16: 24.94257639 | D16: 22.7846897 | E16: 22.61569098 | F16: 45.68481697 | G16: 85.50469535 | H16: 41.74017493 | I16: 57.95369182 | J16: 77.94316064 | K16: 86.01608033 | L16: 94.58482046 | M16: 19.66708887 | N16: 22.4158408 | O16: 24.34030542 | P16: 22.25921068 | Q16: 30.65665842 | R16: 39.71208259 | S16: 47.12255003 | T16: 37.70301384 | U16: 43.00328311 | V16: 96.92232359 | W16: 69.42996049 | X16: 26.48547745 | Y16: 25.6868773 | Z16: 48.67899601 | AA16: 39.61154141 | AB16: 17.6074949 | BA16: Water | BB16: Improved | BC16: N/A | BD16: N/A | BE16: N/A | BF16: N/A | BG16: N/A | BH16: N/A | BI16: N/A | BJ16: N/A | BK16: N/A | BL16: N/A | BM16: N/A | BN16: N/A | BO16: N/A | BP16: N/A | BQ16: N/A | BR16: N/A | BS16: N/A | BT16: N/A | BU16: N/A | BV16: N/A | BW16: N/A | BX16: N/A | BY16: N/A | BZ16: N/A | CA16: N/A | CB16: N/A
B17: Not Improved | C17: 75.05742361 | D17: 77.2153103 | E17: 77.38430902 | F17: 54.31518303 | G17: 14.49530465 | H17: 58.25982507 | I17: 42.04630818 | J17: 22.05683936 | K17: 13.98391967 | L17: 5.415179538 | M17: 80.33291113 | N17: 77.5841592 | O17: 75.65969458 | P17: 77.74078932 | Q17: 69.34334158 | R17: 60.28791741 | S17: 52.87744997 | T17: 62.29698616 | U17: 56.99671689 | V17: 3.077676407 | W17: 30.57003951 | X17: 73.51452255 | Y17: 74.3131227 | Z17: 51.32100399 | AA17: 60.38845859 | AB17: 82.3925051 | BB17: Not Improved | BC17: N/A | BD17: N/A | BE17: N/A | BF17: N/A | BG17: N/A | BH17: N/A | BI17: N/A | BJ17: N/A | BK17: N/A | BL17: N/A | BM17: N/A | BN17: N/A | BO17: N/A | BP17: N/A | BQ17: N/A | BR17: N/A | BS17: N/A | BT17: N/A | BU17: N/A | BV17: N/A | BW17: N/A | BX17: N/A | BY17: N/A | BZ17: N/A | CA17: N/A | CB17: N/A
A18: Water ladder | B18: Basic | C18: =C16*C23/100 -> 18.51007345 | D18: =D16*D23/100 -> 15.4444125 | E18: =E16*E23/100 -> 17.14354008 | F18: 37.72241643 | G18: 81.61043516 | H18: 32.75276125 | I18: 48.37775369 | J18: 72.30472253 | K18: 82.71704065 | L18: 92.52608128 | M18: 14.31305486 | N18: 14.65696446 | O18: 17.4292219 | P18: 16.46858673 | Q18: 24.55525965 | R18: 31.68616496 | S18: 34.02663353 | T18: 25.33513652 | U18: 29.14556667 | V18: 95.70284018 | W18: 63.76492483 | X18: 23.78862119 | Y18: 23.03207074 | Z18: 42.13530081 | AA18: 32.46170921 | AB18: 13.4443655 | BA18: Water ladder | BB18: Basic | BC18: N/A | BD18: N/A | BE18: N/A | BF18: N/A | BG18: N/A | BH18: N/A | BI18: N/A | BJ18: N/A | BK18: N/A | BL18: N/A | BM18: N/A | BN18: N/A | BO18: N/A | BP18: N/A | BQ18: N/A | BR18: N/A | BS18: N/A | BT18: N/A | BU18: N/A | BV18: N/A | BW18: N/A | BX18: N/A | BY18: N/A | BZ18: N/A | CA18: N/A | CB18: N/A
B19: Limited | C19: =C16*C22/100 -> 6.432502942 | D19: =D16*D22/100 -> 7.340277205 | E19: =E16*E22/100 -> 5.472150899 | F19: 7.962400541 | G19: 3.894260188 | H19: 8.987413671 | I19: 9.575938123 | J19: 5.638438109 | K19: 3.299039681 | L19: 2.058739187 | M19: 5.354034006 | N19: 7.758876334 | O19: 6.911083515 | P19: 5.790623947 | Q19: 6.101398771 | R19: 8.025917622 | S19: 13.0959165 | T19: 12.36787733 | U19: 13.85771644 | V19: 1.219483412 | W19: 5.665035659 | X19: 2.696856259 | Y19: 2.654806563 | Z19: 6.543695192 | AA19: 7.149832201 | AB19: 4.163129407 | BB19: Limited | BC19: N/A | BD19: N/A | BE19: N/A | BF19: N/A | BG19: N/A | BH19: N/A | BI19: N/A | BJ19: N/A | BK19: N/A | BL19: N/A | BM19: N/A | BN19: N/A | BO19: N/A | BP19: N/A | BQ19: N/A | BR19: N/A | BS19: N/A | BT19: N/A | BU19: N/A | BV19: N/A | BW19: N/A | BX19: N/A | BY19: N/A | BZ19: N/A | CA19: N/A | CB19: N/A
B20: Unimproved | C20: =100-C18-C19-C21 -> 54.81779463 | D20: =100-D18-D19-D21 -> 55.79404288 | E20: =100-E18-E19-E21 -> 54.87310365 | F20: 46.5662661 | G20: 13.11173977 | H20: 47.95626617 | I20: 37.65227295 | J20: 21.18163046 | K20: 13.51808338 | L20: 5.415179538 | M20: 56.58090566 | N20: 59.77821754 | O20: 50.99307092 | P20: 54.5610773 | Q20: 54.43997446 | R20: 53.21768369 | S20: 37.98694318 | T20: 54.76873832 | U20: 36.5393783 | V20: 3.077676407 | W20: 24.28764191 | X20: 59.93378871 | Y20: 49.7127362 | Z20: 33.24336357 | AA20: 31.68683559 | AB20: 61.53967166 | BB20: Unimproved | BC20: N/A | BD20: N/A | BE20: N/A | BF20: N/A | BG20: N/A | BH20: N/A | BI20: N/A | BJ20: N/A | BK20: N/A | BL20: N/A | BM20: N/A | BN20: N/A | BO20: N/A | BP20: N/A | BQ20: N/A | BR20: N/A | BS20: N/A | BT20: N/A | BU20: N/A | BV20: N/A | BW20: N/A | BX20: N/A | BY20: N/A | BZ20: N/A | CA20: N/A | CB20: N/A
B21: Surface water | C21: 20.23962898 | D21: 21.42126742 | E21: 22.51120537 | F21: 7.748916929 | G21: 1.383564883 | H21: 10.30355891 | I21: 4.394035234 | J21: 0.8752089024 | K21: 0.4658362868 | L21: 0 | M21: 23.75200547 | N21: 17.80594167 | O21: 24.66662366 | P21: 23.17971202 | Q21: 14.90336711 | R21: 7.07023372 | S21: 14.89050679 | T21: 7.528247839 | U21: 20.45733859 | V21: 0 | W21: 6.282397601 | X21: 13.58073383 | Y21: 24.6003865 | Z21: 18.07764042 | AA21: 28.701623 | AB21: 20.85283343 | BB21: Surface water | BC21: N/A | BD21: N/A | BE21: N/A | BF21: N/A | BG21: N/A | BH21: N/A | BI21: N/A | BJ21: N/A | BK21: N/A | BL21: N/A | BM21: N/A | BN21: N/A | BO21: N/A | BP21: N/A | BQ21: N/A | BR21: N/A | BS21: N/A | BT21: N/A | BU21: N/A | BV21: N/A | BW21: N/A | BX21: N/A | BY21: N/A | BZ21: N/A | CA21: N/A | CB21: N/A
A22: Improved water point at more than 30 minutes | B22: Yes | C22: 25.78924823 | D22: 32.21583133 | E22: 24.19625783 | F22: 17.42898641 | G22: 4.554440165 | H22: 21.53180644 | I22: 16.52343073 | J22: 7.234038321 | K22: 3.835375511 | L22: 2.176606328 | M22: 27.2233173 | N22: 34.61336295 | O22: 28.39357763 | P22: 26.01450712 | Q22: 19.90236081 | R22: 20.21026624 | S22: 27.79118807 | T22: 32.80341825 | U22: 32.22478713 | V22: 1.258206951 | W22: 8.159353136 | X22: 10.18239623 | Y22: 10.33526392 | Z22: 13.44254346 | AA22: 18.04987119 | AB22: 23.64407561 | BA22: Improved water point at more than 30 minutes | BB22: Yes | BC22: N/A | BD22: N/A | BE22: N/A | BF22: N/A | BG22: N/A | BH22: N/A | BI22: N/A | BJ22: N/A | BK22: N/A | BL22: N/A | BM22: N/A | BN22: N/A | BO22: N/A | BP22: N/A | BQ22: N/A | BR22: N/A | BS22: N/A | BT22: N/A | BU22: N/A | BV22: N/A | BW22: N/A | BX22: N/A | BY22: N/A | BZ22: N/A | CA22: N/A | CB22: N/A
B23: No | C23: 74.21075177 | D23: 67.78416867 | E23: 75.80374217 | F23: 82.57101359 | G23: 95.44555984 | H23: 78.46819356 | I23: 83.47656927 | J23: 92.76596168 | K23: 96.16462449 | L23: 97.82339367 | M23: 72.7766827 | N23: 65.38663705 | O23: 71.60642237 | P23: 73.98549288 | Q23: 80.09763919 | R23: 79.78973376 | S23: 72.20881193 | T23: 67.19658175 | U23: 67.77521287 | V23: 98.74179305 | W23: 91.84064686 | X23: 89.81760377 | Y23: 89.66473608 | Z23: 86.55745654 | AA23: 81.95012881 | AB23: 76.35592439 | BB23: No | BC23: N/A | BD23: N/A | BE23: N/A | BF23: N/A | BG23: N/A | BH23: N/A | BI23: N/A | BJ23: N/A | BK23: N/A | BL23: N/A | BM23: N/A | BN23: N/A | BO23: N/A | BP23: N/A | BQ23: N/A | BR23: N/A | BS23: N/A | BT23: N/A | BU23: N/A | BV23: N/A | BW23: N/A | BX23: N/A | BY23: N/A | BZ23: N/A | CA23: N/A | CB23: N/A
A24: Manually calculated ratios | B24: Improved wells
B25: Improved springs
B26: Other
C27: NATIONAL wealth index quintile | H27: URBAN wealth index quintile | M27: RURAL wealth index quintile | R27: SUB-REGIONS: | BA27: Raw numbers of respondents: | BB27: Use of drinking water sources | BC27: NATIONAL wealth index quintile | BH27: URBAN wealth index quintile | BM27: RURAL wealth index quintile | BR27: SUB-REGIONS:
A28: Percentage based on weighted population | C28: Poorest | D28: Poor | E28: Middle | F28: Rich | G28: Richest | H28: Poorest | I28: Poor | J28: Middle | K28: Rich | L28: Richest | M28: Poorest | N28: Poor | O28: Middle | P28: Rich | Q28: Richest | R28: Cabo delgado | S28: Gaza | T28: Inhambane | U28: Manica | V28: Maputo Cidade | W28: Maputo Provincia | X28: Nampula | Y28: Niassa | Z28: Sofala | AA28: Tete | AB28: Zambezia | BA28: Water data, raw numbers (weighted) | BC28: Poorest | BD28: Poor | BE28: Middle | BF28: Rich | BG28: Richest | BH28: Poorest | BI28: Poor | BJ28: Middle | BK28: Rich | BL28: Richest | BM28: Poorest | BN28: Poor | BO28: Middle | BP28: Rich | BQ28: Richest | BR28: Cabo delgado | BS28: Gaza | BT28: Inhambane | BU28: Manica | BV28: Maputo Cidade | BW28: Maputo Provincia | BX28: Nampula | BY28: Niassa | BZ28: Sofala | CA28: Tete | CB28: Zambezia
A29: Piped water | B29: Yes | C29: 8.767294171 | D29: 4.613742906 | E29: 5.169494984 | F29: 27.05188996 | G29: 78.83926017 | H29: 27.04330859 | I29: 42.94516284 | J29: 68.80160654 | K29: 81.35192417 | L29: 92.16778252 | M29: 3.57550888 | N29: 3.911249241 | O29: 5.646436664 | P29: 4.700390801 | Q29: 8.094626452 | R29: 16.19564433 | S29: 12.80169828 | T29: 12.68513578 | U29: 17.53865244 | V29: 96.33349197 | W29: 56.99072136 | X29: 21.2593131 | Y29: 8.562349475 | Z29: 29.42696014 | AA29: 11.57054442 | AB29: 10.42608052 | BA29: Piped water | BB29: Yes | BC29: N/A | BD29: N/A | BE29: N/A | BF29: N/A | BG29: N/A | BH29: N/A | BI29: N/A | BJ29: N/A | BK29: N/A | BL29: N/A | BM29: N/A | BN29: N/A | BO29: N/A | BP29: N/A | BQ29: N/A | BR29: N/A | BS29: N/A | BT29: N/A | BU29: N/A | BV29: N/A | BW29: N/A | BX29: N/A | BY29: N/A | BZ29: N/A | CA29: N/A | CB29: N/A
B30: No | C30: 91.23270583 | D30: 95.38625709 | E30: 94.83050502 | F30: 72.94811004 | G30: 21.16073983 | H30: 72.95669141 | I30: 57.05483716 | J30: 31.19839346 | K30: 18.64807583 | L30: 7.832217484 | M30: 96.42449112 | N30: 96.08875076 | O30: 94.35356334 | P30: 95.2996092 | Q30: 91.90537355 | R30: 83.80435567 | S30: 87.19830172 | T30: 87.31486422 | U30: 82.46134756 | V30: 3.66650803 | W30: 43.00927864 | X30: 78.7406869 | Y30: 91.43765053 | Z30: 70.57303986 | AA30: 88.42945558 | AB30: 89.57391948 | BB30: No | BC30: N/A | BD30: N/A | BE30: N/A | BF30: N/A | BG30: N/A | BH30: N/A | BI30: N/A | BJ30: N/A | BK30: N/A | BL30: N/A | BM30: N/A | BN30: N/A | BO30: N/A | BP30: N/A | BQ30: N/A | BR30: N/A | BS30: N/A | BT30: N/A | BU30: N/A | BV30: N/A | BW30: N/A | BX30: N/A | BY30: N/A | BZ30: N/A | CA30: N/A | CB30: N/A
A31: Piped water on premises | B31: Yes | C31: 0.06030861555 | D31: 0.09271716428 | E31: 0.02340761779 | F31: 2.007617046 | G31: 32.39744059 | H31: 0.583899305 | I31: 3.455400117 | J31: 10.60350112 | K31: 22.06494725 | L31: 62.41741874 | M31: 0 | N31: 0 | O31: 0 | P31: 0.03623492805 | Q31: 1.864589718 | R31: 2.130575842 | S31: 2.732585017 | T31: 4.277275043 | U31: 2.114974153 | V31: 41.26235371 | W31: 26.88320412 | X31: 0.6204941389 | Y31: 1.322933698 | Z31: 7.217519952 | AA31: 4.871972249 | AB31: 1.263890437 | BA31: Piped water on premises | BB31: Yes | BC31: N/A | BD31: N/A | BE31: N/A | BF31: N/A | BG31: N/A | BH31: N/A | BI31: N/A | BJ31: N/A | BK31: N/A | BL31: N/A | BM31: N/A | BN31: N/A | BO31: N/A | BP31: N/A | BQ31: N/A | BR31: N/A | BS31: N/A | BT31: N/A | BU31: N/A | BV31: N/A | BW31: N/A | BX31: N/A | BY31: N/A | BZ31: N/A | CA31: N/A | CB31: N/A
B32: No | C32: 99.93969138 | D32: 99.90728284 | E32: 99.97659238 | F32: 97.99238295 | G32: 67.60255941 | H32: 99.4161007 | I32: 96.54459988 | J32: 89.39649888 | K32: 77.93505275 | L32: 37.58258126 | M32: 100 | N32: 100 | O32: 100 | P32: 99.96376507 | Q32: 98.13541028 | R32: 97.86942416 | S32: 97.26741498 | T32: 95.72272496 | U32: 97.88502585 | V32: 58.73764629 | W32: 73.11679588 | X32: 99.37950586 | Y32: 98.6770663 | Z32: 92.78248005 | AA32: 95.12802775 | AB32: 98.73610956 | BB32: No | BC32: N/A | BD32: N/A | BE32: N/A | BF32: N/A | BG32: N/A | BH32: N/A | BI32: N/A | BJ32: N/A | BK32: N/A | BL32: N/A | BM32: N/A | BN32: N/A | BO32: N/A | BP32: N/A | BQ32: N/A | BR32: N/A | BS32: N/A | BT32: N/A | BU32: N/A | BV32: N/A | BW32: N/A | BX32: N/A | BY32: N/A | BZ32: N/A | CA32: N/A | CB32: N/A
A33: Piped water into dwelling | B33: Yes | C33: N/A | D33: N/A | E33: N/A | F33: N/A | G33: N/A | H33: N/A | I33: N/A | J33: N/A | K33: N/A | L33: N/A | M33: N/A | N33: N/A | O33: N/A | P33: N/A | Q33: N/A | R33: N/A | S33: N/A | T33: N/A | U33: N/A | V33: N/A | W33: N/A | X33: N/A | Y33: N/A | Z33: N/A | AA33: N/A | AB33: N/A | BA33: Piped water into dwelling | BB33: Yes | BC33: N/A | BD33: N/A | BE33: N/A | BF33: N/A | BG33: N/A | BH33: N/A | BI33: N/A | BJ33: N/A | BK33: N/A | BL33: N/A | BM33: N/A | BN33: N/A | BO33: N/A | BP33: N/A | BQ33: N/A | BR33: N/A | BS33: N/A | BT33: N/A | BU33: N/A | BV33: N/A | BW33: N/A | BX33: N/A | BY33: N/A | BZ33: N/A | CA33: N/A | CB33: N/A
B34: No | C34: N/A | D34: N/A | E34: N/A | F34: N/A | G34: N/A | H34: N/A | I34: N/A | J34: N/A | K34: N/A | L34: N/A | M34: N/A | N34: N/A | O34: N/A | P34: N/A | Q34: N/A | R34: N/A | S34: N/A | T34: N/A | U34: N/A | V34: N/A | W34: N/A | X34: N/A | Y34: N/A | Z34: N/A | AA34: N/A | AB34: N/A | BB34: No | BC34: N/A | BD34: N/A | BE34: N/A | BF34: N/A | BG34: N/A | BH34: N/A | BI34: N/A | BJ34: N/A | BK34: N/A | BL34: N/A | BM34: N/A | BN34: N/A | BO34: N/A | BP34: N/A | BQ34: N/A | BR34: N/A | BS34: N/A | BT34: N/A | BU34: N/A | BV34: N/A | BW34: N/A | BX34: N/A | BY34: N/A | BZ34: N/A | CA34: N/A | CB34: N/A
A35: Water source on premises | B35: Yes | C35: 0.3121760977 | D35: 0.4114384485 | E35: 0.3916516938 | F35: 2.475773364 | G35: 32.55359336 | H35: 1.003727226 | I35: 4.147748919 | J35: 10.82610849 | K35: 22.11218485 | L35: 62.48375093 | M35: 0.1716731502 | N35: 0.2526644577 | O35: 0.6059469481 | P35: 0.1541402625 | Q35: 2.348095151 | R35: 2.370376047 | S35: 2.732585017 | T35: 4.482340748 | U35: 4.762335472 | V35: 41.26235371 | W35: 26.88320412 | X35: 0.6684135538 | Y35: 2.235970423 | Z35: 7.224409366 | AA35: 5.130110797 | AB35: 1.350383037 | BA35: Water source on premises | BB35: Yes | BC35: N/A | BD35: N/A | BE35: N/A | BF35: N/A | BG35: N/A | BH35: N/A | BI35: N/A | BJ35: N/A | BK35: N/A | BL35: N/A | BM35: N/A | BN35: N/A | BO35: N/A | BP35: N/A | BQ35: N/A | BR35: N/A | BS35: N/A | BT35: N/A | BU35: N/A | BV35: N/A | BW35: N/A | BX35: N/A | BY35: N/A | BZ35: N/A | CA35: N/A | CB35: N/A
B36: No | C36: 99.6878239 | D36: 99.58856155 | E36: 99.60834831 | F36: 97.52422664 | G36: 67.44640664 | H36: 98.99627277 | I36: 95.85225108 | J36: 89.17389151 | K36: 77.88781515 | L36: 37.51624907 | M36: 99.82832685 | N36: 99.74733554 | O36: 99.39405305 | P36: 99.84585974 | Q36: 97.65190485 | R36: 97.62962395 | S36: 97.26741498 | T36: 95.51765925 | U36: 95.23766453 | V36: 58.73764629 | W36: 73.11679588 | X36: 99.33158645 | Y36: 97.76402958 | Z36: 92.77559063 | AA36: 94.8698892 | AB36: 98.64961696 | BB36: No | BC36: N/A | BD36: N/A | BE36: N/A | BF36: N/A | BG36: N/A | BH36: N/A | BI36: N/A | BJ36: N/A | BK36: N/A | BL36: N/A | BM36: N/A | BN36: N/A | BO36: N/A | BP36: N/A | BQ36: N/A | BR36: N/A | BS36: N/A | BT36: N/A | BU36: N/A | BV36: N/A | BW36: N/A | BX36: N/A | BY36: N/A | BZ36: N/A | CA36: N/A | CB36: N/A
A37: Improved Water source on premises | B37: Yes | C37: 0.1342546844 | D37: 0.2034547847 | E37: 0.1098669418 | F37: 2.154460486 | G37: 32.51123914 | H37: 0.8173316363 | I37: 3.819627453 | J37: 10.72232091 | K37: 22.06494725 | L37: 62.48375093 | M37: 0 | N37: 0.1079543507 | O37: 0.1993710907 | P37: 0.03623492805 | Q37: 1.962287886 | R37: 2.298767419 | S37: 2.732585017 | T37: 4.277275043 | U37: 3.309001407 | V37: 41.26235371 | W37: 26.88320412 | X37: 0.6204941389 | Y37: 1.458746822 | Z37: 7.217519952 | AA37: 4.871972249 | AB37: 1.276184853 | BA37: Improved water source on premises | BB37: Yes | BC37: N/A | BD37: N/A | BE37: N/A | BF37: N/A | BG37: N/A | BH37: N/A | BI37: N/A | BJ37: N/A | BK37: N/A | BL37: N/A | BM37: N/A | BN37: N/A | BO37: N/A | BP37: N/A | BQ37: N/A | BR37: N/A | BS37: N/A | BT37: N/A | BU37: N/A | BV37: N/A | BW37: N/A | BX37: N/A | BY37: N/A | BZ37: N/A | CA37: N/A | CB37: N/A
B38: No | C38: 99.86574532 | D38: 99.79654522 | E38: 99.89013306 | F38: 97.84553951 | G38: 67.48876086 | H38: 99.18266836 | I38: 96.18037255 | J38: 89.27767909 | K38: 77.93505275 | L38: 37.51624907 | M38: 100 | N38: 99.89204565 | O38: 99.80062891 | P38: 99.96376507 | Q38: 98.03771211 | R38: 97.70123258 | S38: 97.26741498 | T38: 95.72272496 | U38: 96.69099859 | V38: 58.73764629 | W38: 73.11679588 | X38: 99.37950586 | Y38: 98.54125318 | Z38: 92.78248005 | AA38: 95.12802775 | AB38: 98.72381515 | BB38: No | BC38: N/A | BD38: N/A | BE38: N/A | BF38: N/A | BG38: N/A | BH38: N/A | BI38: N/A | BJ38: N/A | BK38: N/A | BL38: N/A | BM38: N/A | BN38: N/A | BO38: N/A | BP38: N/A | BQ38: N/A | BR38: N/A | BS38: N/A | BT38: N/A | BU38: N/A | BV38: N/A | BW38: N/A | BX38: N/A | BY38: N/A | BZ38: N/A | CA38: N/A | CB38: N/A
A39: Piped water on premises available when needed | B39: Yes | C39: N/A | D39: N/A | E39: N/A | F39: N/A | G39: N/A | H39: N/A | I39: N/A | J39: N/A | K39: N/A | L39: N/A | M39: N/A | N39: N/A | O39: N/A | P39: N/A | Q39: N/A | R39: N/A | S39: N/A | T39: N/A | U39: N/A | V39: N/A | W39: N/A | X39: N/A | Y39: N/A | Z39: N/A | AA39: N/A | AB39: N/A | BA39: Piped water on premises available when needed | BB39: Yes | BC39: N/A | BD39: N/A | BE39: N/A | BF39: N/A | BG39: N/A | BH39: N/A | BI39: N/A | BJ39: N/A | BK39: N/A | BL39: N/A | BM39: N/A | BN39: N/A | BO39: N/A | BP39: N/A | BQ39: N/A | BR39: N/A | BS39: N/A | BT39: N/A | BU39: N/A | BV39: N/A | BW39: N/A | BX39: N/A | BY39: N/A | BZ39: N/A | CA39: N/A | CB39: N/A
B40: No | C40: N/A | D40: N/A | E40: N/A | F40: N/A | G40: N/A | H40: N/A | I40: N/A | J40: N/A | K40: N/A | L40: N/A | M40: N/A | N40: N/A | O40: N/A | P40: N/A | Q40: N/A | R40: N/A | S40: N/A | T40: N/A | U40: N/A | V40: N/A | W40: N/A | X40: N/A | Y40: N/A | Z40: N/A | AA40: N/A | AB40: N/A | BB40: No | BC40: N/A | BD40: N/A | BE40: N/A | BF40: N/A | BG40: N/A | BH40: N/A | BI40: N/A | BJ40: N/A | BK40: N/A | BL40: N/A | BM40: N/A | BN40: N/A | BO40: N/A | BP40: N/A | BQ40: N/A | BR40: N/A | BS40: N/A | BT40: N/A | BU40: N/A | BV40: N/A | BW40: N/A | BX40: N/A | BY40: N/A | BZ40: N/A | CA40: N/A | CB40: N/A
A41: Water point at more than 30 minutes | B41: Yes | C41: 31.54604316 | D41: 34.70411327 | E41: 32.71110615 | F41: 25.95761239 | G41: 6.529562995 | H41: 27.02975504 | I41: 23.70471626 | J41: 10.23971685 | K41: 4.453074827 | L41: 2.538348089 | M41: 32.72126547 | N41: 36.19974437 | O41: 32.90442284 | P41: 33.8537554 | Q41: 29.36363711 | R41: 37.49403357 | S41: 39.03765599 | T41: 36.04197311 | U41: 28.91902871 | V41: 1.392280255 | W41: 15.30982792 | X41: 26.54564304 | Y41: 18.6045815 | Z41: 21.72179709 | AA41: 22.50337983 | AB41: 33.59851594 | BA41: Water point at more than 30 minutes | BB41: Yes | BC41: N/A | BD41: N/A | BE41: N/A | BF41: N/A | BG41: N/A | BH41: N/A | BI41: N/A | BJ41: N/A | BK41: N/A | BL41: N/A | BM41: N/A | BN41: N/A | BO41: N/A | BP41: N/A | BQ41: N/A | BR41: N/A | BS41: N/A | BT41: N/A | BU41: N/A | BV41: N/A | BW41: N/A | BX41: N/A | BY41: N/A | BZ41: N/A | CA41: N/A | CB41: N/A
B42: No | C42: 68.45395684 | D42: 65.29588673 | E42: 67.28889385 | F42: 74.04238761 | G42: 93.470437 | H42: 72.97024496 | I42: 76.29528374 | J42: 89.76028315 | K42: 95.54692517 | L42: 97.46165191 | M42: 67.27873453 | N42: 63.80025563 | O42: 67.09557716 | P42: 66.1462446 | Q42: 70.63636289 | R42: 62.50596643 | S42: 60.96234401 | T42: 63.95802689 | U42: 71.08097129 | V42: 98.60771975 | W42: 84.69017208 | X42: 73.45435696 | Y42: 81.3954185 | Z42: 78.27820291 | AA42: 77.49662017 | AB42: 66.40148406 | BB42: No | BC42: N/A | BD42: N/A | BE42: N/A | BF42: N/A | BG42: N/A | BH42: N/A | BI42: N/A | BJ42: N/A | BK42: N/A | BL42: N/A | BM42: N/A | BN42: N/A | BO42: N/A | BP42: N/A | BQ42: N/A | BR42: N/A | BS42: N/A | BT42: N/A | BU42: N/A | BV42: N/A | BW42: N/A | BX42: N/A | BY42: N/A | BZ42: N/A | CA42: N/A | CB42: N/A
A43: Water source available when needed | B43: Yes | C43: N/A | D43: N/A | E43: N/A | F43: N/A | G43: N/A | H43: N/A | I43: N/A | J43: N/A | K43: N/A | L43: N/A | M43: N/A | N43: N/A | O43: N/A | P43: N/A | Q43: N/A | R43: N/A | S43: N/A | T43: N/A | U43: N/A | V43: N/A | W43: N/A | X43: N/A | Y43: N/A | Z43: N/A | AA43: N/A | AB43: N/A | BA43: Water source available when needed | BB43: Yes | BC43: N/A | BD43: N/A | BE43: N/A | BF43: N/A | BG43: N/A | BH43: N/A | BI43: N/A | BJ43: N/A | BK43: N/A | BL43: N/A | BM43: N/A | BN43: N/A | BO43: N/A | BP43: N/A | BQ43: N/A | BR43: N/A | BS43: N/A | BT43: N/A | BU43: N/A | BV43: N/A | BW43: N/A | BX43: N/A | BY43: N/A | BZ43: N/A | CA43: N/A | CB43: N/A
B44: No | C44: N/A | D44: N/A | E44: N/A | F44: N/A | G44: N/A | H44: N/A | I44: N/A | J44: N/A | K44: N/A | L44: N/A | M44: N/A | N44: N/A | O44: N/A | P44: N/A | Q44: N/A | R44: N/A | S44: N/A | T44: N/A | U44: N/A | V44: N/A | W44: N/A | X44: N/A | Y44: N/A | Z44: N/A | AA44: N/A | AB44: N/A | BB44: No | BC44: N/A | BD44: N/A | BE44: N/A | BF44: N/A | BG44: N/A | BH44: N/A | BI44: N/A | BJ44: N/A | BK44: N/A | BL44: N/A | BM44: N/A | BN44: N/A | BO44: N/A | BP44: N/A | BQ44: N/A | BR44: N/A | BS44: N/A | BT44: N/A | BU44: N/A | BV44: N/A | BW44: N/A | BX44: N/A | BY44: N/A | BZ44: N/A | CA44: N/A | CB44: N/A
A45: Improved water source available when needed | B45: Yes | C45: N/A | D45: N/A | E45: N/A | F45: N/A | G45: N/A | H45: N/A | I45: N/A | J45: N/A | K45: N/A | L45: N/A | M45: N/A | N45: N/A | O45: N/A | P45: N/A | Q45: N/A | R45: N/A | S45: N/A | T45: N/A | U45: N/A | V45: N/A | W45: N/A | X45: N/A | Y45: N/A | Z45: N/A | AA45: N/A | AB45: N/A | BA45: Improved water source available when needed | BB45: Yes | BC45: N/A | BD45: N/A | BE45: N/A | BF45: N/A | BG45: N/A | BH45: N/A | BI45: N/A | BJ45: N/A | BK45: N/A | BL45: N/A | BM45: N/A | BN45: N/A | BO45: N/A | BP45: N/A | BQ45: N/A | BR45: N/A | BS45: N/A | BT45: N/A | BU45: N/A | BV45: N/A | BW45: N/A | BX45: N/A | BY45: N/A | BZ45: N/A | CA45: N/A | CB45: N/A
B46: No | C46: N/A | D46: N/A | E46: N/A | F46: N/A | G46: N/A | H46: N/A | I46: N/A | J46: N/A | K46: N/A | L46: N/A | M46: N/A | N46: N/A | O46: N/A | P46: N/A | Q46: N/A | R46: N/A | S46: N/A | T46: N/A | U46: N/A | V46: N/A | W46: N/A | X46: N/A | Y46: N/A | Z46: N/A | AA46: N/A | AB46: N/A | BB46: No | BC46: N/A | BD46: N/A | BE46: N/A | BF46: N/A | BG46: N/A | BH46: N/A | BI46: N/A | BJ46: N/A | BK46: N/A | BL46: N/A | BM46: N/A | BN46: N/A | BO46: N/A | BP46: N/A | BQ46: N/A | BR46: N/A | BS46: N/A | BT46: N/A | BU46: N/A | BV46: N/A | BW46: N/A | BX46: N/A | BY46: N/A | BZ46: N/A | CA46: N/A | CB46: N/A
A47: Microbiological quality at point of collection | B47: Not contaminated (No E. coli in 100 mL) | C47: N/A | D47: N/A | E47: N/A | F47: N/A | G47: N/A | H47: N/A | I47: N/A | J47: N/A | K47: N/A | L47: N/A | M47: N/A | N47: N/A | O47: N/A | P47: N/A | Q47: N/A | R47: N/A | S47: N/A | T47: N/A | U47: N/A | V47: N/A | W47: N/A | X47: N/A | Y47: N/A | Z47: N/A | AA47: N/A | AB47: N/A | BA47: Microbiological quality at point of collection | BB47: Not contaminated (No E. coli in 100 mL) | BC47: N/A | BD47: N/A | BE47: N/A | BF47: N/A | BG47: N/A | BH47: N/A | BI47: N/A | BJ47: N/A | BK47: N/A | BL47: N/A | BM47: N/A | BN47: N/A | BO47: N/A | BP47: N/A | BQ47: N/A | BR47: N/A | BS47: N/A | BT47: N/A | BU47: N/A | BV47: N/A | BW47: N/A | BX47: N/A | BY47: N/A | BZ47: N/A | CA47: N/A | CB47: N/A
B48: Contaminated (E. coli detected in 100 mL) | C48: N/A | D48: N/A | E48: N/A | F48: N/A | G48: N/A | H48: N/A | I48: N/A | J48: N/A | K48: N/A | L48: N/A | M48: N/A | N48: N/A | O48: N/A | P48: N/A | Q48: N/A | R48: N/A | S48: N/A | T48: N/A | U48: N/A | V48: N/A | W48: N/A | X48: N/A | Y48: N/A | Z48: N/A | AA48: N/A | AB48: N/A | BB48: Contaminated (E. coli detected in 100 mL) | BC48: N/A | BD48: N/A | BE48: N/A | BF48: N/A | BG48: N/A | BH48: N/A | BI48: N/A | BJ48: N/A | BK48: N/A | BL48: N/A | BM48: N/A | BN48: N/A | BO48: N/A | BP48: N/A | BQ48: N/A | BR48: N/A | BS48: N/A | BT48: N/A | BU48: N/A | BV48: N/A | BW48: N/A | BX48: N/A | BY48: N/A | BZ48: N/A | CA48: N/A | CB48: N/A
B49: Highly contaminated (>100 CFU/100 mL) | C49: N/A | D49: N/A | E49: N/A | F49: N/A | G49: N/A | H49: N/A | I49: N/A | J49: N/A | K49: N/A | L49: N/A | M49: N/A | N49: N/A | O49: N/A | P49: N/A | Q49: N/A | R49: N/A | S49: N/A | T49: N/A | U49: N/A | V49: N/A | W49: N/A | X49: N/A | Y49: N/A | Z49: N/A | AA49: N/A | AB49: N/A | BB49: Highly contaminated (>100 CFU/100 mL) | BC49: N/A | BD49: N/A | BE49: N/A | BF49: N/A | BG49: N/A | BH49: N/A | BI49: N/A | BJ49: N/A | BK49: N/A | BL49: N/A | BM49: N/A | BN49: N/A | BO49: N/A | BP49: N/A | BQ49: N/A | BR49: N/A | BS49: N/A | BT49: N/A | BU49: N/A | BV49: N/A | BW49: N/A | BX49: N/A | BY49: N/A | BZ49: N/A | CA49: N/A | CB49: N/A
A50: Microbiological quality of improved water sources at point of collection | B50: Not contaminated (No E. coli in 100 mL) | C50: N/A | D50: N/A | E50: N/A | F50: N/A | G50: N/A | H50: N/A | I50: N/A | J50: N/A | K50: N/A | L50: N/A | M50: N/A | N50: N/A | O50: N/A | P50: N/A | Q50: N/A | R50: N/A | S50: N/A | T50: N/A | U50: N/A | V50: N/A | W50: N/A | X50: N/A | Y50: N/A | Z50: N/A | AA50: N/A | AB50: N/A | BA50: Microbiological quality of improved water sources at point of collection | BB50: Not contaminated (No E. coli in 100 mL) | BC50: N/A | BD50: N/A | BE50: N/A | BF50: N/A | BG50: N/A | BH50: N/A | BI50: N/A | BJ50: N/A | BK50: N/A | BL50: N/A | BM50: N/A | BN50: N/A | BO50: N/A | BP50: N/A | BQ50: N/A | BR50: N/A | BS50: N/A | BT50: N/A | BU50: N/A | BV50: N/A | BW50: N/A | BX50: N/A | BY50: N/A | BZ50: N/A | CA50: N/A | CB50: N/A
B51: Contaminated (E. coli detected in 100 mL) | C51: N/A | D51: N/A | E51: N/A | F51: N/A | G51: N/A | H51: N/A | I51: N/A | J51: N/A | K51: N/A | L51: N/A | M51: N/A | N51: N/A | O51: N/A | P51: N/A | Q51: N/A | R51: N/A | S51: N/A | T51: N/A | U51: N/A | V51: N/A | W51: N/A | X51: N/A | Y51: N/A | Z51: N/A | AA51: N/A | AB51: N/A | BB51: Contaminated (E. coli detected in 100 mL) | BC51: N/A | BD51: N/A | BE51: N/A | BF51: N/A | BG51: N/A | BH51: N/A | BI51: N/A | BJ51: N/A | BK51: N/A | BL51: N/A | BM51: N/A | BN51: N/A | BO51: N/A | BP51: N/A | BQ51: N/A | BR51: N/A | BS51: N/A | BT51: N/A | BU51: N/A | BV51: N/A | BW51: N/A | BX51: N/A | BY51: N/A | BZ51: N/A | CA51: N/A | CB51: N/A
B52: Highly contaminated (>100 CFU/100 mL) | C52: N/A | D52: N/A | E52: N/A | F52: N/A | G52: N/A | H52: N/A | I52: N/A | J52: N/A | K52: N/A | L52: N/A | M52: N/A | N52: N/A | O52: N/A | P52: N/A | Q52: N/A | R52: N/A | S52: N/A | T52: N/A | U52: N/A | V52: N/A | W52: N/A | X52: N/A | Y52: N/A | Z52: N/A | AA52: N/A | AB52: N/A | BB52: Highly contaminated (>100 CFU/100 mL) | BC52: N/A | BD52: N/A | BE52: N/A | BF52: N/A | BG52: N/A | BH52: N/A | BI52: N/A | BJ52: N/A | BK52: N/A | BL52: N/A | BM52: N/A | BN52: N/A | BO52: N/A | BP52: N/A | BQ52: N/A | BR52: N/A | BS52: N/A | BT52: N/A | BU52: N/A | BV52: N/A | BW52: N/A | BX52: N/A | BY52: N/A | BZ52: N/A | CA52: N/A | CB52: N/A
A53: Microbiological quality of piped on premises at point of collection | B53: Not contaminated (No E. coli in 100 mL) | C53: N/A | D53: N/A | E53: N/A | F53: N/A | G53: N/A | H53: N/A | I53: N/A | J53: N/A | K53: N/A | L53: N/A | M53: N/A | N53: N/A | O53: N/A | P53: N/A | Q53: N/A | R53: N/A | S53: N/A | T53: N/A | U53: N/A | V53: N/A | W53: N/A | X53: N/A | Y53: N/A | Z53: N/A | AA53: N/A | AB53: N/A | BA53: Microbiological quality of piped on premises at point of collection | BB53: Not contaminated (No E. coli in 100 mL) | BC53: N/A | BD53: N/A | BE53: N/A | BF53: N/A | BG53: N/A | BH53: N/A | BI53: N/A | BJ53: N/A | BK53: N/A | BL53: N/A | BM53: N/A | BN53: N/A | BO53: N/A | BP53: N/A | BQ53: N/A | BR53: N/A | BS53: N/A | BT53: N/A | BU53: N/A | BV53: N/A | BW53: N/A | BX53: N/A | BY53: N/A | BZ53: N/A | CA53: N/A | CB53: N/A
B54: Contaminated (E. coli detected in 100 mL) | C54: N/A | D54: N/A | E54: N/A | F54: N/A | G54: N/A | H54: N/A | I54: N/A | J54: N/A | K54: N/A | L54: N/A | M54: N/A | N54: N/A | O54: N/A | P54: N/A | Q54: N/A | R54: N/A | S54: N/A | T54: N/A | U54: N/A | V54: N/A | W54: N/A | X54: N/A | Y54: N/A | Z54: N/A | AA54: N/A | AB54: N/A | BB54: Contaminated (E. coli detected in 100 mL) | BC54: N/A | BD54: N/A | BE54: N/A | BF54: N/A | BG54: N/A | BH54: N/A | BI54: N/A | BJ54: N/A | BK54: N/A | BL54: N/A | BM54: N/A | BN54: N/A | BO54: N/A | BP54: N/A | BQ54: N/A | BR54: N/A | BS54: N/A | BT54: N/A | BU54: N/A | BV54: N/A | BW54: N/A | BX54: N/A | BY54: N/A | BZ54: N/A | CA54: N/A | CB54: N/A
B55: Highly contaminated (>100 CFU/100 mL) | C55: N/A | D55: N/A | E55: N/A | F55: N/A | G55: N/A | H55: N/A | I55: N/A | J55: N/A | K55: N/A | L55: N/A | M55: N/A | N55: N/A | O55: N/A | P55: N/A | Q55: N/A | R55: N/A | S55: N/A | T55: N/A | U55: N/A | V55: N/A | W55: N/A | X55: N/A | Y55: N/A | Z55: N/A | AA55: N/A | AB55: N/A | BB55: Highly contaminated (>100 CFU/100 mL) | BC55: N/A | BD55: N/A | BE55: N/A | BF55: N/A | BG55: N/A | BH55: N/A | BI55: N/A | BJ55: N/A | BK55: N/A | BL55: N/A | BM55: N/A | BN55: N/A | BO55: N/A | BP55: N/A | BQ55: N/A | BR55: N/A | BS55: N/A | BT55: N/A | BU55: N/A | BV55: N/A | BW55: N/A | BX55: N/A | BY55: N/A | BZ55: N/A | CA55: N/A | CB55: N/A
C56: NATIONAL wealth index quintile | H56: URBAN wealth index quintile | M56: RURAL wealth index quintile | R56: SUB-REGIONS: | BA56: Raw numbers of respondents: | BB56: Use of drinking water sources | BC56: NATIONAL wealth index quintile | BH56: URBAN wealth index quintile | BM56: RURAL wealth index quintile | BR56: SUB-REGIONS:
A57: Percentage based on weighted population | C57: Poorest | D57: Poor | E57: Middle | F57: Rich | G57: Richest | H57: Poorest | I57: Poor | J57: Middle | K57: Rich | L57: Richest | M57: Poorest | N57: Poor | O57: Middle | P57: Rich | Q57: Richest | R57: Cabo delgado | S57: Gaza | T57: Inhambane | U57: Manica | V57: Maputo Cidade | W57: Maputo Provincia | X57: Nampula | Y57: Niassa | Z57: Sofala | AA57: Tete | AB57: Zambezia | BA57: Water data, raw numbers (weighted) | BC57: Poorest | BD57: Poor | BE57: Middle | BF57: Rich | BG57: Richest | BH57: Poorest | BI57: Poor | BJ57: Middle | BK57: Rich | BL57: Richest | BM57: Poorest | BN57: Poor | BO57: Middle | BP57: Rich | BQ57: Richest | BR57: Cabo delgado | BS57: Gaza | BT57: Inhambane | BU57: Manica | BV57: Maputo Cidade | BW57: Maputo Provincia | BX57: Nampula | BY57: Niassa | BZ57: Sofala | CA57: Tete | CB57: Zambezia
A58: Source of drinking water | B58: Inside the house | C58: 0.06030861555 | D58: 0.09278153862 | E58: 0.02340761779 | F58: 2.010524563 | G58: 32.41228151 | H58: 0.5839681491 | I58: 3.462227776 | J58: 10.61790564 | K58: 22.06494725 | L58: 62.41741874 | M58: 0 | N58: 0 | O58: 0 | P58: 0.03623492805 | Q58: 1.866413243 | R58: 2.133461666 | S58: 2.732585017 | T58: 4.277275043 | U58: 2.114974153 | V58: 41.26235371 | W58: 26.88320412 | X58: 0.6204941389 | Y58: 1.325760337 | Z58: 7.217519952 | AA58: 4.871972249 | AB58: 1.266220374
B59: Inside neighbor's house | C59: 2.710671458 | D59: 0.3509523843 | E59: 0.2838060262 | F59: 11.49103148 | G59: 25.49689633 | H59: 11.0737635 | I59: 19.41954596 | J59: 33.29679118 | K59: 32.92175656 | L59: 15.24499933 | M59: 0.4099972402 | N59: 0.04724726518 | O59: 0.4526989739 | P59: 0.2071958871 | Q59: 1.03749603 | R59: 3.299168514 | S59: 5.726917085 | T59: 5.791337082 | U59: 3.055819448 | V59: 26.74932914 | W59: 22.75344298 | X59: 8.201090535 | Y59: 1.575800273 | Z59: 13.61926383 | AA59: 2.121836995 | AB59: 1.392953404
B60: Public water | C60: 5.996314098 | D60: 4.173212346 | E60: 4.86228134 | F60: 13.58951163 | G60: 20.96619775 | H60: 15.38876546 | I60: 20.14824612 | J60: 24.98037452 | K60: 26.36522036 | L60: 14.50536445 | M60: 3.165511639 | N60: 3.864001975 | O60: 5.200688318 | P60: 4.456959986 | Q60: 5.198633531 | R60: 10.78495084 | S60: 4.342196182 | T60: 2.616523653 | U60: 12.36785883 | V60: 28.32180912 | W60: 7.354074259 | X60: 12.43772843 | Y60: 5.679083556 | Z60: 8.590176355 | AA60: 4.576735179 | AB60: 7.786126857
B61: In own land | C61: 0.9611964315 | D61: 2.092018963 | E61: 1.388798231 | F61: 3.583677383 | G61: 4.37417539 | H61: 3.118514896 | I61: 3.674298395 | J61: 4.418369111 | K61: 5.755557407 | L61: 2.170303253 | M61: 0.7540653531 | N61: 2.369256809 | O61: 1.233635007 | P61: 1.048911568 | Q61: 3.675065559 | R61: 1.995019841 | S61: 1.576968673 | T61: 2.953339555 | U61: 7.621373911 | V61: 0.9164914916 | W61: 5.696655562 | X61: 1.386230096 | Y61: 2.991337544 | Z61: 1.440277641 | AA61: 0.3108225251 | AB61: 2.608220108
B62: In neighbor's land | C62: 3.074551315 | D62: 2.276585227 | E62: 1.696477439 | F62: 6.894170045 | G62: 4.142763336 | H62: 8.349093664 | I62: 9.57641689 | J62: 7.230575867 | K62: 5.668892874 | L62: 1.555891608 | M62: 2.126704513 | N62: 2.233933449 | O62: 1.996277997 | P62: 1.580332289 | Q62: 2.110816123 | R62: 3.745750168 | S62: 4.116388907 | T62: 2.418200961 | U62: 10.87516868 | V62: 1.617186201 | W62: 8.430200782 | X62: 3.160019076 | Y62: 4.716290268 | Z62: 1.600293777 | AA62: 0.4434981135 | AB62: 1.786855013
B63: Unprotected public well | C63: 49.30008129 | D63: 50.23993978 | E63: 51.18158869 | F63: 34.62798749 | G63: 3.907283666 | H63: 35.02027433 | I63: 22.49972651 | J63: 7.715328374 | K63: 1.724091329 | L63: 0.9069859397 | M63: 52.23554239 | N63: 54.1464492 | O63: 46.46848937 | P63: 51.26815822 | Q63: 48.52013708 | R63: 43.38099275 | S63: 31.0920583 | T63: 49.16951124 | U63: 17.59474073 | V63: 0.05609799392 | W63: 8.287240574 | X63: 55.33541907 | Y63: 36.95731483 | Z63: 29.95984192 | AA63: 29.50239058 | AB63: 56.91554597
B64: Protected public well | C64: 15.79519671 | D64: 17.93057981 | E64: 17.05654098 | F64: 17.71914446 | G64: 5.769984134 | H64: 14.69859915 | I64: 15.00793815 | J64: 8.389300761 | K64: 4.097135353 | L64: 2.306355731 | M64: 15.59452912 | N64: 18.21939219 | O64: 18.50045398 | P64: 17.1287273 | Q64: 20.4270839 | R64: 23.54829081 | S64: 32.7903413 | T64: 19.50918171 | U64: 25.46463067 | V64: 0.5888316231 | W64: 12.34425997 | X64: 5.226164351 | Y64: 17.16111684 | Z64: 19.12873945 | AA64: 28.04099699 | AB64: 7.194653063
B65: River/Lake | C65: 20.16270108 | D65: 21.38194818 | E65: 22.42348933 | F65: 7.68589447 | G65: 1.371767287 | H65: 10.30477374 | I65: 4.401388526 | J65: 0.8697053699 | K65: 0.4631948982 | L65: 0 | M65: 23.63394592 | N65: 17.75515923 | O65: 24.64360258 | P65: 23.0800178 | Q65: 14.5926524 | R65: 7.077298826 | S65: 14.66260602 | T65: 7.113539525 | U65: 20.45733859 | V65: 0 | W65: 6.276430633 | X65: 13.58073383 | Y65: 24.65294877 | Z65: 18.05535134 | AA65: 28.701623 | AB65: 20.89127489
B66: Rainwater | C66: 0.3800855085 | D66: 0.252983239 | E66: 0.3896550167 | F66: 0.9407675549 | G66: 0.8985044139 | H66: 0 | I66: 0.03024676281 | J66: 0.7646718557 | K66: 0.5670208053 | L66: 0.1106822158 | M66: 0.4970508658 | N66: 0.2851993641 | O66: 0.2164264725 | P66: 0.4300925797 | Q66: 2.157013192 | R66: 0 | S66: 1.53051045 | T66: 5.508696357 | U66: 0 | V66: 0 | W66: 0.0949791578 | X66: 0 | Y66: 0 | Z66: 0.1232964167 | AA66: 0 | AB66: 0
B67: Other | C67: 1.558893487 | D67: 1.208998538 | E67: 0.6939553292 | F67: 1.45729094 | G67: 0.6601461831 | H67: 1.4622471 | I67: 1.779964913 | J67: 1.716977311 | K67: 0.3721831606 | L67: 0.7819987369 | M67: 1.582652958 | N67: 1.079360514 | O67: 1.287727299 | P67: 0.7633694427 | Q67: 0.4146889396 | R67: 4.035066579 | S67: 1.429428065 | T67: 0.6423948761 | U67: 0.4480949815 | V67: 0.4879007201 | W67: 1.87951196 | X67: 0.05212046705 | Y67: 4.940347578 | Z67: 0.2652393179 | AA67: 1.430124367 | AB67: 0.1581503219
A108: =A1026 -> Mozambique
A109: =A1034 -> 2003
A110: Use of sanitation facilities
A111: by wealth quintile and sub-national region
A112: Notes:
A113: WHO/UNICEF JMP customised wealth index excludes water,
A114: sanitation and hygiene assets.
A115: Survey used for analysis: | B115: =A1025 -> DHS03
A116: =B1030 -> Ratio of Improved latrines based on: | B116: AIS09
A117: =B1029 -> Ratio of Shared improved based on: | B117: AIS09
A120: Use of sanitation facilities | C120: NATIONAL wealth index quintile | H120: URBAN wealth index quintile | M120: RURAL wealth index quintile | R120: SUB-REGIONS: | BA120: Raw numbers of respondents: | BB120: Use of sanitation facilities | BC120: NATIONAL wealth index quintile | BH120: URBAN wealth index quintile | BM120: RURAL wealth index quintile | BR120: SUB-REGIONS:
A121: Weighted percentage (used in graphs) | C121: Poorest | D121: Poor | E121: Middle | F121: Rich | G121: Richest | H121: Poorest | I121: Poor | J121: Middle | K121: Rich | L121: Richest | M121: Poorest | N121: Poor | O121: Middle | P121: Rich | Q121: Richest | R121: Cabo delgado | S121: Gaza | T121: Inhambane | U121: Manica | V121: Maputo Cidade | W121: Maputo Provincia | X121: Nampula | Y121: Niassa | Z121: Sofala | AA121: Tete | AB121: Zambezia | BA121: Sanitation data, raw numbers (weighted) | BC121: Poorest | BD121: Poor | BE121: Middle | BF121: Rich | BG121: Richest | BH121: Poorest | BI121: Poor | BJ121: Middle | BK121: Rich | BL121: Richest | BM121: Poorest | BN121: Poor | BO121: Middle | BP121: Rich | BQ121: Richest | BR121: Cabo delgado | BS121: Gaza | BT121: Inhambane | BU121: Manica | BV121: Maputo Cidade | BW121: Maputo Provincia | BX121: Nampula | BY121: Niassa | BZ121: Sofala | CA121: Tete | CB121: Zambezia
A122: Sanitation | B122: Improved | C122: =C153+(C154)*'AIS09'!C130/100 -> 13.24058702 | D122: =D153+(D154)*'AIS09'!D130/100 -> 10.13269978 | E122: =E153+(E154)*'AIS09'!E130/100 -> 15.59570276 | F122: =F153+(F154)*'AIS09'!F130/100 -> 24.54921676 | G122: =G153+(G154)*'AIS09'!G130/100 -> 55.69129068 | H122: =H153+(H154)*'AIS09'!H130/100 -> 20.75816202 | I122: =I153+(I154)*'AIS09'!I130/100 -> 21.76330429 | J122: =J153+(J154)*'AIS09'!J130/100 -> 37.72057812 | K122: =K153+(K154)*'AIS09'!K130/100 -> 61.08842725 | L122: =L153+(L154)*'AIS09'!L130/100 -> 66.17217729 | M122: =M153+(M154)*'AIS09'!M130/100 -> 11.25679833 | N122: =N153+(N154)*'AIS09'!N130/100 -> 9.244542286 | O122: =O153+(O154)*'AIS09'!O130/100 -> 11.94701128 | P122: =P153+(P154)*'AIS09'!P130/100 -> 18.71574073 | Q122: =Q153+(Q154)*'AIS09'!Q130/100 -> 23.95523757 | R122: =R153+(R154)*'AIS09'!R130/100 -> 36.63116813 | S122: =S153+(S154)*'AIS09'!S130/100 -> 28.20055863 | T122: =T153+(T154)*'AIS09'!T130/100 -> 18.79493183 | U122: =U153+(U154)*'AIS09'!U130/100 -> 27.75778821 | V122: =V153+(V154)*'AIS09'!V130/100 -> 62.74828872 | W122: =W153+(W154)*'AIS09'!W130/100 -> 30.27276045 | X122: =X153+(X154)*'AIS09'!X130/100 -> 15.68092853 | Y122: =Y153+(Y154)*'AIS09'!Y130/100 -> 31.96808664 | Z122: =Z153+(Z154)*'AIS09'!Z130/100 -> 11.94523156 | AA122: =AA153+(AA154)*'AIS09'!AA130/100 -> 35.31207573 | AB122: =AB153+(AB154)*'AIS09'!AB130/100 -> 7.20606054 | BA122: Sanitation | BB122: Improved | BC122: N/A | BD122: N/A | BE122: N/A | BF122: N/A | BG122: N/A | BH122: N/A | BI122: N/A | BJ122: N/A | BK122: N/A | BL122: N/A | BM122: N/A | BN122: N/A | BO122: N/A | BP122: N/A | BQ122: N/A | BR122: N/A | BS122: N/A | BT122: N/A | BU122: N/A | BV122: N/A | BW122: N/A | BX122: N/A | BY122: N/A | BZ122: N/A | CA122: N/A | CB122: N/A
B123: Not Improved | C123: =100-C122 -> 86.75941298 | D123: =100-D122 -> 89.86730022 | E123: 84.40429724 | F123: 75.45078324 | G123: 44.30870932 | H123: 79.24183798 | I123: 78.23669571 | J123: 62.27942188 | K123: 38.91157275 | L123: 33.82782271 | M123: 88.74320167 | N123: 90.75545771 | O123: 88.05298872 | P123: 81.28425927 | Q123: 76.04476243 | R123: 63.36883187 | S123: 71.79944137 | T123: 81.20506817 | U123: 72.24221179 | V123: 37.25171128 | W123: 69.72723955 | X123: 84.31907147 | Y123: 68.03191336 | Z123: 88.05476844 | AA123: 64.68792427 | AB123: 92.79393946 | BB123: Not Improved | BC123: N/A | BD123: N/A | BE123: N/A | BF123: N/A | BG123: N/A | BH123: N/A | BI123: N/A | BJ123: N/A | BK123: N/A | BL123: N/A | BM123: N/A | BN123: N/A | BO123: N/A | BP123: N/A | BQ123: N/A | BR123: N/A | BS123: N/A | BT123: N/A | BU123: N/A | BV123: N/A | BW123: N/A | BX123: N/A | BY123: N/A | BZ123: N/A | CA123: N/A | CB123: N/A
A124: Sanitation ladder | B124: Basic | C124: =C122*'AIS09'!C129/100 -> 11.05097169 | D124: =D122*'AIS09'!D129/100 -> 7.971648242 | E124: =E122*'AIS09'!E129/100 -> 12.24879113 | F124: =F122*'AIS09'!F129/100 -> 17.82095535 | G124: =G122*'AIS09'!G129/100 -> 46.15890854 | H124: =H122*'AIS09'!H129/100 -> 16.22278867 | I124: =I122*'AIS09'!I129/100 -> 14.73977499 | J124: =J122*'AIS09'!J129/100 -> 28.61958896 | K124: =K122*'AIS09'!K129/100 -> 46.93276881 | L124: =L122*'AIS09'!L129/100 -> 59.1066684 | M124: =M122*'AIS09'!M129/100 -> 9.644007691 | N124: =N122*'AIS09'!N129/100 -> 7.196107505 | O124: =O122*'AIS09'!O129/100 -> 9.400956908 | P124: =P122*'AIS09'!P129/100 -> 14.42683302 | Q124: =Q122*'AIS09'!Q129/100 -> 19.17750121 | R124: =R122*'AIS09'!R129/100 -> 29.42638762 | S124: =S122*'AIS09'!S129/100 -> 26.86595073 | T124: =T122*'AIS09'!T129/100 -> 17.1289414 | U124: =U122*'AIS09'!U129/100 -> 17.89028936 | V124: =V122*'AIS09'!V129/100 -> 48.08944449 | W124: =W122*'AIS09'!W129/100 -> 27.52747188 | X124: =X122*'AIS09'!X129/100 -> 13.2499391 | Y124: =Y122*'AIS09'!Y129/100 -> 25.95478787 | Z124: =Z122*'AIS09'!Z129/100 -> 6.37119337 | AA124: =AA122*'AIS09'!AA129/100 -> 25.63771179 | AB124: =AB122*'AIS09'!AB129/100 -> 5.587634956 | BA124: Sanitation ladder | BB124: Basic | BC124: N/A | BD124: N/A | BE124: N/A | BF124: N/A | BG124: N/A | BH124: N/A | BI124: N/A | BJ124: N/A | BK124: N/A | BL124: N/A | BM124: N/A | BN124: N/A | BO124: N/A | BP124: N/A | BQ124: N/A | BR124: N/A | BS124: N/A | BT124: N/A | BU124: N/A | BV124: N/A | BW124: N/A | BX124: N/A | BY124: N/A | BZ124: N/A | CA124: N/A | CB124: N/A
B125: Limited | C125: =C122*'AIS09'!C128/100 -> 2.189615331 | D125: =D122*'AIS09'!D128/100 -> 2.161051536 | E125: =E122*'AIS09'!E128/100 -> 3.346911626 | F125: =F122*'AIS09'!F128/100 -> 6.728261406 | G125: =G122*'AIS09'!G128/100 -> 9.532382133 | H125: =H122*'AIS09'!H128/100 -> 4.535373354 | I125: =I122*'AIS09'!I128/100 -> 7.023529302 | J125: =J122*'AIS09'!J128/100 -> 9.100989166 | K125: =K122*'AIS09'!K128/100 -> 14.15565843 | L125: =L122*'AIS09'!L128/100 -> 7.065508885 | M125: =M122*'AIS09'!M128/100 -> 1.612790642 | N125: =N122*'AIS09'!N128/100 -> 2.048434781 | O125: =O122*'AIS09'!O128/100 -> 2.546054376 | P125: =P122*'AIS09'!P128/100 -> 4.288907703 | Q125: =Q122*'AIS09'!Q128/100 -> 4.777736364 | R125: =R122*'AIS09'!R128/100 -> 7.204780511 | S125: =S122*'AIS09'!S128/100 -> 1.334607901 | T125: =T122*'AIS09'!T128/100 -> 1.665990426 | U125: =U122*'AIS09'!U128/100 -> 9.867498852 | V125: =V122*'AIS09'!V128/100 -> 14.65884423 | W125: =W122*'AIS09'!W128/100 -> 2.745288573 | X125: =X122*'AIS09'!X128/100 -> 2.430989432 | Y125: =Y122*'AIS09'!Y128/100 -> 6.013298778 | Z125: =Z122*'AIS09'!Z128/100 -> 5.574038192 | AA125: =AA122*'AIS09'!AA128/100 -> 9.674363945 | AB125: =AB122*'AIS09'!AB128/100 -> 1.618425584 | BB125: Limited | BC125: N/A | BD125: N/A | BE125: N/A | BF125: N/A | BG125: N/A | BH125: N/A | BI125: N/A | BJ125: N/A | BK125: N/A | BL125: N/A | BM125: N/A | BN125: N/A | BO125: N/A | BP125: N/A | BQ125: N/A | BR125: N/A | BS125: N/A | BT125: N/A | BU125: N/A | BV125: N/A | BW125: N/A | BX125: N/A | BY125: N/A | BZ125: N/A | CA125: N/A | CB125: N/A
B126: Unimproved | C126: =100-C124-C125-C127 -> 22.51455222 | D126: =100-D124-D125-D127 -> 20.84514081 | E126: 27.31242204 | F126: 39.22443685 | G126: 39.84482833 | H126: 37.14446122 | I126: 44.72565247 | J126: 52.1499452 | K126: 34.87782593 | L126: 33.3628463 | M126: 19.12530261 | N126: 19.75862843 | O126: 24.99644311 | P126: 22.47628807 | Q126: 33.58688801 | R126: 24.24847246 | S126: 39.8550851 | T126: 45.31934587 | U126: 24.11256336 | V126: 37.02071822 | W126: 61.14221377 | X126: 25.38810452 | Y126: 45.86364599 | Z126: 18.58268846 | AA126: 19.18593345 | AB126: 13.2602491 | BB126: Unimproved | BC126: N/A | BD126: N/A | BE126: N/A | BF126: N/A | BG126: N/A | BH126: N/A | BI126: N/A | BJ126: N/A | BK126: N/A | BL126: N/A | BM126: N/A | BN126: N/A | BO126: N/A | BP126: N/A | BQ126: N/A | BR126: N/A | BS126: N/A | BT126: N/A | BU126: N/A | BV126: N/A | BW126: N/A | BX126: N/A | BY126: N/A | BZ126: N/A | CA126: N/A | CB126: N/A
B127: Open defecation | C127: =C156 -> 64.24486076 | D127: =D156 -> 69.02215942 | E127: 57.0918752 | F127: 36.22634639 | G127: 4.463880991 | H127: 42.09737676 | I127: 33.51104324 | J127: 10.12947668 | K127: 4.03374682 | L127: 0.4649764092 | M127: 69.61789905 | N127: 70.99682928 | O127: 63.05654561 | P127: 58.80797121 | Q127: 42.45787442 | R127: 39.12035941 | S127: 31.94435627 | T127: 35.8857223 | U127: 48.12964843 | V127: 0.230993056 | W127: 8.585025778 | X127: 58.93096695 | Y127: 22.16826737 | Z127: 69.47207998 | AA127: 45.50199082 | AB127: 79.53369036 | BB127: Open defecation | BC127: N/A | BD127: N/A | BE127: N/A | BF127: N/A | BG127: N/A | BH127: N/A | BI127: N/A | BJ127: N/A | BK127: N/A | BL127: N/A | BM127: N/A | BN127: N/A | BO127: N/A | BP127: N/A | BQ127: N/A | BR127: N/A | BS127: N/A | BT127: N/A | BU127: N/A | BV127: N/A | BW127: N/A | BX127: N/A | BY127: N/A | BZ127: N/A | CA127: N/A | CB127: N/A
A128: Shared among Improved Sanitation | B128: Yes | C128: N/A | D128: N/A | E128: N/A | F128: N/A | G128: N/A | H128: N/A | I128: N/A | J128: N/A | K128: N/A | L128: N/A | M128: N/A | N128: N/A | O128: N/A | P128: N/A | Q128: N/A | R128: N/A | S128: N/A | T128: N/A | U128: N/A | V128: N/A | W128: N/A | X128: N/A | Y128: N/A | Z128: N/A | AA128: N/A | AB128: N/A | BA128: Shared among improved sanitation facilities | BB128: Yes | BC128: N/A | BD128: N/A | BE128: N/A | BF128: N/A | BG128: N/A | BH128: N/A | BI128: N/A | BJ128: N/A | BK128: N/A | BL128: N/A | BM128: N/A | BN128: N/A | BO128: N/A | BP128: N/A | BQ128: N/A | BR128: N/A | BS128: N/A | BT128: N/A | BU128: N/A | BV128: N/A | BW128: N/A | BX128: N/A | BY128: N/A | BZ128: N/A | CA128: N/A | CB128: N/A
B129: No | C129: N/A | D129: N/A | E129: N/A | F129: N/A | G129: N/A | H129: N/A | I129: N/A | J129: N/A | K129: N/A | L129: N/A | M129: N/A | N129: N/A | O129: N/A | P129: N/A | Q129: N/A | R129: N/A | S129: N/A | T129: N/A | U129: N/A | V129: N/A | W129: N/A | X129: N/A | Y129: N/A | Z129: N/A | AA129: N/A | AB129: N/A | BB129: No | BC129: N/A | BD129: N/A | BE129: N/A | BF129: N/A | BG129: N/A | BH129: N/A | BI129: N/A | BJ129: N/A | BK129: N/A | BL129: N/A | BM129: N/A | BN129: N/A | BO129: N/A | BP129: N/A | BQ129: N/A | BR129: N/A | BS129: N/A | BT129: N/A | BU129: N/A | BV129: N/A | BW129: N/A | BX129: N/A | BY129: N/A | BZ129: N/A | CA129: N/A | CB129: N/A
A130: Manually calculated ratios | B130: Improved latrines
B131: Other
B132: Other
C133: NATIONAL wealth index quintile | H133: URBAN wealth index quintile | M133: RURAL wealth index quintile | R133: SUB-REGIONS: | BA133: Raw numbers of respondents: | BB133: Use of sanitation facilities | BC133: NATIONAL wealth index quintile | BH133: URBAN wealth index quintile | BM133: RURAL wealth index quintile | BR133: SUB-REGIONS:
A134: Percentage based on weighted population | C134: Poorest | D134: Poor | E134: Middle | F134: Rich | G134: Richest | H134: Poorest | I134: Poor | J134: Middle | K134: Rich | L134: Richest | M134: Poorest | N134: Poor | O134: Middle | P134: Rich | Q134: Richest | R134: Cabo delgado | S134: Gaza | T134: Inhambane | U134: Manica | V134: Maputo Cidade | W134: Maputo Provincia | X134: Nampula | Y134: Niassa | Z134: Sofala | AA134: Tete | AB134: Zambezia | BA134: Sanitation data, raw numbers (weighted) | BC134: Poorest | BD134: Poor | BE134: Middle | BF134: Rich | BG134: Richest | BH134: Poorest | BI134: Poor | BJ134: Middle | BK134: Rich | BL134: Richest | BM134: Poorest | BN134: Poor | BO134: Middle | BP134: Rich | BQ134: Richest | BR134: Cabo delgado | BS134: Gaza | BT134: Inhambane | BU134: Manica | BV134: Maputo Cidade | BW134: Maputo Provincia | BX134: Nampula | BY134: Niassa | BZ134: Sofala | CA134: Tete | CB134: Zambezia
A135: Sanitation type | B135: Sewer connection | C135: N/A | D135: N/A | E135: N/A | F135: N/A | G135: N/A | H135: N/A | I135: N/A | J135: N/A | K135: N/A | L135: N/A | M135: N/A | N135: N/A | O135: N/A | P135: N/A | Q135: N/A | R135: N/A | S135: N/A | T135: N/A | U135: N/A | V135: N/A | W135: N/A | X135: N/A | Y135: N/A | Z135: N/A | AA135: N/A | AB135: N/A | BA135: Sanitation type | BB135: Sewer connection | BC135: N/A | BD135: N/A | BE135: N/A | BF135: N/A | BG135: N/A | BH135: N/A | BI135: N/A | BJ135: N/A | BK135: N/A | BL135: N/A | BM135: N/A | BN135: N/A | BO135: N/A | BP135: N/A | BQ135: N/A | BR135: N/A | BS135: N/A | BT135: N/A | BU135: N/A | BV135: N/A | BW135: N/A | BX135: N/A | BY135: N/A | BZ135: N/A | CA135: N/A | CB135: N/A
B136: Septic tank connection | C136: N/A | D136: N/A | E136: N/A | F136: N/A | G136: N/A | H136: N/A | I136: N/A | J136: N/A | K136: N/A | L136: N/A | M136: N/A | N136: N/A | O136: N/A | P136: N/A | Q136: N/A | R136: N/A | S136: N/A | T136: N/A | U136: N/A | V136: N/A | W136: N/A | X136: N/A | Y136: N/A | Z136: N/A | AA136: N/A | AB136: N/A | BB136: Septic tank connection | BC136: N/A | BD136: N/A | BE136: N/A | BF136: N/A | BG136: N/A | BH136: N/A | BI136: N/A | BJ136: N/A | BK136: N/A | BL136: N/A | BM136: N/A | BN136: N/A | BO136: N/A | BP136: N/A | BQ136: N/A | BR136: N/A | BS136: N/A | BT136: N/A | BU136: N/A | BV136: N/A | BW136: N/A | BX136: N/A | BY136: N/A | BZ136: N/A | CA136: N/A | CB136: N/A
B137: Improved latrines | C137: N/A | D137: N/A | E137: N/A | F137: N/A | G137: N/A | H137: N/A | I137: N/A | J137: N/A | K137: N/A | L137: N/A | M137: N/A | N137: N/A | O137: N/A | P137: N/A | Q137: N/A | R137: N/A | S137: N/A | T137: N/A | U137: N/A | V137: N/A | W137: N/A | X137: N/A | Y137: N/A | Z137: N/A | AA137: N/A | AB137: N/A | BB137: Improved latrines | BC137: N/A | BD137: N/A | BE137: N/A | BF137: N/A | BG137: N/A | BH137: N/A | BI137: N/A | BJ137: N/A | BK137: N/A | BL137: N/A | BM137: N/A | BN137: N/A | BO137: N/A | BP137: N/A | BQ137: N/A | BR137: N/A | BS137: N/A | BT137: N/A | BU137: N/A | BV137: N/A | BW137: N/A | BX137: N/A | BY137: N/A | BZ137: N/A | CA137: N/A | CB137: N/A
B138: Unimproved facilities | C138: N/A | D138: N/A | E138: N/A | F138: N/A | G138: N/A | H138: N/A | I138: N/A | J138: N/A | K138: N/A | L138: N/A | M138: N/A | N138: N/A | O138: N/A | P138: N/A | Q138: N/A | R138: N/A | S138: N/A | T138: N/A | U138: N/A | V138: N/A | W138: N/A | X138: N/A | Y138: N/A | Z138: N/A | AA138: N/A | AB138: N/A | BB138: Unimproved facilities | BC138: N/A | BD138: N/A | BE138: N/A | BF138: N/A | BG138: N/A | BH138: N/A | BI138: N/A | BJ138: N/A | BK138: N/A | BL138: N/A | BM138: N/A | BN138: N/A | BO138: N/A | BP138: N/A | BQ138: N/A | BR138: N/A | BS138: N/A | BT138: N/A | BU138: N/A | BV138: N/A | BW138: N/A | BX138: N/A | BY138: N/A | BZ138: N/A | CA138: N/A | CB138: N/A
B139: Open defecation | C139: N/A | D139: N/A | E139: N/A | F139: N/A | G139: N/A | H139: N/A | I139: N/A | J139: N/A | K139: N/A | L139: N/A | M139: N/A | N139: N/A | O139: N/A | P139: N/A | Q139: N/A | R139: N/A | S139: N/A | T139: N/A | U139: N/A | V139: N/A | W139: N/A | X139: N/A | Y139: N/A | Z139: N/A | AA139: N/A | AB139: N/A | BB139: Open defecation | BC139: N/A | BD139: N/A | BE139: N/A | BF139: N/A | BG139: N/A | BH139: N/A | BI139: N/A | BJ139: N/A | BK139: N/A | BL139: N/A | BM139: N/A | BN139: N/A | BO139: N/A | BP139: N/A | BQ139: N/A | BR139: N/A | BS139: N/A | BT139: N/A | BU139: N/A | BV139: N/A | BW139: N/A | BX139: N/A | BY139: N/A | BZ139: N/A | CA139: N/A | CB139: N/A
A140: Septic tank emptying practices | B140: Not emptied/treated and disposed in situ | C140: N/A | D140: N/A | E140: N/A | F140: N/A | G140: N/A | H140: N/A | I140: N/A | J140: N/A | K140: N/A | L140: N/A | M140: N/A | N140: N/A | O140: N/A | P140: N/A | Q140: N/A | R140: N/A | S140: N/A | T140: N/A | U140: N/A | V140: N/A | W140: N/A | X140: N/A | Y140: N/A | Z140: N/A | AA140: N/A | AB140: N/A | BA140: Septic tank emptying practices | BB140: Not emptied/treated and disposed in situ | BC140: N/A | BD140: N/A | BE140: N/A | BF140: N/A | BG140: N/A | BH140: N/A | BI140: N/A | BJ140: N/A | BK140: N/A | BL140: N/A | BM140: N/A | BN140: N/A | BO140: N/A | BP140: N/A | BQ140: N/A | BR140: N/A | BS140: N/A | BT140: N/A | BU140: N/A | BV140: N/A | BW140: N/A | BX140: N/A | BY140: N/A | BZ140: N/A | CA140: N/A | CB140: N/A
B141: Emptied and buried on site | C141: N/A | D141: N/A | E141: N/A | F141: N/A | G141: N/A | H141: N/A | I141: N/A | J141: N/A | K141: N/A | L141: N/A | M141: N/A | N141: N/A | O141: N/A | P141: N/A | Q141: N/A | R141: N/A | S141: N/A | T141: N/A | U141: N/A | V141: N/A | W141: N/A | X141: N/A | Y141: N/A | Z141: N/A | AA141: N/A | AB141: N/A | BB141: Emptied and buried on site | BC141: N/A | BD141: N/A | BE141: N/A | BF141: N/A | BG141: N/A | BH141: N/A | BI141: N/A | BJ141: N/A | BK141: N/A | BL141: N/A | BM141: N/A | BN141: N/A | BO141: N/A | BP141: N/A | BQ141: N/A | BR141: N/A | BS141: N/A | BT141: N/A | BU141: N/A | BV141: N/A | BW141: N/A | BX141: N/A | BY141: N/A | BZ141: N/A | CA141: N/A | CB141: N/A
B142: Emptied and discharged locally | C142: N/A | D142: N/A | E142: N/A | F142: N/A | G142: N/A | H142: N/A | I142: N/A | J142: N/A | K142: N/A | L142: N/A | M142: N/A | N142: N/A | O142: N/A | P142: N/A | Q142: N/A | R142: N/A | S142: N/A | T142: N/A | U142: N/A | V142: N/A | W142: N/A | X142: N/A | Y142: N/A | Z142: N/A | AA142: N/A | AB142: N/A | BB142: Emptied and discharged locally | BC142: N/A | BD142: N/A | BE142: N/A | BF142: N/A | BG142: N/A | BH142: N/A | BI142: N/A | BJ142: N/A | BK142: N/A | BL142: N/A | BM142: N/A | BN142: N/A | BO142: N/A | BP142: N/A | BQ142: N/A | BR142: N/A | BS142: N/A | BT142: N/A | BU142: N/A | BV142: N/A | BW142: N/A | BX142: N/A | BY142: N/A | BZ142: N/A | CA142: N/A | CB142: N/A
B143: Emptied and removed offsite | C143: N/A | D143: N/A | E143: N/A | F143: N/A | G143: N/A | H143: N/A | I143: N/A | J143: N/A | K143: N/A | L143: N/A | M143: N/A | N143: N/A | O143: N/A | P143: N/A | Q143: N/A | R143: N/A | S143: N/A | T143: N/A | U143: N/A | V143: N/A | W143: N/A | X143: N/A | Y143: N/A | Z143: N/A | AA143: N/A | AB143: N/A | BB143: Emptied and removed offsite | BC143: N/A | BD143: N/A | BE143: N/A | BF143: N/A | BG143: N/A | BH143: N/A | BI143: N/A | BJ143: N/A | BK143: N/A | BL143: N/A | BM143: N/A | BN143: N/A | BO143: N/A | BP143: N/A | BQ143: N/A | BR143: N/A | BS143: N/A | BT143: N/A | BU143: N/A | BV143: N/A | BW143: N/A | BX143: N/A | BY143: N/A | BZ143: N/A | CA143: N/A | CB143: N/A
A144: Latrine emptying practices | B144: Not emptied/treated and disposed in situ | C144: N/A | D144: N/A | E144: N/A | F144: N/A | G144: N/A | H144: N/A | I144: N/A | J144: N/A | K144: N/A | L144: N/A | M144: N/A | N144: N/A | O144: N/A | P144: N/A | Q144: N/A | R144: N/A | S144: N/A | T144: N/A | U144: N/A | V144: N/A | W144: N/A | X144: N/A | Y144: N/A | Z144: N/A | AA144: N/A | AB144: N/A | BA144: Latrine emptying practices | BB144: Not emptied/treated and disposed in situ | BC144: N/A | BD144: N/A | BE144: N/A | BF144: N/A | BG144: N/A | BH144: N/A | BI144: N/A | BJ144: N/A | BK144: N/A | BL144: N/A | BM144: N/A | BN144: N/A | BO144: N/A | BP144: N/A | BQ144: N/A | BR144: N/A | BS144: N/A | BT144: N/A | BU144: N/A | BV144: N/A | BW144: N/A | BX144: N/A | BY144: N/A | BZ144: N/A | CA144: N/A | CB144: N/A
B145: Emptied and buried on site | C145: N/A | D145: N/A | E145: N/A | F145: N/A | G145: N/A | H145: N/A | I145: N/A | J145: N/A | K145: N/A | L145: N/A | M145: N/A | N145: N/A | O145: N/A | P145: N/A | Q145: N/A | R145: N/A | S145: N/A | T145: N/A | U145: N/A | V145: N/A | W145: N/A | X145: N/A | Y145: N/A | Z145: N/A | AA145: N/A | AB145: N/A | BB145: Emptied and buried on site | BC145: N/A | BD145: N/A | BE145: N/A | BF145: N/A | BG145: N/A | BH145: N/A | BI145: N/A | BJ145: N/A | BK145: N/A | BL145: N/A | BM145: N/A | BN145: N/A | BO145: N/A | BP145: N/A | BQ145: N/A | BR145: N/A | BS145: N/A | BT145: N/A | BU145: N/A | BV145: N/A | BW145: N/A | BX145: N/A | BY145: N/A | BZ145: N/A | CA145: N/A | CB145: N/A
B146: Emptied and discharged locally | C146: N/A | D146: N/A | E146: N/A | F146: N/A | G146: N/A | H146: N/A | I146: N/A | J146: N/A | K146: N/A | L146: N/A | M146: N/A | N146: N/A | O146: N/A | P146: N/A | Q146: N/A | R146: N/A | S146: N/A | T146: N/A | U146: N/A | V146: N/A | W146: N/A | X146: N/A | Y146: N/A | Z146: N/A | AA146: N/A | AB146: N/A | BB146: Emptied and discharged locally | BC146: N/A | BD146: N/A | BE146: N/A | BF146: N/A | BG146: N/A | BH146: N/A | BI146: N/A | BJ146: N/A | BK146: N/A | BL146: N/A | BM146: N/A | BN146: N/A | BO146: N/A | BP146: N/A | BQ146: N/A | BR146: N/A | BS146: N/A | BT146: N/A | BU146: N/A | BV146: N/A | BW146: N/A | BX146: N/A | BY146: N/A | BZ146: N/A | CA146: N/A | CB146: N/A
B147: Emptied and removed offsite | C147: N/A | D147: N/A | E147: N/A | F147: N/A | G147: N/A | H147: N/A | I147: N/A | J147: N/A | K147: N/A | L147: N/A | M147: N/A | N147: N/A | O147: N/A | P147: N/A | Q147: N/A | R147: N/A | S147: N/A | T147: N/A | U147: N/A | V147: N/A | W147: N/A | X147: N/A | Y147: N/A | Z147: N/A | AA147: N/A | AB147: N/A | BB147: Emptied and removed offsite | BC147: N/A | BD147: N/A | BE147: N/A | BF147: N/A | BG147: N/A | BH147: N/A | BI147: N/A | BJ147: N/A | BK147: N/A | BL147: N/A | BM147: N/A | BN147: N/A | BO147: N/A | BP147: N/A | BQ147: N/A | BR147: N/A | BS147: N/A | BT147: N/A | BU147: N/A | BV147: N/A | BW147: N/A | BX147: N/A | BY147: N/A | BZ147: N/A | CA147: N/A | CB147: N/A
A148: Shared among improved sanitation facilities | B148: Yes | C148: N/A | D148: N/A | E148: N/A | F148: N/A | G148: N/A | H148: N/A | I148: N/A | J148: N/A | K148: N/A | L148: N/A | M148: N/A | N148: N/A | O148: N/A | P148: N/A | Q148: N/A | R148: N/A | S148: N/A | T148: N/A | U148: N/A | V148: N/A | W148: N/A | X148: N/A | Y148: N/A | Z148: N/A | AA148: N/A | AB148: N/A | BA148: Shared among improved sanitation facilities | BB148: Yes | BC148: N/A | BD148: N/A | BE148: N/A | BF148: N/A | BG148: N/A | BH148: N/A | BI148: N/A | BJ148: N/A | BK148: N/A | BL148: N/A | BM148: N/A | BN148: N/A | BO148: N/A | BP148: N/A | BQ148: N/A | BR148: N/A | BS148: N/A | BT148: N/A | BU148: N/A | BV148: N/A | BW148: N/A | BX148: N/A | BY148: N/A | BZ148: N/A | CA148: N/A | CB148: N/A
B149: No | C149: N/A | D149: N/A | E149: N/A | F149: N/A | G149: N/A | H149: N/A | I149: N/A | J149: N/A | K149: N/A | L149: N/A | M149: N/A | N149: N/A | O149: N/A | P149: N/A | Q149: N/A | R149: N/A | S149: N/A | T149: N/A | U149: N/A | V149: N/A | W149: N/A | X149: N/A | Y149: N/A | Z149: N/A | AA149: N/A | AB149: N/A | BB149: No | BC149: N/A | BD149: N/A | BE149: N/A | BF149: N/A | BG149: N/A | BH149: N/A | BI149: N/A | BJ149: N/A | BK149: N/A | BL149: N/A | BM149: N/A | BN149: N/A | BO149: N/A | BP149: N/A | BQ149: N/A | BR149: N/A | BS149: N/A | BT149: N/A | BU149: N/A | BV149: N/A | BW149: N/A | BX149: N/A | BY149: N/A | BZ149: N/A | CA149: N/A | CB149: N/A
B150: DK/missing | C150: N/A | D150: N/A | E150: N/A | F150: N/A | G150: N/A | H150: N/A | I150: N/A | J150: N/A | K150: N/A | L150: N/A | M150: N/A | N150: N/A | O150: N/A | P150: N/A | Q150: N/A | R150: N/A | S150: N/A | T150: N/A | U150: N/A | V150: N/A | W150: N/A | X150: N/A | Y150: N/A | Z150: N/A | AA150: N/A | AB150: N/A | BB150: DK/missing | BC150: N/A | BD150: N/A | BE150: N/A | BF150: N/A | BG150: N/A | BH150: N/A | BI150: N/A | BJ150: N/A | BK150: N/A | BL150: N/A | BM150: N/A | BN150: N/A | BO150: N/A | BP150: N/A | BQ150: N/A | BR150: N/A | BS150: N/A | BT150: N/A | BU150: N/A | BV150: N/A | BW150: N/A | BX150: N/A | BY150: N/A | BZ150: N/A | CA150: N/A | CB150: N/A
A151: Shared among all sanitation facilities | B151: Yes | C151: 23.48148845 | D151: 19.28114351 | E151: 17.0111188 | F151: 15.87539501 | G151: 12.83732232 | H151: 24.60376695 | I151: 20.65761091 | J151: 19.05285135 | K151: 15.4254912 | L151: 5.233088537 | M151: 21.05158056 | N151: 21.90694776 | O151: 16.91835979 | P151: 16.51765252 | Q151: 11.60267936 | R151: 22.1333476 | S151: 14.34114152 | T151: 6.242857423 | U151: 24.06538527 | V151: 13.00900709 | W151: 6.909906613 | X151: 17.39377159 | Y151: 11.00463366 | Z151: 36.73254726 | AA151: 35.8330065 | AB151: 4.709325777 | BA151: Shared among all sanitation facilities | BB151: Yes | BC151: N/A | BD151: N/A | BE151: N/A | BF151: N/A | BG151: N/A | BH151: N/A | BI151: N/A | BJ151: N/A | BK151: N/A | BL151: N/A | BM151: N/A | BN151: N/A | BO151: N/A | BP151: N/A | BQ151: N/A | BR151: N/A | BS151: N/A | BT151: N/A | BU151: N/A | BV151: N/A | BW151: N/A | BX151: N/A | BY151: N/A | BZ151: N/A | CA151: N/A | CB151: N/A
B152: No | C152: 76.07910724 | D152: 80.07847243 | E152: 81.99125685 | F152: 83.19945418 | G152: 86.15635052 | H152: 75.03980428 | I152: 78.41837457 | J152: 79.77595015 | K152: 83.69494353 | L152: 93.74690172 | M152: 78.52218273 | N152: 77.50098773 | O152: 81.85910558 | P152: 82.84541405 | Q152: 87.34071021 | R152: 76.47107246 | S152: 85.62085548 | T152: 93.75714258 | U152: 74.62617386 | V152: 86.68750103 | W152: 92.20832896 | X152: 80.25546649 | Y152: 88.35836548 | Z152: 63.18908668 | AA152: 63.79578917 | AB152: 94.47344501 | BB152: No | BC152: N/A | BD152: N/A | BE152: N/A | BF152: N/A | BG152: N/A | BH152: N/A | BI152: N/A | BJ152: N/A | BK152: N/A | BL152: N/A | BM152: N/A | BN152: N/A | BO152: N/A | BP152: N/A | BQ152: N/A | BR152: N/A | BS152: N/A | BT152: N/A | BU152: N/A | BV152: N/A | BW152: N/A | BX152: N/A | BY152: N/A | BZ152: N/A | CA152: N/A | CB152: N/A
A153: Type of toilet facility | B153: Flush toilet | C153: 0 | D153: 0 | E153: 0 | F153: 0.1600850314 | G153: 14.30272144 | H153: 0 | I153: 0.3083014459 | J153: 0.5815238292 | K153: 3.900768201 | L153: 35.96363087 | M153: 0 | N153: 0 | O153: 0 | P153: 0 | Q153: 1.291604111 | R153: 0.1270931236 | S153: 0.4885469386 | T153: 0.4476304005 | U153: 0.8482443376 | V153: 17.81681729 | W153: 8.082100983 | X153: 1.449574176 | Y153: 0.3729611142 | Z153: 3.933447191 | AA153: 2.894586592 | AB153: 0.8533763963 | BA153: Type of toilet facility | BB153: Flush toilet | BC153: 0 | BD153: 0 | BE153: 0 | BF153: 17.878163 | BG153: 1754.077331 | BH153: 0 | BI153: 12.975295 | BJ153: 24.049062 | BK153: 160.286453 | BL153: 1477.026774 | BM153: 0 | BN153: 0 | BO153: 0 | BP153: 0 | BQ153: 97.61791 | BR153: 6.93654 | BS153: 14.727593 | BT153: 23.128432 | BU153: 35.931671 | BV153: 741.249933 | BW153: 357.261133 | BX153: 174.749329 | BY153: 10.605414 | BZ153: 172.83176 | CA153: 150.118022 | CB153: 84.415667
B154: Latrine | C154: 34.96627543 | D154: 30.36768726 | E154: 42.55061628 | F154: 62.64194288 | G154: 72.06006581 | H154: 56.80294334 | I154: 64.36885351 | J154: 87.33522617 | K154: 83.75588711 | L154: 46.59274248 | M154: 29.82053088 | N154: 28.20407641 | O154: 36.60373744 | P154: 40.83328953 | Q154: 55.729004 | R154: 59.35028054 | S154: 67.11989086 | T154: 63.47096311 | U154: 49.06946538 | V154: 66.15932718 | W154: 75.84513286 | X154: 38.89437807 | Y154: 74.23811173 | Z154: 25.45005538 | AA154: 51.41840788 | AB154: 19.22126855 | BB154: Latrine | BC154: 3667.124003 | BD154: 4331.530862 | BE154: 5380.01777 | BF154: 6995.800019 | BG154: 8837.40402 | BH154: 2250.970145 | BI154: 2709.052696 | BJ154: 3611.769911 | BK154: 3441.612875 | BL154: 1913.564522 | BM154: 2391.166011 | BN154: 2400.211514 | BO154: 2946.39564 | BP154: 3335.201196 | BQ154: 4211.932164 | BR154: 3239.243661 | BS154: 2023.376582 | BT154: 3279.455222 | BU154: 2078.584917 | BV154: 2752.489182 | BW154: 3352.657701 | BX154: 4688.802121 | BY154: 2111.013399 | BZ154: 1118.250138 | CA154: 2666.643212 | CB154: 1901.360539
B155: No flush toilet | C155: 0.003770594824 | D155: 0 | E155: 0.01699502383 | F155: 0.324160028 | G155: 8.78280919 | H155: 0.009979003933 | I155: 0.4499193406 | J155: 1.229251348 | K155: 7.829783685 | L155: 16.97865024 | M155: 0 | N155: 0 | O155: 0 | P155: 0.01242199839 | Q155: 0.3391982861 | R155: 0 | S155: 0.1799647277 | T155: 0.08644497419 | U155: 0.6338116494 | V155: 15.02219205 | W155: 7.081080865 | X155: 0.2877550252 | Y155: 0.8129024099 | Z155: 0.9397125173 | AA155: 0.09382160954 | AB155: 0.3757547473 | BB155: No flush toilet | BC155: 0.395445 | BD155: 0 | BE155: 2.148818 | BF155: 36.201922 | BG155: 1077.118545 | BH155: 0.395445 | BI155: 18.935481 | BJ155: 50.835994 | BK155: 321.733615 | BL155: 697.31338 | BM155: 0 | BN155: 0 | BO155: 0 | BP155: 1.01461 | BQ155: 25.636205 | BR155: 0 | BS155: 5.425164 | BT155: 4.46649 | BU155: 26.848292 | BV155: 624.982491 | BW155: 313.012047 | BX155: 34.689496 | BY155: 23.115457 | BZ155: 41.290034 | CA155: 4.865743 | CB155: 37.169516
B156: NO FACILITY | C156: 64.24486076 | D156: 69.02215942 | E156: 57.0918752 | F156: 36.22634639 | G156: 4.463880991 | H156: 42.09737676 | I156: 33.51104324 | J156: 10.12947668 | K156: 4.03374682 | L156: 0.4649764092 | M156: 69.61789905 | N156: 70.99682928 | O156: 63.05654561 | P156: 58.80797121 | Q156: 42.45787442 | R156: 39.12035941 | S156: 31.94435627 | T156: 35.8857223 | U156: 48.12964843 | V156: 0.230993056 | W156: 8.585025778 | X156: 58.93096695 | Y156: 22.16826737 | Z156: 69.47207998 | AA156: 45.50199082 | AB156: 79.53369036 | BB156: NO FACILITY | BC156: 6737.745673 | BD156: 9845.057055 | BE156: 7218.586473 | BF156: 4045.7282 | BG156: 547.447735 | BH156: 1668.222326 | BI156: 1410.358847 | BJ156: 418.907017 | BK156: 165.750677 | BL156: 19.096587 | BM156: 5582.326977 | BN156: 6041.942471 | BO156: 5075.698387 | BP156: 4803.34595 | BQ156: 3208.915897 | BR156: 2135.126828 | BS156: 962.985213 | BT156: 1854.164702 | BU156: 2038.774226 | BV156: 9.610223 | BW156: 379.492417 | BX156: 7104.256619 | BY156: 630.370417 | BZ156: 3052.534144 | CA156: 2359.808091 | CB156: 7867.442256
B157: OTHER | C157: 0.7850932221 | D157: 0.6101533277 | E157: 0.3405134881 | F157: 0.647465671 | G157: 0.3905225706 | H157: 1.089700896 | I157: 1.361882464 | J157: 0.7245219813 | K157: 0.4798141836 | L157: 0 | M157: 0.5615700695 | N157: 0.799094313 | O157: 0.3397169524 | P157: 0.3463172616 | Q157: 0.1823191821 | R157: 1.402266935 | S157: 0.2672412005 | T157: 0.1092392092 | U157: 1.318830205 | V157: 0.7706704253 | W157: 0.4066595096 | X157: 0.4373257819 | Y157: 2.407757378 | Z157: 0.2047049263 | AA157: 0.0911930967 | AB157: 0.01590994824 | BB157: OTHER | BC157: 82.337457 | BD157: 87.029939 | BE157: 43.053868 | BF157: 72.308427 | BG157: 47.893458 | BH157: 43.182343 | BI157: 57.316717 | BJ157: 29.962786 | BK157: 19.716043 | BL157: 0 | BM157: 45.029623 | BN157: 68.00419 | BO157: 27.34531 | BP157: 28.286669 | BQ157: 13.779468 | BR157: 76.533493 | BS157: 8.056175 | BT157: 5.644236 | BU157: 55.865711 | BV157: 32.062932 | BW157: 17.975974 | BX157: 52.720577 | BY157: 68.46629 | BZ157: 8.994531 | CA157: 4.729424 | CB157: 1.573806
BB158: Total | BC158: 10487.60258 | BD158: 14263.61786 | BE158: 12643.80693 | BF158: 11167.91673 | BG158: 12263.94109 | BH158: 3962.770259 | BI158: 4208.639036 | BJ158: 4135.52477 | BK158: 4109.099663 | BL158: 4107.001263 | BM158: 8018.522611 | BN158: 8510.158175 | BO158: 8049.439337 | BP158: 8167.848425 | BQ158: 7557.881644 | BR158: 5457.840522 | BS158: 3014.570727 | BT158: 5166.859082 | BU158: 4236.004817 | BV158: 4160.394761 | BW158: 4420.399272 | BX158: 12055.21814 | BY158: 2843.570977 | BZ158: 4393.900607 | CA158: 5186.164492 | CB158: 9891.961784
A208: =A1026 -> Mozambique
A209: =A1034 -> 2003
A210: Access to hygiene facilities
A211: by wealth quintile and sub-national region
A212: Notes:
A213: WHO/UNICEF JMP customised wealth index excludes water,
A214: sanitation and hygiene assets.
A215: Survey used for analysis: | B215: =A1025 -> DHS03
A220: Access to handwashing | C220: NATIONAL wealth index quintile | H220: URBAN wealth index quintile | M220: RURAL wealth index quintile | R220: SUB-REGIONS: | BA220: Raw numbers of respondents: | BB220: Access to handwashing | BC220: NATIONAL wealth index quintile | BH220: URBAN wealth index quintile | BM220: RURAL wealth index quintile | BR220: SUB-REGIONS:
A221: Weighted percentage (used in graphs) | C221: Poorest | D221: Poor | E221: Middle | F221: Rich | G221: Richest | H221: Poorest | I221: Poor | J221: Middle | K221: Rich | L221: Richest | M221: Poorest | N221: Poor | O221: Middle | P221: Rich | Q221: Richest | R221: Cabo delgado | S221: Gaza | T221: Inhambane | U221: Manica | V221: Maputo Cidade | W221: Maputo Provincia | X221: Nampula | Y221: Niassa | Z221: Sofala | AA221: Tete | AB221: Zambezia | BA221: Hygiene data, raw numbers (weighted) | BC221: Poorest | BD221: Poor | BE221: Middle | BF221: Rich | BG221: Richest | BH221: Poorest | BI221: Poor | BJ221: Middle | BK221: Rich | BL221: Richest | BM221: Poorest | BN221: Poor | BO221: Middle | BP221: Rich | BQ221: Richest | BR221: Cabo delgado | BS221: Gaza | BT221: Inhambane | BU221: Manica | BV221: Maputo Cidade | BW221: Maputo Provincia | BX221: Nampula | BY221: Niassa | BZ221: Sofala | CA221: Tete | CB221: Zambezia
A222: Hygiene ladder | B222: Basic | C222: N/A | D222: N/A | E222: N/A | F222: N/A | G222: N/A | H222: N/A | I222: N/A | J222: N/A | K222: N/A | L222: N/A | M222: N/A | N222: N/A | O222: N/A | P222: N/A | Q222: N/A | R222: N/A | S222: N/A | T222: N/A | U222: N/A | V222: N/A | W222: N/A | X222: N/A | Y222: N/A | Z222: N/A | AA222: N/A | AB222: N/A | BA222: Hygiene ladder | BB222: Basic | BC222: N/A | BD222: N/A | BE222: N/A | BF222: N/A | BG222: N/A | BH222: N/A | BI222: N/A | BJ222: N/A | BK222: N/A | BL222: N/A | BM222: N/A | BN222: N/A | BO222: N/A | BP222: N/A | BQ222: N/A | BR222: N/A | BS222: N/A | BT222: N/A | BU222: N/A | BV222: N/A | BW222: N/A | BX222: N/A | BY222: N/A | BZ222: N/A | CA222: N/A | CB222: N/A
B223: Limited | C223: N/A | D223: N/A | E223: N/A | F223: N/A | G223: N/A | H223: N/A | I223: N/A | J223: N/A | K223: N/A | L223: N/A | M223: N/A | N223: N/A | O223: N/A | P223: N/A | Q223: N/A | R223: N/A | S223: N/A | T223: N/A | U223: N/A | V223: N/A | W223: N/A | X223: N/A | Y223: N/A | Z223: N/A | AA223: N/A | AB223: N/A | BB223: Limited | BC223: N/A | BD223: N/A | BE223: N/A | BF223: N/A | BG223: N/A | BH223: N/A | BI223: N/A | BJ223: N/A | BK223: N/A | BL223: N/A | BM223: N/A | BN223: N/A | BO223: N/A | BP223: N/A | BQ223: N/A | BR223: N/A | BS223: N/A | BT223: N/A | BU223: N/A | BV223: N/A | BW223: N/A | BX223: N/A | BY223: N/A | BZ223: N/A | CA223: N/A | CB223: N/A
B224: No facility | C224: N/A | D224: N/A | E224: N/A | F224: N/A | G224: N/A | H224: N/A | I224: N/A | J224: N/A | K224: N/A | L224: N/A | M224: N/A | N224: N/A | O224: N/A | P224: N/A | Q224: N/A | R224: N/A | S224: N/A | T224: N/A | U224: N/A | V224: N/A | W224: N/A | X224: N/A | Y224: N/A | Z224: N/A | AA224: N/A | AB224: N/A | BB224: No facility | BC224: N/A | BD224: N/A | BE224: N/A | BF224: N/A | BG224: N/A | BH224: N/A | BI224: N/A | BJ224: N/A | BK224: N/A | BL224: N/A | BM224: N/A | BN224: N/A | BO224: N/A | BP224: N/A | BQ224: N/A | BR224: N/A | BS224: N/A | BT224: N/A | BU224: N/A | BV224: N/A | BW224: N/A | BX224: N/A | BY224: N/A | BZ224: N/A | CA224: N/A | CB224: N/A
BA225: Observed handwashing place | BB225: Fixed | BC225: N/A | BD225: N/A | BE225: N/A | BF225: N/A | BG225: N/A | BH225: N/A | BI225: N/A | BJ225: N/A | BK225: N/A | BL225: N/A | BM225: N/A | BN225: N/A | BO225: N/A | BP225: N/A | BQ225: N/A | BR225: N/A | BS225: N/A | BT225: N/A | BU225: N/A | BV225: N/A | BW225: N/A | BX225: N/A | BY225: N/A | BZ225: N/A | CA225: N/A | CB225: N/A
BB226: Mobile | BC226: N/A | BD226: N/A | BE226: N/A | BF226: N/A | BG226: N/A | BH226: N/A | BI226: N/A | BJ226: N/A | BK226: N/A | BL226: N/A | BM226: N/A | BN226: N/A | BO226: N/A | BP226: N/A | BQ226: N/A | BR226: N/A | BS226: N/A | BT226: N/A | BU226: N/A | BV226: N/A | BW226: N/A | BX226: N/A | BY226: N/A | BZ226: N/A | CA226: N/A | CB226: N/A
BA227: Water / Soap | BB227: Water and soap | BC227: N/A | BD227: N/A | BE227: N/A | BF227: N/A | BG227: N/A | BH227: N/A | BI227: N/A | BJ227: N/A | BK227: N/A | BL227: N/A | BM227: N/A | BN227: N/A | BO227: N/A | BP227: N/A | BQ227: N/A | BR227: N/A | BS227: N/A | BT227: N/A | BU227: N/A | BV227: N/A | BW227: N/A | BX227: N/A | BY227: N/A | BZ227: N/A | CA227: N/A | CB227: N/A
BB228: Water only | BC228: N/A | BD228: N/A | BE228: N/A | BF228: N/A | BG228: N/A | BH228: N/A | BI228: N/A | BJ228: N/A | BK228: N/A | BL228: N/A | BM228: N/A | BN228: N/A | BO228: N/A | BP228: N/A | BQ228: N/A | BR228: N/A | BS228: N/A | BT228: N/A | BU228: N/A | BV228: N/A | BW228: N/A | BX228: N/A | BY228: N/A | BZ228: N/A | CA228: N/A | CB228: N/A
BB229: Soap only | BC229: N/A | BD229: N/A | BE229: N/A | BF229: N/A | BG229: N/A | BH229: N/A | BI229: N/A | BJ229: N/A | BK229: N/A | BL229: N/A | BM229: N/A | BN229: N/A | BO229: N/A | BP229: N/A | BQ229: N/A | BR229: N/A | BS229: N/A | BT229: N/A | BU229: N/A | BV229: N/A | BW229: N/A | BX229: N/A | BY229: N/A | BZ229: N/A | CA229: N/A | CB229: N/A
BB230: Neither | BC230: N/A | BD230: N/A | BE230: N/A | BF230: N/A | BG230: N/A | BH230: N/A | BI230: N/A | BJ230: N/A | BK230: N/A | BL230: N/A | BM230: N/A | BN230: N/A | BO230: N/A | BP230: N/A | BQ230: N/A | BR230: N/A | BS230: N/A | BT230: N/A | BU230: N/A | BV230: N/A | BW230: N/A | BX230: N/A | BY230: N/A | BZ230: N/A | CA230: N/A | CB230: N/A
BA259: Raw numbers of respondents: | BB259: Menstrual health and hygiene | BC259: NATIONAL wealth index quintile | BH259: URBAN wealth index quintile | BM259: RURAL wealth index quintile | BR259: SUB-REGIONS:
BA260: MHH data, raw numbers (weighted) | BC260: Poorest | BD260: Poor | BE260: Middle | BF260: Rich | BG260: Richest | BH260: Poorest | BI260: Poor | BJ260: Middle | BK260: Rich | BL260: Richest | BM260: Poorest | BN260: Poor | BO260: Middle | BP260: Rich | BQ260: Richest | BR260: Cabo delgado | BS260: Gaza | BT260: Inhambane | BU260: Manica | BV260: Maputo Cidade | BW260: Maputo Provincia | BX260: Nampula | BY260: Niassa | BZ260: Sofala | CA260: Tete | CB260: Zambezia
BA261: Private place to wash and change | BB261: Yes | BC261: N/A | BD261: N/A | BE261: N/A | BF261: N/A | BG261: N/A | BH261: N/A | BI261: N/A | BJ261: N/A | BK261: N/A | BL261: N/A | BM261: N/A | BN261: N/A | BO261: N/A | BP261: N/A | BQ261: N/A | BR261: N/A | BS261: N/A | BT261: N/A | BU261: N/A | BV261: N/A | BW261: N/A | BX261: N/A | BY261: N/A | BZ261: N/A | CA261: N/A | CB261: N/A
BB262: No | BC262: N/A | BD262: N/A | BE262: N/A | BF262: N/A | BG262: N/A | BH262: N/A | BI262: N/A | BJ262: N/A | BK262: N/A | BL262: N/A | BM262: N/A | BN262: N/A | BO262: N/A | BP262: N/A | BQ262: N/A | BR262: N/A | BS262: N/A | BT262: N/A | BU262: N/A | BV262: N/A | BW262: N/A | BX262: N/A | BY262: N/A | BZ262: N/A | CA262: N/A | CB262: N/A
BB263: DK/not sure/missing | BC263: N/A | BD263: N/A | BE263: N/A | BF263: N/A | BG263: N/A | BH263: N/A | BI263: N/A | BJ263: N/A | BK263: N/A | BL263: N/A | BM263: N/A | BN263: N/A | BO263: N/A | BP263: N/A | BQ263: N/A | BR263: N/A | BS263: N/A | BT263: N/A | BU263: N/A | BV263: N/A | BW263: N/A | BX263: N/A | BY263: N/A | BZ263: N/A | CA263: N/A | CB263: N/A
BA264: Use of menstrual materials | BB264: Materials reusable | BC264: N/A | BD264: N/A | BE264: N/A | BF264: N/A | BG264: N/A | BH264: N/A | BI264: N/A | BJ264: N/A | BK264: N/A | BL264: N/A | BM264: N/A | BN264: N/A | BO264: N/A | BP264: N/A | BQ264: N/A | BR264: N/A | BS264: N/A | BT264: N/A | BU264: N/A | BV264: N/A | BW264: N/A | BX264: N/A | BY264: N/A | BZ264: N/A | CA264: N/A | CB264: N/A
BB265: Materials not reusable | BC265: N/A | BD265: N/A | BE265: N/A | BF265: N/A | BG265: N/A | BH265: N/A | BI265: N/A | BJ265: N/A | BK265: N/A | BL265: N/A | BM265: N/A | BN265: N/A | BO265: N/A | BP265: N/A | BQ265: N/A | BR265: N/A | BS265: N/A | BT265: N/A | BU265: N/A | BV265: N/A | BW265: N/A | BX265: N/A | BY265: N/A | BZ265: N/A | CA265: N/A | CB265: N/A
BB266: No materials used | BC266: N/A | BD266: N/A | BE266: N/A | BF266: N/A | BG266: N/A | BH266: N/A | BI266: N/A | BJ266: N/A | BK266: N/A | BL266: N/A | BM266: N/A | BN266: N/A | BO266: N/A | BP266: N/A | BQ266: N/A | BR266: N/A | BS266: N/A | BT266: N/A | BU266: N/A | BV266: N/A | BW266: N/A | BX266: N/A | BY266: N/A | BZ266: N/A | CA266: N/A | CB266: N/A
BB267: DK/not sure/missing | BC267: N/A | BD267: N/A | BE267: N/A | BF267: N/A | BG267: N/A | BH267: N/A | BI267: N/A | BJ267: N/A | BK267: N/A | BL267: N/A | BM267: N/A | BN267: N/A | BO267: N/A | BP267: N/A | BQ267: N/A | BR267: N/A | BS267: N/A | BT267: N/A | BU267: N/A | BV267: N/A | BW267: N/A | BX267: N/A | BY267: N/A | BZ267: N/A | CA267: N/A | CB267: N/A
BA268: Use of menstrual materials with private place to wash and change | BB268: Materials reusable | BC268: N/A | BD268: N/A | BE268: N/A | BF268: N/A | BG268: N/A | BH268: N/A | BI268: N/A | BJ268: N/A | BK268: N/A | BL268: N/A | BM268: N/A | BN268: N/A | BO268: N/A | BP268: N/A | BQ268: N/A | BR268: N/A | BS268: N/A | BT268: N/A | BU268: N/A | BV268: N/A | BW268: N/A | BX268: N/A | BY268: N/A | BZ268: N/A | CA268: N/A | CB268: N/A
BB269: Materials not reusable | BC269: N/A | BD269: N/A | BE269: N/A | BF269: N/A | BG269: N/A | BH269: N/A | BI269: N/A | BJ269: N/A | BK269: N/A | BL269: N/A | BM269: N/A | BN269: N/A | BO269: N/A | BP269: N/A | BQ269: N/A | BR269: N/A | BS269: N/A | BT269: N/A | BU269: N/A | BV269: N/A | BW269: N/A | BX269: N/A | BY269: N/A | BZ269: N/A | CA269: N/A | CB269: N/A
BB270: No materials used | BC270: N/A | BD270: N/A | BE270: N/A | BF270: N/A | BG270: N/A | BH270: N/A | BI270: N/A | BJ270: N/A | BK270: N/A | BL270: N/A | BM270: N/A | BN270: N/A | BO270: N/A | BP270: N/A | BQ270: N/A | BR270: N/A | BS270: N/A | BT270: N/A | BU270: N/A | BV270: N/A | BW270: N/A | BX270: N/A | BY270: N/A | BZ270: N/A | CA270: N/A | CB270: N/A
BA271: Awareness of menstruation before menarche | BB271: Yes | BC271: N/A | BD271: N/A | BE271: N/A | BF271: N/A | BG271: N/A | BH271: N/A | BI271: N/A | BJ271: N/A | BK271: N/A | BL271: N/A | BM271: N/A | BN271: N/A | BO271: N/A | BP271: N/A | BQ271: N/A | BR271: N/A | BS271: N/A | BT271: N/A | BU271: N/A | BV271: N/A | BW271: N/A | BX271: N/A | BY271: N/A | BZ271: N/A | CA271: N/A | CB271: N/A
BB272: No | BC272: N/A | BD272: N/A | BE272: N/A | BF272: N/A | BG272: N/A | BH272: N/A | BI272: N/A | BJ272: N/A | BK272: N/A | BL272: N/A | BM272: N/A | BN272: N/A | BO272: N/A | BP272: N/A | BQ272: N/A | BR272: N/A | BS272: N/A | BT272: N/A | BU272: N/A | BV272: N/A | BW272: N/A | BX272: N/A | BY272: N/A | BZ272: N/A | CA272: N/A | CB272: N/A
BB273: DK/not sure/missing | BC273: N/A | BD273: N/A | BE273: N/A | BF273: N/A | BG273: N/A | BH273: N/A | BI273: N/A | BJ273: N/A | BK273: N/A | BL273: N/A | BM273: N/A | BN273: N/A | BO273: N/A | BP273: N/A | BQ273: N/A | BR273: N/A | BS273: N/A | BT273: N/A | BU273: N/A | BV273: N/A | BW273: N/A | BX273: N/A | BY273: N/A | BZ273: N/A | CA273: N/A | CB273: N/A
BA274: Participation in (all) activities during menstruation | BB274: Yes | BC274: N/A | BD274: N/A | BE274: N/A | BF274: N/A | BG274: N/A | BH274: N/A | BI274: N/A | BJ274: N/A | BK274: N/A | BL274: N/A | BM274: N/A | BN274: N/A | BO274: N/A | BP274: N/A | BQ274: N/A | BR274: N/A | BS274: N/A | BT274: N/A | BU274: N/A | BV274: N/A | BW274: N/A | BX274: N/A | BY274: N/A | BZ274: N/A | CA274: N/A | CB274: N/A
BB275: No | BC275: N/A | BD275: N/A | BE275: N/A | BF275: N/A | BG275: N/A | BH275: N/A | BI275: N/A | BJ275: N/A | BK275: N/A | BL275: N/A | BM275: N/A | BN275: N/A | BO275: N/A | BP275: N/A | BQ275: N/A | BR275: N/A | BS275: N/A | BT275: N/A | BU275: N/A | BV275: N/A | BW275: N/A | BX275: N/A | BY275: N/A | BZ275: N/A | CA275: N/A | CB275: N/A
BB276: DK/not sure/missing/no such activity | BC276: N/A | BD276: N/A | BE276: N/A | BF276: N/A | BG276: N/A | BH276: N/A | BI276: N/A | BJ276: N/A | BK276: N/A | BL276: N/A | BM276: N/A | BN276: N/A | BO276: N/A | BP276: N/A | BQ276: N/A | BR276: N/A | BS276: N/A | BT276: N/A | BU276: N/A | BV276: N/A | BW276: N/A | BX276: N/A | BY276: N/A | BZ276: N/A | CA276: N/A | CB276: N/A
BA277: Participation in specific activities during menstruation | BB277: Did not go to school (amongst those usually attending school) | BC277: N/A | BD277: N/A | BE277: N/A | BF277: N/A | BG277: N/A | BH277: N/A | BI277: N/A | BJ277: N/A | BK277: N/A | BL277: N/A | BM277: N/A | BN277: N/A | BO277: N/A | BP277: N/A | BQ277: N/A | BR277: N/A | BS277: N/A | BT277: N/A | BU277: N/A | BV277: N/A | BW277: N/A | BX277: N/A | BY277: N/A | BZ277: N/A | CA277: N/A | CB277: N/A
BB278: Did not go to work (amongst those who usually work) | BC278: N/A | BD278: N/A | BE278: N/A | BF278: N/A | BG278: N/A | BH278: N/A | BI278: N/A | BJ278: N/A | BK278: N/A | BL278: N/A | BM278: N/A | BN278: N/A | BO278: N/A | BP278: N/A | BQ278: N/A | BR278: N/A | BS278: N/A | BT278: N/A | BU278: N/A | BV278: N/A | BW278: N/A | BX278: N/A | BY278: N/A | BZ278: N/A | CA278: N/A | CB278: N/A
BB279: Did not participate in social activities | BC279: N/A | BD279: N/A | BE279: N/A | BF279: N/A | BG279: N/A | BH279: N/A | BI279: N/A | BJ279: N/A | BK279: N/A | BL279: N/A | BM279: N/A | BN279: N/A | BO279: N/A | BP279: N/A | BQ279: N/A | BR279: N/A | BS279: N/A | BT279: N/A | BU279: N/A | BV279: N/A | BW279: N/A | BX279: N/A | BY279: N/A | BZ279: N/A | CA279: N/A | CB279: N/A
BB280: Did not cook food | BC280: N/A | BD280: N/A | BE280: N/A | BF280: N/A | BG280: N/A | BH280: N/A | BI280: N/A | BJ280: N/A | BK280: N/A | BL280: N/A | BM280: N/A | BN280: N/A | BO280: N/A | BP280: N/A | BQ280: N/A | BR280: N/A | BS280: N/A | BT280: N/A | BU280: N/A | BV280: N/A | BW280: N/A | BX280: N/A | BY280: N/A | BZ280: N/A | CA280: N/A | CB280: N/A
BB281: Did not eat with others | BC281: N/A | BD281: N/A | BE281: N/A | BF281: N/A | BG281: N/A | BH281: N/A | BI281: N/A | BJ281: N/A | BK281: N/A | BL281: N/A | BM281: N/A | BN281: N/A | BO281: N/A | BP281: N/A | BQ281: N/A | BR281: N/A | BS281: N/A | BT281: N/A | BU281: N/A | BV281: N/A | BW281: N/A | BX281: N/A | BY281: N/A | BZ281: N/A | CA281: N/A | CB281: N/A
BB282: Did not bathe in regular place | BC282: N/A | BD282: N/A | BE282: N/A | BF282: N/A | BG282: N/A | BH282: N/A | BI282: N/A | BJ282: N/A | BK282: N/A | BL282: N/A | BM282: N/A | BN282: N/A | BO282: N/A | BP282: N/A | BQ282: N/A | BR282: N/A | BS282: N/A | BT282: N/A | BU282: N/A | BV282: N/A | BW282: N/A | BX282: N/A | BY282: N/A | BZ282: N/A | CA282: N/A | CB282: N/A
BB283: Did not participate in other activities | BC283: N/A | BD283: N/A | BE283: N/A | BF283: N/A | BG283: N/A | BH283: N/A | BI283: N/A | BJ283: N/A | BK283: N/A | BL283: N/A | BM283: N/A | BN283: N/A | BO283: N/A | BP283: N/A | BQ283: N/A | BR283: N/A | BS283: N/A | BT283: N/A | BU283: N/A | BV283: N/A | BW283: N/A | BX283: N/A | BY283: N/A | BZ283: N/A | CA283: N/A | CB283: N/A
BB284: DK/not sure/missing/no such activity | BC284: N/A | BD284: N/A | BE284: N/A | BF284: N/A | BG284: N/A | BH284: N/A | BI284: N/A | BJ284: N/A | BK284: N/A | BL284: N/A | BM284: N/A | BN284: N/A | BO284: N/A | BP284: N/A | BQ284: N/A | BR284: N/A | BS284: N/A | BT284: N/A | BU284: N/A | BV284: N/A | BW284: N/A | BX284: N/A | BY284: N/A | BZ284: N/A | CA284: N/A | CB284: N/A
BA339: Raw numbers of respondents: | BB339: Basic water, sanitation and hygiene | BC339: NATIONAL wealth index quintile | BH339: URBAN wealth index quintile | BM339: RURAL wealth index quintile | BR339: SUB-REGIONS:
BA340: WatSan data, raw numbers (weighted) | BC340: Poorest | BD340: Poor | BE340: Middle | BF340: Rich | BG340: Richest | BH340: Poorest | BI340: Poor | BJ340: Middle | BK340: Rich | BL340: Richest | BM340: Poorest | BN340: Poor | BO340: Middle | BP340: Rich | BQ340: Richest | BR340: Cabo delgado | BS340: Gaza | BT340: Inhambane | BU340: Manica | BV340: Maputo Cidade | BW340: Maputo Provincia | BX340: Nampula | BY340: Niassa | BZ340: Sofala | CA340: Tete | CB340: Zambezia
BA341: Use of Basic Water Sanitation and Hygiene | BB341: Yes | BC341: N/A | BD341: N/A | BE341: N/A | BF341: N/A | BG341: N/A | BH341: N/A | BI341: N/A | BJ341: N/A | BK341: N/A | BL341: N/A | BM341: N/A | BN341: N/A | BO341: N/A | BP341: N/A | BQ341: N/A | BR341: N/A | BS341: N/A | BT341: N/A | BU341: N/A | BV341: N/A | BW341: N/A | BX341: N/A | BY341: N/A | BZ341: N/A | CA341: N/A | CB341: N/A
BB342: No | BC342: N/A | BD342: N/A | BE342: N/A | BF342: N/A | BG342: N/A | BH342: N/A | BI342: N/A | BJ342: N/A | BK342: N/A | BL342: N/A | BM342: N/A | BN342: N/A | BO342: N/A | BP342: N/A | BQ342: N/A | BR342: N/A | BS342: N/A | BT342: N/A | BU342: N/A | BV342: N/A | BW342: N/A | BX342: N/A | BY342: N/A | BZ342: N/A | CA342: N/A | CB342: N/A
BA343: Use of Basic Water and Sanitation | BB343: Yes | BC343: N/A | BD343: N/A | BE343: N/A | BF343: N/A | BG343: N/A | BH343: N/A | BI343: N/A | BJ343: N/A | BK343: N/A | BL343: N/A | BM343: N/A | BN343: N/A | BO343: N/A | BP343: N/A | BQ343: N/A | BR343: N/A | BS343: N/A | BT343: N/A | BU343: N/A | BV343: N/A | BW343: N/A | BX343: N/A | BY343: N/A | BZ343: N/A | CA343: N/A | CB343: N/A
BB344: No | BC344: N/A | BD344: N/A | BE344: N/A | BF344: N/A | BG344: N/A | BH344: N/A | BI344: N/A | BJ344: N/A | BK344: N/A | BL344: N/A | BM344: N/A | BN344: N/A | BO344: N/A | BP344: N/A | BQ344: N/A | BR344: N/A | BS344: N/A | BT344: N/A | BU344: N/A | BV344: N/A | BW344: N/A | BX344: N/A | BY344: N/A | BZ344: N/A | CA344: N/A | CB344: N/A
BA345: Use of Basic Water and Hygiene | BB345: Yes | BC345: N/A | BD345: N/A | BE345: N/A | BF345: N/A | BG345: N/A | BH345: N/A | BI345: N/A | BJ345: N/A | BK345: N/A | BL345: N/A | BM345: N/A | BN345: N/A | BO345: N/A | BP345: N/A | BQ345: N/A | BR345: N/A | BS345: N/A | BT345: N/A | BU345: N/A | BV345: N/A | BW345: N/A | BX345: N/A | BY345: N/A | BZ345: N/A | CA345: N/A | CB345: N/A
BB346: No | BC346: N/A | BD346: N/A | BE346: N/A | BF346: N/A | BG346: N/A | BH346: N/A | BI346: N/A | BJ346: N/A | BK346: N/A | BL346: N/A | BM346: N/A | BN346: N/A | BO346: N/A | BP346: N/A | BQ346: N/A | BR346: N/A | BS346: N/A | BT346: N/A | BU346: N/A | BV346: N/A | BW346: N/A | BX346: N/A | BY346: N/A | BZ346: N/A | CA346: N/A | CB346: N/A
BA347: Use of Basic Sanitation and Hygiene | BB347: Yes | BC347: N/A | BD347: N/A | BE347: N/A | BF347: N/A | BG347: N/A | BH347: N/A | BI347: N/A | BJ347: N/A | BK347: N/A | BL347: N/A | BM347: N/A | BN347: N/A | BO347: N/A | BP347: N/A | BQ347: N/A | BR347: N/A | BS347: N/A | BT347: N/A | BU347: N/A | BV347: N/A | BW347: N/A | BX347: N/A | BY347: N/A | BZ347: N/A | CA347: N/A | CB347: N/A
BB348: No | BC348: N/A | BD348: N/A | BE348: N/A | BF348: N/A | BG348: N/A | BH348: N/A | BI348: N/A | BJ348: N/A | BK348: N/A | BL348: N/A | BM348: N/A | BN348: N/A | BO348: N/A | BP348: N/A | BQ348: N/A | BR348: N/A | BS348: N/A | BT348: N/A | BU348: N/A | BV348: N/A | BW348: N/A | BX348: N/A | BY348: N/A | BZ348: N/A | CA348: N/A | CB348: N/A
BA349: Use of Basic Water | BB349: Yes | BC349: N/A | BD349: N/A | BE349: N/A | BF349: N/A | BG349: N/A | BH349: N/A | BI349: N/A | BJ349: N/A | BK349: N/A | BL349: N/A | BM349: N/A | BN349: N/A | BO349: N/A | BP349: N/A | BQ349: N/A | BR349: N/A | BS349: N/A | BT349: N/A | BU349: N/A | BV349: N/A | BW349: N/A | BX349: N/A | BY349: N/A | BZ349: N/A | CA349: N/A | CB349: N/A
BB350: No | BC350: N/A | BD350: N/A | BE350: N/A | BF350: N/A | BG350: N/A | BH350: N/A | BI350: N/A | BJ350: N/A | BK350: N/A | BL350: N/A | BM350: N/A | BN350: N/A | BO350: N/A | BP350: N/A | BQ350: N/A | BR350: N/A | BS350: N/A | BT350: N/A | BU350: N/A | BV350: N/A | BW350: N/A | BX350: N/A | BY350: N/A | BZ350: N/A | CA350: N/A | CB350: N/A
BA351: Use of Basic Sanitation | BB351: Yes | BC351: N/A | BD351: N/A | BE351: N/A | BF351: N/A | BG351: N/A | BH351: N/A | BI351: N/A | BJ351: N/A | BK351: N/A | BL351: N/A | BM351: N/A | BN351: N/A | BO351: N/A | BP351: N/A | BQ351: N/A | BR351: N/A | BS351: N/A | BT351: N/A | BU351: N/A | BV351: N/A | BW351: N/A | BX351: N/A | BY351: N/A | BZ351: N/A | CA351: N/A | CB351: N/A
BB352: No | BC352: N/A | BD352: N/A | BE352: N/A | BF352: N/A | BG352: N/A | BH352: N/A | BI352: N/A | BJ352: N/A | BK352: N/A | BL352: N/A | BM352: N/A | BN352: N/A | BO352: N/A | BP352: N/A | BQ352: N/A | BR352: N/A | BS352: N/A | BT352: N/A | BU352: N/A | BV352: N/A | BW352: N/A | BX352: N/A | BY352: N/A | BZ352: N/A | CA352: N/A | CB352: N/A
BA353: Access to Basic Hygiene | BB353: Yes | BC353: N/A | BD353: N/A | BE353: N/A | BF353: N/A | BG353: N/A | BH353: N/A | BI353: N/A | BJ353: N/A | BK353: N/A | BL353: N/A | BM353: N/A | BN353: N/A | BO353: N/A | BP353: N/A | BQ353: N/A | BR353: N/A | BS353: N/A | BT353: N/A | BU353: N/A | BV353: N/A | BW353: N/A | BX353: N/A | BY353: N/A | BZ353: N/A | CA353: N/A | CB353: N/A
BB354: No | BC354: N/A | BD354: N/A | BE354: N/A | BF354: N/A | BG354: N/A | BH354: N/A | BI354: N/A | BJ354: N/A | BK354: N/A | BL354: N/A | BM354: N/A | BN354: N/A | BO354: N/A | BP354: N/A | BQ354: N/A | BR354: N/A | BS354: N/A | BT354: N/A | BU354: N/A | BV354: N/A | BW354: N/A | BX354: N/A | BY354: N/A | BZ354: N/A | CA354: N/A | CB354: N/A
C399: INITIAL (national) Wealth Index | H399: URBAN Wealth Index | M399: RURAL Wealth Index
C400: Component Matrix | H400: Component Matrix | M400: Component Matrix
E401: Component | J401: Component | O401: Component
B402: Note: The INITIAL (national) Wealth Index is based on the first component of the Principal Component Analysis (PCA) which has been obtained at national level. The final national-level (NATIONAL) Wealth Index is based on the URBAN and RURAL specific wealth indexes. Regression procedures are used to establish the relationships between the two sets of scores (urban and rural) and the initial (national) wealth factors. This allows best use of the available information for each area and a better precision of the FINAL (NATIONAL) Wealth Index. For dependency reasons, all WASH variables (contained in the generic MICS and DHS scripts) have been excluded from the sets of asset variables used in the PCAs. The PCA can extracts as many components as there are asset variables in the input. Only the first of the components is used to represent the Wealth Index. The scores represent the weights of the asset variables on the Wealth Index (correlations between the variables and the component). The communalities are the proportion of each variable's variance that can be explained by the component. Proportion of explained variance is the part of the model's total variance that is explained by the component. For more information on the procedure used: The DHS Wealth Index, DHS Comparative Reports No. 6, Shea Oscar Rutstein, Kiersten Johnson, ORC Macro International Inc., 2004. The DHS Wealth Index: Approaches for Rural and Urban Areas, Shea O. Rutstein, ORC Macro International Inc., 2008. MICS Methodological Paper No. 4, Review of options for reporting water, sanitation and hygiene coverage by wealth quintile, UNICEF, 2016. | E402: 1 | J402: 1 | O402: 1
C403: Has television | E403: 0.82306867 | H403: Has refrigerator | J403: 0.8166189614 | M403: if has dirt, sand, dung as principal floor in dwelling | O403: -0.6420322943
C404: Has refrigerator | E404: 0.8174908884 | H404: Has electricity | J404: 0.805487894 | M404: Has television | O404: 0.6267213916
C405: Has electricity | E405: 0.8142787042 | H405: Has television | J405: 0.7993152524 | M405: if has cement principal floor | O405: 0.6224756626
C406: cookwood | E406: -0.7683334245 | H406: if has dirt, sand, dung as principal floor in dwelling | J406: -0.6734362845 | M406: Has refrigerator | O406: 0.5881483997
C407: if has dirt, sand, dung as principal floor in dwelling | E407: -0.7313839206 | H407: cookwood | J407: -0.6626988808 | M407: Has electricity | O407: 0.5445119297
C408: if has cement principal floor | E408: 0.6052171344 | H408: Has telephone | J408: 0.5756990701 | M408: cookwood | O408: -0.4878515343
C409: Has telephone | E409: 0.5669663215 | H409: Has car/truck | J409: 0.5750729111 | M409: cookelec | O409: 0.4362445202
C410: Has car/truck | E410: 0.5499182639 | H410: cookgas | J410: 0.5383244742 | M410: cookcoal | O410: 0.3692046602
C411: cookcoal | E411: 0.5260284886 | H411: if has parquet or polished wood floors | J411: 0.4908025671 | M411: Has telephone | O411: 0.362243274
C412: cookgas | E412: 0.5229264095 | H412: if has cement principal floor | J412: 0.4363568112 | M412: if has parquet or polished wood floors | O412: 0.3598007475
C413: if has parquet or polished wood floors | E413: 0.4781955081 | H413: Has radio | J413: 0.39754598 | M413: Has car/truck | O413: 0.3388409426
C414: Has radio | E414: 0.3387065105 | H414: cookcoal | J414: 0.3206095608 | M414: Has motorcycle/scooter | O414: 0.2323356711
C415: cookelec | E415: 0.303300158 | H415: cookelec | J415: 0.2914126928 | M415: Has radio | O415: 0.193387916
C416: Has motorcycle/scooter | E416: 0.2280100217 | H416: Has motorcycle/scooter | J416: 0.2157598734 | M416: if has tiles for main flooring material | O416: 0.1338017949
C417: if has tiles for main flooring material | E417: 0.2022398177 | H417: if has tiles for main flooring material | J417: 0.2038702828 | M417: if has adobe brick as flooring material | O417: 0.106114702
C418: Number of members per sleeping room | E418: -0.1246293116 | H418: Number of members per sleeping room | J418: -0.1533743566 | M418: cookgas | O418: 0.1047862649
C419: cookkero | E419: 0.1005553677 | H419: if has adobe brick as flooring material | J419: -0.06740440412 | M419: Number of members per sleeping room | O419: -0.101459346
C420: Has bicycle | E420: -0.09723871183 | H420: if has rudimentary wood, plank principal floor in dwelling | J420: 0.06485551828 | M420: cookdung | O420: 0.0853489622
C421: cookchar | E421: 0.06623010064 | H421: Has bicycle | J421: -0.05734855299 | M421: cookchar | O421: 0.07946927272
C422: if has rudimentary wood, plank principal floor in dwelling | E422: 0.06313385667 | H422: cookkero | J422: 0.05243489233 | M422: cookoth | O422: 0.06443050765
C423: if has adobe brick as flooring material | E423: -0.02781047916 | H423: cookchar | J423: 0.02867728699 | M423: cookkero | O423: 0.04323619214
C424: cookoth | E424: 0.004703318778 | H424: cookoth | J424: -0.01884643718 | M424: if (has other type of flooring | O424: 0.008620878958
... 115 more rows

Sheet MICS08
A2: =A1026 -> Mozambique
A3: =A1034 -> 2008
A4: Use of drinking water sources
A5: by wealth quintile and sub-national region
A6: Notes:
A7: WHO/UNICEF JMP customised wealth index excludes water,
A8: sanitation and hygiene assets.
A9: Survey used for analysis: | B9: =A1025 -> MICS08
A10: =B1028 -> 
A11: =B1027 -> 
A14: Use of drinking water sources | C14: NATIONAL wealth index quintile | H14: URBAN wealth index quintile | M14: RURAL wealth index quintile | R14: SUB-REGIONS: | BA14: Raw numbers of respondents: | BB14: Use of drinking water sources | BC14: NATIONAL wealth index quintile | BH14: URBAN wealth index quintile | BM14: RURAL wealth index quintile | BR14: SUB-REGIONS:
A15: Weighted percentage (used in graphs) | C15: Poorest | D15: Poor | E15: Middle | F15: Rich | G15: Richest | H15: Poorest | I15: Poor | J15: Middle | K15: Rich | L15: Richest | M15: Poorest | N15: Poor | O15: Middle | P15: Rich | Q15: Richest | R15: Cabo Delgado | S15: Gaza | T15: Inhambane | U15: Manica | V15: Maputo Cidade | W15: Maputo Província | X15: Nampula | Y15: Niassa | Z15: Sofala | AA15: Tete | AB15: Zambézia | BA15: Water data, raw numbers (weighted) | BC15: Poorest | BD15: Poor | BE15: Middle | BF15: Rich | BG15: Richest | BH15: Poorest | BI15: Poor | BJ15: Middle | BK15: Rich | BL15: Richest | BM15: Poorest | BN15: Poor | BO15: Middle | BP15: Rich | BQ15: Richest | BR15: Cabo Delgado | BS15: Gaza | BT15: Inhambane | BU15: Manica | BV15: Maputo Cidade | BW15: Maputo Província | BX15: Nampula | BY15: Niassa | BZ15: Sofala | CA15: Tete | CB15: Zambézia
A16: Water | B16: Improved | C16: 32.73032959 | D16: 30.72672761 | E16: 34.31747057 | F16: 48.0170275 | G16: 92.51008855 | H16: 42.8005117 | I16: 62.50035707 | J16: 84.3482016 | K16: 96.0287094 | L16: 98.23643742 | M16: 31.22946628 | N16: 29.85341818 | O16: 31.29520913 | P16: 35.15943661 | Q16: 40.24782921 | R16: 36.42415832 | S16: 69.00595182 | T16: 46.26678845 | U16: 37.01871252 | V16: 98.18807106 | W16: 79.996998 | X16: 45.83349459 | Y16: 48.7598128 | Z16: 49.50353174 | AA16: 36.39706636 | AB16: 25.71581788 | BA16: Water | BB16: Improved | BC16: N/A | BD16: N/A | BE16: N/A | BF16: N/A | BG16: N/A | BH16: N/A | BI16: N/A | BJ16: N/A | BK16: N/A | BL16: N/A | BM16: N/A | BN16: N/A | BO16: N/A | BP16: N/A | BQ16: N/A | BR16: N/A | BS16: N/A | BT16: N/A | BU16: N/A | BV16: N/A | BW16: N/A | BX16: N/A | BY16: N/A | BZ16: N/A | CA16: N/A | CB16: N/A
B17: Not Improved | C17: 67.26967041 | D17: 69.27327239 | E17: 65.68252943 | F17: 51.9829725 | G17: 7.489911451 | H17: 57.1994883 | I17: 37.49964293 | J17: 15.6517984 | K17: 3.971290603 | L17: 1.76356258 | M17: 68.77053372 | N17: 70.14658182 | O17: 68.70479087 | P17: 64.84056339 | Q17: 59.75217079 | R17: 63.57584168 | S17: 30.99404818 | T17: 53.73321155 | U17: 62.98128748 | V17: 1.811928939 | W17: 20.003002 | X17: 54.16650541 | Y17: 51.2401872 | Z17: 50.49646826 | AA17: 63.60293364 | AB17: 74.28418212 | BB17: Not Improved | BC17: N/A | BD17: N/A | BE17: N/A | BF17: N/A | BG17: N/A | BH17: N/A | BI17: N/A | BJ17: N/A | BK17: N/A | BL17: N/A | BM17: N/A | BN17: N/A | BO17: N/A | BP17: N/A | BQ17: N/A | BR17: N/A | BS17: N/A | BT17: N/A | BU17: N/A | BV17: N/A | BW17: N/A | BX17: N/A | BY17: N/A | BZ17: N/A | CA17: N/A | CB17: N/A
A18: Water ladder | B18: Basic | C18: =C16*C23/100 -> 18.21327203 | D18: =D16*D23/100 -> 18.84839435 | E18: =E16*E23/100 -> 21.97643797 | F18: 33.57805043 | G18: 83.16314226 | H18: 29.57897078 | I18: 44.92545213 | J18: 69.08397664 | K18: 85.86566672 | L18: 96.45206464 | M18: 16.71891901 | N18: 17.54186979 | O18: 19.13131825 | P18: 22.54722279 | Q18: 27.11468353 | R18: 23.36191966 | S18: 29.7373104 | T18: 26.88789431 | U18: 23.67883058 | V18: 94.34001365 | W18: 75.99954665 | X18: 33.1796762 | Y18: 44.63990442 | Z18: 31.71248183 | AA18: 27.0257783 | AB18: 19.6266227 | BA18: Water ladder | BB18: Basic | BC18: N/A | BD18: N/A | BE18: N/A | BF18: N/A | BG18: N/A | BH18: N/A | BI18: N/A | BJ18: N/A | BK18: N/A | BL18: N/A | BM18: N/A | BN18: N/A | BO18: N/A | BP18: N/A | BQ18: N/A | BR18: N/A | BS18: N/A | BT18: N/A | BU18: N/A | BV18: N/A | BW18: N/A | BX18: N/A | BY18: N/A | BZ18: N/A | CA18: N/A | CB18: N/A
B19: Limited | C19: =C16*C22/100 -> 14.51705757 | D19: =D16*D22/100 -> 11.87833326 | E19: =E16*E22/100 -> 12.3410326 | F19: 14.43897707 | G19: 9.346946286 | H19: 13.22154093 | I19: 17.57490494 | J19: 15.26422497 | K19: 10.16304268 | L19: 1.784372781 | M19: 14.51054727 | N19: 12.31154839 | O19: 12.16389088 | P19: 12.61221382 | Q19: 13.13314568 | R19: 13.06223866 | S19: 39.26864142 | T19: 19.37889414 | U19: 13.33988194 | V19: 3.84805741 | W19: 3.997451352 | X19: 12.65381838 | Y19: 4.119908378 | Z19: 17.79104992 | AA19: 9.37128806 | AB19: 6.089195178 | BB19: Limited | BC19: N/A | BD19: N/A | BE19: N/A | BF19: N/A | BG19: N/A | BH19: N/A | BI19: N/A | BJ19: N/A | BK19: N/A | BL19: N/A | BM19: N/A | BN19: N/A | BO19: N/A | BP19: N/A | BQ19: N/A | BR19: N/A | BS19: N/A | BT19: N/A | BU19: N/A | BV19: N/A | BW19: N/A | BX19: N/A | BY19: N/A | BZ19: N/A | CA19: N/A | CB19: N/A
B20: Unimproved | C20: =100-C18-C19-C21 -> 45.76781262 | D20: =100-D18-D19-D21 -> 44.08716895 | E20: =100-E18-E19-E21 -> 44.86872302 | F20: 39.94019026 | G20: 7.033810941 | H20: 49.93468747 | I20: 31.97180954 | J20: 14.40924803 | K20: 3.837360847 | L20: 1.76356258 | M20: 42.72015636 | N20: 44.78163463 | O20: 45.56443572 | P20: 43.85923845 | Q20: 43.40940172 | R20: 47.35127093 | S20: 19.1861508 | T20: 49.20215928 | U20: 37.541608 | V20: 1.811928939 | W20: 10.47058039 | X20: 41.55916133 | Y20: 27.49204825 | Z20: 38.4664734 | AA20: 35.82263071 | AB20: 49.55180293 | BB20: Unimproved | BC20: N/A | BD20: N/A | BE20: N/A | BF20: N/A | BG20: N/A | BH20: N/A | BI20: N/A | BJ20: N/A | BK20: N/A | BL20: N/A | BM20: N/A | BN20: N/A | BO20: N/A | BP20: N/A | BQ20: N/A | BR20: N/A | BS20: N/A | BT20: N/A | BU20: N/A | BV20: N/A | BW20: N/A | BX20: N/A | BY20: N/A | BZ20: N/A | CA20: N/A | CB20: N/A
B21: Surface water | C21: 21.50185779 | D21: 25.18610344 | E21: 20.81380641 | F21: 12.04278223 | G21: 0.4561005098 | H21: 7.264800825 | I21: 5.527833393 | J21: 1.242550365 | K21: 0.1339297553 | L21: 0 | M21: 26.05037736 | N21: 25.36494719 | O21: 23.14035515 | P21: 20.98132494 | Q21: 16.34276907 | R21: 16.22457075 | S21: 11.80789738 | T21: 4.531052266 | U21: 25.43967948 | V21: 0 | W21: 9.532421603 | X21: 12.60734408 | Y21: 23.74813895 | Z21: 12.02999485 | AA21: 27.78030292 | AB21: 24.73237919 | BB21: Surface water | BC21: N/A | BD21: N/A | BE21: N/A | BF21: N/A | BG21: N/A | BH21: N/A | BI21: N/A | BJ21: N/A | BK21: N/A | BL21: N/A | BM21: N/A | BN21: N/A | BO21: N/A | BP21: N/A | BQ21: N/A | BR21: N/A | BS21: N/A | BT21: N/A | BU21: N/A | BV21: N/A | BW21: N/A | BX21: N/A | BY21: N/A | BZ21: N/A | CA21: N/A | CB21: N/A
A22: Improved water point at more than 30 minutes | B22: Yes | C22: 44.35353309 | D22: 38.65798339 | E22: 35.96137011 | F22: 30.07053502 | G22: 10.10370483 | H22: 30.89108144 | I22: 28.11968726 | J22: 18.09668099 | K22: 10.58333777 | L22: 1.816406241 | M22: 46.46428197 | N22: 41.23999576 | O22: 38.86822048 | P22: 35.87149009 | Q22: 32.63069322 | R22: 35.86147014 | S22: 56.9061659 | T22: 41.88510764 | U22: 36.03551024 | V22: 3.91906814 | W22: 4.997001703 | X22: 27.60823388 | Y22: 8.449393346 | Z22: 35.9389508 | AA22: 25.74737196 | AB22: 23.67879259 | BA22: Improved water point at more than 30 minutes | BB22: Yes | BC22: N/A | BD22: N/A | BE22: N/A | BF22: N/A | BG22: N/A | BH22: N/A | BI22: N/A | BJ22: N/A | BK22: N/A | BL22: N/A | BM22: N/A | BN22: N/A | BO22: N/A | BP22: N/A | BQ22: N/A | BR22: N/A | BS22: N/A | BT22: N/A | BU22: N/A | BV22: N/A | BW22: N/A | BX22: N/A | BY22: N/A | BZ22: N/A | CA22: N/A | CB22: N/A
B23: No | C23: 55.64646691 | D23: 61.34201661 | E23: 64.03862989 | F23: 69.92946498 | G23: 89.89629517 | H23: 69.10891856 | I23: 71.88031274 | J23: 81.90331901 | K23: 89.41666223 | L23: 98.18359376 | M23: 53.53571803 | N23: 58.76000424 | O23: 61.13177952 | P23: 64.12850991 | Q23: 67.36930678 | R23: 64.13852986 | S23: 43.0938341 | T23: 58.11489236 | U23: 63.96448976 | V23: 96.08093186 | W23: 95.0029983 | X23: 72.39176612 | Y23: 91.55060665 | Z23: 64.0610492 | AA23: 74.25262804 | AB23: 76.32120741 | BB23: No | BC23: N/A | BD23: N/A | BE23: N/A | BF23: N/A | BG23: N/A | BH23: N/A | BI23: N/A | BJ23: N/A | BK23: N/A | BL23: N/A | BM23: N/A | BN23: N/A | BO23: N/A | BP23: N/A | BQ23: N/A | BR23: N/A | BS23: N/A | BT23: N/A | BU23: N/A | BV23: N/A | BW23: N/A | BX23: N/A | BY23: N/A | BZ23: N/A | CA23: N/A | CB23: N/A
A24: Manually calculated ratios | B24: Improved wells
B25: Improved springs
B26: Other
C27: NATIONAL wealth index quintile | H27: URBAN wealth index quintile | M27: RURAL wealth index quintile | R27: SUB-REGIONS: | BA27: Raw numbers of respondents: | BB27: Use of drinking water sources | BC27: NATIONAL wealth index quintile | BH27: URBAN wealth index quintile | BM27: RURAL wealth index quintile | BR27: SUB-REGIONS:
A28: Percentage based on weighted population | C28: Poorest | D28: Poor | E28: Middle | F28: Rich | G28: Richest | H28: Poorest | I28: Poor | J28: Middle | K28: Rich | L28: Richest | M28: Poorest | N28: Poor | O28: Middle | P28: Rich | Q28: Richest | R28: Cabo Delgado | S28: Gaza | T28: Inhambane | U28: Manica | V28: Maputo Cidade | W28: Maputo Província | X28: Nampula | Y28: Niassa | Z28: Sofala | AA28: Tete | AB28: Zambézia | BA28: Water data, raw numbers (weighted) | BC28: Poorest | BD28: Poor | BE28: Middle | BF28: Rich | BG28: Richest | BH28: Poorest | BI28: Poor | BJ28: Middle | BK28: Rich | BL28: Richest | BM28: Poorest | BN28: Poor | BO28: Middle | BP28: Rich | BQ28: Richest | BR28: Cabo Delgado | BS28: Gaza | BT28: Inhambane | BU28: Manica | BV28: Maputo Cidade | BW28: Maputo Província | BX28: Nampula | BY28: Niassa | BZ28: Sofala | CA28: Tete | CB28: Zambézia
A29: Piped water | B29: Yes | C29: 6.183431707 | D29: 4.298755823 | E29: 4.904978568 | F29: 18.3586305 | G29: 81.86082669 | H29: 17.45398584 | I29: 38.58290607 | J29: 69.1185569 | K29: 85.86744932 | L29: 92.31219145 | M29: 4.235674414 | N29: 4.020026794 | O29: 3.678999218 | P29: 5.036269532 | Q29: 7.725814401 | R29: 10.00401985 | S29: 28.90014134 | T29: 14.00862541 | U29: 9.457801143 | V29: 93.32294551 | W29: 57.95835517 | X29: 18.8134944 | Y29: 8.634025357 | Z29: 32.08704131 | AA29: 10.75687164 | AB29: 8.94031161 | BA29: Piped water | BB29: Yes | BC29: N/A | BD29: N/A | BE29: N/A | BF29: N/A | BG29: N/A | BH29: N/A | BI29: N/A | BJ29: N/A | BK29: N/A | BL29: N/A | BM29: N/A | BN29: N/A | BO29: N/A | BP29: N/A | BQ29: N/A | BR29: N/A | BS29: N/A | BT29: N/A | BU29: N/A | BV29: N/A | BW29: N/A | BX29: N/A | BY29: N/A | BZ29: N/A | CA29: N/A | CB29: N/A
B30: No | C30: 93.81656829 | D30: 95.70124418 | E30: 95.09502143 | F30: 81.6413695 | G30: 18.13917331 | H30: 82.54601416 | I30: 61.41709393 | J30: 30.8814431 | K30: 14.13255068 | L30: 7.687808553 | M30: 95.76432559 | N30: 95.97997321 | O30: 96.32100078 | P30: 94.96373047 | Q30: 92.2741856 | R30: 89.99598015 | S30: 71.09985866 | T30: 85.99137459 | U30: 90.54219886 | V30: 6.677054492 | W30: 42.04164483 | X30: 81.1865056 | Y30: 91.36597464 | Z30: 67.91295869 | AA30: 89.24312836 | AB30: 91.05968839 | BB30: No | BC30: N/A | BD30: N/A | BE30: N/A | BF30: N/A | BG30: N/A | BH30: N/A | BI30: N/A | BJ30: N/A | BK30: N/A | BL30: N/A | BM30: N/A | BN30: N/A | BO30: N/A | BP30: N/A | BQ30: N/A | BR30: N/A | BS30: N/A | BT30: N/A | BU30: N/A | BV30: N/A | BW30: N/A | BX30: N/A | BY30: N/A | BZ30: N/A | CA30: N/A | CB30: N/A
A31: Piped water on premises | B31: Yes | C31: 0.3019515126 | D31: 0.1199934873 | E31: 0.4220656289 | F31: 2.698242418 | G31: 35.38620862 | H31: 1.496899482 | I31: 6.180743154 | J31: 14.81546861 | K31: 29.44002063 | L31: 63.70230381 | M31: 0 | N31: 0.139267176 | O31: 0.3670084428 | P31: 0.2871472225 | Q31: 0.9946061359 | R31: 1.883256803 | S31: 7.704530121 | T31: 4.002431508 | U31: 2.208573271 | V31: 44.73415394 | W31: 26.06320243 | X31: 5.945729385 | Y31: 1.495829171 | Z31: 9.97224419 | AA31: 0.5479428782 | AB31: 1.184039815 | BA31: Piped water on premises | BB31: Yes | BC31: N/A | BD31: N/A | BE31: N/A | BF31: N/A | BG31: N/A | BH31: N/A | BI31: N/A | BJ31: N/A | BK31: N/A | BL31: N/A | BM31: N/A | BN31: N/A | BO31: N/A | BP31: N/A | BQ31: N/A | BR31: N/A | BS31: N/A | BT31: N/A | BU31: N/A | BV31: N/A | BW31: N/A | BX31: N/A | BY31: N/A | BZ31: N/A | CA31: N/A | CB31: N/A
B32: No | C32: 99.69804849 | D32: 99.88000651 | E32: 99.57793437 | F32: 97.30175758 | G32: 64.61379138 | H32: 98.50310052 | I32: 93.81925685 | J32: 85.18453139 | K32: 70.55997937 | L32: 36.29769619 | M32: 100 | N32: 99.86073282 | O32: 99.63299156 | P32: 99.71285278 | Q32: 99.00539386 | R32: 98.1167432 | S32: 92.29546988 | T32: 95.99756849 | U32: 97.79142673 | V32: 55.26584606 | W32: 73.93679757 | X32: 94.05427062 | Y32: 98.50417083 | Z32: 90.02775581 | AA32: 99.45205712 | AB32: 98.81596018 | BB32: No | BC32: N/A | BD32: N/A | BE32: N/A | BF32: N/A | BG32: N/A | BH32: N/A | BI32: N/A | BJ32: N/A | BK32: N/A | BL32: N/A | BM32: N/A | BN32: N/A | BO32: N/A | BP32: N/A | BQ32: N/A | BR32: N/A | BS32: N/A | BT32: N/A | BU32: N/A | BV32: N/A | BW32: N/A | BX32: N/A | BY32: N/A | BZ32: N/A | CA32: N/A | CB32: N/A
A33: Piped water into dwelling | B33: Yes | C33: N/A | D33: N/A | E33: N/A | F33: N/A | G33: N/A | H33: N/A | I33: N/A | J33: N/A | K33: N/A | L33: N/A | M33: N/A | N33: N/A | O33: N/A | P33: N/A | Q33: N/A | R33: N/A | S33: N/A | T33: N/A | U33: N/A | V33: N/A | W33: N/A | X33: N/A | Y33: N/A | Z33: N/A | AA33: N/A | AB33: N/A | BA33: Piped water into dwelling | BB33: Yes | BC33: N/A | BD33: N/A | BE33: N/A | BF33: N/A | BG33: N/A | BH33: N/A | BI33: N/A | BJ33: N/A | BK33: N/A | BL33: N/A | BM33: N/A | BN33: N/A | BO33: N/A | BP33: N/A | BQ33: N/A | BR33: N/A | BS33: N/A | BT33: N/A | BU33: N/A | BV33: N/A | BW33: N/A | BX33: N/A | BY33: N/A | BZ33: N/A | CA33: N/A | CB33: N/A
B34: No | C34: N/A | D34: N/A | E34: N/A | F34: N/A | G34: N/A | H34: N/A | I34: N/A | J34: N/A | K34: N/A | L34: N/A | M34: N/A | N34: N/A | O34: N/A | P34: N/A | Q34: N/A | R34: N/A | S34: N/A | T34: N/A | U34: N/A | V34: N/A | W34: N/A | X34: N/A | Y34: N/A | Z34: N/A | AA34: N/A | AB34: N/A | BB34: No | BC34: N/A | BD34: N/A | BE34: N/A | BF34: N/A | BG34: N/A | BH34: N/A | BI34: N/A | BJ34: N/A | BK34: N/A | BL34: N/A | BM34: N/A | BN34: N/A | BO34: N/A | BP34: N/A | BQ34: N/A | BR34: N/A | BS34: N/A | BT34: N/A | BU34: N/A | BV34: N/A | BW34: N/A | BX34: N/A | BY34: N/A | BZ34: N/A | CA34: N/A | CB34: N/A
A35: Water source on premises | B35: Yes | C35: 3.294788842 | D35: 1.526640064 | E35: 2.09548239 | F35: 5.279880336 | G35: 39.4607177 | H35: 4.226586089 | I35: 10.4825742 | J35: 20.56512431 | K35: 32.73505987 | L35: 66.81696685 | M35: 3.268009526 | N35: 1.891231626 | O35: 1.562715486 | P35: 2.057880969 | Q35: 2.609624973 | R35: 4.473381087 | S35: 9.575991682 | T35: 11.64575574 | U35: 7.495984393 | V35: 46.00756722 | W35: 31.67604566 | X35: 6.367251807 | Y35: 6.790519844 | Z35: 12.70360644 | AA35: 0.5479428782 | AB35: 2.946636753 | BA35: Water source on premises | BB35: Yes | BC35: N/A | BD35: N/A | BE35: N/A | BF35: N/A | BG35: N/A | BH35: N/A | BI35: N/A | BJ35: N/A | BK35: N/A | BL35: N/A | BM35: N/A | BN35: N/A | BO35: N/A | BP35: N/A | BQ35: N/A | BR35: N/A | BS35: N/A | BT35: N/A | BU35: N/A | BV35: N/A | BW35: N/A | BX35: N/A | BY35: N/A | BZ35: N/A | CA35: N/A | CB35: N/A
B36: No | C36: 96.70521116 | D36: 98.47335994 | E36: 97.90451761 | F36: 94.72011966 | G36: 60.5392823 | H36: 95.77341391 | I36: 89.5174258 | J36: 79.43487569 | K36: 67.26494013 | L36: 33.18303315 | M36: 96.73199047 | N36: 98.10876837 | O36: 98.43728451 | P36: 97.94211903 | Q36: 97.39037503 | R36: 95.52661891 | S36: 90.42400832 | T36: 88.35424426 | U36: 92.50401561 | V36: 53.99243278 | W36: 68.32395434 | X36: 93.63274819 | Y36: 93.20948016 | Z36: 87.29639356 | AA36: 99.45205712 | AB36: 97.05336325 | BB36: No | BC36: N/A | BD36: N/A | BE36: N/A | BF36: N/A | BG36: N/A | BH36: N/A | BI36: N/A | BJ36: N/A | BK36: N/A | BL36: N/A | BM36: N/A | BN36: N/A | BO36: N/A | BP36: N/A | BQ36: N/A | BR36: N/A | BS36: N/A | BT36: N/A | BU36: N/A | BV36: N/A | BW36: N/A | BX36: N/A | BY36: N/A | BZ36: N/A | CA36: N/A | CB36: N/A
A37: Improved Water source on premises | B37: Yes | C37: 3.509396011 | D37: 1.069761693 | E37: 2.752121011 | F37: 7.918557999 | G37: 41.14532362 | H37: 6.08426103 | I37: 13.35501154 | J37: 21.04898424 | K37: 33.05553587 | L37: 67.63140181 | M37: 2.42612675 | N37: 1.250077973 | O37: 2.560203488 | P37: 1.76711882 | Q37: 4.325472715 | R37: 5.936911838 | S37: 12.43749846 | T37: 17.54946675 | U37: 9.775245894 | V37: 46.37530457 | W37: 38.64283529 | X37: 13.55727955 | Y37: 6.706509355 | Z37: 21.03242311 | AA37: 1.505458909 | AB37: 6.511018363 | BA37: Improved water source on premises | BB37: Yes | BC37: N/A | BD37: N/A | BE37: N/A | BF37: N/A | BG37: N/A | BH37: N/A | BI37: N/A | BJ37: N/A | BK37: N/A | BL37: N/A | BM37: N/A | BN37: N/A | BO37: N/A | BP37: N/A | BQ37: N/A | BR37: N/A | BS37: N/A | BT37: N/A | BU37: N/A | BV37: N/A | BW37: N/A | BX37: N/A | BY37: N/A | BZ37: N/A | CA37: N/A | CB37: N/A
B38: No | C38: 96.49060399 | D38: 98.93023831 | E38: 97.24787899 | F38: 92.081442 | G38: 58.85467638 | H38: 93.91573897 | I38: 86.64498846 | J38: 78.95101576 | K38: 66.94446413 | L38: 32.36859819 | M38: 97.57387325 | N38: 98.74992203 | O38: 97.43979651 | P38: 98.23288118 | Q38: 95.67452729 | R38: 94.06308816 | S38: 87.56250154 | T38: 82.45053325 | U38: 90.22475411 | V38: 53.62469543 | W38: 61.35716471 | X38: 86.44272045 | Y38: 93.29349065 | Z38: 78.96757689 | AA38: 98.49454109 | AB38: 93.48898164 | BB38: No | BC38: N/A | BD38: N/A | BE38: N/A | BF38: N/A | BG38: N/A | BH38: N/A | BI38: N/A | BJ38: N/A | BK38: N/A | BL38: N/A | BM38: N/A | BN38: N/A | BO38: N/A | BP38: N/A | BQ38: N/A | BR38: N/A | BS38: N/A | BT38: N/A | BU38: N/A | BV38: N/A | BW38: N/A | BX38: N/A | BY38: N/A | BZ38: N/A | CA38: N/A | CB38: N/A
A39: Piped water on premises available when needed | B39: Yes | C39: N/A | D39: N/A | E39: N/A | F39: N/A | G39: N/A | H39: N/A | I39: N/A | J39: N/A | K39: N/A | L39: N/A | M39: N/A | N39: N/A | O39: N/A | P39: N/A | Q39: N/A | R39: N/A | S39: N/A | T39: N/A | U39: N/A | V39: N/A | W39: N/A | X39: N/A | Y39: N/A | Z39: N/A | AA39: N/A | AB39: N/A | BA39: Piped water on premises available when needed | BB39: Yes | BC39: N/A | BD39: N/A | BE39: N/A | BF39: N/A | BG39: N/A | BH39: N/A | BI39: N/A | BJ39: N/A | BK39: N/A | BL39: N/A | BM39: N/A | BN39: N/A | BO39: N/A | BP39: N/A | BQ39: N/A | BR39: N/A | BS39: N/A | BT39: N/A | BU39: N/A | BV39: N/A | BW39: N/A | BX39: N/A | BY39: N/A | BZ39: N/A | CA39: N/A | CB39: N/A
B40: No | C40: N/A | D40: N/A | E40: N/A | F40: N/A | G40: N/A | H40: N/A | I40: N/A | J40: N/A | K40: N/A | L40: N/A | M40: N/A | N40: N/A | O40: N/A | P40: N/A | Q40: N/A | R40: N/A | S40: N/A | T40: N/A | U40: N/A | V40: N/A | W40: N/A | X40: N/A | Y40: N/A | Z40: N/A | AA40: N/A | AB40: N/A | BB40: No | BC40: N/A | BD40: N/A | BE40: N/A | BF40: N/A | BG40: N/A | BH40: N/A | BI40: N/A | BJ40: N/A | BK40: N/A | BL40: N/A | BM40: N/A | BN40: N/A | BO40: N/A | BP40: N/A | BQ40: N/A | BR40: N/A | BS40: N/A | BT40: N/A | BU40: N/A | BV40: N/A | BW40: N/A | BX40: N/A | BY40: N/A | BZ40: N/A | CA40: N/A | CB40: N/A
A41: Water point at more than 30 minutes | B41: Yes | C41: 42.2593428 | D41: 44.79585081 | E41: 43.95003296 | F41: 39.35916857 | G41: 10.93906196 | H41: 37.32056592 | I41: 34.11230285 | J41: 18.90141153 | K41: 10.47832648 | L41: 2.199547242 | M41: 42.61949947 | N41: 43.34854119 | O41: 45.96673597 | P41: 44.09173951 | Q41: 43.20290461 | R41: 45.08296103 | S41: 59.67071414 | T41: 42.37530693 | U41: 39.44955235 | V41: 3.970518885 | W41: 11.2089041 | X41: 50.20812637 | Y41: 11.85134896 | Z41: 44.22580191 | AA41: 29.96460047 | AB41: 31.29464515 | BA41: Water point at more than 30 minutes | BB41: Yes | BC41: N/A | BD41: N/A | BE41: N/A | BF41: N/A | BG41: N/A | BH41: N/A | BI41: N/A | BJ41: N/A | BK41: N/A | BL41: N/A | BM41: N/A | BN41: N/A | BO41: N/A | BP41: N/A | BQ41: N/A | BR41: N/A | BS41: N/A | BT41: N/A | BU41: N/A | BV41: N/A | BW41: N/A | BX41: N/A | BY41: N/A | BZ41: N/A | CA41: N/A | CB41: N/A
B42: No | C42: 57.7406572 | D42: 55.20414919 | E42: 56.04996704 | F42: 60.64083143 | G42: 89.06093804 | H42: 62.67943408 | I42: 65.88769715 | J42: 81.09858847 | K42: 89.52167352 | L42: 97.80045276 | M42: 57.38050053 | N42: 56.65145881 | O42: 54.03326403 | P42: 55.90826049 | Q42: 56.79709539 | R42: 54.91703897 | S42: 40.32928586 | T42: 57.62469307 | U42: 60.55044765 | V42: 96.02948111 | W42: 88.7910959 | X42: 49.79187363 | Y42: 88.14865104 | Z42: 55.77419809 | AA42: 70.03539953 | AB42: 68.70535485 | BB42: No | BC42: N/A | BD42: N/A | BE42: N/A | BF42: N/A | BG42: N/A | BH42: N/A | BI42: N/A | BJ42: N/A | BK42: N/A | BL42: N/A | BM42: N/A | BN42: N/A | BO42: N/A | BP42: N/A | BQ42: N/A | BR42: N/A | BS42: N/A | BT42: N/A | BU42: N/A | BV42: N/A | BW42: N/A | BX42: N/A | BY42: N/A | BZ42: N/A | CA42: N/A | CB42: N/A
A43: Water source available when needed | B43: Yes | C43: N/A | D43: N/A | E43: N/A | F43: N/A | G43: N/A | H43: N/A | I43: N/A | J43: N/A | K43: N/A | L43: N/A | M43: N/A | N43: N/A | O43: N/A | P43: N/A | Q43: N/A | R43: N/A | S43: N/A | T43: N/A | U43: N/A | V43: N/A | W43: N/A | X43: N/A | Y43: N/A | Z43: N/A | AA43: N/A | AB43: N/A | BA43: Water source available when needed | BB43: Yes | BC43: N/A | BD43: N/A | BE43: N/A | BF43: N/A | BG43: N/A | BH43: N/A | BI43: N/A | BJ43: N/A | BK43: N/A | BL43: N/A | BM43: N/A | BN43: N/A | BO43: N/A | BP43: N/A | BQ43: N/A | BR43: N/A | BS43: N/A | BT43: N/A | BU43: N/A | BV43: N/A | BW43: N/A | BX43: N/A | BY43: N/A | BZ43: N/A | CA43: N/A | CB43: N/A
B44: No | C44: N/A | D44: N/A | E44: N/A | F44: N/A | G44: N/A | H44: N/A | I44: N/A | J44: N/A | K44: N/A | L44: N/A | M44: N/A | N44: N/A | O44: N/A | P44: N/A | Q44: N/A | R44: N/A | S44: N/A | T44: N/A | U44: N/A | V44: N/A | W44: N/A | X44: N/A | Y44: N/A | Z44: N/A | AA44: N/A | AB44: N/A | BB44: No | BC44: N/A | BD44: N/A | BE44: N/A | BF44: N/A | BG44: N/A | BH44: N/A | BI44: N/A | BJ44: N/A | BK44: N/A | BL44: N/A | BM44: N/A | BN44: N/A | BO44: N/A | BP44: N/A | BQ44: N/A | BR44: N/A | BS44: N/A | BT44: N/A | BU44: N/A | BV44: N/A | BW44: N/A | BX44: N/A | BY44: N/A | BZ44: N/A | CA44: N/A | CB44: N/A
A45: Improved water source available when needed | B45: Yes | C45: N/A | D45: N/A | E45: N/A | F45: N/A | G45: N/A | H45: N/A | I45: N/A | J45: N/A | K45: N/A | L45: N/A | M45: N/A | N45: N/A | O45: N/A | P45: N/A | Q45: N/A | R45: N/A | S45: N/A | T45: N/A | U45: N/A | V45: N/A | W45: N/A | X45: N/A | Y45: N/A | Z45: N/A | AA45: N/A | AB45: N/A | BA45: Improved water source available when needed | BB45: Yes | BC45: N/A | BD45: N/A | BE45: N/A | BF45: N/A | BG45: N/A | BH45: N/A | BI45: N/A | BJ45: N/A | BK45: N/A | BL45: N/A | BM45: N/A | BN45: N/A | BO45: N/A | BP45: N/A | BQ45: N/A | BR45: N/A | BS45: N/A | BT45: N/A | BU45: N/A | BV45: N/A | BW45: N/A | BX45: N/A | BY45: N/A | BZ45: N/A | CA45: N/A | CB45: N/A
B46: No | C46: N/A | D46: N/A | E46: N/A | F46: N/A | G46: N/A | H46: N/A | I46: N/A | J46: N/A | K46: N/A | L46: N/A | M46: N/A | N46: N/A | O46: N/A | P46: N/A | Q46: N/A | R46: N/A | S46: N/A | T46: N/A | U46: N/A | V46: N/A | W46: N/A | X46: N/A | Y46: N/A | Z46: N/A | AA46: N/A | AB46: N/A | BB46: No | BC46: N/A | BD46: N/A | BE46: N/A | BF46: N/A | BG46: N/A | BH46: N/A | BI46: N/A | BJ46: N/A | BK46: N/A | BL46: N/A | BM46: N/A | BN46: N/A | BO46: N/A | BP46: N/A | BQ46: N/A | BR46: N/A | BS46: N/A | BT46: N/A | BU46: N/A | BV46: N/A | BW46: N/A | BX46: N/A | BY46: N/A | BZ46: N/A | CA46: N/A | CB46: N/A
A47: Microbiological quality at point of collection | B47: Not contaminated (No E. coli in 100 mL) | C47: N/A | D47: N/A | E47: N/A | F47: N/A | G47: N/A | H47: N/A | I47: N/A | J47: N/A | K47: N/A | L47: N/A | M47: N/A | N47: N/A | O47: N/A | P47: N/A | Q47: N/A | R47: N/A | S47: N/A | T47: N/A | U47: N/A | V47: N/A | W47: N/A | X47: N/A | Y47: N/A | Z47: N/A | AA47: N/A | AB47: N/A | BA47: Microbiological quality at point of collection | BB47: Not contaminated (No E. coli in 100 mL) | BC47: N/A | BD47: N/A | BE47: N/A | BF47: N/A | BG47: N/A | BH47: N/A | BI47: N/A | BJ47: N/A | BK47: N/A | BL47: N/A | BM47: N/A | BN47: N/A | BO47: N/A | BP47: N/A | BQ47: N/A | BR47: N/A | BS47: N/A | BT47: N/A | BU47: N/A | BV47: N/A | BW47: N/A | BX47: N/A | BY47: N/A | BZ47: N/A | CA47: N/A | CB47: N/A
B48: Contaminated (E. coli detected in 100 mL) | C48: N/A | D48: N/A | E48: N/A | F48: N/A | G48: N/A | H48: N/A | I48: N/A | J48: N/A | K48: N/A | L48: N/A | M48: N/A | N48: N/A | O48: N/A | P48: N/A | Q48: N/A | R48: N/A | S48: N/A | T48: N/A | U48: N/A | V48: N/A | W48: N/A | X48: N/A | Y48: N/A | Z48: N/A | AA48: N/A | AB48: N/A | BB48: Contaminated (E. coli detected in 100 mL) | BC48: N/A | BD48: N/A | BE48: N/A | BF48: N/A | BG48: N/A | BH48: N/A | BI48: N/A | BJ48: N/A | BK48: N/A | BL48: N/A | BM48: N/A | BN48: N/A | BO48: N/A | BP48: N/A | BQ48: N/A | BR48: N/A | BS48: N/A | BT48: N/A | BU48: N/A | BV48: N/A | BW48: N/A | BX48: N/A | BY48: N/A | BZ48: N/A | CA48: N/A | CB48: N/A
B49: Highly contaminated (>100 CFU/100 mL) | C49: N/A | D49: N/A | E49: N/A | F49: N/A | G49: N/A | H49: N/A | I49: N/A | J49: N/A | K49: N/A | L49: N/A | M49: N/A | N49: N/A | O49: N/A | P49: N/A | Q49: N/A | R49: N/A | S49: N/A | T49: N/A | U49: N/A | V49: N/A | W49: N/A | X49: N/A | Y49: N/A | Z49: N/A | AA49: N/A | AB49: N/A | BB49: Highly contaminated (>100 CFU/100 mL) | BC49: N/A | BD49: N/A | BE49: N/A | BF49: N/A | BG49: N/A | BH49: N/A | BI49: N/A | BJ49: N/A | BK49: N/A | BL49: N/A | BM49: N/A | BN49: N/A | BO49: N/A | BP49: N/A | BQ49: N/A | BR49: N/A | BS49: N/A | BT49: N/A | BU49: N/A | BV49: N/A | BW49: N/A | BX49: N/A | BY49: N/A | BZ49: N/A | CA49: N/A | CB49: N/A
A50: Microbiological quality of improved water sources at point of collection | B50: Not contaminated (No E. coli in 100 mL) | C50: N/A | D50: N/A | E50: N/A | F50: N/A | G50: N/A | H50: N/A | I50: N/A | J50: N/A | K50: N/A | L50: N/A | M50: N/A | N50: N/A | O50: N/A | P50: N/A | Q50: N/A | R50: N/A | S50: N/A | T50: N/A | U50: N/A | V50: N/A | W50: N/A | X50: N/A | Y50: N/A | Z50: N/A | AA50: N/A | AB50: N/A | BA50: Microbiological quality of improved water sources at point of collection | BB50: Not contaminated (No E. coli in 100 mL) | BC50: N/A | BD50: N/A | BE50: N/A | BF50: N/A | BG50: N/A | BH50: N/A | BI50: N/A | BJ50: N/A | BK50: N/A | BL50: N/A | BM50: N/A | BN50: N/A | BO50: N/A | BP50: N/A | BQ50: N/A | BR50: N/A | BS50: N/A | BT50: N/A | BU50: N/A | BV50: N/A | BW50: N/A | BX50: N/A | BY50: N/A | BZ50: N/A | CA50: N/A | CB50: N/A
B51: Contaminated (E. coli detected in 100 mL) | C51: N/A | D51: N/A | E51: N/A | F51: N/A | G51: N/A | H51: N/A | I51: N/A | J51: N/A | K51: N/A | L51: N/A | M51: N/A | N51: N/A | O51: N/A | P51: N/A | Q51: N/A | R51: N/A | S51: N/A | T51: N/A | U51: N/A | V51: N/A | W51: N/A | X51: N/A | Y51: N/A | Z51: N/A | AA51: N/A | AB51: N/A | BB51: Contaminated (E. coli detected in 100 mL) | BC51: N/A | BD51: N/A | BE51: N/A | BF51: N/A | BG51: N/A | BH51: N/A | BI51: N/A | BJ51: N/A | BK51: N/A | BL51: N/A | BM51: N/A | BN51: N/A | BO51: N/A | BP51: N/A | BQ51: N/A | BR51: N/A | BS51: N/A | BT51: N/A | BU51: N/A | BV51: N/A | BW51: N/A | BX51: N/A | BY51: N/A | BZ51: N/A | CA51: N/A | CB51: N/A
B52: Highly contaminated (>100 CFU/100 mL) | C52: N/A | D52: N/A | E52: N/A | F52: N/A | G52: N/A | H52: N/A | I52: N/A | J52: N/A | K52: N/A | L52: N/A | M52: N/A | N52: N/A | O52: N/A | P52: N/A | Q52: N/A | R52: N/A | S52: N/A | T52: N/A | U52: N/A | V52: N/A | W52: N/A | X52: N/A | Y52: N/A | Z52: N/A | AA52: N/A | AB52: N/A | BB52: Highly contaminated (>100 CFU/100 mL) | BC52: N/A | BD52: N/A | BE52: N/A | BF52: N/A | BG52: N/A | BH52: N/A | BI52: N/A | BJ52: N/A | BK52: N/A | BL52: N/A | BM52: N/A | BN52: N/A | BO52: N/A | BP52: N/A | BQ52: N/A | BR52: N/A | BS52: N/A | BT52: N/A | BU52: N/A | BV52: N/A | BW52: N/A | BX52: N/A | BY52: N/A | BZ52: N/A | CA52: N/A | CB52: N/A
A53: Microbiological quality of piped on premises at point of collection | B53: Not contaminated (No E. coli in 100 mL) | C53: N/A | D53: N/A | E53: N/A | F53: N/A | G53: N/A | H53: N/A | I53: N/A | J53: N/A | K53: N/A | L53: N/A | M53: N/A | N53: N/A | O53: N/A | P53: N/A | Q53: N/A | R53: N/A | S53: N/A | T53: N/A | U53: N/A | V53: N/A | W53: N/A | X53: N/A | Y53: N/A | Z53: N/A | AA53: N/A | AB53: N/A | BA53: Microbiological quality of piped on premises at point of collection | BB53: Not contaminated (No E. coli in 100 mL) | BC53: N/A | BD53: N/A | BE53: N/A | BF53: N/A | BG53: N/A | BH53: N/A | BI53: N/A | BJ53: N/A | BK53: N/A | BL53: N/A | BM53: N/A | BN53: N/A | BO53: N/A | BP53: N/A | BQ53: N/A | BR53: N/A | BS53: N/A | BT53: N/A | BU53: N/A | BV53: N/A | BW53: N/A | BX53: N/A | BY53: N/A | BZ53: N/A | CA53: N/A | CB53: N/A
B54: Contaminated (E. coli detected in 100 mL) | C54: N/A | D54: N/A | E54: N/A | F54: N/A | G54: N/A | H54: N/A | I54: N/A | J54: N/A | K54: N/A | L54: N/A | M54: N/A | N54: N/A | O54: N/A | P54: N/A | Q54: N/A | R54: N/A | S54: N/A | T54: N/A | U54: N/A | V54: N/A | W54: N/A | X54: N/A | Y54: N/A | Z54: N/A | AA54: N/A | AB54: N/A | BB54: Contaminated (E. coli detected in 100 mL) | BC54: N/A | BD54: N/A | BE54: N/A | BF54: N/A | BG54: N/A | BH54: N/A | BI54: N/A | BJ54: N/A | BK54: N/A | BL54: N/A | BM54: N/A | BN54: N/A | BO54: N/A | BP54: N/A | BQ54: N/A | BR54: N/A | BS54: N/A | BT54: N/A | BU54: N/A | BV54: N/A | BW54: N/A | BX54: N/A | BY54: N/A | BZ54: N/A | CA54: N/A | CB54: N/A
B55: Highly contaminated (>100 CFU/100 mL) | C55: N/A | D55: N/A | E55: N/A | F55: N/A | G55: N/A | H55: N/A | I55: N/A | J55: N/A | K55: N/A | L55: N/A | M55: N/A | N55: N/A | O55: N/A | P55: N/A | Q55: N/A | R55: N/A | S55: N/A | T55: N/A | U55: N/A | V55: N/A | W55: N/A | X55: N/A | Y55: N/A | Z55: N/A | AA55: N/A | AB55: N/A | BB55: Highly contaminated (>100 CFU/100 mL) | BC55: N/A | BD55: N/A | BE55: N/A | BF55: N/A | BG55: N/A | BH55: N/A | BI55: N/A | BJ55: N/A | BK55: N/A | BL55: N/A | BM55: N/A | BN55: N/A | BO55: N/A | BP55: N/A | BQ55: N/A | BR55: N/A | BS55: N/A | BT55: N/A | BU55: N/A | BV55: N/A | BW55: N/A | BX55: N/A | BY55: N/A | BZ55: N/A | CA55: N/A | CB55: N/A
C56: NATIONAL wealth index quintile | H56: URBAN wealth index quintile | M56: RURAL wealth index quintile | R56: SUB-REGIONS: | BA56: Raw numbers of respondents: | BB56: Use of drinking water sources | BC56: NATIONAL wealth index quintile | BH56: URBAN wealth index quintile | BM56: RURAL wealth index quintile | BR56: SUB-REGIONS:
A57: Percentage based on weighted population | C57: Poorest | D57: Poor | E57: Middle | F57: Rich | G57: Richest | H57: Poorest | I57: Poor | J57: Middle | K57: Rich | L57: Richest | M57: Poorest | N57: Poor | O57: Middle | P57: Rich | Q57: Richest | R57: Cabo Delgado | S57: Gaza | T57: Inhambane | U57: Manica | V57: Maputo Cidade | W57: Maputo Província | X57: Nampula | Y57: Niassa | Z57: Sofala | AA57: Tete | AB57: Zambézia | BA57: Water data, raw numbers (weighted) | BC57: Poorest | BD57: Poor | BE57: Middle | BF57: Rich | BG57: Richest | BH57: Poorest | BI57: Poor | BJ57: Middle | BK57: Rich | BL57: Richest | BM57: Poorest | BN57: Poor | BO57: Middle | BP57: Rich | BQ57: Richest | BR57: Cabo Delgado | BS57: Gaza | BT57: Inhambane | BU57: Manica | BV57: Maputo Cidade | BW57: Maputo Província | BX57: Nampula | BY57: Niassa | BZ57: Sofala | CA57: Tete | CB57: Zambézia
A58: Qual a principal fonte de abastecimento de agua usada p | B58: Dentro da casa | C58: 0.1139244909 | D58: 0.02608803666 | E58: 0 | F58: 0.3477257684 | G58: 9.842225844 | H58: 0.3576997174 | I58: 0.5512780395 | J58: 1.75936351 | K58: 4.473345718 | L58: 23.91697202 | M58: 0 | N58: 0 | O58: 0.0387167744 | P58: 0 | Q58: 0.2564620393 | R58: 0.4732209035 | S58: 1.333924893 | T58: 0.6043859291 | U58: 0.8305104829 | V58: 14.45442909 | W58: 4.056180789 | X58: 2.074455034 | Y58: 1.080020368 | Z58: 2.667954502 | AA58: 0.03265650706 | AB58: 0.2671316925
B59: Fora da casa/quintal | C59: 0.1880270217 | D59: 0.09390545067 | E59: 0.4220656289 | F59: 2.35051665 | G59: 25.16725769 | H59: 1.139199765 | I59: 5.629465114 | J59: 13.0561051 | K59: 24.96667491 | L59: 38.63020092 | M59: 0 | N59: 0.139267176 | O59: 0.3282916684 | P59: 0.2871472225 | Q59: 0.7381440966 | R59: 1.4100359 | S59: 6.370605228 | T59: 3.398045579 | U59: 1.378062788 | V59: 29.09210788 | W59: 21.88508572 | X59: 3.871274351 | Y59: 0.4158088028 | Z59: 7.304289688 | AA59: 0.5152863712 | AB59: 0.9169081228
B60: Torneira pública/fontanário | C60: 5.23175931 | D60: 4.025422675 | E60: 3.893257334 | F60: 10.84537786 | G60: 21.82287012 | H60: 12.87920314 | I60: 20.45205508 | J60: 29.80051983 | K60: 24.16933848 | L60: 11.12646635 | M60: 4.020633888 | N60: 3.700714283 | O60: 3.129171332 | P60: 4.154867494 | Q60: 5.333289512 | R60: 5.108764649 | S60: 16.10510193 | T60: 6.05149192 | U60: 5.40294545 | V60: 24.36490006 | W60: 12.04089749 | X60: 7.624485968 | Y60: 5.332974451 | Z60: 13.96491809 | AA60: 8.607565625 | AB60: 5.088668685
B61: Na casa do vizinho | C61: 0.6497208848 | D61: 0.1533396606 | E61: 0.5896556048 | F61: 4.815010223 | G61: 24.64036873 | H61: 3.07788321 | I61: 11.95010784 | J61: 24.50256847 | K61: 32.22323362 | L61: 17.48342129 | M61: 0.2150405265 | N61: 0.1800453343 | O61: 0.1828194425 | P61: 0.594254816 | Q61: 1.397918753 | R61: 3.011998396 | S61: 5.090509288 | T61: 3.954701979 | U61: 1.846282422 | V61: 24.22389151 | W61: 19.82022174 | X61: 5.243279052 | Y61: 1.805221734 | Z61: 8.149879035 | AA61: 1.60136314 | AB61: 2.66760311
B62: Proveniente de poço ou furo protegido com bomba manual | C62: 20.57695258 | D62: 23.40463523 | E62: 26.02856775 | F62: 24.40236167 | G62: 4.76187154 | H62: 16.79430757 | I62: 15.83772848 | J62: 7.209444083 | K62: 4.289833013 | L62: 2.224999131 | M62: 22.06724 | N62: 22.40156316 | O62: 24.53217597 | P62: 27.10749157 | Q62: 28.64280652 | R62: 19.92004703 | S62: 31.75302709 | T62: 20.87784234 | U62: 22.56481102 | V62: 0.9935033195 | W62: 9.724351211 | X62: 24.27114468 | Y62: 35.43610854 | Z62: 15.92774254 | AA62: 23.40570594 | AB62: 14.65727652
B63: Sem bomba manual | C63: 5.692452817 | D63: 2.793710209 | E63: 3.269939166 | F63: 5.005071261 | G63: 5.668098306 | H63: 8.398661879 | I63: 7.499052385 | J63: 7.47655802 | K63: 5.830631249 | L63: 3.699246843 | M63: 4.568789235 | N63: 3.188261876 | O63: 2.834436289 | P63: 3.004675288 | Q63: 3.759667283 | R63: 6.381721452 | S63: 8.048972663 | T63: 8.935544147 | U63: 4.973170171 | V63: 3.871622233 | W63: 12.31429163 | X63: 2.748855502 | Y63: 4.6896789 | Z63: 1.488747892 | AA63: 2.16921182 | AB63: 2.006710525
B64: Poço não protegido | C64: 45.59072577 | D64: 43.89946389 | E64: 44.36848086 | F64: 39.87436692 | G64: 6.808209211 | H64: 49.8990212 | I64: 31.98617189 | J64: 14.30579034 | K64: 3.837582808 | L64: 1.178041056 | M64: 42.48401389 | N64: 44.54465109 | O64: 45.4102565 | P64: 43.27527824 | Q64: 43.23998329 | R64: 47.25679835 | S64: 17.51174286 | T64: 49.20982253 | U64: 36.88216515 | V64: 1.748365617 | W64: 10.28948802 | X64: 41.45022964 | Y64: 27.34756733 | Z64: 38.4664734 | AA64: 35.6242122 | AB64: 49.48019671
B65: Água da chuva | C65: 0.2774924882 | D65: 0.2296263453 | E65: 0.11398509 | F65: 0.2509640705 | G65: 0.2192920174 | H65: 0.1535564158 | I65: 0.5806701304 | J65: 0.5436426024 | K65: 0.04079581356 | L65: 0 | M65: 0.357762631 | N65: 0.2435663535 | O65: 0.2495976592 | P65: 0.01100022315 | Q65: 0.1195410026 | R65: 0.1183699897 | S65: 0.3038107214 | T65: 2.444776554 | U65: 0.02293019211 | V65: 0 | W65: 0 | X65: 0 | Y65: 0 | Z65: 0 | AA65: 0.06527696652 | AB65: 0.1115192295
B66: Água do rio, lagoa | C66: 21.50185779 | D66: 25.1761567 | E66: 20.81247124 | F66: 12.01810837 | G66: 0.4546138876 | H66: 7.245030079 | I66: 5.513471045 | J66: 1.235245541 | K66: 0.1337077949 | L66: 0 | M66: 26.05037736 | N66: 25.35009086 | O66: 23.14035515 | P66: 20.98132494 | Q66: 16.32972712 | R66: 16.22457075 | S66: 11.80358766 | T66: 4.523389017 | U66: 25.42702944 | V66: 0 | W66: 9.524940327 | X66: 12.56560031 | Y66: 23.73504066 | Z66: 12.02999485 | AA66: 27.72123643 | AB66: 24.73237919
B67: Água engarrafada/mineral | C67: 0 | D67: 0 | E67: 0 | F67: 0 | G67: 0.3881042951 | H67: 0 | I67: 0 | J67: 0 | K67: 0.03485659283 | L67: 1.155130875 | M67: 0 | N67: 0 | O67: 0 | P67: 0 | Q67: 0 | R67: 0 | S67: 0 | T67: 0 | U67: 0 | V67: 1.18761696 | W67: 0.155969419 | X67: 0 | Y67: 0 | Z67: 0 | AA67: 0 | AB67: 0
B68: Outro | C68: 0.173933239 | D68: 0.1574385281 | E68: 0.4308775857 | F68: 0.09049720568 | G68: 0.2091074353 | H68: 0.05543701676 | I68: 0 | J68: 0.1107625116 | K68: 0 | L68: 0.5303876506 | M68: 0.2314583424 | N68: 0.2093568524 | O68: 0.04830038339 | P68: 0.5676623005 | Q68: 0.1824603905 | R68: 0.09447257908 | S68: 1.669198381 | T68: 0 | U68: 0.6720928886 | V68: 0 | W68: 0.1885736536 | X68: 0.1506754601 | Y68: 0.1201056821 | Z68: 0 | AA68: 0.1658477811 | AB68: 0
B69: Sem info | C69: 0.003153604401 | D69: 0.04021326739 | E69: 0.07069974648 | F69: 0 | G69: 0.01798091774 | H69: 0 | I69: 0 | J69: 0 | K69: 0 | L69: 0.05513387352 | M69: 0.004684128775 | N69: 0.04248301691 | O69: 0.1058788387 | P69: 0.016297911 | Q69: 0 | R69: 0 | S69: 0.009519275942 | T69: 0 | U69: 0 | V69: 0.06356332268 | W69: 0 | X69: 0 | Y69: 0.03747353549 | Z69: 0 | AA69: 0.09163722803 | AB69: 0.07160621279
A108: =A1026 -> Mozambique
A109: =A1034 -> 2008
A110: Use of sanitation facilities
A111: by wealth quintile and sub-national region
A112: Notes:
A113: WHO/UNICEF JMP customised wealth index excludes water,
A114: sanitation and hygiene assets.
A115: Survey used for analysis: | B115: =A1025 -> MICS08
A116: =B1030 -> 
A117: =B1029 -> 
A120: Use of sanitation facilities | C120: NATIONAL wealth index quintile | H120: URBAN wealth index quintile | M120: RURAL wealth index quintile | R120: SUB-REGIONS: | BA120: Raw numbers of respondents: | BB120: Use of sanitation facilities | BC120: NATIONAL wealth index quintile | BH120: URBAN wealth index quintile | BM120: RURAL wealth index quintile | BR120: SUB-REGIONS:
A121: Weighted percentage (used in graphs) | C121: Poorest | D121: Poor | E121: Middle | F121: Rich | G121: Richest | H121: Poorest | I121: Poor | J121: Middle | K121: Rich | L121: Richest | M121: Poorest | N121: Poor | O121: Middle | P121: Rich | Q121: Richest | R121: Cabo Delgado | S121: Gaza | T121: Inhambane | U121: Manica | V121: Maputo Cidade | W121: Maputo Província | X121: Nampula | Y121: Niassa | Z121: Sofala | AA121: Tete | AB121: Zambézia | BA121: Sanitation data, raw numbers (weighted) | BC121: Poorest | BD121: Poor | BE121: Middle | BF121: Rich | BG121: Richest | BH121: Poorest | BI121: Poor | BJ121: Middle | BK121: Rich | BL121: Richest | BM121: Poorest | BN121: Poor | BO121: Middle | BP121: Rich | BQ121: Richest | BR121: Cabo Delgado | BS121: Gaza | BT121: Inhambane | BU121: Manica | BV121: Maputo Cidade | BW121: Maputo Província | BX121: Nampula | BY121: Niassa | BZ121: Sofala | CA121: Tete | CB121: Zambézia
A122: Sanitation | B122: Improved | C122: 8.172832149 | D122: 4.82924416 | E122: 4.055785094 | F122: 11.82548005 | G122: 67.45572526 | H122: 10.0259456 | I122: 21.24130314 | J122: 44.48178418 | K122: 68.61404126 | L122: 90.9554437 | M122: 7.21470119 | N122: 5.627501352 | O122: 4.328291562 | P122: 4.054651542 | Q122: 7.813707742 | R122: 5.646976612 | S122: 23.77001744 | T122: 15.4840155 | U122: 14.23945891 | V122: 84.59698516 | W122: 47.24077949 | X122: 15.17908504 | Y122: 15.43331876 | Z122: 22.01182689 | AA122: 3.429182593 | AB122: 7.576568656 | BA122: Sanitation | BB122: Improved | BC122: 1049.861562 | BD122: 620.0234899 | BE122: 521.1185704 | BF122: 1518.11716 | BG122: 8663.490638 | BH122: 420.5715599 | BI122: 889.1869907 | BJ122: 1863.564345 | BK122: 2876.83025 | BL122: 3809.747036 | BM122: 623.9591984 | BN122: 487.176824 | BO122: 374.4447244 | BP122: 350.6696361 | BQ122: 676.460856 | BR122: 365.5341163 | BS122: 1011.56141 | BT122: 653.9622369 | BU122: 422.1431436 | BV122: 3073.507261 | BW122: 2028.600958 | BX122: 1748.698648 | BY122: 580.5120312 | BZ122: 1482.856205 | CA122: 193.2043982 | CB122: 812.0310124
B123: Not Improved | C123: 91.82716785 | D123: 95.17075584 | E123: 95.94421491 | F123: 88.17451995 | G123: 32.54427474 | H123: 89.9740544 | I123: 78.75869686 | J123: 55.51821582 | K123: 31.38595874 | L123: 9.044556301 | M123: 92.78529881 | N123: 94.37249865 | O123: 95.67170844 | P123: 95.94534846 | Q123: 92.18629226 | R123: 94.35302339 | S123: 76.22998256 | T123: 84.5159845 | U123: 85.76054109 | V123: 15.40301484 | W123: 52.75922051 | X123: 84.82091496 | Y123: 84.56668124 | Z123: 77.98817311 | AA123: 96.57081741 | AB123: 92.42343134 | BB123: Not Improved | BC123: 11795.88815 | BD123: 12218.91091 | BE123: 12327.65321 | BF123: 11319.56176 | BG123: 4179.734462 | BH123: 3774.260295 | BI123: 3296.935606 | BJ123: 2325.935648 | BK123: 1315.941663 | BL123: 378.8390244 | BM123: 8024.482116 | BN123: 8169.894824 | BO123: 8276.652805 | BP123: 8297.906757 | BQ123: 7980.899751 | BR123: 6107.560097 | BS123: 3244.057722 | BT123: 3569.504452 | BU123: 2542.457873 | BV123: 559.6095165 | BW123: 2265.572381 | BX123: 9771.749672 | BY123: 3180.908568 | BZ123: 5253.777752 | CA123: 5440.919563 | CB123: 9905.630891
A124: Sanitation ladder | B124: Basic | C124: =C122*C129/100 -> 7.001475283 | D124: =D122*D129/100 -> 4.173882009 | E124: =E122*E129/100 -> 3.03864725 | F124: 8.33633482 | G124: 55.74592902 | H124: 7.246638397 | I124: 15.83502201 | J124: 34.81525099 | K124: 51.77154821 | L124: 82.21517454 | M124: 6.400204707 | N124: 4.576744555 | O124: 3.614934925 | P124: 3.264136811 | Q124: 5.438217862 | R124: 5.043084046 | S124: 21.41019244 | T124: 13.12884874 | U124: 9.647545343 | V124: 67.84506425 | W124: 44.03625127 | X124: 12.9596674 | Y124: 14.26084524 | Z124: 15.20232763 | AA124: 1.55897211 | AB124: 4.477823679 | BA124: Sanitation ladder | BB124: Basic | BC124: 899.3919909 | BD124: 535.8819732 | BE124: 390.4288503 | BF124: 1068.145881 | BG124: 7154.669796 | BH124: 303.9842959 | BI124: 660.7097676 | BJ124: 1453.93911 | BK124: 2170.662932 | BL124: 3443.65334 | BM124: 553.517948 | BN124: 396.2120553 | BO124: 312.731546 | BP124: 282.3013657 | BQ124: 470.8061309 | BR124: 326.4435816 | BS124: 911.1362458 | BT124: 549.4596466 | BU124: 286.0112273 | BV124: 2464.890412 | BW124: 1890.992962 | BX124: 1493.011786 | BY124: 536.4103705 | BZ124: 1024.125165 | CA124: 87.83442118 | CB124: 478.2026739
B125: Limited | C125: =C122*C128/100 -> 1.171356866 | D125: =D122*D128/100 -> 0.6553621507 | E125: =E122*E128/100 -> 1.017137844 | F125: 3.489145234 | G125: 11.70979624 | H125: 2.779307206 | I125: 5.406281129 | J125: 9.666533191 | K125: 16.84249305 | L125: 8.740269156 | M125: 0.814496483 | N125: 1.050756796 | O125: 0.7133566374 | P125: 0.7905147306 | Q125: 2.37548988 | R125: 0.6038925659 | S125: 2.359825 | T125: 2.355166765 | U125: 4.591913567 | V125: 16.75192091 | W125: 3.204528216 | X125: 2.219417639 | Y125: 1.172473527 | Z125: 6.809499261 | AA125: 1.870210484 | AB125: 3.098744977 | BB125: Limited | BC125: 150.4695712 | BD125: 84.14151662 | BE125: 130.6897202 | BF125: 447.0689084 | BG125: 1502.885089 | BH125: 116.587264 | BI125: 225.5748521 | BJ125: 403.6894827 | BK125: 706.1673179 | BL125: 366.0936955 | BM125: 70.44125034 | BN125: 90.96476871 | BO125: 61.71317844 | BP125: 68.36827037 | BQ125: 205.6547251 | BR125: 39.09053474 | BS125: 100.4251642 | BT125: 98.56683738 | BU125: 136.1319163 | BV125: 608.6168492 | BW125: 137.6079963 | BX125: 255.6868622 | BY125: 44.10166075 | BZ125: 458.7310395 | CA125: 105.369977 | CB125: 330.9259676
B126: Unimproved | C126: =100-C124-C125-C127 -> 44.15905786 | D126: =100-D124-D125-D127 -> 39.32109032 | E126: =100-E124-E125-E127 -> 41.40048497 | F126: 47.25254464 | G126: 30.36878098 | H126: 55.70050304 | I126: 59.79334953 | J126: 50.17646021 | K126: 30.61693622 | L126: 9.044556301 | M126: 42.5460322 | N126: 39.66350248 | O126: 38.50800907 | P126: 41.49541925 | Q126: 38.92288668 | R126: 69.19459172 | S126: 56.49216335 | T126: 56.47070697 | U126: 34.69609801 | V126: 15.40301484 | W126: 38.27539419 | X126: 44.18246071 | Y126: 63.57524304 | Z126: 23.88399853 | AA126: 38.75333064 | AB126: 20.81382438 | BB126: Unimproved | BC126: 5672.562047 | BD126: 5048.408992 | BE126: 5319.453828 | BF126: 6067.317669 | BG126: 3900.460033 | BH126: 2336.542445 | BI126: 2503.573361 | BJ126: 2102.45987 | BK126: 1283.698302 | BL126: 378.8390244 | BM126: 3679.568626 | BN126: 3433.697828 | BO126: 3331.365421 | BP126: 3588.763034 | BQ126: 3369.694659 | BR126: 4479.031113 | BS126: 2404.091312 | BT126: 2386.686196 | BU126: 1028.600874 | BV126: 559.6095165 | BW126: 1643.611773 | BX126: 5090.017552 | BY126: 2391.332288 | BZ126: 1608.977555 | CA126: 2183.410687 | CB126: 2232.833703
B127: Open defecation | C127: 47.66810999 | D127: 55.84966552 | E127: 54.54372994 | F127: 40.92197531 | G127: 2.175493759 | H127: 34.27355135 | I127: 18.96534732 | J127: 5.341755611 | K127: 0.7690225275 | L127: 0 | M127: 50.23926661 | N127: 54.70899617 | O127: 57.16369937 | P127: 54.4499292 | Q127: 53.26340558 | R127: 25.15843167 | S127: 19.73781921 | T127: 28.04527753 | U127: 51.06444308 | V127: 0 | W127: 14.48382632 | X127: 40.63845425 | Y127: 20.9914382 | Z127: 54.10417458 | AA127: 57.81748676 | AB127: 71.60960696 | BB127: Open defecation | BC127: 6123.326102 | BD127: 7170.50192 | BE127: 7008.199378 | BF127: 5252.24409 | BG127: 279.2744286 | BH127: 1437.71785 | BI127: 793.362245 | BJ127: 223.4757775 | BK127: 32.24336053 | BL127: 0 | BM127: 4344.91349 | BN127: 4736.196997 | BO127: 4945.287384 | BP127: 4709.143723 | BQ127: 4611.205092 | BR127: 1628.528984 | BS127: 839.9664104 | BT127: 1182.818256 | BU127: 1513.856998 | BV127: 0 | BW127: 621.9606085 | BX127: 4681.73212 | BY127: 789.5762806 | BZ127: 3644.800197 | CA127: 3257.508875 | CB127: 7672.797188
A128: Shared among Improved Sanitation | B128: Yes | C128: 14.33232501 | D128: 13.57069821 | E128: 25.0786918 | F128: 29.50531579 | G128: 17.35923259 | H128: 27.72114787 | I128: 25.45173944 | J128: 21.73144214 | K128: 24.54671484 | L128: 9.609396425 | M128: 11.2894001 | N128: 18.67181775 | O128: 16.48125195 | P128: 19.49648995 | Q128: 30.40157065 | R128: 10.69408654 | S128: 9.927737773 | T128: 15.21031004 | U128: 32.24780939 | V128: 19.80203063 | W128: 6.78339403 | X128: 14.62155086 | Y128: 7.597027862 | Z128: 30.93563881 | AA128: 54.53808401 | AB128: 40.89905494 | BA128: Shared among improved sanitation facilities | BB128: Yes | BC128: N/A | BD128: N/A | BE128: N/A | BF128: N/A | BG128: N/A | BH128: N/A | BI128: N/A | BJ128: N/A | BK128: N/A | BL128: N/A | BM128: N/A | BN128: N/A | BO128: N/A | BP128: N/A | BQ128: N/A | BR128: N/A | BS128: N/A | BT128: N/A | BU128: N/A | BV128: N/A | BW128: N/A | BX128: N/A | BY128: N/A | BZ128: N/A | CA128: N/A | CB128: N/A
B129: No | C129: 85.66767499 | D129: 86.42930179 | E129: 74.9213082 | F129: 70.49468421 | G129: 82.64076741 | H129: 72.27885213 | I129: 74.54826056 | J129: 78.26855786 | K129: 75.45328516 | L129: 90.39060357 | M129: 88.7105999 | N129: 81.32818225 | O129: 83.51874805 | P129: 80.50351005 | Q129: 69.59842935 | R129: 89.30591346 | S129: 90.07226223 | T129: 84.78968996 | U129: 67.75219061 | V129: 80.19796937 | W129: 93.21660597 | X129: 85.37844914 | Y129: 92.40297214 | Z129: 69.06436119 | AA129: 45.46191599 | AB129: 59.10094506 | BB129: No | BC129: N/A | BD129: N/A | BE129: N/A | BF129: N/A | BG129: N/A | BH129: N/A | BI129: N/A | BJ129: N/A | BK129: N/A | BL129: N/A | BM129: N/A | BN129: N/A | BO129: N/A | BP129: N/A | BQ129: N/A | BR129: N/A | BS129: N/A | BT129: N/A | BU129: N/A | BV129: N/A | BW129: N/A | BX129: N/A | BY129: N/A | BZ129: N/A | CA129: N/A | CB129: N/A
A130: Manually calculated ratios | B130: Improved latrines
B131: Other
B132: Other
C133: NATIONAL wealth index quintile | H133: URBAN wealth index quintile | M133: RURAL wealth index quintile | R133: SUB-REGIONS: | BA133: Raw numbers of respondents: | BB133: Use of sanitation facilities | BC133: NATIONAL wealth index quintile | BH133: URBAN wealth index quintile | BM133: RURAL wealth index quintile | BR133: SUB-REGIONS:
A134: Percentage based on weighted population | C134: Poorest | D134: Poor | E134: Middle | F134: Rich | G134: Richest | H134: Poorest | I134: Poor | J134: Middle | K134: Rich | L134: Richest | M134: Poorest | N134: Poor | O134: Middle | P134: Rich | Q134: Richest | R134: Cabo Delgado | S134: Gaza | T134: Inhambane | U134: Manica | V134: Maputo Cidade | W134: Maputo Província | X134: Nampula | Y134: Niassa | Z134: Sofala | AA134: Tete | AB134: Zambézia | BA134: Sanitation data, raw numbers (weighted) | BC134: Poorest | BD134: Poor | BE134: Middle | BF134: Rich | BG134: Richest | BH134: Poorest | BI134: Poor | BJ134: Middle | BK134: Rich | BL134: Richest | BM134: Poorest | BN134: Poor | BO134: Middle | BP134: Rich | BQ134: Richest | BR134: Cabo Delgado | BS134: Gaza | BT134: Inhambane | BU134: Manica | BV134: Maputo Cidade | BW134: Maputo Província | BX134: Nampula | BY134: Niassa | BZ134: Sofala | CA134: Tete | CB134: Zambézia
A135: Sanitation type | B135: Sewer connection | C135: 0 | D135: 0 | E135: 0 | F135: 0.00342486731 | G135: 5.153189047 | H135: 0 | I135: 0 | J135: 0.07943115147 | K135: 0.8686094365 | L135: 14.85200685 | M135: 0 | N135: 0 | O135: 0 | P135: 0 | Q135: 0.005078608697 | R135: 0 | S135: 0 | T135: 0.1378865889 | U135: 0 | V135: 9.524979484 | W135: 0.1332403959 | X135: 0.3354515266 | Y135: 0.08668388325 | Z135: 3.90061986 | AA135: 0 | AB135: 0 | BA135: Sanitation type | BB135: Sewer connection | BC135: N/A | BD135: N/A | BE135: N/A | BF135: N/A | BG135: N/A | BH135: N/A | BI135: N/A | BJ135: N/A | BK135: N/A | BL135: N/A | BM135: N/A | BN135: N/A | BO135: N/A | BP135: N/A | BQ135: N/A | BR135: N/A | BS135: N/A | BT135: N/A | BU135: N/A | BV135: N/A | BW135: N/A | BX135: N/A | BY135: N/A | BZ135: N/A | CA135: N/A | CB135: N/A
B136: Septic tank connection | C136: 0.1582176439 | D136: 0.07129288377 | E136: 0.05706447073 | F136: 0.8377925758 | G136: 17.13250316 | H136: 0 | I136: 0.02414041141 | J136: 2.228581717 | K136: 12.79724923 | L136: 37.46919544 | M136: 0.2350046881 | N136: 0 | O136: 0.1606039103 | P136: 0.02996249508 | Q136: 1.242331535 | R136: 0.4835636241 | S136: 3.156383741 | T136: 1.30743555 | U136: 1.076551074 | V136: 24.73441249 | W136: 12.14134229 | X136: 2.169958383 | Y136: 0.5601834798 | Z136: 5.103731474 | AA136: 0.156197 | AB136: 0.4505524389 | BB136: Septic tank connection | BC136: N/A | BD136: N/A | BE136: N/A | BF136: N/A | BG136: N/A | BH136: N/A | BI136: N/A | BJ136: N/A | BK136: N/A | BL136: N/A | BM136: N/A | BN136: N/A | BO136: N/A | BP136: N/A | BQ136: N/A | BR136: N/A | BS136: N/A | BT136: N/A | BU136: N/A | BV136: N/A | BW136: N/A | BX136: N/A | BY136: N/A | BZ136: N/A | CA136: N/A | CB136: N/A
B137: Improved latrines | C137: 8.014614505 | D137: 4.757951276 | E137: 3.998720623 | F137: 10.98426261 | G137: 45.17003305 | H137: 10.0259456 | I137: 21.21716273 | J137: 42.17377131 | K137: 54.94818259 | L137: 38.63424141 | M137: 6.979696502 | N137: 5.627501352 | O137: 4.167687652 | P137: 4.024689047 | Q137: 6.566297598 | R137: 5.163412988 | S137: 20.6136337 | T137: 14.03869336 | U137: 13.16290784 | V137: 50.33759318 | W137: 34.9661968 | X137: 12.67367513 | Y137: 14.7864514 | Z137: 13.00747555 | AA137: 3.272985593 | AB137: 7.126016217 | BB137: Improved latrines | BC137: N/A | BD137: N/A | BE137: N/A | BF137: N/A | BG137: N/A | BH137: N/A | BI137: N/A | BJ137: N/A | BK137: N/A | BL137: N/A | BM137: N/A | BN137: N/A | BO137: N/A | BP137: N/A | BQ137: N/A | BR137: N/A | BS137: N/A | BT137: N/A | BU137: N/A | BV137: N/A | BW137: N/A | BX137: N/A | BY137: N/A | BZ137: N/A | CA137: N/A | CB137: N/A
B138: Unimproved facilities | C138: 44.15905786 | D138: 39.32109032 | E138: 41.40048497 | F138: 47.26179637 | G138: 30.36978643 | H138: 55.70050304 | I138: 59.80649881 | J138: 50.1840285 | K138: 30.61693622 | L138: 9.044556301 | M138: 42.5460322 | N138: 39.66350248 | O138: 38.50800907 | P138: 41.49541925 | Q138: 38.92288668 | R138: 69.19459172 | S138: 56.49216335 | T138: 56.51012242 | U138: 34.69609801 | V138: 15.40301484 | W138: 38.27539419 | X138: 44.18246071 | Y138: 63.57524304 | Z138: 23.88399853 | AA138: 38.75333064 | AB138: 20.83321645 | BB138: Unimproved facilities | BC138: N/A | BD138: N/A | BE138: N/A | BF138: N/A | BG138: N/A | BH138: N/A | BI138: N/A | BJ138: N/A | BK138: N/A | BL138: N/A | BM138: N/A | BN138: N/A | BO138: N/A | BP138: N/A | BQ138: N/A | BR138: N/A | BS138: N/A | BT138: N/A | BU138: N/A | BV138: N/A | BW138: N/A | BX138: N/A | BY138: N/A | BZ138: N/A | CA138: N/A | CB138: N/A
B139: Open defecation | C139: 47.66810999 | D139: 55.84966552 | E139: 54.54372994 | F139: 40.91272358 | G139: 2.174488311 | H139: 34.27355135 | I139: 18.95219805 | J139: 5.334187323 | K139: 0.7690225275 | L139: 0 | M139: 50.23926661 | N139: 54.70899617 | O139: 57.16369937 | P139: 54.4499292 | Q139: 53.26340558 | R139: 25.15843167 | S139: 19.73781921 | T139: 28.00586208 | U139: 51.06444308 | V139: 0 | W139: 14.48382632 | X139: 40.63845425 | Y139: 20.9914382 | Z139: 54.10417458 | AA139: 57.81748676 | AB139: 71.59021489 | BB139: Open defecation | BC139: N/A | BD139: N/A | BE139: N/A | BF139: N/A | BG139: N/A | BH139: N/A | BI139: N/A | BJ139: N/A | BK139: N/A | BL139: N/A | BM139: N/A | BN139: N/A | BO139: N/A | BP139: N/A | BQ139: N/A | BR139: N/A | BS139: N/A | BT139: N/A | BU139: N/A | BV139: N/A | BW139: N/A | BX139: N/A | BY139: N/A | BZ139: N/A | CA139: N/A | CB139: N/A
A140: Septic tank emptying practices | B140: Not emptied/treated and disposed in situ | C140: N/A | D140: N/A | E140: N/A | F140: N/A | G140: N/A | H140: N/A | I140: N/A | J140: N/A | K140: N/A | L140: N/A | M140: N/A | N140: N/A | O140: N/A | P140: N/A | Q140: N/A | R140: N/A | S140: N/A | T140: N/A | U140: N/A | V140: N/A | W140: N/A | X140: N/A | Y140: N/A | Z140: N/A | AA140: N/A | AB140: N/A | BA140: Septic tank emptying practices | BB140: Not emptied/treated and disposed in situ | BC140: N/A | BD140: N/A | BE140: N/A | BF140: N/A | BG140: N/A | BH140: N/A | BI140: N/A | BJ140: N/A | BK140: N/A | BL140: N/A | BM140: N/A | BN140: N/A | BO140: N/A | BP140: N/A | BQ140: N/A | BR140: N/A | BS140: N/A | BT140: N/A | BU140: N/A | BV140: N/A | BW140: N/A | BX140: N/A | BY140: N/A | BZ140: N/A | CA140: N/A | CB140: N/A
B141: Emptied and buried on site | C141: N/A | D141: N/A | E141: N/A | F141: N/A | G141: N/A | H141: N/A | I141: N/A | J141: N/A | K141: N/A | L141: N/A | M141: N/A | N141: N/A | O141: N/A | P141: N/A | Q141: N/A | R141: N/A | S141: N/A | T141: N/A | U141: N/A | V141: N/A | W141: N/A | X141: N/A | Y141: N/A | Z141: N/A | AA141: N/A | AB141: N/A | BB141: Emptied and buried on site | BC141: N/A | BD141: N/A | BE141: N/A | BF141: N/A | BG141: N/A | BH141: N/A | BI141: N/A | BJ141: N/A | BK141: N/A | BL141: N/A | BM141: N/A | BN141: N/A | BO141: N/A | BP141: N/A | BQ141: N/A | BR141: N/A | BS141: N/A | BT141: N/A | BU141: N/A | BV141: N/A | BW141: N/A | BX141: N/A | BY141: N/A | BZ141: N/A | CA141: N/A | CB141: N/A
B142: Emptied and discharged locally | C142: N/A | D142: N/A | E142: N/A | F142: N/A | G142: N/A | H142: N/A | I142: N/A | J142: N/A | K142: N/A | L142: N/A | M142: N/A | N142: N/A | O142: N/A | P142: N/A | Q142: N/A | R142: N/A | S142: N/A | T142: N/A | U142: N/A | V142: N/A | W142: N/A | X142: N/A | Y142: N/A | Z142: N/A | AA142: N/A | AB142: N/A | BB142: Emptied and discharged locally | BC142: N/A | BD142: N/A | BE142: N/A | BF142: N/A | BG142: N/A | BH142: N/A | BI142: N/A | BJ142: N/A | BK142: N/A | BL142: N/A | BM142: N/A | BN142: N/A | BO142: N/A | BP142: N/A | BQ142: N/A | BR142: N/A | BS142: N/A | BT142: N/A | BU142: N/A | BV142: N/A | BW142: N/A | BX142: N/A | BY142: N/A | BZ142: N/A | CA142: N/A | CB142: N/A
B143: Emptied and removed offsite | C143: N/A | D143: N/A | E143: N/A | F143: N/A | G143: N/A | H143: N/A | I143: N/A | J143: N/A | K143: N/A | L143: N/A | M143: N/A | N143: N/A | O143: N/A | P143: N/A | Q143: N/A | R143: N/A | S143: N/A | T143: N/A | U143: N/A | V143: N/A | W143: N/A | X143: N/A | Y143: N/A | Z143: N/A | AA143: N/A | AB143: N/A | BB143: Emptied and removed offsite | BC143: N/A | BD143: N/A | BE143: N/A | BF143: N/A | BG143: N/A | BH143: N/A | BI143: N/A | BJ143: N/A | BK143: N/A | BL143: N/A | BM143: N/A | BN143: N/A | BO143: N/A | BP143: N/A | BQ143: N/A | BR143: N/A | BS143: N/A | BT143: N/A | BU143: N/A | BV143: N/A | BW143: N/A | BX143: N/A | BY143: N/A | BZ143: N/A | CA143: N/A | CB143: N/A
A144: Latrine emptying practices | B144: Not emptied/treated and disposed in situ | C144: N/A | D144: N/A | E144: N/A | F144: N/A | G144: N/A | H144: N/A | I144: N/A | J144: N/A | K144: N/A | L144: N/A | M144: N/A | N144: N/A | O144: N/A | P144: N/A | Q144: N/A | R144: N/A | S144: N/A | T144: N/A | U144: N/A | V144: N/A | W144: N/A | X144: N/A | Y144: N/A | Z144: N/A | AA144: N/A | AB144: N/A | BA144: Latrine emptying practices | BB144: Not emptied/treated and disposed in situ | BC144: N/A | BD144: N/A | BE144: N/A | BF144: N/A | BG144: N/A | BH144: N/A | BI144: N/A | BJ144: N/A | BK144: N/A | BL144: N/A | BM144: N/A | BN144: N/A | BO144: N/A | BP144: N/A | BQ144: N/A | BR144: N/A | BS144: N/A | BT144: N/A | BU144: N/A | BV144: N/A | BW144: N/A | BX144: N/A | BY144: N/A | BZ144: N/A | CA144: N/A | CB144: N/A
B145: Emptied and buried on site | C145: N/A | D145: N/A | E145: N/A | F145: N/A | G145: N/A | H145: N/A | I145: N/A | J145: N/A | K145: N/A | L145: N/A | M145: N/A | N145: N/A | O145: N/A | P145: N/A | Q145: N/A | R145: N/A | S145: N/A | T145: N/A | U145: N/A | V145: N/A | W145: N/A | X145: N/A | Y145: N/A | Z145: N/A | AA145: N/A | AB145: N/A | BB145: Emptied and buried on site | BC145: N/A | BD145: N/A | BE145: N/A | BF145: N/A | BG145: N/A | BH145: N/A | BI145: N/A | BJ145: N/A | BK145: N/A | BL145: N/A | BM145: N/A | BN145: N/A | BO145: N/A | BP145: N/A | BQ145: N/A | BR145: N/A | BS145: N/A | BT145: N/A | BU145: N/A | BV145: N/A | BW145: N/A | BX145: N/A | BY145: N/A | BZ145: N/A | CA145: N/A | CB145: N/A
B146: Emptied and discharged locally | C146: N/A | D146: N/A | E146: N/A | F146: N/A | G146: N/A | H146: N/A | I146: N/A | J146: N/A | K146: N/A | L146: N/A | M146: N/A | N146: N/A | O146: N/A | P146: N/A | Q146: N/A | R146: N/A | S146: N/A | T146: N/A | U146: N/A | V146: N/A | W146: N/A | X146: N/A | Y146: N/A | Z146: N/A | AA146: N/A | AB146: N/A | BB146: Emptied and discharged locally | BC146: N/A | BD146: N/A | BE146: N/A | BF146: N/A | BG146: N/A | BH146: N/A | BI146: N/A | BJ146: N/A | BK146: N/A | BL146: N/A | BM146: N/A | BN146: N/A | BO146: N/A | BP146: N/A | BQ146: N/A | BR146: N/A | BS146: N/A | BT146: N/A | BU146: N/A | BV146: N/A | BW146: N/A | BX146: N/A | BY146: N/A | BZ146: N/A | CA146: N/A | CB146: N/A
B147: Emptied and removed offsite | C147: N/A | D147: N/A | E147: N/A | F147: N/A | G147: N/A | H147: N/A | I147: N/A | J147: N/A | K147: N/A | L147: N/A | M147: N/A | N147: N/A | O147: N/A | P147: N/A | Q147: N/A | R147: N/A | S147: N/A | T147: N/A | U147: N/A | V147: N/A | W147: N/A | X147: N/A | Y147: N/A | Z147: N/A | AA147: N/A | AB147: N/A | BB147: Emptied and removed offsite | BC147: N/A | BD147: N/A | BE147: N/A | BF147: N/A | BG147: N/A | BH147: N/A | BI147: N/A | BJ147: N/A | BK147: N/A | BL147: N/A | BM147: N/A | BN147: N/A | BO147: N/A | BP147: N/A | BQ147: N/A | BR147: N/A | BS147: N/A | BT147: N/A | BU147: N/A | BV147: N/A | BW147: N/A | BX147: N/A | BY147: N/A | BZ147: N/A | CA147: N/A | CB147: N/A
A148: Shared among improved sanitation facilities | B148: Yes | C148: 1.171356866 | D148: 0.6553621507 | E148: 1.017137844 | F148: 3.482474607 | G148: 11.70177332 | H148: 2.779307206 | I148: 5.388634635 | J148: 9.635743724 | K148: 16.84249305 | L148: 8.740269156 | M148: 0.814496483 | N148: 1.050756796 | O148: 0.7133566374 | P148: 0.7905147306 | Q148: 2.37548988 | R148: 0.6038925659 | S148: 2.359825 | T148: 2.333789861 | U148: 4.591913567 | V148: 16.75192091 | W148: 3.204528216 | X148: 2.219417639 | Y148: 1.172473527 | Z148: 6.809499261 | AA148: 1.870210484 | AB148: 3.087669405 | BA148: Shared among improved sanitation facilities | BB148: Yes | BC148: N/A | BD148: N/A | BE148: N/A | BF148: N/A | BG148: N/A | BH148: N/A | BI148: N/A | BJ148: N/A | BK148: N/A | BL148: N/A | BM148: N/A | BN148: N/A | BO148: N/A | BP148: N/A | BQ148: N/A | BR148: N/A | BS148: N/A | BT148: N/A | BU148: N/A | BV148: N/A | BW148: N/A | BX148: N/A | BY148: N/A | BZ148: N/A | CA148: N/A | CB148: N/A
B149: No | C149: 7.001475283 | D149: 4.173882009 | E149: 3.03864725 | F149: 8.320397225 | G149: 55.70773494 | H149: 7.246638397 | I149: 15.78333535 | J149: 34.7043588 | K149: 51.77154821 | L149: 82.21517454 | M149: 6.400204707 | N149: 4.576744555 | O149: 3.614934925 | P149: 3.264136811 | Q149: 5.438217862 | R149: 5.043084046 | S149: 21.41019244 | T149: 13.00968344 | U149: 9.647545343 | V149: 67.84506425 | W149: 44.03625127 | X149: 12.9596674 | Y149: 14.26084524 | Z149: 15.20232763 | AA149: 1.55897211 | AB149: 4.461818988 | BB149: No | BC149: N/A | BD149: N/A | BE149: N/A | BF149: N/A | BG149: N/A | BH149: N/A | BI149: N/A | BJ149: N/A | BK149: N/A | BL149: N/A | BM149: N/A | BN149: N/A | BO149: N/A | BP149: N/A | BQ149: N/A | BR149: N/A | BS149: N/A | BT149: N/A | BU149: N/A | BV149: N/A | BW149: N/A | BX149: N/A | BY149: N/A | BZ149: N/A | CA149: N/A | CB149: N/A
B150: DK/missing | C150: 91.82716785 | D150: 95.17075584 | E150: 95.94421491 | F150: 88.19712817 | G150: 32.59049174 | H150: 89.9740544 | I150: 78.82803001 | J150: 55.65989748 | K150: 31.38595874 | L150: 9.044556301 | M150: 92.78529881 | N150: 94.37249865 | O150: 95.67170844 | P150: 95.94534846 | Q150: 92.18629226 | R150: 94.35302339 | S150: 76.22998256 | T150: 84.6565267 | U150: 85.76054109 | V150: 15.40301484 | W150: 52.75922051 | X150: 84.82091496 | Y150: 84.56668124 | Z150: 77.98817311 | AA150: 96.57081741 | AB150: 92.45051161 | BB150: DK/missing | BC150: N/A | BD150: N/A | BE150: N/A | BF150: N/A | BG150: N/A | BH150: N/A | BI150: N/A | BJ150: N/A | BK150: N/A | BL150: N/A | BM150: N/A | BN150: N/A | BO150: N/A | BP150: N/A | BQ150: N/A | BR150: N/A | BS150: N/A | BT150: N/A | BU150: N/A | BV150: N/A | BW150: N/A | BX150: N/A | BY150: N/A | BZ150: N/A | CA150: N/A | CB150: N/A
A151: Shared among all sanitation facilities | B151: Yes | C151: 17.83432813 | D151: 17.54923019 | E151: 24.66163547 | F151: 30.00354233 | G151: 20.87854662 | H151: 23.29892277 | I151: 25.46886479 | J151: 25.42662814 | K151: 27.34817071 | L151: 10.44873237 | M151: 16.18780811 | N151: 20.77481981 | O151: 16.12156524 | P151: 25.00676812 | Q151: 33.95425915 | R151: 16.45248304 | S151: 17.27208389 | T151: 11.7385378 | U151: 40.33521022 | V151: 21.87330504 | W151: 7.910024324 | X151: 22.84494981 | Y151: 11.05747144 | Z151: 43.16244741 | AA151: 38.93019765 | AB151: 31.41350216 | BA151: Shared among all sanitation facilities | BB151: Yes | BC151: N/A | BD151: N/A | BE151: N/A | BF151: N/A | BG151: N/A | BH151: N/A | BI151: N/A | BJ151: N/A | BK151: N/A | BL151: N/A | BM151: N/A | BN151: N/A | BO151: N/A | BP151: N/A | BQ151: N/A | BR151: N/A | BS151: N/A | BT151: N/A | BU151: N/A | BV151: N/A | BW151: N/A | BX151: N/A | BY151: N/A | BZ151: N/A | CA151: N/A | CB151: N/A
B152: No | C152: 82.16567187 | D152: 82.45076981 | E152: 75.33836453 | F152: 69.99645767 | G152: 79.12145338 | H152: 76.70107723 | I152: 74.53113521 | J152: 74.57337186 | K152: 72.65182929 | L152: 89.55126763 | M152: 83.81219189 | N152: 79.22518019 | O152: 83.87843476 | P152: 74.99323188 | Q152: 66.04574085 | R152: 83.54751696 | S152: 82.72791611 | T152: 88.2614622 | U152: 59.66478978 | V152: 78.12669496 | W152: 92.08997568 | X152: 77.15505019 | Y152: 88.94252856 | Z152: 56.83755259 | AA152: 61.06980235 | AB152: 68.58649784 | BB152: No | BC152: N/A | BD152: N/A | BE152: N/A | BF152: N/A | BG152: N/A | BH152: N/A | BI152: N/A | BJ152: N/A | BK152: N/A | BL152: N/A | BM152: N/A | BN152: N/A | BO152: N/A | BP152: N/A | BQ152: N/A | BR152: N/A | BS152: N/A | BT152: N/A | BU152: N/A | BV152: N/A | BW152: N/A | BX152: N/A | BY152: N/A | BZ152: N/A | CA152: N/A | CB152: N/A
A153: Sanitation type | B153: Retrete com autoclismo Sistema de esgoto geral | C153: 0 | D153: 0 | E153: 0 | F153: 0.00342486731 | G153: 3.78865102 | H153: 0 | I153: 0 | J153: 0.07943115147 | K153: 0.2615821615 | L153: 11.2756348 | M153: 0 | N153: 0 | O153: 0 | P153: 0 | Q153: 0.005078608697 | R153: 0 | S153: 0 | T153: 0.1378865889 | U153: 0 | V153: 8.571575165 | W153: 0.1332403959 | X153: 0.2287169499 | Y153: 0.08668388325 | Z153: 1.995868952 | AA153: 0 | AB153: 0 | BA153: Sanitation type | BB153: Retrete com autoclismo Sistema de esgoto geral | BC153: 0 | BD153: 0 | BE153: 0 | BF153: 0.4396734687 | BG153: 486.5849787 | BH153: 0 | BI153: 0 | BJ153: 3.327768085 | BK153: 10.9675434 | BL153: 472.2896673 | BM153: 0 | BN153: 0 | BO153: 0 | BP153: 0 | BQ153: 0.4396734687 | BR153: 0 | BS153: 0 | BT153: 5.823594149 | BU153: 0 | BV153: 311.4153355 | BW153: 5.721573559 | BX153: 26.34921802 | BY153: 3.260545441 | BZ153: 134.4543856 | CA153: 0 | CB153: 0
B154: Retrete com autoclismo Fossa septica | C154: 0.08146655479 | D154: 0 | E154: 0.01008395713 | F154: 0.4316573494 | G154: 7.229213943 | H154: 0 | I154: 0 | J154: 0.4641755454 | K154: 3.734535865 | L154: 17.96398602 | M154: 0.1210043446 | N154: 0 | O154: 0 | P154: 0.01498124754 | Q154: 0.640088672 | R154: 0.07819535007 | S154: 1.255840343 | T154: 1.094353037 | U154: 0.1264765675 | V154: 8.447412769 | W154: 5.251538023 | X154: 1.634348195 | Y154: 0.4930145527 | Z154: 1.721061112 | AA154: 0.1078567599 | AB154: 0.2416905789 | BB154: Retrete com autoclismo Fossa septica | BC154: 10.46498973 | BD154: 0 | BE154: 1.295664638 | BF154: 55.41478454 | BG154: 928.4642196 | BH154: 0 | BI154: 0 | BJ154: 19.44663444 | BK154: 156.5805708 | BL154: 752.4370144 | BM154: 10.46498973 | BN154: 0 | BO154: 0 | BP154: 1.295664638 | BQ154: 55.41478454 | BR154: 5.06165868 | BS154: 53.44378189 | BT154: 46.21963599 | BU154: 3.749525605 | BV154: 306.9043706 | BW154: 225.5101457 | BX154: 188.2842392 | BY154: 18.54435094 | BZ154: 115.9415873 | CA154: 6.076783555 | CB154: 25.9035791
B155: Retrete com autoclismo Nao sabe | C155: 0 | D155: 0 | E155: 0 | F155: 0 | G155: 0.006701596478 | H155: 0 | I155: 0 | J155: 0 | K155: 0 | L155: 0.02054872715 | M155: 0 | N155: 0 | O155: 0 | P155: 0 | Q155: 0 | R155: 0 | S155: 0 | T155: 0 | U155: 0.02903261236 | V155: 0 | W155: 0 | X155: 0 | Y155: 0 | Z155: 0 | AA155: 0 | AB155: 0 | BB155: Retrete com autoclismo Nao sabe | BC155: 0 | BD155: 0 | BE155: 0 | BF155: 0 | BG155: 0.860701121 | BH155: 0 | BI155: 0 | BJ155: 0 | BK155: 0 | BL155: 0.860701121 | BM155: 0 | BN155: 0 | BO155: 0 | BP155: 0 | BQ155: 0 | BR155: 0 | BS155: 0 | BT155: 0 | BU155: 0.860701121 | BV155: 0 | BW155: 0 | BX155: 0 | BY155: 0 | BZ155: 0 | CA155: 0 | CB155: 0
B156: Retrete com autoclismo Sem info | C156: 0 | D156: 0 | E156: 0 | F156: 0.003995678529 | G156: 0.3762916064 | H156: 0 | I156: 0 | J156: 0 | K156: 0 | L156: 1.153801721 | M156: 0 | N156: 0 | O156: 0 | P156: 0 | Q156: 0.005925043479 | R156: 0 | S156: 0 | T156: 0 | U156: 0 | V156: 0.2612310089 | W156: 0.01194531146 | X156: 0.3371149226 | Y156: 0 | Z156: 0 | AA156: 0 | AB156: 0 | BB156: Retrete com autoclismo Sem info | BC156: 0 | BD156: 0 | BE156: 0 | BF156: 0.5129523801 | BG156: 48.32797805 | BH156: 0 | BI156: 0 | BJ156: 0 | BK156: 0 | BL156: 48.32797805 | BM156: 0 | BN156: 0 | BO156: 0 | BP156: 0 | BQ156: 0.5129523801 | BR156: 0 | BS156: 0 | BT156: 0 | BU156: 0 | BV156: 9.490827612 | BW156: 0.5129523801 | BX156: 38.83715043 | BY156: 0 | BZ156: 0 | CA156: 0 | CB156: 0
B157: Retrete sem autoclismo Sistema de esgoto geral | C157: 0 | D157: 0 | E157: 0 | F157: 0 | G157: 1.364538027 | H157: 0 | I157: 0 | J157: 0 | K157: 0.607027275 | L157: 3.576372054 | M157: 0 | N157: 0 | O157: 0 | P157: 0 | Q157: 0 | R157: 0 | S157: 0 | T157: 0 | U157: 0 | V157: 0.9534043187 | W157: 0 | X157: 0.1067345766 | Y157: 0 | Z157: 1.904750907 | AA157: 0 | AB157: 0 | BB157: Retrete sem autoclismo Sistema de esgoto geral | BC157: 0 | BD157: 0 | BE157: 0 | BF157: 0 | BG157: 175.2506904 | BH157: 0 | BI157: 0 | BJ157: 0 | BK157: 25.45126909 | BL157: 149.7994213 | BM157: 0 | BN157: 0 | BO157: 0 | BP157: 0 | BQ157: 0 | BR157: 0 | BS157: 0 | BT157: 0 | BU157: 0 | BV157: 34.63829226 | BW157: 0 | BX157: 12.29630174 | BY157: 0 | BZ157: 128.3160964 | CA157: 0 | CB157: 0
B158: Retrete sem autoclismo Fossa septica | C158: 0.07675108912 | D158: 0.07129288377 | E158: 0.0469805136 | F158: 0.4061352264 | G158: 9.903289222 | H158: 0 | I158: 0.02414041141 | J158: 1.764406171 | K158: 9.062713369 | L158: 19.50520942 | M158: 0.1140003435 | N158: 0 | O158: 0.1606039103 | P158: 0.01498124754 | Q158: 0.6022428626 | R158: 0.405368274 | S158: 1.900543398 | T158: 0.2130825128 | U158: 0.9500745067 | V158: 16.28699972 | W158: 6.889804266 | X158: 0.5356101879 | Y158: 0.0671689271 | Z158: 3.382670361 | AA158: 0.04834024007 | AB158: 0.20886186 | BB158: Retrete sem autoclismo Fossa septica | BC158: 9.859252809 | BD158: 9.153246581 | BE158: 6.036418972 | BF158: 52.13833634 | BG158: 1271.901727 | BH158: 0 | BI158: 1.010547217 | BJ158: 73.91979644 | BK158: 379.9789007 | BL158: 816.9924827 | BM158: 9.859252809 | BN158: 0 | BO158: 13.89400091 | BP158: 1.295664638 | BQ158: 52.13833634 | BR158: 26.23987029 | BS158: 80.87988848 | BT158: 8.999468948 | BU158: 28.16591848 | BV158: 591.7257196 | BW158: 295.8601379 | BX158: 61.70469489 | BY158: 2.52650586 | BZ158: 227.8781202 | CA158: 2.723549049 | CB158: 22.385108
B159: Retrete sem autoclismo Sem info | C159: 0 | D159: 0.1254417056 | E159: 0 | F159: 0.01806607146 | G159: 0.5797986982 | H159: 0 | I159: 0 | J159: 0 | K159: 0.3644942866 | L159: 1.412945491 | M159: 0 | N159: 0 | O159: 0.1861657234 | P159: 0 | Q159: 0.02678950725 | R159: 0 | S159: 0 | T159: 0.04455224983 | U159: 0.5672674677 | V159: 0.5212631702 | W159: 0.03277486354 | X159: 0.4045379071 | Y159: 0 | Z159: 0.07305241829 | AA159: 0 | AB159: 0.02163964742 | BB159: Retrete sem autoclismo Sem info | BC159: 0 | BD159: 16.10537829 | BE159: 0 | BF159: 2.319264247 | BG159: 74.46485193 | BH159: 0 | BI159: 0 | BJ159: 0 | BK159: 15.28241407 | BL159: 59.18243786 | BM159: 0 | BN159: 0 | BO159: 16.10537829 | BP159: 0 | BQ159: 2.319264247 | BR159: 0 | BS159: 0 | BT159: 1.881649431 | BU159: 16.81721711 | BV159: 18.93809969 | BW159: 1.407409452 | BX159: 46.60458052 | BY159: 0 | BZ159: 4.921274017 | CA159: 0 | CB159: 2.319264247
B160: Latrina melhorada | C160: 1.679966528 | D160: 1.076651331 | E160: 1.140561392 | F160: 4.276149535 | G160: 25.73140554 | H160: 3.493817725 | I160: 8.21884462 | J160: 22.99927616 | K160: 33.12956664 | L160: 21.67174497 | M160: 1.47337143 | N160: 0.9236259465 | O160: 1.087858807 | P160: 1.119846654 | Q160: 2.367769059 | R160: 2.595768406 | S160: 11.90590021 | T160: 5.321764822 | U160: 7.253415394 | V160: 31.26679981 | W160: 10.45010067 | X160: 4.704951073 | Y160: 4.478286435 | Z160: 7.294989305 | AA160: 2.333509824 | AB160: 3.001555582 | BB160: Latrina melhorada | BC160: 215.8042954 | BD160: 138.2305581 | BE160: 146.5481302 | BF160: 548.9583473 | BG160: 3304.742335 | BH160: 146.5597789 | BI160: 344.0509118 | BJ160: 963.5546733 | BK160: 1389.047165 | BL160: 907.7396886 | BM160: 127.4236634 | BN160: 79.95895995 | BO160: 94.11172642 | BP160: 96.85079333 | BQ160: 204.9863058 | BR160: 168.0265345 | BS160: 506.6697671 | BT160: 224.7629645 | BU160: 215.0348265 | BV160: 1135.95935 | BW160: 448.7454367 | BX160: 542.0314568 | BY160: 168.4471885 | BZ160: 491.4367267 | CA160: 131.4728361 | CB160: 321.6965792
B161: Latrina tradicional melhorada | C161: 6.334647977 | D161: 3.55585824 | E161: 2.858159231 | F161: 6.686051326 | G161: 18.4758356 | H161: 6.532127878 | I161: 12.99831811 | J161: 19.17449515 | K161: 21.45412166 | L161: 14.3752005 | M161: 5.506325072 | N161: 4.703875405 | O161: 2.893663121 | P161: 2.904842393 | Q161: 4.165813989 | R161: 2.567644582 | S161: 8.707733492 | T161: 8.672376293 | U161: 5.313192362 | V161: 18.28829919 | W161: 24.47137596 | X161: 7.227071231 | Y161: 10.30816497 | Z161: 5.639433829 | AA161: 0.939475769 | AB161: 4.102820987 | BB161: Latrina tradicional melhorada | BC161: 813.7330241 | BD161: 456.5343068 | BE161: 367.2383566 | BF161: 858.3338016 | BG161: 2372.893156 | BH161: 274.011781 | BI161: 544.1255317 | BJ161: 803.3154729 | BK161: 899.5223871 | BL161: 602.1176443 | BM161: 476.2112924 | BN161: 407.2178641 | BO161: 250.3336188 | BP161: 251.2275135 | BQ161: 360.6495392 | BR161: 166.2060529 | BS161: 370.5679724 | BT161: 366.2749239 | BU161: 157.5149548 | BV161: 664.4352664 | BW161: 1050.843302 | BX161: 832.5910062 | BY161: 387.7334405 | BZ161: 379.9080143 | CA161: 52.93122941 | CB161: 439.7264819
B162: Latrina não melhorada (laje) | C162: 43.23097834 | D162: 37.70411128 | E162: 39.48278652 | F162: 44.05936176 | G162: 26.62047561 | H162: 54.10416916 | I162: 56.38393923 | J162: 43.42831276 | K162: 27.73823018 | L162: 7.609496984 | M162: 41.82803648 | N162: 38.2411463 | O162: 36.81765235 | P162: 39.85809662 | Q162: 35.24127194 | R162: 64.43073827 | S162: 56.13942015 | T162: 55.69298174 | U162: 33.75085517 | V162: 15.1185917 | W162: 38.07383903 | X162: 38.16348273 | Y162: 62.44714927 | Z162: 23.60703823 | AA162: 38.4389756 | AB162: 18.13901438 | BB162: Latrina não melhorada (laje) | BC162: 5553.343276 | BD162: 4840.806114 | BE162: 5073.053131 | BF162: 5656.199396 | BG162: 3418.927605 | BH162: 2269.578923 | BI162: 2360.300821 | BJ162: 1819.42916 | BK162: 1163.000724 | BL162: 318.7303299 | BM162: 3617.473188 | BN162: 3310.563434 | BO162: 3185.131013 | BP162: 3447.157935 | BQ162: 3050.963994 | BR162: 4170.66239 | BS162: 2389.079905 | BT162: 2352.174532 | BU162: 1000.578195 | BV162: 549.2760917 | BW162: 1634.956645 | BX162: 4396.604305 | BY162: 2348.899937 | BZ162: 1590.319754 | CA162: 2165.699534 | CB162: 1944.078233
B163: Na praia | C163: 0.5786471319 | D163: 0.7995928 | E163: 0.9588905178 | F163: 1.907979047 | G163: 3.130701279 | H163: 1.189220658 | I163: 2.458284273 | J163: 5.482148516 | K163: 2.62050963 | L163: 1.188354949 | M163: 0.3045820895 | N163: 0.8317723774 | O163: 0.5961602491 | P163: 0.8810902171 | Q163: 2.067376922 | R163: 4.240275783 | S163: 0.2885527569 | T163: 0.1669714929 | U163: 0 | V163: 0 | W163: 0 | X163: 5.582540383 | Y163: 0.106042899 | Z163: 0 | AA163: 0 | AB163: 0.05867427679 | BB163: Na praia | BC163: 74.33156227 | BD163: 102.6591951 | BE163: 123.2056542 | BF163: 244.9402239 | BG163: 402.0830124 | BH163: 49.88580698 | BI163: 102.9067934 | BJ163: 229.6746117 | BK163: 109.8719917 | BL163: 49.77526975 | BM163: 26.34160326 | BN163: 72.00713066 | BO163: 51.57440459 | BP163: 76.20176052 | BQ163: 178.9802752 | BR163: 274.4770464 | BS163: 12.27970633 | BT163: 7.051985382 | BU163: 0 | BV163: 0 | BW163: 0 | BX163: 643.1336797 | BY163: 3.988719447 | BZ163: 0 | CA163: 0 | CB163: 6.288510611
B164: No mato | C164: 47.66810999 | D164: 55.84966552 | E164: 54.54372994 | F164: 40.91272358 | G164: 2.174488311 | H164: 34.27355135 | I164: 18.95219805 | J164: 5.334187323 | K164: 0.7690225275 | L164: 0 | M164: 50.23926661 | N164: 54.70899617 | O164: 57.16369937 | P164: 54.4499292 | Q164: 53.26340558 | R164: 25.15843167 | S164: 19.73781921 | T164: 28.00586208 | U164: 51.06444308 | V164: 0 | W164: 14.48382632 | X164: 40.63845425 | Y164: 20.9914382 | Z164: 54.10417458 | AA164: 57.81748676 | AB164: 71.59021489 | BB164: No mato | BC164: 6123.326102 | BD164: 7170.50192 | BE164: 7008.199378 | BF164: 5252.24409 | BG164: 279.2744286 | BH164: 1437.71785 | BI164: 793.362245 | BJ164: 223.4757775 | BK164: 32.24336053 | BL164: 0 | BM164: 4344.91349 | BN164: 4736.196997 | BO164: 4945.287384 | BP164: 4709.143723 | BQ164: 4611.205092 | BR164: 1628.528984 | BS164: 839.9664104 | BT164: 1182.818256 | BU164: 1513.856998 | BV164: 0 | BW164: 621.9606085 | BX164: 4681.73212 | BY164: 789.5762806 | BZ164: 3644.800197 | CA164: 3257.508875 | CB164: 7672.797188
B165: Outro | C165: 0 | D165: 0 | E165: 0 | F165: 0.01685771713 | G165: 0 | H165: 0 | I165: 0 | J165: 0 | K165: 0 | L165: 0 | M165: 0 | N165: 0 | O165: 0 | P165: 0 | Q165: 0.02499768344 | R165: 0 | S165: 0 | T165: 0 | U165: 0 | V165: 0 | W165: 0.05039711786 | X165: 0 | Y165: 0 | Z165: 0 | AA165: 0 | AB165: 0 | BB165: Outro | BC165: 0 | BD165: 0 | BE165: 0 | BF165: 2.164139599 | BG165: 0 | BH165: 0 | BI165: 0 | BJ165: 0 | BK165: 0 | BL165: 0 | BM165: 0 | BN165: 0 | BO165: 0 | BP165: 0 | BQ165: 2.164139599 | BR165: 0 | BS165: 0 | BT165: 0 | BU165: 0 | BV165: 0 | BW165: 2.164139599 | BX165: 0 | BY165: 0 | BZ165: 0 | CA165: 0 | CB165: 0
B166: 99.00 | C166: 0.3494323825 | D166: 0.8173862424 | E166: 0.9588079315 | F166: 1.277597843 | G166: 0.6186095386 | H166: 0.4071132252 | I166: 0.9642753027 | J166: 1.27356722 | K166: 0.2581964046 | L166: 0.2467043678 | M166: 0.4134136287 | N166: 0.5905837978 | O166: 1.094196466 | P166: 0.7562324188 | Q166: 1.589240135 | R166: 0.5235776725 | S166: 0.06419044476 | T166: 0.6501691896 | U166: 0.9452428414 | V166: 0.2844231383 | W166: 0.1511580361 | X166: 0.436437593 | Y166: 1.022050867 | Z166: 0.2769602956 | AA166: 0.3143550462 | AB166: 2.635527799 | BB166: 99.00 | BC166: 44.88720927 | BD166: 104.9436835 | BE166: 123.1950429 | BF166: 164.013909 | BG166: 79.44941553 | BH166: 17.07771526 | BI166: 40.36574634 | BJ166: 53.35609858 | BK166: 10.82558633 | BL166: 10.33342476 | BM166: 35.75383506 | BN166: 51.12726252 | BO166: 94.66000344 | BP166: 65.40333844 | BQ166: 137.5862494 | BR166: 33.89167602 | BS166: 2.731700848 | BT166: 27.45967915 | BU166: 28.02267888 | BV166: 10.33342476 | BW166: 6.490988087 | BX166: 50.27956736 | BY166: 38.44363186 | BZ166: 18.65780132 | CA166: 17.71115298 | CB166: 282.4669589
BB167: Total | BC167: 12845.74971 | BD167: 12838.9344 | BE167: 12848.77178 | BF167: 12837.67892 | BG167: 12843.2251 | BH167: 4194.831855 | BI167: 4186.122596 | BJ167: 4189.499993 | BK167: 4192.771913 | BL167: 4188.58606 | BM167: 8648.441314 | BN167: 8657.071648 | BO167: 8651.09753 | BP167: 8648.576393 | BQ167: 8657.360607 | BR167: 6473.094213 | BS167: 4255.619132 | BT167: 4223.466689 | BU167: 2964.601016 | BV167: 3633.116778 | BW167: 4294.173339 | BX167: 11520.44832 | BY167: 3761.4206 | BZ167: 6736.633957 | CA167: 5634.123961 | CB167: 10717.6619
A208: =A1026 -> Mozambique
A209: =A1034 -> 2008
A210: Access to hygiene facilities
A211: by wealth quintile and sub-national region
A212: Notes:
A213: WHO/UNICEF JMP customised wealth index excludes water,
A214: sanitation and hygiene assets.
A215: Survey used for analysis: | B215: =A1025 -> MICS08
A220: Access to handwashing | C220: NATIONAL wealth index quintile | H220: URBAN wealth index quintile | M220: RURAL wealth index quintile | R220: SUB-REGIONS: | BA220: Raw numbers of respondents: | BB220: Access to handwashing | BC220: NATIONAL wealth index quintile | BH220: URBAN wealth index quintile | BM220: RURAL wealth index quintile | BR220: SUB-REGIONS:
A221: Weighted percentage (used in graphs) | C221: Poorest | D221: Poor | E221: Middle | F221: Rich | G221: Richest | H221: Poorest | I221: Poor | J221: Middle | K221: Rich | L221: Richest | M221: Poorest | N221: Poor | O221: Middle | P221: Rich | Q221: Richest | R221: Cabo Delgado | S221: Gaza | T221: Inhambane | U221: Manica | V221: Maputo Cidade | W221: Maputo Província | X221: Nampula | Y221: Niassa | Z221: Sofala | AA221: Tete | AB221: Zambézia | BA221: Hygiene data, raw numbers (weighted) | BC221: Poorest | BD221: Poor | BE221: Middle | BF221: Rich | BG221: Richest | BH221: Poorest | BI221: Poor | BJ221: Middle | BK221: Rich | BL221: Richest | BM221: Poorest | BN221: Poor | BO221: Middle | BP221: Rich | BQ221: Richest | BR221: Cabo Delgado | BS221: Gaza | BT221: Inhambane | BU221: Manica | BV221: Maputo Cidade | BW221: Maputo Província | BX221: Nampula | BY221: Niassa | BZ221: Sofala | CA221: Tete | CB221: Zambézia
A222: Hygiene ladder | B222: Basic | C222: N/A | D222: N/A | E222: N/A | F222: N/A | G222: N/A | H222: N/A | I222: N/A | J222: N/A | K222: N/A | L222: N/A | M222: N/A | N222: N/A | O222: N/A | P222: N/A | Q222: N/A | R222: N/A | S222: N/A | T222: N/A | U222: N/A | V222: N/A | W222: N/A | X222: N/A | Y222: N/A | Z222: N/A | AA222: N/A | AB222: N/A | BA222: Hygiene ladder | BB222: Basic | BC222: N/A | BD222: N/A | BE222: N/A | BF222: N/A | BG222: N/A | BH222: N/A | BI222: N/A | BJ222: N/A | BK222: N/A | BL222: N/A | BM222: N/A | BN222: N/A | BO222: N/A | BP222: N/A | BQ222: N/A | BR222: N/A | BS222: N/A | BT222: N/A | BU222: N/A | BV222: N/A | BW222: N/A | BX222: N/A | BY222: N/A | BZ222: N/A | CA222: N/A | CB222: N/A
B223: Limited | C223: N/A | D223: N/A | E223: N/A | F223: N/A | G223: N/A | H223: N/A | I223: N/A | J223: N/A | K223: N/A | L223: N/A | M223: N/A | N223: N/A | O223: N/A | P223: N/A | Q223: N/A | R223: N/A | S223: N/A | T223: N/A | U223: N/A | V223: N/A | W223: N/A | X223: N/A | Y223: N/A | Z223: N/A | AA223: N/A | AB223: N/A | BB223: Limited | BC223: N/A | BD223: N/A | BE223: N/A | BF223: N/A | BG223: N/A | BH223: N/A | BI223: N/A | BJ223: N/A | BK223: N/A | BL223: N/A | BM223: N/A | BN223: N/A | BO223: N/A | BP223: N/A | BQ223: N/A | BR223: N/A | BS223: N/A | BT223: N/A | BU223: N/A | BV223: N/A | BW223: N/A | BX223: N/A | BY223: N/A | BZ223: N/A | CA223: N/A | CB223: N/A
B224: No facility | C224: N/A | D224: N/A | E224: N/A | F224: N/A | G224: N/A | H224: N/A | I224: N/A | J224: N/A | K224: N/A | L224: N/A | M224: N/A | N224: N/A | O224: N/A | P224: N/A | Q224: N/A | R224: N/A | S224: N/A | T224: N/A | U224: N/A | V224: N/A | W224: N/A | X224: N/A | Y224: N/A | Z224: N/A | AA224: N/A | AB224: N/A | BB224: No facility | BC224: N/A | BD224: N/A | BE224: N/A | BF224: N/A | BG224: N/A | BH224: N/A | BI224: N/A | BJ224: N/A | BK224: N/A | BL224: N/A | BM224: N/A | BN224: N/A | BO224: N/A | BP224: N/A | BQ224: N/A | BR224: N/A | BS224: N/A | BT224: N/A | BU224: N/A | BV224: N/A | BW224: N/A | BX224: N/A | BY224: N/A | BZ224: N/A | CA224: N/A | CB224: N/A
BA225: Observed handwashing place | BB225: Fixed | BC225: N/A | BD225: N/A | BE225: N/A | BF225: N/A | BG225: N/A | BH225: N/A | BI225: N/A | BJ225: N/A | BK225: N/A | BL225: N/A | BM225: N/A | BN225: N/A | BO225: N/A | BP225: N/A | BQ225: N/A | BR225: N/A | BS225: N/A | BT225: N/A | BU225: N/A | BV225: N/A | BW225: N/A | BX225: N/A | BY225: N/A | BZ225: N/A | CA225: N/A | CB225: N/A
BB226: Mobile | BC226: N/A | BD226: N/A | BE226: N/A | BF226: N/A | BG226: N/A | BH226: N/A | BI226: N/A | BJ226: N/A | BK226: N/A | BL226: N/A | BM226: N/A | BN226: N/A | BO226: N/A | BP226: N/A | BQ226: N/A | BR226: N/A | BS226: N/A | BT226: N/A | BU226: N/A | BV226: N/A | BW226: N/A | BX226: N/A | BY226: N/A | BZ226: N/A | CA226: N/A | CB226: N/A
BA227: Water / Soap | BB227: Water and soap | BC227: N/A | BD227: N/A | BE227: N/A | BF227: N/A | BG227: N/A | BH227: N/A | BI227: N/A | BJ227: N/A | BK227: N/A | BL227: N/A | BM227: N/A | BN227: N/A | BO227: N/A | BP227: N/A | BQ227: N/A | BR227: N/A | BS227: N/A | BT227: N/A | BU227: N/A | BV227: N/A | BW227: N/A | BX227: N/A | BY227: N/A | BZ227: N/A | CA227: N/A | CB227: N/A
BB228: Water only | BC228: N/A | BD228: N/A | BE228: N/A | BF228: N/A | BG228: N/A | BH228: N/A | BI228: N/A | BJ228: N/A | BK228: N/A | BL228: N/A | BM228: N/A | BN228: N/A | BO228: N/A | BP228: N/A | BQ228: N/A | BR228: N/A | BS228: N/A | BT228: N/A | BU228: N/A | BV228: N/A | BW228: N/A | BX228: N/A | BY228: N/A | BZ228: N/A | CA228: N/A | CB228: N/A
BB229: Soap only | BC229: N/A | BD229: N/A | BE229: N/A | BF229: N/A | BG229: N/A | BH229: N/A | BI229: N/A | BJ229: N/A | BK229: N/A | BL229: N/A | BM229: N/A | BN229: N/A | BO229: N/A | BP229: N/A | BQ229: N/A | BR229: N/A | BS229: N/A | BT229: N/A | BU229: N/A | BV229: N/A | BW229: N/A | BX229: N/A | BY229: N/A | BZ229: N/A | CA229: N/A | CB229: N/A
BB230: Neither | BC230: N/A | BD230: N/A | BE230: N/A | BF230: N/A | BG230: N/A | BH230: N/A | BI230: N/A | BJ230: N/A | BK230: N/A | BL230: N/A | BM230: N/A | BN230: N/A | BO230: N/A | BP230: N/A | BQ230: N/A | BR230: N/A | BS230: N/A | BT230: N/A | BU230: N/A | BV230: N/A | BW230: N/A | BX230: N/A | BY230: N/A | BZ230: N/A | CA230: N/A | CB230: N/A
BA259: Raw numbers of respondents: | BB259: Menstrual health and hygiene | BC259: NATIONAL wealth index quintile | BH259: URBAN wealth index quintile | BM259: RURAL wealth index quintile | BR259: SUB-REGIONS:
BA260: MHH data, raw numbers (weighted) | BC260: Poorest | BD260: Poor | BE260: Middle | BF260: Rich | BG260: Richest | BH260: Poorest | BI260: Poor | BJ260: Middle | BK260: Rich | BL260: Richest | BM260: Poorest | BN260: Poor | BO260: Middle | BP260: Rich | BQ260: Richest | BR260: Cabo Delgado | BS260: Gaza | BT260: Inhambane | BU260: Manica | BV260: Maputo Cidade | BW260: Maputo Província | BX260: Nampula | BY260: Niassa | BZ260: Sofala | CA260: Tete | CB260: Zambézia
BA261: Private place to wash and change | BB261: Yes | BC261: N/A | BD261: N/A | BE261: N/A | BF261: N/A | BG261: N/A | BH261: N/A | BI261: N/A | BJ261: N/A | BK261: N/A | BL261: N/A | BM261: N/A | BN261: N/A | BO261: N/A | BP261: N/A | BQ261: N/A | BR261: N/A | BS261: N/A | BT261: N/A | BU261: N/A | BV261: N/A | BW261: N/A | BX261: N/A | BY261: N/A | BZ261: N/A | CA261: N/A | CB261: N/A
BB262: No | BC262: N/A | BD262: N/A | BE262: N/A | BF262: N/A | BG262: N/A | BH262: N/A | BI262: N/A | BJ262: N/A | BK262: N/A | BL262: N/A | BM262: N/A | BN262: N/A | BO262: N/A | BP262: N/A | BQ262: N/A | BR262: N/A | BS262: N/A | BT262: N/A | BU262: N/A | BV262: N/A | BW262: N/A | BX262: N/A | BY262: N/A | BZ262: N/A | CA262: N/A | CB262: N/A
BB263: DK/not sure/missing | BC263: N/A | BD263: N/A | BE263: N/A | BF263: N/A | BG263: N/A | BH263: N/A | BI263: N/A | BJ263: N/A | BK263: N/A | BL263: N/A | BM263: N/A | BN263: N/A | BO263: N/A | BP263: N/A | BQ263: N/A | BR263: N/A | BS263: N/A | BT263: N/A | BU263: N/A | BV263: N/A | BW263: N/A | BX263: N/A | BY263: N/A | BZ263: N/A | CA263: N/A | CB263: N/A
BA264: Use of menstrual materials | BB264: Materials reusable | BC264: N/A | BD264: N/A | BE264: N/A | BF264: N/A | BG264: N/A | BH264: N/A | BI264: N/A | BJ264: N/A | BK264: N/A | BL264: N/A | BM264: N/A | BN264: N/A | BO264: N/A | BP264: N/A | BQ264: N/A | BR264: N/A | BS264: N/A | BT264: N/A | BU264: N/A | BV264: N/A | BW264: N/A | BX264: N/A | BY264: N/A | BZ264: N/A | CA264: N/A | CB264: N/A
BB265: Materials not reusable | BC265: N/A | BD265: N/A | BE265: N/A | BF265: N/A | BG265: N/A | BH265: N/A | BI265: N/A | BJ265: N/A | BK265: N/A | BL265: N/A | BM265: N/A | BN265: N/A | BO265: N/A | BP265: N/A | BQ265: N/A | BR265: N/A | BS265: N/A | BT265: N/A | BU265: N/A | BV265: N/A | BW265: N/A | BX265: N/A | BY265: N/A | BZ265: N/A | CA265: N/A | CB265: N/A
BB266: No materials used | BC266: N/A | BD266: N/A | BE266: N/A | BF266: N/A | BG266: N/A | BH266: N/A | BI266: N/A | BJ266: N/A | BK266: N/A | BL266: N/A | BM266: N/A | BN266: N/A | BO266: N/A | BP266: N/A | BQ266: N/A | BR266: N/A | BS266: N/A | BT266: N/A | BU266: N/A | BV266: N/A | BW266: N/A | BX266: N/A | BY266: N/A | BZ266: N/A | CA266: N/A | CB266: N/A
BB267: DK/not sure/missing | BC267: N/A | BD267: N/A | BE267: N/A | BF267: N/A | BG267: N/A | BH267: N/A | BI267: N/A | BJ267: N/A | BK267: N/A | BL267: N/A | BM267: N/A | BN267: N/A | BO267: N/A | BP267: N/A | BQ267: N/A | BR267: N/A | BS267: N/A | BT267: N/A | BU267: N/A | BV267: N/A | BW267: N/A | BX267: N/A | BY267: N/A | BZ267: N/A | CA267: N/A | CB267: N/A
BA268: Use of menstrual materials with private place to wash and change | BB268: Materials reusable | BC268: N/A | BD268: N/A | BE268: N/A | BF268: N/A | BG268: N/A | BH268: N/A | BI268: N/A | BJ268: N/A | BK268: N/A | BL268: N/A | BM268: N/A | BN268: N/A | BO268: N/A | BP268: N/A | BQ268: N/A | BR268: N/A | BS268: N/A | BT268: N/A | BU268: N/A | BV268: N/A | BW268: N/A | BX268: N/A | BY268: N/A | BZ268: N/A | CA268: N/A | CB268: N/A
BB269: Materials not reusable | BC269: N/A | BD269: N/A | BE269: N/A | BF269: N/A | BG269: N/A | BH269: N/A | BI269: N/A | BJ269: N/A | BK269: N/A | BL269: N/A | BM269: N/A | BN269: N/A | BO269: N/A | BP269: N/A | BQ269: N/A | BR269: N/A | BS269: N/A | BT269: N/A | BU269: N/A | BV269: N/A | BW269: N/A | BX269: N/A | BY269: N/A | BZ269: N/A | CA269: N/A | CB269: N/A
BB270: No materials used | BC270: N/A | BD270: N/A | BE270: N/A | BF270: N/A | BG270: N/A | BH270: N/A | BI270: N/A | BJ270: N/A | BK270: N/A | BL270: N/A | BM270: N/A | BN270: N/A | BO270: N/A | BP270: N/A | BQ270: N/A | BR270: N/A | BS270: N/A | BT270: N/A | BU270: N/A | BV270: N/A | BW270: N/A | BX270: N/A | BY270: N/A | BZ270: N/A | CA270: N/A | CB270: N/A
BA271: Awareness of menstruation before menarche | BB271: Yes | BC271: N/A | BD271: N/A | BE271: N/A | BF271: N/A | BG271: N/A | BH271: N/A | BI271: N/A | BJ271: N/A | BK271: N/A | BL271: N/A | BM271: N/A | BN271: N/A | BO271: N/A | BP271: N/A | BQ271: N/A | BR271: N/A | BS271: N/A | BT271: N/A | BU271: N/A | BV271: N/A | BW271: N/A | BX271: N/A | BY271: N/A | BZ271: N/A | CA271: N/A | CB271: N/A
BB272: No | BC272: N/A | BD272: N/A | BE272: N/A | BF272: N/A | BG272: N/A | BH272: N/A | BI272: N/A | BJ272: N/A | BK272: N/A | BL272: N/A | BM272: N/A | BN272: N/A | BO272: N/A | BP272: N/A | BQ272: N/A | BR272: N/A | BS272: N/A | BT272: N/A | BU272: N/A | BV272: N/A | BW272: N/A | BX272: N/A | BY272: N/A | BZ272: N/A | CA272: N/A | CB272: N/A
BB273: DK/not sure/missing | BC273: N/A | BD273: N/A | BE273: N/A | BF273: N/A | BG273: N/A | BH273: N/A | BI273: N/A | BJ273: N/A | BK273: N/A | BL273: N/A | BM273: N/A | BN273: N/A | BO273: N/A | BP273: N/A | BQ273: N/A | BR273: N/A | BS273: N/A | BT273: N/A | BU273: N/A | BV273: N/A | BW273: N/A | BX273: N/A | BY273: N/A | BZ273: N/A | CA273: N/A | CB273: N/A
BA274: Participation in (all) activities during menstruation | BB274: Yes | BC274: N/A | BD274: N/A | BE274: N/A | BF274: N/A | BG274: N/A | BH274: N/A | BI274: N/A | BJ274: N/A | BK274: N/A | BL274: N/A | BM274: N/A | BN274: N/A | BO274: N/A | BP274: N/A | BQ274: N/A | BR274: N/A | BS274: N/A | BT274: N/A | BU274: N/A | BV274: N/A | BW274: N/A | BX274: N/A | BY274: N/A | BZ274: N/A | CA274: N/A | CB274: N/A
BB275: No | BC275: N/A | BD275: N/A | BE275: N/A | BF275: N/A | BG275: N/A | BH275: N/A | BI275: N/A | BJ275: N/A | BK275: N/A | BL275: N/A | BM275: N/A | BN275: N/A | BO275: N/A | BP275: N/A | BQ275: N/A | BR275: N/A | BS275: N/A | BT275: N/A | BU275: N/A | BV275: N/A | BW275: N/A | BX275: N/A | BY275: N/A | BZ275: N/A | CA275: N/A | CB275: N/A
BB276: DK/not sure/missing/no such activity | BC276: N/A | BD276: N/A | BE276: N/A | BF276: N/A | BG276: N/A | BH276: N/A | BI276: N/A | BJ276: N/A | BK276: N/A | BL276: N/A | BM276: N/A | BN276: N/A | BO276: N/A | BP276: N/A | BQ276: N/A | BR276: N/A | BS276: N/A | BT276: N/A | BU276: N/A | BV276: N/A | BW276: N/A | BX276: N/A | BY276: N/A | BZ276: N/A | CA276: N/A | CB276: N/A
BA277: Participation in specific activities during menstruation | BB277: Did not go to school (amongst those usually attending school) | BC277: N/A | BD277: N/A | BE277: N/A | BF277: N/A | BG277: N/A | BH277: N/A | BI277: N/A | BJ277: N/A | BK277: N/A | BL277: N/A | BM277: N/A | BN277: N/A | BO277: N/A | BP277: N/A | BQ277: N/A | BR277: N/A | BS277: N/A | BT277: N/A | BU277: N/A | BV277: N/A | BW277: N/A | BX277: N/A | BY277: N/A | BZ277: N/A | CA277: N/A | CB277: N/A
BB278: Did not go to work (amongst those who usually work) | BC278: N/A | BD278: N/A | BE278: N/A | BF278: N/A | BG278: N/A | BH278: N/A | BI278: N/A | BJ278: N/A | BK278: N/A | BL278: N/A | BM278: N/A | BN278: N/A | BO278: N/A | BP278: N/A | BQ278: N/A | BR278: N/A | BS278: N/A | BT278: N/A | BU278: N/A | BV278: N/A | BW278: N/A | BX278: N/A | BY278: N/A | BZ278: N/A | CA278: N/A | CB278: N/A
BB279: Did not participate in social activities | BC279: N/A | BD279: N/A | BE279: N/A | BF279: N/A | BG279: N/A | BH279: N/A | BI279: N/A | BJ279: N/A | BK279: N/A | BL279: N/A | BM279: N/A | BN279: N/A | BO279: N/A | BP279: N/A | BQ279: N/A | BR279: N/A | BS279: N/A | BT279: N/A | BU279: N/A | BV279: N/A | BW279: N/A | BX279: N/A | BY279: N/A | BZ279: N/A | CA279: N/A | CB279: N/A
BB280: Did not cook food | BC280: N/A | BD280: N/A | BE280: N/A | BF280: N/A | BG280: N/A | BH280: N/A | BI280: N/A | BJ280: N/A | BK280: N/A | BL280: N/A | BM280: N/A | BN280: N/A | BO280: N/A | BP280: N/A | BQ280: N/A | BR280: N/A | BS280: N/A | BT280: N/A | BU280: N/A | BV280: N/A | BW280: N/A | BX280: N/A | BY280: N/A | BZ280: N/A | CA280: N/A | CB280: N/A
BB281: Did not eat with others | BC281: N/A | BD281: N/A | BE281: N/A | BF281: N/A | BG281: N/A | BH281: N/A | BI281: N/A | BJ281: N/A | BK281: N/A | BL281: N/A | BM281: N/A | BN281: N/A | BO281: N/A | BP281: N/A | BQ281: N/A | BR281: N/A | BS281: N/A | BT281: N/A | BU281: N/A | BV281: N/A | BW281: N/A | BX281: N/A | BY281: N/A | BZ281: N/A | CA281: N/A | CB281: N/A
BB282: Did not bathe in regular place | BC282: N/A | BD282: N/A | BE282: N/A | BF282: N/A | BG282: N/A | BH282: N/A | BI282: N/A | BJ282: N/A | BK282: N/A | BL282: N/A | BM282: N/A | BN282: N/A | BO282: N/A | BP282: N/A | BQ282: N/A | BR282: N/A | BS282: N/A | BT282: N/A | BU282: N/A | BV282: N/A | BW282: N/A | BX282: N/A | BY282: N/A | BZ282: N/A | CA282: N/A | CB282: N/A
BB283: Did not participate in other activities | BC283: N/A | BD283: N/A | BE283: N/A | BF283: N/A | BG283: N/A | BH283: N/A | BI283: N/A | BJ283: N/A | BK283: N/A | BL283: N/A | BM283: N/A | BN283: N/A | BO283: N/A | BP283: N/A | BQ283: N/A | BR283: N/A | BS283: N/A | BT283: N/A | BU283: N/A | BV283: N/A | BW283: N/A | BX283: N/A | BY283: N/A | BZ283: N/A | CA283: N/A | CB283: N/A
BB284: DK/not sure/missing/no such activity | BC284: N/A | BD284: N/A | BE284: N/A | BF284: N/A | BG284: N/A | BH284: N/A | BI284: N/A | BJ284: N/A | BK284: N/A | BL284: N/A | BM284: N/A | BN284: N/A | BO284: N/A | BP284: N/A | BQ284: N/A | BR284: N/A | BS284: N/A | BT284: N/A | BU284: N/A | BV284: N/A | BW284: N/A | BX284: N/A | BY284: N/A | BZ284: N/A | CA284: N/A | CB284: N/A
BA339: Raw numbers of respondents: | BB339: Basic water, sanitation and hygiene | BC339: NATIONAL wealth index quintile | BH339: URBAN wealth index quintile | BM339: RURAL wealth index quintile | BR339: SUB-REGIONS:
BA340: WatSan data, raw numbers (weighted) | BC340: Poorest | BD340: Poor | BE340: Middle | BF340: Rich | BG340: Richest | BH340: Poorest | BI340: Poor | BJ340: Middle | BK340: Rich | BL340: Richest | BM340: Poorest | BN340: Poor | BO340: Middle | BP340: Rich | BQ340: Richest | BR340: Cabo Delgado | BS340: Gaza | BT340: Inhambane | BU340: Manica | BV340: Maputo Cidade | BW340: Maputo Província | BX340: Nampula | BY340: Niassa | BZ340: Sofala | CA340: Tete | CB340: Zambézia
BA341: Use of Basic Water Sanitation and Hygiene | BB341: Yes | BC341: N/A | BD341: N/A | BE341: N/A | BF341: N/A | BG341: N/A | BH341: N/A | BI341: N/A | BJ341: N/A | BK341: N/A | BL341: N/A | BM341: N/A | BN341: N/A | BO341: N/A | BP341: N/A | BQ341: N/A | BR341: N/A | BS341: N/A | BT341: N/A | BU341: N/A | BV341: N/A | BW341: N/A | BX341: N/A | BY341: N/A | BZ341: N/A | CA341: N/A | CB341: N/A
BB342: No | BC342: N/A | BD342: N/A | BE342: N/A | BF342: N/A | BG342: N/A | BH342: N/A | BI342: N/A | BJ342: N/A | BK342: N/A | BL342: N/A | BM342: N/A | BN342: N/A | BO342: N/A | BP342: N/A | BQ342: N/A | BR342: N/A | BS342: N/A | BT342: N/A | BU342: N/A | BV342: N/A | BW342: N/A | BX342: N/A | BY342: N/A | BZ342: N/A | CA342: N/A | CB342: N/A
BA343: Use of Basic Water and Sanitation | BB343: Yes | BC343: N/A | BD343: N/A | BE343: N/A | BF343: N/A | BG343: N/A | BH343: N/A | BI343: N/A | BJ343: N/A | BK343: N/A | BL343: N/A | BM343: N/A | BN343: N/A | BO343: N/A | BP343: N/A | BQ343: N/A | BR343: N/A | BS343: N/A | BT343: N/A | BU343: N/A | BV343: N/A | BW343: N/A | BX343: N/A | BY343: N/A | BZ343: N/A | CA343: N/A | CB343: N/A
BB344: No | BC344: N/A | BD344: N/A | BE344: N/A | BF344: N/A | BG344: N/A | BH344: N/A | BI344: N/A | BJ344: N/A | BK344: N/A | BL344: N/A | BM344: N/A | BN344: N/A | BO344: N/A | BP344: N/A | BQ344: N/A | BR344: N/A | BS344: N/A | BT344: N/A | BU344: N/A | BV344: N/A | BW344: N/A | BX344: N/A | BY344: N/A | BZ344: N/A | CA344: N/A | CB344: N/A
BA345: Use of Basic Water and Hygiene | BB345: Yes | BC345: N/A | BD345: N/A | BE345: N/A | BF345: N/A | BG345: N/A | BH345: N/A | BI345: N/A | BJ345: N/A | BK345: N/A | BL345: N/A | BM345: N/A | BN345: N/A | BO345: N/A | BP345: N/A | BQ345: N/A | BR345: N/A | BS345: N/A | BT345: N/A | BU345: N/A | BV345: N/A | BW345: N/A | BX345: N/A | BY345: N/A | BZ345: N/A | CA345: N/A | CB345: N/A
BB346: No | BC346: N/A | BD346: N/A | BE346: N/A | BF346: N/A | BG346: N/A | BH346: N/A | BI346: N/A | BJ346: N/A | BK346: N/A | BL346: N/A | BM346: N/A | BN346: N/A | BO346: N/A | BP346: N/A | BQ346: N/A | BR346: N/A | BS346: N/A | BT346: N/A | BU346: N/A | BV346: N/A | BW346: N/A | BX346: N/A | BY346: N/A | BZ346: N/A | CA346: N/A | CB346: N/A
BA347: Use of Basic Sanitation and Hygiene | BB347: Yes | BC347: N/A | BD347: N/A | BE347: N/A | BF347: N/A | BG347: N/A | BH347: N/A | BI347: N/A | BJ347: N/A | BK347: N/A | BL347: N/A | BM347: N/A | BN347: N/A | BO347: N/A | BP347: N/A | BQ347: N/A | BR347: N/A | BS347: N/A | BT347: N/A | BU347: N/A | BV347: N/A | BW347: N/A | BX347: N/A | BY347: N/A | BZ347: N/A | CA347: N/A | CB347: N/A
BB348: No | BC348: N/A | BD348: N/A | BE348: N/A | BF348: N/A | BG348: N/A | BH348: N/A | BI348: N/A | BJ348: N/A | BK348: N/A | BL348: N/A | BM348: N/A | BN348: N/A | BO348: N/A | BP348: N/A | BQ348: N/A | BR348: N/A | BS348: N/A | BT348: N/A | BU348: N/A | BV348: N/A | BW348: N/A | BX348: N/A | BY348: N/A | BZ348: N/A | CA348: N/A | CB348: N/A
BA349: Use of Basic Water | BB349: Yes | BC349: N/A | BD349: N/A | BE349: N/A | BF349: N/A | BG349: N/A | BH349: N/A | BI349: N/A | BJ349: N/A | BK349: N/A | BL349: N/A | BM349: N/A | BN349: N/A | BO349: N/A | BP349: N/A | BQ349: N/A | BR349: N/A | BS349: N/A | BT349: N/A | BU349: N/A | BV349: N/A | BW349: N/A | BX349: N/A | BY349: N/A | BZ349: N/A | CA349: N/A | CB349: N/A
BB350: No | BC350: N/A | BD350: N/A | BE350: N/A | BF350: N/A | BG350: N/A | BH350: N/A | BI350: N/A | BJ350: N/A | BK350: N/A | BL350: N/A | BM350: N/A | BN350: N/A | BO350: N/A | BP350: N/A | BQ350: N/A | BR350: N/A | BS350: N/A | BT350: N/A | BU350: N/A | BV350: N/A | BW350: N/A | BX350: N/A | BY350: N/A | BZ350: N/A | CA350: N/A | CB350: N/A
BA351: Use of Basic Sanitation | BB351: Yes | BC351: N/A | BD351: N/A | BE351: N/A | BF351: N/A | BG351: N/A | BH351: N/A | BI351: N/A | BJ351: N/A | BK351: N/A | BL351: N/A | BM351: N/A | BN351: N/A | BO351: N/A | BP351: N/A | BQ351: N/A | BR351: N/A | BS351: N/A | BT351: N/A | BU351: N/A | BV351: N/A | BW351: N/A | BX351: N/A | BY351: N/A | BZ351: N/A | CA351: N/A | CB351: N/A
